{"text_format":"1","workbook":"xlsx","n_sheets":8,"sheets":["1. INFORMACION ACUMULADA","OBSERVACIONE Y REVISIÓN BOGDATA","2. PAA","3. CONSOLIDADO","4. INSTRUCTIVO","Proposito_programa","Tipo","Eje_Pilar_Prop1"],"not_rendered":{"charts":0,"images":1,"macros":1,"external_links":0,"defined_names":14,"comments":1,"pivot_tables":0},"unopened":[],"bounds":{"document_bytes":16777216,"sheet_cells":100000,"rows_first":2000,"rows_last":500,"rows_between":2000,"halvings":0,"cell_chars":16384,"cell_head_chars":4096},"cells_cut":0,"cells_raw":0,"read":"whole","date_system":"1900"}

{"sheet":"1. INFORMACION ACUMULADA","index":0,"n_rows":237,"n_cols":42,"rows_kept":237,"cut":false,"hidden":false,"merged":[[10,37,10,40],[11,2,11,3],[11,8,11,12],[11,15,11,20],[11,37,11,40],[10,0,10,20],[10,21,10,26],[10,27,10,32],[10,33,10,36],[7,33,7,34],[8,0,8,3],[8,6,8,7],[8,10,9,15],[8,33,8,34],[9,0,9,3],[9,5,9,7],[9,33,9,34],[5,0,5,3],[5,8,5,10],[5,33,5,34],[6,0,6,3],[6,8,6,10],[6,33,6,34],[1,0,1,37],[2,0,2,37],[4,0,4,3],[4,8,4,10],[4,14,4,15],[4,22,4,37]]}
[]
["VEEDURIA DISTRITAL - INFORMACIÓN GESTION CONTRACTUAL"]
["DEL 1 DE ENERO AL 31 DE DICIEMBRE DE 2021"]
[]
["1. Entidad",null,null,null,"FONDO DE DESARROLLO LOCAL DE LOS MARTIRES",null,null,"2. Sector","Gestión Pública"]
["3. Presupuesto Disponible Inversión Directa PREDIS (BOGDATA)",null,null,null,15992156000,null,null,"5. Presupuesto Disponible Funcionamiento PREDIS (BOGDATA)",3298961788,null,null,null,null,null,null,null,null,null,null,null,null,null,null,null,null,null,null,null,null,null,null,null,null,"9. Nombre de quien diligencia el formato"]
["4. Presupuesto Comprometido de Inversión Directa según PREDIS (BOGDATA)",null,null,null,14105243982,null,null,"6. Presupuesto Comprometido Funcionamiento según PREDIS (BOGDATA)",2745389740,null,null,null,null,null,null,null,null,null,null,null,null,null,null,null,null,null,null,null,null,null,null,null,null,"Cargo"]
[null,null,null,null,null,null,null,null,null,null,null,null,null,null,null,null,null,null,null,null,null,null,null,null,null,null,null,null,null,null,null,null,null,"Dependencia"]
["7. Presupuesto Disponible Operación (Régimen Privado)",null,null,null,null,null,null,null,null,null,null,null,null,null,null,null,null,null,null,null,null,null,null,null,null,null,null,null,null,null,null,null,null,"Teléfono"]
["8. Presupuesto Comprometido Operación mediante contratos",null,null,null,null,null,null,null,null,null,null,null,null,null,null,null,null,null,null,null,null,null,null,null,null,null,null,null,null,null,null,null,null,"Correo Electrónico"]
["1- INFORMACION GENERAL",null,null,null,null,null,null,null,null,null,null,null,null,null,null,null,null,null,null,null,null,"2- INFORMACION FINANCIERA",null,null,null,null,null,"3 - PLAZOS ",null,null,null,null,null,"4. CESION",null,null,null,"5. ESTADO",null,null,null,"6. %  Avance y/o cumplimiento"]
[1,2,3,null,4,5,6,7,8,null,null,null,null,9,10,11,null,null,null,null,null,12,13,14,15,16,17,18,19,20,21,22,23,24,25,26,27,28,null,null,null,29]
["Número Contrato","Año","Número de proceso contractual \nSECOP","Link proceso SECOP","Tipo de contrato ","Modalidad de Selección","Procedimiento o causal","Objeto","Afectación","Plan de Desarrollo Distrital","Número Programa","Equivalencia número de programa","Propósito","Número Proyecto","Número de proponentes","Número  de Identificación del contratista\n(Cédula o NIT sin puntos, comas ni caracteres especiales y sin digito de verificación)","Nombre del contratista\n  (según el caso: nombres y apellidos o Razón social y Tipo societario)","Naturaleza Jurídica","Número  de Identificación del integrante del Consorcio o U.T.\n(Cédula o NIT sin puntos, comas ni caracteres especiales y sin digito de verificación)","Nombre del Integrante del Consorcio o U.T. y Tipo societario\n (Según el caso: nombres y apellidos o razón social y tipo societario)","% Participación (indicar solo el numero del porcentaje, sin caracteres especiales)","Valor Inicial del contrato","Valor total reducciones \n(En valor negativo)","Número de adiciones","Valor total de adiciones ","Valor Final ","Giros (Valor en pesos)","Fecha de suscripción (DD/MM/AAAA)","Fecha de inicio (DD/MM/AAAA)","Fecha de terminación (DD/MM/AAAA)","Plazo en días","Número de prórrogas","Prorroga en días","Número  de Identificación del cesionario\n(NIT sin digito de verificación)","Nombre cesionario","Fecha cesión\n(DD/MM/AAAA)","Valor cesión","Celebrado o por iniciar","En Ejecución","Terminado","Liquidado","% Avance y/o Cumplimiento"]
["001-2021",2021,"FDLM-CD-001-2021","https://community.secop.gov.co/Public/Tendering/OpportunityDetail/Index?noticeUID=CO1.NTC.1667031&isFromPublicArea=True&isModal=False\n","Contratos de prestación de servicios profesionales y de apoyo a la gestión","Contratación directa","Prestación de servicios profesionales y de apoyo a la gestión, o para la ejecución de trabajos artísticos que sólo puedan encomendarse a determinadas personas naturales;","PRESTAR LOS SERVICIOS PROFESIONALES ESPECIALIZADOS DE ABOGADO PARA COORDINAR LAS ETAPAS PRECONTRACTUAL, CONTRACTUAL Y POS-CONTRACTUAL Y DEMÁS LABORES PROPIAS DE LA OFICINA DE CONTRATACIÓN DEL FONDO DE DESARROLLO LOCAL DE LOS MÁRTIRES EN CUMPLIMIENTO DEL PLAN DE DESARROLLO LOCAL VIGENTE.","Inversión","Un Nuevo Contrato Social y Ambiental para la Bogotá del Siglo XXI",3,{"$f":"IF(ISERROR(VLOOKUP(K14,Proposito_programa!$C$2:$E$59,2,FALSE)),\" \",VLOOKUP(K14,Proposito_programa!$C$2:$E$59,2,FALSE))","v":"Movilidad social integral"},{"$f":"IF(ISERROR(VLOOKUP(K14,Proposito_programa!$C$2:$E$59,3,FALSE)),\" \",VLOOKUP(K14,Proposito_programa!$C$2:$E$59,3,FALSE))","v":"Propósito 1: Hacer un nuevo contrato social para incrementar la inclusión social, productiva y política"},"133011605570000002099",0,80771631,"EFRAIN DANIEL BARROS SEGRERA","Persona Natural","N/A","N/A","N/A",64000000,null,null,0,{"$f":"+V14+W14+Y14","v":64000000},64000000,"2021-01-18","2021-01-19","2021-09-18","8 MESES",null,"N/A",80770210,"MILTON RICARDO CASAS IREGUI","2021-04-20",64000000,null,null,"X",null,{"$f":"IF(ISERROR(AA14/Z14),\"-\",(AA14/Z14))","v":1}]
["002-2021",2021,"FDLM-CD-002-2021","https://community.secop.gov.co/Public/Tendering/OpportunityDetail/Index?noticeUID=CO1.NTC.1667166&isFromPublicArea=True&isModal=False\n","Contratos de prestación de servicios profesionales y de apoyo a la gestión","Contratación directa","Prestación de servicios profesionales y de apoyo a la gestión, o para la ejecución de trabajos artísticos que sólo puedan encomendarse a determinadas personas naturales;","PRESTAR LOS SERVICIOS PROFESIONALES ADMINISTRATIVOS AL FONDO DE DESARROLLO LOCAL DE LA LOCALIDAD DE LOS MÁRTIRES.","Inversión","Un Nuevo Contrato Social y Ambiental para la Bogotá del Siglo XXI",3,{"$f":"IF(ISERROR(VLOOKUP(K15,Proposito_programa!$C$2:$E$59,2,FALSE)),\" \",VLOOKUP(K15,Proposito_programa!$C$2:$E$59,2,FALSE))","v":"Movilidad social integral"},{"$f":"IF(ISERROR(VLOOKUP(K15,Proposito_programa!$C$2:$E$59,3,FALSE)),\" \",VLOOKUP(K15,Proposito_programa!$C$2:$E$59,3,FALSE))","v":"Propósito 1: Hacer un nuevo contrato social para incrementar la inclusión social, productiva y política"},"133011605570000002099",0,53006011,"DIANA CAROLINA CARDENAS CRUZ","Persona Natural","N/A","N/A","N/A",36800000,null,1,{"$f":"15486667","v":15486667},52286667,54586667,"2021-01-18","2021-01-20","2022-01-15","8 MESES",2,"3 MESES Y 11 DIAS-15 dias",null,null,null,null,null,null,"X",null,1.0439882695142912]
["003-2021",2021,"FDLM-CD-003-2021","https://community.secop.gov.co/Public/Tendering/OpportunityDetail/Index?noticeUID=CO1.NTC.1667407&isFromPublicArea=True&isModal=False","Contratos de prestación de servicios profesionales y de apoyo a la gestión","Contratación directa","Prestación de servicios profesionales y de apoyo a la gestión, o para la ejecución de trabajos artísticos que sólo puedan encomendarse a determinadas personas naturales;","PRESTAR LOS SERVICIOS PROFESIONALES COMO ABOGADO PARA APOYAR LAS DIFERENTES ETAPAS CONTRACTUALES, Y DEMÁS LABORES PROPIAS DE LA OFICINA DE CONTRATACIÓN DEL FONDO DE DESARROLLO LOCAL DE LOS MÁRTIRES.","Inversión","Un Nuevo Contrato Social y Ambiental para la Bogotá del Siglo XXI",3,{"$f":"IF(ISERROR(VLOOKUP(K16,Proposito_programa!$C$2:$E$59,2,FALSE)),\" \",VLOOKUP(K16,Proposito_programa!$C$2:$E$59,2,FALSE))","v":"Movilidad social integral"},{"$f":"IF(ISERROR(VLOOKUP(K16,Proposito_programa!$C$2:$E$59,3,FALSE)),\" \",VLOOKUP(K16,Proposito_programa!$C$2:$E$59,3,FALSE))","v":"Propósito 1: Hacer un nuevo contrato social para incrementar la inclusión social, productiva y política"},"133011605570000002099",0,80075029,"MILTON RICARDO CASAS IREGUI","Persona Natural","N/A","N/A","N/A",48000000,null,null,0,48000000,48000000,"2021-01-18","2021-01-19","2021-09-18","8 MESES",null,"N/A",80770210,"SERGIO DANIEL BORBON TORRES","2021-04-20",48000000,null,null,"X",null,1]
["005-2021",2021,"FDLM-CD-005-2021","https://community.secop.gov.co/Public/Tendering/OpportunityDetail/Index?noticeUID=CO1.NTC.1668122&isFromPublicArea=True&isModal=False","Contratos de prestación de servicios profesionales y de apoyo a la gestión","Contratación directa","Prestación de servicios profesionales y de apoyo a la gestión, o para la ejecución de trabajos artísticos que sólo puedan encomendarse a determinadas personas naturales;","PRESTAR SERVICIOS PROFESIONALES ESPECIALIZADOS AL ÁREA POLICIVA DE LA ALCALDÍA LOCAL DE LOS MÁRTIRES, PARA ADELANTAR TRÁMITES, PROCEDIMIENTOS Y LINEAMIENTOS EN MATERIA JURÍDICA QUE PERMITAN GARANTIZAR EL CUMPLIMIENTO DE LAS METAS ESTABLECIDAS EN EL PLAN DE DESARROLLO LOCAL VIGENTE.","Inversión","Un Nuevo Contrato Social y Ambiental para la Bogotá del Siglo XXI",3,{"$f":"IF(ISERROR(VLOOKUP(K17,Proposito_programa!$C$2:$E$59,2,FALSE)),\" \",VLOOKUP(K17,Proposito_programa!$C$2:$E$59,2,FALSE))","v":"Movilidad social integral"},{"$f":"IF(ISERROR(VLOOKUP(K17,Proposito_programa!$C$2:$E$59,3,FALSE)),\" \",VLOOKUP(K17,Proposito_programa!$C$2:$E$59,3,FALSE))","v":"Propósito 1: Hacer un nuevo contrato social para incrementar la inclusión social, productiva y política"},"133011605570000002099",0,31152253,"MARIA DEL ROSARIO VALDERRUTEN BUENO","Persona Natural","N/A","N/A","N/A",64000000,null,null,0,64000000,64000000,"2021-01-18","2021-01-19","2021-09-18","8 MESES",null,"N/A",null,null,null,null,null,null,"X",null,1]
["006-2021",2021,"FDLM-CD-006-2021","https://community.secop.gov.co/Public/Tendering/OpportunityDetail/Index?noticeUID=CO1.NTC.1668145&isFromPublicArea=True&isModal=False","Contratos de prestación de servicios profesionales y de apoyo a la gestión","Contratación directa","Prestación de servicios profesionales y de apoyo a la gestión, o para la ejecución de trabajos artísticos que sólo puedan encomendarse a determinadas personas naturales;","PRESTAR SUS SERVICIOS COMO PROFESIONAL ESPECIALIZADO A LA OFICINA DE PLANEACIÓN DEL FONDO DE DESARROLLO LOCAL DE LOS MÁRTIRES EN LA FORMULACIÓN PRE CONTRACTUAL, APOYO A LA SUPERVISIÓN, SEGUIMIENTO Y EVALUACIÓN DE LOS PROYECTOS ASIGNADOS, ASÍ COMO LAS DEMÁS ACTIVIDADES RELACIONADAS CON EL ÁREA DE GESTIÓN DEL DESARROLLO LOCAL DE LA LOCALIDAD DE LOS MÁRTIRES, EN CUMPLIMIENTO DEL PLAN DE DESARROLLO LOCAL VIGENTE.","Inversión","Un Nuevo Contrato Social y Ambiental para la Bogotá del Siglo XXI",3,{"$f":"IF(ISERROR(VLOOKUP(K18,Proposito_programa!$C$2:$E$59,2,FALSE)),\" \",VLOOKUP(K18,Proposito_programa!$C$2:$E$59,2,FALSE))","v":"Movilidad social integral"},{"$f":"IF(ISERROR(VLOOKUP(K18,Proposito_programa!$C$2:$E$59,3,FALSE)),\" \",VLOOKUP(K18,Proposito_programa!$C$2:$E$59,3,FALSE))","v":"Propósito 1: Hacer un nuevo contrato social para incrementar la inclusión social, productiva y política"},"133011605570000002099",0,52085298,"ADRIANA INES PIRAQUIVE BAUTISTA","Persona Natural","N/A","N/A","N/A",64000000,null,null,0,64000000,64000000,"2021-01-18","2021-01-19","2021-09-18","8 MESES",null,"N/A",null,null,null,null,null,null,"X",null,1]
["007-2021",2021,"FDLM-CD-007-2021","https://community.secop.gov.co/Public/Tendering/OpportunityDetail/Index?noticeUID=CO1.NTC.1668256&isFromPublicArea=True&isModal=False","Contratos de prestación de servicios profesionales y de apoyo a la gestión","Contratación directa","Prestación de servicios profesionales y de apoyo a la gestión, o para la ejecución de trabajos artísticos que sólo puedan encomendarse a determinadas personas naturales;","PRESTAR SUS SERVICIOS COMO PERSONAL DE APOYO EN LA CONDUCCIÓN DE LOS VEHÍCULOS LIVIANOS O PESADOS DE PROPIEDAD DEL FONDO DE DESARROLLO LOCAL DE LOS MÁRTIRES, DE CONFORMIDAD CON LOS LINEAMIENTOS DEL DESPACHO,","Inversión","Un Nuevo Contrato Social y Ambiental para la Bogotá del Siglo XXI",3,{"$f":"IF(ISERROR(VLOOKUP(K19,Proposito_programa!$C$2:$E$59,2,FALSE)),\" \",VLOOKUP(K19,Proposito_programa!$C$2:$E$59,2,FALSE))","v":"Movilidad social integral"},{"$f":"IF(ISERROR(VLOOKUP(K19,Proposito_programa!$C$2:$E$59,3,FALSE)),\" \",VLOOKUP(K19,Proposito_programa!$C$2:$E$59,3,FALSE))","v":"Propósito 1: Hacer un nuevo contrato social para incrementar la inclusión social, productiva y política"},"133011605570000002099",0,79616287,"GERMAN MORENO PARRA","Persona Natural","N/A","N/A","N/A",25600000,null,null,null,25600000,36373333,"2021-01-18","2021-01-20","2021-12-30","8 MESES",1,"101 DIAS",null,null,null,null,null,null,"X",null,1.4208333203125001]
["008-2021",2021,"FDLM-CD-008-2021","https://community.secop.gov.co/Public/Tendering/OpportunityDetail/Index?noticeUID=CO1.NTC.1670425&isFromPublicArea=True&isModal=False","Contratos de prestación de servicios profesionales y de apoyo a la gestión","Contratación directa","Prestación de servicios profesionales y de apoyo a la gestión, o para la ejecución de trabajos artísticos que sólo puedan encomendarse a determinadas personas naturales;","PRESTAR SUS SERVICIOS COMO PERSONAL DE APOYO EN LA CONDUCCIÓN DE LOS VEHÍCULOS LIVIANOS O PESADOS DE PROPIEDAD DEL FONDO DE DESARROLLO LOCAL DE LOS MÁRTIRES.","Inversión","Un Nuevo Contrato Social y Ambiental para la Bogotá del Siglo XXI",3,{"$f":"IF(ISERROR(VLOOKUP(K20,Proposito_programa!$C$2:$E$59,2,FALSE)),\" \",VLOOKUP(K20,Proposito_programa!$C$2:$E$59,2,FALSE))","v":"Movilidad social integral"},{"$f":"IF(ISERROR(VLOOKUP(K20,Proposito_programa!$C$2:$E$59,3,FALSE)),\" \",VLOOKUP(K20,Proposito_programa!$C$2:$E$59,3,FALSE))","v":"Propósito 1: Hacer un nuevo contrato social para incrementar la inclusión social, productiva y política"},"133011605570000002099",0,1032356526,"JOSE ORLANDO RUIZ GARCIA","Persona Natural","N/A","N/A","N/A",19656000,null,1,7761532,27417532,21300000,"2021-01-19","2021-01-22","2021-12-30","8 MESES",1,"99 DIAS",null,null,null,null,null,null,"X",null,0.77687517607347012]
["009-2021",2021,"FDLM-CD-009-2021","https://community.secop.gov.co/Public/Tendering/OpportunityDetail/Index?noticeUID=CO1.NTC.1671142&isFromPublicArea=True&isModal=False","Contratos de prestación de servicios profesionales y de apoyo a la gestión","Contratación directa","Prestación de servicios profesionales y de apoyo a la gestión, o para la ejecución de trabajos artísticos que sólo puedan encomendarse a determinadas personas naturales;","PRESTAR SUS SERVICIOS COMO PERSONAL DE APOYO EN LA CONDUCCIÓN DE LOS VEHÍCULOS LIVIANOS O PESADOS DE PROPIEDAD DEL FONDO DE DESARROLLO LOCAL DE LOS MÁRTIRES.","Inversión","Un Nuevo Contrato Social y Ambiental para la Bogotá del Siglo XXI",3,{"$f":"IF(ISERROR(VLOOKUP(K21,Proposito_programa!$C$2:$E$59,2,FALSE)),\" \",VLOOKUP(K21,Proposito_programa!$C$2:$E$59,2,FALSE))","v":"Movilidad social integral"},{"$f":"IF(ISERROR(VLOOKUP(K21,Proposito_programa!$C$2:$E$59,3,FALSE)),\" \",VLOOKUP(K21,Proposito_programa!$C$2:$E$59,3,FALSE))","v":"Propósito 1: Hacer un nuevo contrato social para incrementar la inclusión social, productiva y política"},"133011605570000002099",0,19406345,"JOSE FABIO TORRES VIGOYA","Persona Natural","N/A","N/A","N/A",19656000,null,1,7371000,27027000,19800000,"2021-01-20","2021-01-22","2021-12-29","8 MESES",1,"3 MESES",null,null,null,null,null,null,"X",null,0.73260073260073255]
["010-2021",2021,"FDLM-CD-010-2021","https://community.secop.gov.co/Public/Tendering/OpportunityDetail/Index?noticeUID=CO1.NTC.1672109&isFromPublicArea=True&isModal=False","Contratos de prestación de servicios profesionales y de apoyo a la gestión","Contratación directa","Prestación de servicios profesionales y de apoyo a la gestión, o para la ejecución de trabajos artísticos que sólo puedan encomendarse a determinadas personas naturales;","PRESTAR LOS SERVICIOS DE APOYO LOGÍSTICO EN LAS DIFERENTES TAREAS DE BODEGAJE, TRASLADOS, MONTAJES Y DEMÁS ACTIVIDADES RELACIONADAS A CARGO DE LA ALCALDÍA LOCAL DE LOS MÁRTIRES.","Inversión","Un Nuevo Contrato Social y Ambiental para la Bogotá del Siglo XXI",3,{"$f":"IF(ISERROR(VLOOKUP(K22,Proposito_programa!$C$2:$E$59,2,FALSE)),\" \",VLOOKUP(K22,Proposito_programa!$C$2:$E$59,2,FALSE))","v":"Movilidad social integral"},{"$f":"IF(ISERROR(VLOOKUP(K22,Proposito_programa!$C$2:$E$59,3,FALSE)),\" \",VLOOKUP(K22,Proposito_programa!$C$2:$E$59,3,FALSE))","v":"Propósito 1: Hacer un nuevo contrato social para incrementar la inclusión social, productiva y política"},"133011605570000002099",0,79218238,"EDWIN ANDRES MOSQUERA ORTIZ","Persona Natural","N/A","N/A","N/A",18960000,null,null,0,18960000,1659000,"2021-01-20","2021-01-22","2021-09-21","8 MESES",null,"N/A",null,null,null,null,null,null,"X",null,8.7499999999999994E-2]
["011-2021",2021,"FDLM-CD-011-2021","https://community.secop.gov.co/Public/Tendering/OpportunityDetail/Index?noticeUID=CO1.NTC.1672233&isFromPublicArea=True&isModal=False","Contratos de prestación de servicios profesionales y de apoyo a la gestión","Contratación directa","Prestación de servicios profesionales y de apoyo a la gestión, o para la ejecución de trabajos artísticos que sólo puedan encomendarse a determinadas personas naturales;","PRESTAR LOS SERVICIOS DE APOYO A LOS ARCHIVOS DE GESTIÓN DE LA ENTIDAD EN LA IMPLEMENTACIÓN DE LOS PROCESOS DE CLASIFICACIÓN, ORDENACIÓN, SELECCIÓN NATURAL, FOLIACIÓN, IDENTIFICACIÓN, LEVANTAMIENTO DE INVENTARIOS, ALMACENAMIENTO Y APLICACIÓN DE PROTOCOLOS DE ELIMINACIÓN Y TRANSFERENCIAS DOCUMENTALES.","Inversión","Un Nuevo Contrato Social y Ambiental para la Bogotá del Siglo XXI",3,{"$f":"IF(ISERROR(VLOOKUP(K23,Proposito_programa!$C$2:$E$59,2,FALSE)),\" \",VLOOKUP(K23,Proposito_programa!$C$2:$E$59,2,FALSE))","v":"Movilidad social integral"},{"$f":"IF(ISERROR(VLOOKUP(K23,Proposito_programa!$C$2:$E$59,3,FALSE)),\" \",VLOOKUP(K23,Proposito_programa!$C$2:$E$59,3,FALSE))","v":"Propósito 1: Hacer un nuevo contrato social para incrementar la inclusión social, productiva y política"},"133011605570000002099",0,52484985,"YENSSY LAURA RODRIGUEZ PEDROZA","Persona Natural","N/A","N/A","N/A",18960000,null,null,0,18960000,18960000,"2021-01-20","2021-01-25","2021-09-24","8 MESES",null,"N/A",null,null,null,null,null,null,"X",null,1]
["012-2021",2021,"FDLM-CD-012-2021","https://community.secop.gov.co/Public/Tendering/OpportunityDetail/Index?noticeUID=CO1.NTC.1672039&isFromPublicArea=True&isModal=False","Contratos de prestación de servicios profesionales y de apoyo a la gestión","Contratación directa","Prestación de servicios profesionales y de apoyo a la gestión, o para la ejecución de trabajos artísticos que sólo puedan encomendarse a determinadas personas naturales;","PRESTAR LOS SERVICIOS DE APOYO A LOS ARCHIVOS DE GESTIÓN DE LA ENTIDAD EN LA IMPLEMENTACIÓN DE LOS PROCESOS DE CLASIFICACIÓN, ORDENACIÓN, SELECCIÓN NATURAL, FOLIACIÓN, IDENTIFICACIÓN, LEVANTAMIENTO DE INVENTARIOS, ALMACENAMIENTO Y APLICACIÓN DE PROTOCOLOS DE ELIMINACIÓN Y TRANSFERENCIAS DOCUMENTALES.","Inversión","Un Nuevo Contrato Social y Ambiental para la Bogotá del Siglo XXI",3,{"$f":"IF(ISERROR(VLOOKUP(K24,Proposito_programa!$C$2:$E$59,2,FALSE)),\" \",VLOOKUP(K24,Proposito_programa!$C$2:$E$59,2,FALSE))","v":"Movilidad social integral"},{"$f":"IF(ISERROR(VLOOKUP(K24,Proposito_programa!$C$2:$E$59,3,FALSE)),\" \",VLOOKUP(K24,Proposito_programa!$C$2:$E$59,3,FALSE))","v":"Propósito 1: Hacer un nuevo contrato social para incrementar la inclusión social, productiva y política"},"133011605570000002099",0,38071047,"DIANA CAROLINA RAMIREZ","Persona Natural","N/A","N/A","N/A",18960000,null,null,0,18960000,18960000,"2021-01-20","2021-01-25","2021-09-24","8 MESES",null,"N/A",null,null,null,null,null,null,"X",null,1]
["013-2021",2021,"FDLM-CD-013-2021","https://community.secop.gov.co/Public/Tendering/OpportunityDetail/Index?noticeUID=CO1.NTC.1672107&isFromPublicArea=True&isModal=False","Contratos de prestación de servicios profesionales y de apoyo a la gestión","Contratación directa","Prestación de servicios profesionales y de apoyo a la gestión, o para la ejecución de trabajos artísticos que sólo puedan encomendarse a determinadas personas naturales;","PRESTAR LOS SERVICIOS DE APOYO A LOS ARCHIVOS DE GESTIÓN DE LA ENTIDAD EN LA IMPLEMENTACIÓN DE LOS PROCESOS DE CLASIFICACIÓN, ORDENACIÓN, SELECCIÓN NATURAL, FOLIACIÓN, IDENTIFICACIÓN, LEVANTAMIENTO DE INVENTARIOS, ALMACENAMIENTO Y APLICACIÓN DE PROTOCOLOS DE ELIMINACIÓN Y TRANSFERENCIAS DOCUMENTALES.","Inversión","Un Nuevo Contrato Social y Ambiental para la Bogotá del Siglo XXI",3,{"$f":"IF(ISERROR(VLOOKUP(K25,Proposito_programa!$C$2:$E$59,2,FALSE)),\" \",VLOOKUP(K25,Proposito_programa!$C$2:$E$59,2,FALSE))","v":"Movilidad social integral"},{"$f":"IF(ISERROR(VLOOKUP(K25,Proposito_programa!$C$2:$E$59,3,FALSE)),\" \",VLOOKUP(K25,Proposito_programa!$C$2:$E$59,3,FALSE))","v":"Propósito 1: Hacer un nuevo contrato social para incrementar la inclusión social, productiva y política"},"133011605570000002099",0,1010233475,"CRISTIAN EDUARDO MORENO DUCUARA","Persona Natural","N/A","N/A","N/A",18960000,null,1,7900000,26860000,21800000,"2021-01-20","2021-01-21","2021-12-30","8 MESES",1,"100 DIAS",null,null,null,null,null,null,"X",null,0.81161578555472824]
["014-2021",2021,"FDLM-CD-014-2021","https://community.secop.gov.co/Public/Tendering/OpportunityDetail/Index?noticeUID=CO1.NTC.1672046&isFromPublicArea=True&isModal=False","Contratos de prestación de servicios profesionales y de apoyo a la gestión","Contratación directa","Prestación de servicios profesionales y de apoyo a la gestión, o para la ejecución de trabajos artísticos que sólo puedan encomendarse a determinadas personas naturales;","PRESTAR LOS SERVICIOS PROFESIONALES COMO APOYO AL ÁREA DE GESTIÓN DEL DESARROLLO ADMINISTRATIVA Y FINANCIERA LOCAL, EN LO RELACIONADO EN TEMAS DE PRESUPUESTO Y CONTABILIDAD EN LAS DIFERENTES ACTIVIDADES QUE SE REQUIERA, ADEMÁS DEL APOYO CORRESPONDIENTE PARA EL MANEJO DE LOS APLICATIVOS PREDIS, OPGET, ORFEO, PAC, SIPROJ, SICO, SIPSE Y BOG DATA.","Inversión","Un Nuevo Contrato Social y Ambiental para la Bogotá del Siglo XXI",3,{"$f":"IF(ISERROR(VLOOKUP(K26,Proposito_programa!$C$2:$E$59,2,FALSE)),\" \",VLOOKUP(K26,Proposito_programa!$C$2:$E$59,2,FALSE))","v":"Movilidad social integral"},{"$f":"IF(ISERROR(VLOOKUP(K26,Proposito_programa!$C$2:$E$59,3,FALSE)),\" \",VLOOKUP(K26,Proposito_programa!$C$2:$E$59,3,FALSE))","v":"Propósito 1: Hacer un nuevo contrato social para incrementar la inclusión social, productiva y política"},"133011605570000002099",0,52060589,"EDITH CAROLINA CASTELLANOS MARTINEZ","Persona Natural","N/A","N/A","N/A",44240000,null,1,18433333,62673333,62673333,"2021-01-19","2021-01-21","2021-12-30","8 MESES",1,"100 DIAS",null,null,null,null,null,null,"X",null,1]
["015-2021",2021,"FDLM-CD-015-2021","https://community.secop.gov.co/Public/Tendering/OpportunityDetail/Index?noticeUID=CO1.NTC.1675523&isFromPublicArea=True&isModal=False","Contratos de prestación de servicios profesionales y de apoyo a la gestión","Contratación directa","Prestación de servicios profesionales y de apoyo a la gestión, o para la ejecución de trabajos artísticos que sólo puedan encomendarse a determinadas personas naturales;","PRESTAR LOS SERVICIOS DE APOYO LOGÍSTICO EN LAS DIFERENTES TAREAS DE BODEGAJE, TRASLADOS, MONTAJES Y DEMÁS ACTIVIDADES RELACIONADAS A CARGO DE LA ALCALDÍA LOCAL DE LOS MÁRTIRES.","Inversión","Un Nuevo Contrato Social y Ambiental para la Bogotá del Siglo XXI",3,{"$f":"IF(ISERROR(VLOOKUP(K27,Proposito_programa!$C$2:$E$59,2,FALSE)),\" \",VLOOKUP(K27,Proposito_programa!$C$2:$E$59,2,FALSE))","v":"Movilidad social integral"},{"$f":"IF(ISERROR(VLOOKUP(K27,Proposito_programa!$C$2:$E$59,3,FALSE)),\" \",VLOOKUP(K27,Proposito_programa!$C$2:$E$59,3,FALSE))","v":"Propósito 1: Hacer un nuevo contrato social para incrementar la inclusión social, productiva y política"},"133011605570000002099",0,1023921919,"JOSE VICENTE SANCHEZ DOMINGUEZ","Persona Natural","N/A","N/A","N/A",18960000,null,null,0,18960000,18960000,"2021-01-20","2021-01-26","2021-09-25","8 MESES",null,"N/A",null,null,null,null,null,null,"X",null,1]
["016-2021",2021,"FDLM-CD-016-2021","https://community.secop.gov.co/Public/Tendering/OpportunityDetail/Index?noticeUID=CO1.NTC.1697206&isFromPublicArea=True&isModal=False","Contratos de prestación de servicios profesionales y de apoyo a la gestión","Contratación directa","Prestación de servicios profesionales y de apoyo a la gestión, o para la ejecución de trabajos artísticos que sólo puedan encomendarse a determinadas personas naturales;","\tPRESTAR SUS SERVICIOS COMO PERSONAL DE APOYO EN LA CONDUCCIÓN DE LOS VEHÍCULOS LIVIANOS O PESADOS DE PROPIEDAD DEL FONDO DE DESARROLLO LOCAL DE LOS MÁRTIRES","Inversión","Un Nuevo Contrato Social y Ambiental para la Bogotá del Siglo XXI",3,{"$f":"IF(ISERROR(VLOOKUP(K28,Proposito_programa!$C$2:$E$59,2,FALSE)),\" \",VLOOKUP(K28,Proposito_programa!$C$2:$E$59,2,FALSE))","v":"Movilidad social integral"},{"$f":"IF(ISERROR(VLOOKUP(K28,Proposito_programa!$C$2:$E$59,3,FALSE)),\" \",VLOOKUP(K28,Proposito_programa!$C$2:$E$59,3,FALSE))","v":"Propósito 1: Hacer un nuevo contrato social para incrementar la inclusión social, productiva y política"},"133011605570000002099",0,79372750,"FABIO CESAR SALGADO MURILLO","Persona Natural","N/A","N/A","N/A",19656000,null,1,7371000,27027000,27027000,"2021-01-27","2021-01-30","2021-12-29","8 MESES",1,"3 MESES",null,null,null,null,null,null,"X",null,1]
["017-2021",2021,"FDLM-CD-017-2021","https://community.secop.gov.co/Public/Tendering/OpportunityDetail/Index?noticeUID=CO1.NTC.1697403&isFromPublicArea=True&isModal=False","Contratos de prestación de servicios profesionales y de apoyo a la gestión","Contratación directa","Prestación de servicios profesionales y de apoyo a la gestión, o para la ejecución de trabajos artísticos que sólo puedan encomendarse a determinadas personas naturales;","PRESTAR LOS SERVICIOS PROFESIONALES COMO ABOGADO ESPECIALIZADO PARA APOYAR LAS ETAPAS PRECONTRACTUAL, CONTRACTUAL Y POS CONTRACTUAL Y DEMÁS LABORES PROPIAS DE LA OFICINA DE CONTRATACIÓN DEL FONDO DE DESARROLLO LOCAL DE LOS MÁRTIRES.","Inversión","Un Nuevo Contrato Social y Ambiental para la Bogotá del Siglo XXI",3,{"$f":"IF(ISERROR(VLOOKUP(K29,Proposito_programa!$C$2:$E$59,2,FALSE)),\" \",VLOOKUP(K29,Proposito_programa!$C$2:$E$59,2,FALSE))","v":"Movilidad social integral"},{"$f":"IF(ISERROR(VLOOKUP(K29,Proposito_programa!$C$2:$E$59,3,FALSE)),\" \",VLOOKUP(K29,Proposito_programa!$C$2:$E$59,3,FALSE))","v":"Propósito 1: Hacer un nuevo contrato social para incrementar la inclusión social, productiva y política"},"133011605570000002099",0,79994357,"JAIRO ARMANDO PEÑA RIOS","Persona Natural","N/A","N/A","N/A",52000000,null,1,20366667,72366667,52900000,"2021-01-26","2021-01-27","2021-12-31","8 MESES",1,"94 DIAS",null,null,null,null,null,null,"X",null,0.73099953601566314]
["018-2021",2021,"FDLM-CD-018-2021","https://community.secop.gov.co/Public/Tendering/OpportunityDetail/Index?noticeUID=CO1.NTC.1703512&isFromPublicArea=True&isModal=False","Contratos de prestación de servicios profesionales y de apoyo a la gestión","Contratación directa","Prestación de servicios profesionales y de apoyo a la gestión, o para la ejecución de trabajos artísticos que sólo puedan encomendarse a determinadas personas naturales;","APOYAR JURÍDICAMENTE LA EJECUCIÓN DE LAS ACCIONES REQUERIDAS PARA LA DEPURACIÓN DE LAS ACTUACIONES ADMINISTRATIVAS QUE CURSAN EN LA ALCALDÍA LOCAL.","Inversión","Un Nuevo Contrato Social y Ambiental para la Bogotá del Siglo XXI",3,{"$f":"IF(ISERROR(VLOOKUP(K30,Proposito_programa!$C$2:$E$59,2,FALSE)),\" \",VLOOKUP(K30,Proposito_programa!$C$2:$E$59,2,FALSE))","v":"Movilidad social integral"},{"$f":"IF(ISERROR(VLOOKUP(K30,Proposito_programa!$C$2:$E$59,3,FALSE)),\" \",VLOOKUP(K30,Proposito_programa!$C$2:$E$59,3,FALSE))","v":"Propósito 1: Hacer un nuevo contrato social para incrementar la inclusión social, productiva y política"},"133011605570000002099",0,52796223,"ALEXANDRA GUZMAN LAMUS","Persona Natural","N/A","N/A","N/A",29490000,null,1,14745000,44235000,44235000,"2021-01-28","2021-01-29","2021-10-28","6 MESES",1,"3 MESES",null,null,null,null,null,null,"X",null,1]
["019-2021",2021,"FDLM-CPS-019-2021","\nhttps://community.secop.gov.co/Public/Tendering/ContractNoticePhases/View?PPI=CO1.PPI.11877522&isFromPublicArea=True&isModal=False","Contratos de prestación de servicios profesionales y de apoyo a la gestión","Contratación directa","Prestación de servicios profesionales y de apoyo a la gestión, o para la ejecución de trabajos artísticos que sólo puedan encomendarse a determinadas personas naturales;","APOYAR EN LAS TAREAS OPERATIVAS DE CARÁCTER ARCHIVÍSTICO DESARROLLADAS EN LA ALCALDÍA LOCAL PARA GARANTIZAR LA APLICACIÓN CORRECTA DE LOS PROCEDIMIENTOS TÉCNICOS.","Inversión","Un Nuevo Contrato Social y Ambiental para la Bogotá del Siglo XXI",3,{"$f":"IF(ISERROR(VLOOKUP(K31,Proposito_programa!$C$2:$E$59,2,FALSE)),\" \",VLOOKUP(K31,Proposito_programa!$C$2:$E$59,2,FALSE))","v":"Movilidad social integral"},{"$f":"IF(ISERROR(VLOOKUP(K31,Proposito_programa!$C$2:$E$59,3,FALSE)),\" \",VLOOKUP(K31,Proposito_programa!$C$2:$E$59,3,FALSE))","v":"Propósito 1: Hacer un nuevo contrato social para incrementar la inclusión social, productiva y política"},"133011605570000002099",0,51689390,"CARMEN MARIA NISPERUZA FLOREZ","Persona Natural","N/A","N/A","N/A",26680000,null,null,0,26680000,26680000,"2021-02-02","2021-02-05","2021-10-04","8 MESES",null,"N/A",null,null,null,null,null,null,"X",null,1]
["020-021",2021,"FDLM-CD-020-2021","https://community.secop.gov.co/Public/Tendering/OpportunityDetail/Index?noticeUID=CO1.NTC.1724450&isFromPublicArea=True&isModal=False","Contratos de prestación de servicios profesionales y de apoyo a la gestión","Contratación directa","Prestación de servicios profesionales y de apoyo a la gestión, o para la ejecución de trabajos artísticos que sólo puedan encomendarse a determinadas personas naturales;","APOYAR JURÍDICAMENTE LA EJECUCIÓN DE LAS ACCIONES REQUERIDAS PARA LA DEPURACIÓN DE LAS ACTUACIONES ADMINISTRATIVAS QUE CURSAN EN LA ALCALDÍA LOCAL","Inversión","Un Nuevo Contrato Social y Ambiental para la Bogotá del Siglo XXI",3,{"$f":"IF(ISERROR(VLOOKUP(K32,Proposito_programa!$C$2:$E$59,2,FALSE)),\" \",VLOOKUP(K32,Proposito_programa!$C$2:$E$59,2,FALSE))","v":"Movilidad social integral"},{"$f":"IF(ISERROR(VLOOKUP(K32,Proposito_programa!$C$2:$E$59,3,FALSE)),\" \",VLOOKUP(K32,Proposito_programa!$C$2:$E$59,3,FALSE))","v":"Propósito 1: Hacer un nuevo contrato social para incrementar la inclusión social, productiva y política"},"133011605570000002099",0,1016036141,"EDMON RUMIE VALENCIA","Persona Natural","N/A","N/A","N/A",29490000,null,null,0,29490000,5570333,"2021-02-02","2021-02-05","2021-08-04","6 MESES",null,"N/A",null,null,null,null,null,null,"X",null,0.18888887758562226]
["021-2021",2021,"FDLM-CD-021-202","https://community.secop.gov.co/Public/Tendering/OpportunityDetail/Index?noticeUID=CO1.NTC.1724452&isFromPublicArea=True&isModal=False","Contratos de prestación de servicios profesionales y de apoyo a la gestión","Contratación directa","Prestación de servicios profesionales y de apoyo a la gestión, o para la ejecución de trabajos artísticos que sólo puedan encomendarse a determinadas personas naturales;","APOYAR TÉCNICAMENTE LAS DISTINTAS ETAPAS DE LOS PROCESOS DE COMPETENCIA DE LA ALCALDÍA LOCAL PARA LA DEPURACIÓN DE ACTUACIONES ADMINISTRATIVAS","Inversión","Un Nuevo Contrato Social y Ambiental para la Bogotá del Siglo XXI",3,{"$f":"IF(ISERROR(VLOOKUP(K33,Proposito_programa!$C$2:$E$59,2,FALSE)),\" \",VLOOKUP(K33,Proposito_programa!$C$2:$E$59,2,FALSE))","v":"Movilidad social integral"},{"$f":"IF(ISERROR(VLOOKUP(K33,Proposito_programa!$C$2:$E$59,3,FALSE)),\" \",VLOOKUP(K33,Proposito_programa!$C$2:$E$59,3,FALSE))","v":"Propósito 1: Hacer un nuevo contrato social para incrementar la inclusión social, productiva y política"},"133011605570000002099",0,79996671,"CARLOS ANDRES SERRANO GARZON","Persona Natural","N/A","N/A","N/A",25224000,null,null,0,25224000,25224000,"2021-02-02","2021-02-03","2021-08-02","6 MESES",null,"N/A",null,null,null,null,null,null,"X",null,1]
["022-2021",2021,"FDLM-CD-022-2021","https://community.secop.gov.co/Public/Tendering/OpportunityDetail/Index?noticeUID=CO1.NTC.1724640&isFromPublicArea=True&isModal=False","Contratos de prestación de servicios profesionales y de apoyo a la gestión","Contratación directa","Prestación de servicios profesionales y de apoyo a la gestión, o para la ejecución de trabajos artísticos que sólo puedan encomendarse a determinadas personas naturales;","\tAPOYAR TÉCNICAMENTE LAS DISTINTAS ETAPAS DE LOS PROCESOS DE COMPETENCIA DE LA ALCALDÍA LOCAL PARA LA DEPURACIÓN DE ACTUACIONES ADMINISTRATIVAS","Inversión","Un Nuevo Contrato Social y Ambiental para la Bogotá del Siglo XXI",3,{"$f":"IF(ISERROR(VLOOKUP(K34,Proposito_programa!$C$2:$E$59,2,FALSE)),\" \",VLOOKUP(K34,Proposito_programa!$C$2:$E$59,2,FALSE))","v":"Movilidad social integral"},{"$f":"IF(ISERROR(VLOOKUP(K34,Proposito_programa!$C$2:$E$59,3,FALSE)),\" \",VLOOKUP(K34,Proposito_programa!$C$2:$E$59,3,FALSE))","v":"Propósito 1: Hacer un nuevo contrato social para incrementar la inclusión social, productiva y política"},"133011605570000002099",0,79749022,"FREDDY RICARDO BRIÑEZ MONTOYA","Persona Natural","N/A","N/A","N/A",25224000,null,null,0,25224000,25224000,"2021-02-02","2021-02-03","2021-08-02","6 MESES",null,"N/A",null,null,null,null,null,null,"X",null,1]
["023-2021",2021,"FDLM-CPS-023-202","https://community.secop.gov.co/Public/Tendering/OpportunityDetail/Index?noticeUID=CO1.NTC.1737554&isFromPublicArea=True&isModal=False","Contratos de prestación de servicios profesionales y de apoyo a la gestión","Contratación directa","Prestación de servicios profesionales y de apoyo a la gestión, o para la ejecución de trabajos artísticos que sólo puedan encomendarse a determinadas personas naturales;","PRESTAR SUS SERVICIOS PROFESIONALES ESPECIALIZADOS EN EL SEGUIMIENTO ADMINISTRATIVO Y FINANCIERO DEL ÁREA DE GESTIÓN DE DESARROLLO LOCAL; CON RELACIÓN AL SEGUIMIENTO A LA INVERSIÓN, GASTOS DE FUNCIONAMIENTO, VERIFICACIÓN DE DOCUMENTOS CONTRACTUALES, SEGUIMIENTO A LOS PQRS Y PROYECCIÓN DE INFORMES QUE REQUIERE EL FONDO DE DESARROLLO LOCAL DE LOS MÁRTIRES.","Inversión","Un Nuevo Contrato Social y Ambiental para la Bogotá del Siglo XXI",3,{"$f":"IF(ISERROR(VLOOKUP(K35,Proposito_programa!$C$2:$E$59,2,FALSE)),\" \",VLOOKUP(K35,Proposito_programa!$C$2:$E$59,2,FALSE))","v":"Movilidad social integral"},{"$f":"IF(ISERROR(VLOOKUP(K35,Proposito_programa!$C$2:$E$59,3,FALSE)),\" \",VLOOKUP(K35,Proposito_programa!$C$2:$E$59,3,FALSE))","v":"Propósito 1: Hacer un nuevo contrato social para incrementar la inclusión social, productiva y política"},"133011605570000002099",0,1016026075,"DANNA SALOME MARTINEZ RAMIREZ","Persona Natural","N/A","N/A","N/A",57792000,null,null,0,57792000,57792000,"2021-02-05","2021-02-08","2021-10-07","8 MESES",null,"N/A",null,null,null,null,null,null,"X",null,1]
["024-2021",2021,"FDLM-CD-024-2021","https://community.secop.gov.co/Public/Tendering/OpportunityDetail/Index?noticeUID=CO1.NTC.1726190&isFromPublicArea=True&isModal=False","Contratos de prestación de servicios profesionales y de apoyo a la gestión","Contratación directa","Prestación de servicios profesionales y de apoyo a la gestión, o para la ejecución de trabajos artísticos que sólo puedan encomendarse a determinadas personas naturales;","PRESTAR LOS SERVICIOS PROFESIONALES DE APOYO AL ÁREA DE GESTIÓN DEL DESARROLLO, ADMINISTRATIVA Y FINANZAS LOCAL EN LA EJECUCIÓN DE ACTIVIDADES QUE SE REQUIERAN, ADEMÁS DEL MANEJO DE LOS APLICATIVOS PREDIS, OPGET, PAC, SI CAPITAL, SIPSE Y BOG DATA.","Inversión","Un Nuevo Contrato Social y Ambiental para la Bogotá del Siglo XXI",3,{"$f":"IF(ISERROR(VLOOKUP(K36,Proposito_programa!$C$2:$E$59,2,FALSE)),\" \",VLOOKUP(K36,Proposito_programa!$C$2:$E$59,2,FALSE))","v":"Movilidad social integral"},{"$f":"IF(ISERROR(VLOOKUP(K36,Proposito_programa!$C$2:$E$59,3,FALSE)),\" \",VLOOKUP(K36,Proposito_programa!$C$2:$E$59,3,FALSE))","v":"Propósito 1: Hacer un nuevo contrato social para incrementar la inclusión social, productiva y política"},"133011605570000002099",0,1013603935,"CATHERINE DIAZ LOZANO","Persona Natural","N/A","N/A","N/A",44240000,null,null,0,44240000,44240000,"2021-02-03","2021-02-08","2021-10-07","8 MESES",null,"N/A",null,null,null,null,null,null,"X",null,1]
["025-2021",2021,"FDLM-CD-025-2021","https://community.secop.gov.co/Public/Tendering/OpportunityDetail/Index?noticeUID=CO1.NTC.1734830&isFromPublicArea=True&isModal=False","Contratos de prestación de servicios profesionales y de apoyo a la gestión","Contratación directa","Prestación de servicios profesionales y de apoyo a la gestión, o para la ejecución de trabajos artísticos que sólo puedan encomendarse a determinadas personas naturales;","PRESTAR SUS SERVICIOS PARA APOYAR EL CENTRO DE DOCUMENTACIÓN E INFORMACIÓN - CDI - EN EL PROCESO DE RADICACIÓN, NOTIFICACIÓN Y ENTREGA DE LA CORRESPONDENCIA INTERNA Y EXTERNA DE LA ALCALDÍA LOCAL DE LOS MÁRTIRES Y CONTROL DE LOS DERECHOS DE PETICIÓN.","Inversión","Un Nuevo Contrato Social y Ambiental para la Bogotá del Siglo XXI",3,{"$f":"IF(ISERROR(VLOOKUP(K37,Proposito_programa!$C$2:$E$59,2,FALSE)),\" \",VLOOKUP(K37,Proposito_programa!$C$2:$E$59,2,FALSE))","v":"Movilidad social integral"},{"$f":"IF(ISERROR(VLOOKUP(K37,Proposito_programa!$C$2:$E$59,3,FALSE)),\" \",VLOOKUP(K37,Proposito_programa!$C$2:$E$59,3,FALSE))","v":"Propósito 1: Hacer un nuevo contrato social para incrementar la inclusión social, productiva y política"},"133011605570000002099",0,1032505874,"MARIA ALEJANDRA MARTINEZ DE LA PEÑA","Persona Natural","N/A","N/A","N/A",21072000,null,null,0,21072000,21072000,"2021-02-04","2021-02-05","2021-10-04","8 MESES",null,"N/A",null,null,null,null,null,null,"X",null,1]
["026-2021",2021,"FDLM-CD-026-2021","https://community.secop.gov.co/Public/Tendering/OpportunityDetail/Index?noticeUID=CO1.NTC.1739606&isFromPublicArea=True&isModal=False","Contratos de prestación de servicios profesionales y de apoyo a la gestión","Contratación directa","Prestación de servicios profesionales y de apoyo a la gestión, o para la ejecución de trabajos artísticos que sólo puedan encomendarse a determinadas personas naturales;","PRESTAR SUS SERVICIOS PARA APOYAR EL CENTRO DE DOCUMENTACIÓN E INFORMACIÓN - CDI - EN EL PROCESO DE RADICACIÓN, NOTIFICACIÓN Y ENTREGA DE LA CORRESPONDENCIA INTERNA Y EXTERNA DE LA ALCALDÍA LOCAL DE LOS MÁRTIRES Y CONTROL DE LOS DERECHOS DE PETICIÓN.","Inversión","Un Nuevo Contrato Social y Ambiental para la Bogotá del Siglo XXI",3,{"$f":"IF(ISERROR(VLOOKUP(K38,Proposito_programa!$C$2:$E$59,2,FALSE)),\" \",VLOOKUP(K38,Proposito_programa!$C$2:$E$59,2,FALSE))","v":"Movilidad social integral"},{"$f":"IF(ISERROR(VLOOKUP(K38,Proposito_programa!$C$2:$E$59,3,FALSE)),\" \",VLOOKUP(K38,Proposito_programa!$C$2:$E$59,3,FALSE))","v":"Propósito 1: Hacer un nuevo contrato social para incrementar la inclusión social, productiva y política"},"133011605570000002099",0,1019088888,"HANS SNEIDER CABARCAS TOROS","Persona Natural","N/A","N/A","N/A",21072000,null,null,0,21072000,21072000,"2021-02-10","2021-02-11","2021-10-10","8 MESES",null,"N/A",null,null,null,null,null,null,"X",null,1]
["027-2021",2021,"FDLM-CD-027-2021","https://community.secop.gov.co/Public/Tendering/OpportunityDetail/Index?noticeUID=CO1.NTC.1735159&isFromPublicArea=True&isModal=False","Contratos de prestación de servicios profesionales y de apoyo a la gestión","Contratación directa","Prestación de servicios profesionales y de apoyo a la gestión, o para la ejecución de trabajos artísticos que sólo puedan encomendarse a determinadas personas naturales;","PRESTAR SUS SERVICIOS PARA APOYAR EL CENTRO DE DOCUMENTACIÓN E INFORMACIÓN - CDI - EN EL PROCESO DE RADICACIÓN, NOTIFICACIÓN Y ENTREGA DE LA CORRESPONDENCIA INTERNA Y EXTERNA DE LA ALCALDÍA LOCAL DE LOS MÁRTIRES Y CONTROL DE LOS DERECHOS DE PETICIÓN.","Inversión","Un Nuevo Contrato Social y Ambiental para la Bogotá del Siglo XXI",3,{"$f":"IF(ISERROR(VLOOKUP(K39,Proposito_programa!$C$2:$E$59,2,FALSE)),\" \",VLOOKUP(K39,Proposito_programa!$C$2:$E$59,2,FALSE))","v":"Movilidad social integral"},{"$f":"IF(ISERROR(VLOOKUP(K39,Proposito_programa!$C$2:$E$59,3,FALSE)),\" \",VLOOKUP(K39,Proposito_programa!$C$2:$E$59,3,FALSE))","v":"Propósito 1: Hacer un nuevo contrato social para incrementar la inclusión social, productiva y política"},"133011605570000002099",0,1110555965,"EDISSON DAVID HERNÁNDEZ RAMÍREZ ","Persona Natural","N/A","N/A","N/A",21072000,null,null,0,21072000,2985200,"2021-02-04","2021-02-05","2021-10-04","8 MESES",null,"N/A",null,null,null,null,null,null,"X",null,0.14166666666666666]
["028-2021",2021,"FDLM-CD-028-2021","https://community.secop.gov.co/Public/Tendering/OpportunityDetail/Index?noticeUID=CO1.NTC.1789545&isFromPublicArea=True&isModal=False","Contratos de prestación de servicios profesionales y de apoyo a la gestión","Contratación directa","Prestación de servicios profesionales y de apoyo a la gestión, o para la ejecución de trabajos artísticos que sólo puedan encomendarse a determinadas personas naturales;","APOYAR JURÍDICAMENTE LA EJECUCIÓN DE ACCIONES REQUERIDAS PARA EL TRÁMITE E IMPULSO PROCESAL DE LAS ACTUACIONES CONTRAVENCIONALES Y/O QUERELLAS QUE CURSEN EN LAS INSPECCIONES DE POLICÍA DE LA LOCALIDAD DE LOS MÁRTIRES.","Inversión","Un Nuevo Contrato Social y Ambiental para la Bogotá del Siglo XXI",3,{"$f":"IF(ISERROR(VLOOKUP(K40,Proposito_programa!$C$2:$E$59,2,FALSE)),\" \",VLOOKUP(K40,Proposito_programa!$C$2:$E$59,2,FALSE))","v":"Movilidad social integral"},{"$f":"IF(ISERROR(VLOOKUP(K40,Proposito_programa!$C$2:$E$59,3,FALSE)),\" \",VLOOKUP(K40,Proposito_programa!$C$2:$E$59,3,FALSE))","v":"Propósito 1: Hacer un nuevo contrato social para incrementar la inclusión social, productiva y política"},"133011605570000002099",0,1010197465,"MANUEL ALEJANDRO GRISALES LOAIZA","Persona Natural","N/A","N/A","N/A",19600000,null,1,9800000,29400000,17600000,"2021-02-23","2021-02-26","2021-08-25","4 MESES",1,"2 MESES",null,null,null,null,null,null,"X",null,0.59863945578231292]
["029-2021",2021,"FDLM-CD-029-2021","https://community.secop.gov.co/Public/Tendering/OpportunityDetail/Index?noticeUID=CO1.NTC.1738373&isFromPublicArea=True&isModal=False","Contratos de prestación de servicios profesionales y de apoyo a la gestión","Contratación directa","Prestación de servicios profesionales y de apoyo a la gestión, o para la ejecución de trabajos artísticos que sólo puedan encomendarse a determinadas personas naturales;","PRESTAR SERVICIOS PROFESIONALES AL ÁREA DE GESTIÓN PARA EL DESARROLLO ADMINISTRATIVO Y FINANCIERO, EN LAS ACTIVIDADES DE SEGUIMIENTO A LA INVERSIÓN, SOLICITUDES DE INFORMACIÓN A PROVEEDORES Y APOYO EN LA PROYECCIÓN DE INFORMES REQUERIDOS POR EL PROFESIONAL ESPECIALIZADO DEL ÁREA DE GESTIÓN DEL FONDO DE DESARROLLO LOCAL DE LOS MÁRTIRES.","Inversión","Un Nuevo Contrato Social y Ambiental para la Bogotá del Siglo XXI",3,{"$f":"IF(ISERROR(VLOOKUP(K41,Proposito_programa!$C$2:$E$59,2,FALSE)),\" \",VLOOKUP(K41,Proposito_programa!$C$2:$E$59,2,FALSE))","v":"Movilidad social integral"},{"$f":"IF(ISERROR(VLOOKUP(K41,Proposito_programa!$C$2:$E$59,3,FALSE)),\" \",VLOOKUP(K41,Proposito_programa!$C$2:$E$59,3,FALSE))","v":"Propósito 1: Hacer un nuevo contrato social para incrementar la inclusión social, productiva y política"},"133011605570000002099",0,37844642,"LUZ ANGELA PINTO POSADA","Persona Natural","N/A","N/A","N/A",39200000,null,null,0,39200000,39200000,"2021-02-06","2021-02-08","2021-10-07","8 MESES",null,"N/A",null,null,null,null,null,null,"X",null,1]
["030-2021",2021,"FDLM-CD-030-2021","https://community.secop.gov.co/Public/Tendering/OpportunityDetail/Index?noticeUID=CO1.NTC.1753956&isFromPublicArea=True&isModal=False","Contratos de prestación de servicios profesionales y de apoyo a la gestión","Contratación directa","Prestación de servicios profesionales y de apoyo a la gestión, o para la ejecución de trabajos artísticos que sólo puedan encomendarse a determinadas personas naturales;","\tPRESTAR SUS SERVICIOS PROFESIONALES AL FONDO DE DESARROLLO LOCAL DE LOS MÁRTIRES PARA LA APOYAR Y EL ACOMPAÑAMIENTO DE LAS INSTANCIAS DE COORDINACIÓN INTERINSTITUCIONALES E INSTANCIAS DE PARTICIPACIÓN LOCALES, ASÍ COMO EN LA FORMULACIÓN PRE CONTRACTUAL, APOYO A LA SUPERVISIÓN, SEGUIMIENTO AL PLAN DE DESARROLLO LOCAL Y EVALUACIÓN DE PROYECTOS, ASÍ COMO LAS DEMÁS ACTIVIDADES RELACIONADAS CON EL ÁREA DE GESTIÓN DEL DESARROLLO, ADMINISTRATIVO Y FINANZAS DE LA LOCALIDAD DE LOS MÁRTIRES, EN CUMPLIMIE.","Inversión","Un Nuevo Contrato Social y Ambiental para la Bogotá del Siglo XXI",3,{"$f":"IF(ISERROR(VLOOKUP(K42,Proposito_programa!$C$2:$E$59,2,FALSE)),\" \",VLOOKUP(K42,Proposito_programa!$C$2:$E$59,2,FALSE))","v":"Movilidad social integral"},{"$f":"IF(ISERROR(VLOOKUP(K42,Proposito_programa!$C$2:$E$59,3,FALSE)),\" \",VLOOKUP(K42,Proposito_programa!$C$2:$E$59,3,FALSE))","v":"Propósito 1: Hacer un nuevo contrato social para incrementar la inclusión social, productiva y política"},"133011605570000002099",0,1013639613,"MILLER OSWALDO DIAZ VALDERRAMA","Persona Natural","N/A","N/A","N/A",40800000,null,null,0,40800000,40800000,"2021-02-10","2021-02-15","2021-10-14","8 MESES",null,"N/A",null,null,null,null,null,null,"X",null,1]
["031-2021",2021,"FDLM-CD-031-2021","https://community.secop.gov.co/Public/Tendering/OpportunityDetail/Index?noticeUID=CO1.NTC.1737073&isFromPublicArea=True&isModal=False\n","Contratos de prestación de servicios profesionales y de apoyo a la gestión","Contratación directa","Prestación de servicios profesionales y de apoyo a la gestión, o para la ejecución de trabajos artísticos que sólo puedan encomendarse a determinadas personas naturales;","PRESTAR SUS SERVICIOS PROFESIONALES AL FONDO DE DESARROLLO LOCAL DE LOS MÁRTIRES PARA LA APOYAR Y EL ACOMPAÑAMIENTO DE LAS INSTANCIAS DE COORDINACIÓN INTERINSTITUCIONALES E INSTANCIAS DE PARTICIPACIÓN LOCALES, ASÍ COMO EN LA FORMULACIÓN PRE CONTRACTUAL, APOYO A LA SUPERVISIÓN, SEGUIMIENTO AL PLAN DE DESARROLLO LOCAL Y EVALUACIÓN DE PROYECTOS, ASÍ COMO LAS DEMÁS ACTIVIDADES RELACIONADAS CON EL ÁREA DE GESTIÓN DEL DESARROLLO, ADMINISTRATIVO Y FINANZAS DE LA LOCALIDAD DE LOS MÁRTIRES, EN CUMPLIMIE","Inversión","Un Nuevo Contrato Social y Ambiental para la Bogotá del Siglo XXI",3,{"$f":"IF(ISERROR(VLOOKUP(K43,Proposito_programa!$C$2:$E$59,2,FALSE)),\" \",VLOOKUP(K43,Proposito_programa!$C$2:$E$59,2,FALSE))","v":"Movilidad social integral"},{"$f":"IF(ISERROR(VLOOKUP(K43,Proposito_programa!$C$2:$E$59,3,FALSE)),\" \",VLOOKUP(K43,Proposito_programa!$C$2:$E$59,3,FALSE))","v":"Propósito 1: Hacer un nuevo contrato social para incrementar la inclusión social, productiva y política"},"133011605570000002099",0,1014187761,"MARIA DEL PILAR VARGAS TALERO","Persona Natural","N/A","N/A","N/A",30600000,null,null,0,30600000,30600000,"2021-02-06","2021-02-09","2021-10-08","6 MESES",null,"N/A",null,null,null,null,null,null,"X",null,1]
["032-2021",2021,"FDLM-CD-032-2021","https://community.secop.gov.co/Public/Tendering/OpportunityDetail/Index?noticeUID=CO1.NTC.1739945&isFromPublicArea=True&isModal=False\n","Contratos de prestación de servicios profesionales y de apoyo a la gestión","Contratación directa","Prestación de servicios profesionales y de apoyo a la gestión, o para la ejecución de trabajos artísticos que sólo puedan encomendarse a determinadas personas naturales;","PRESTAR SUS SERVICIOS PROFESIONALES AL FONDO DE DESARROLLO LOCAL DE LOS MÁRTIRES PARA LA APOYAR Y EL ACOMPAÑAMIENTO DE LAS INSTANCIAS DE COORDINACIÓN INTERINSTITUCIONALES E INSTANCIAS DE PARTICIPACIÓN LOCALES, ASÍ COMO EN LA FORMULACIÓN PRE CONTRACTUAL, APOYO A LA SUPERVISIÓN, SEGUIMIENTO AL PLAN DE DESARROLLO LOCAL Y EVALUACIÓN DE PROYECTOS, ASÍ COMO LAS DEMÁS ACTIVIDADES RELACIONADAS CON EL ÁREA DE GESTIÓN DEL DESARROLLO, ADMINISTRATIVO Y FINANZAS DE LA LOCALIDAD DE LOS MÁRTIRES, EN CUMPLIMIE","Inversión","Un Nuevo Contrato Social y Ambiental para la Bogotá del Siglo XXI",3,{"$f":"IF(ISERROR(VLOOKUP(K44,Proposito_programa!$C$2:$E$59,2,FALSE)),\" \",VLOOKUP(K44,Proposito_programa!$C$2:$E$59,2,FALSE))","v":"Movilidad social integral"},{"$f":"IF(ISERROR(VLOOKUP(K44,Proposito_programa!$C$2:$E$59,3,FALSE)),\" \",VLOOKUP(K44,Proposito_programa!$C$2:$E$59,3,FALSE))","v":"Propósito 1: Hacer un nuevo contrato social para incrementar la inclusión social, productiva y política"},"133011605570000002099",0,52844341,"CARMEN ANDREA AVELLANEDA SANTOYA","Persona Natural","N/A","N/A","N/A",40800000,null,null,0,40800000,40800000,"2021-02-05","2021-02-11","2021-10-10","8 MESES",null,"N/A",null,null,null,null,null,null,"X",null,1]
["033-2021",2021,"FDLM-CD-033-2021","Presentación de oferta\nhttps://community.secop.gov.co/Public/Tendering/OpportunityDetail/Index?noticeUID=CO1.NTC.1753524&isFromPublicArea=True&isModal=False\n","Contratos de prestación de servicios profesionales y de apoyo a la gestión","Contratación directa","Prestación de servicios profesionales y de apoyo a la gestión, o para la ejecución de trabajos artísticos que sólo puedan encomendarse a determinadas personas naturales;","PRESTAR SUS SERVICIOS PROFESIONALES AL FONDO DE DESARROLLO LOCAL DE LOS MÁRTIRES PARA LA APOYAR Y EL ACOMPAÑAMIENTO DE LAS INSTANCIAS DE COORDINACIÓN INTERINSTITUCIONALES E INSTANCIAS DE PARTICIPACIÓN LOCALES, ASÍ COMO EN LA FORMULACIÓN PRE CONTRACTUAL, APOYO A LA SUPERVISIÓN, SEGUIMIENTO AL PLAN DE DESARROLLO LOCAL Y EVALUACIÓN DE PROYECTOS, ASÍ COMO LAS DEMÁS ACTIVIDADES RELACIONADAS CON EL ÁREA DE GESTIÓN DEL DESARROLLO, ADMINISTRATIVO Y FINANZAS DE LA LOCALIDAD DE LOS MÁRTIRES, EN CUMPLIMIE","Inversión","Un Nuevo Contrato Social y Ambiental para la Bogotá del Siglo XXI",3,{"$f":"IF(ISERROR(VLOOKUP(K45,Proposito_programa!$C$2:$E$59,2,FALSE)),\" \",VLOOKUP(K45,Proposito_programa!$C$2:$E$59,2,FALSE))","v":"Movilidad social integral"},{"$f":"IF(ISERROR(VLOOKUP(K45,Proposito_programa!$C$2:$E$59,3,FALSE)),\" \",VLOOKUP(K45,Proposito_programa!$C$2:$E$59,3,FALSE))","v":"Propósito 1: Hacer un nuevo contrato social para incrementar la inclusión social, productiva y política"},"133011605570000002099",0,53051848,"NELCY ORHUELA HERRERA","Persona Natural","N/A","N/A","N/A",40800000,null,null,0,40800000,40800000,"2021-02-11","2021-02-16","2021-10-15","8 MESES",null,"N/A",null,null,null,null,null,null,"X",null,1]
["034-2021",2021,"FDLM-CD-034-2021","https://community.secop.gov.co/Public/Tendering/OpportunityDetail/Index?noticeUID=CO1.NTC.1739555&isFromPublicArea=True&isModal=False\n","Contratos de prestación de servicios profesionales y de apoyo a la gestión","Contratación directa","Prestación de servicios profesionales y de apoyo a la gestión, o para la ejecución de trabajos artísticos que sólo puedan encomendarse a determinadas personas naturales;","\tPRESTAR SERVICIOS PROFESIONALES ESPECIALIZADOS PARA GESTIÓN DE LOS ASUNTOS CONCERNIENTES CON LA SEGURIDAD CIUDADANA, CONVIVENCIA Y PREVENCIÓN DE CONFLICTOS, VIOLENCIAS Y DELITOS EN LA LOCALIDAD DE LOS MÁRTIRES, DE CONFORMIDAD CON EL MARCO NORMATIVO APLICABLE EN LA MATERIA.","Inversión","Un Nuevo Contrato Social y Ambiental para la Bogotá del Siglo XXI",3,{"$f":"IF(ISERROR(VLOOKUP(K46,Proposito_programa!$C$2:$E$59,2,FALSE)),\" \",VLOOKUP(K46,Proposito_programa!$C$2:$E$59,2,FALSE))","v":"Movilidad social integral"},{"$f":"IF(ISERROR(VLOOKUP(K46,Proposito_programa!$C$2:$E$59,3,FALSE)),\" \",VLOOKUP(K46,Proposito_programa!$C$2:$E$59,3,FALSE))","v":"Propósito 1: Hacer un nuevo contrato social para incrementar la inclusión social, productiva y política"},"133011605570000002099",0,80577593,"JAIRO CARDENAS SILVA","Persona Natural","N/A","N/A","N/A",64000000,null,null,null,64000000,86133333,"2021-02-06","2021-02-08","2021-12-30","8 MESES",1,"2 MESES",null,null,null,null,null,null,"X",null,1.3458333281249999]
["035-2021",2021,"FDLM-CD-035-2021","https://community.secop.gov.co/Public/Tendering/OpportunityDetail/Index?noticeUID=CO1.NTC.1739607&isFromPublicArea=True&isModal=False","Contratos de prestación de servicios profesionales y de apoyo a la gestión","Contratación directa","Prestación de servicios profesionales y de apoyo a la gestión, o para la ejecución de trabajos artísticos que sólo puedan encomendarse a determinadas personas naturales;","PRESTAR SUS SERVICIOS PARA APOYAR TÉCNICAMENTE AL ÁREA DE GESTIÓN DE DESARROLLO LOCAL DE LA ALCALDÍA LOCAL DE LOS MÁRTIRES\t ","Inversión","Un Nuevo Contrato Social y Ambiental para la Bogotá del Siglo XXI",3,{"$f":"IF(ISERROR(VLOOKUP(K47,Proposito_programa!$C$2:$E$59,2,FALSE)),\" \",VLOOKUP(K47,Proposito_programa!$C$2:$E$59,2,FALSE))","v":"Movilidad social integral"},{"$f":"IF(ISERROR(VLOOKUP(K47,Proposito_programa!$C$2:$E$59,3,FALSE)),\" \",VLOOKUP(K47,Proposito_programa!$C$2:$E$59,3,FALSE))","v":"Propósito 1: Hacer un nuevo contrato social para incrementar la inclusión social, productiva y política"},"133011605570000002099",0,19396517,"HECTOR ALFONSO DELGADO RODRIGUEZ","Persona Natural","N/A","N/A","N/A",26680000,null,null,0,26680000,26680000,"2021-02-08","2021-02-10","2021-10-09","8 MESES",null,"N/A",null,null,null,null,null,null,"X",null,1]
["036-2021",2021,"FDLM-CD-036-2021","https://community.secop.gov.co/Public/Tendering/OpportunityDetail/Index?noticeUID=CO1.NTC.1739120&isFromPublicArea=True&isModal=False\n","Contratos de prestación de servicios profesionales y de apoyo a la gestión","Contratación directa","Prestación de servicios profesionales y de apoyo a la gestión, o para la ejecución de trabajos artísticos que sólo puedan encomendarse a determinadas personas naturales;","PRESTAR LOS SERVICIOS DE APOYO A LA GESTIÓN PARA EL PROCESO DE RADICACIÓN, NOTIFICACIÓN Y ENTREGA DE LA CORRESPONDENCIA INTERNA Y EXTERNA DE LA ALCALDÍA LOCAL DE LOS MÁRTIRES.","Inversión","Un Nuevo Contrato Social y Ambiental para la Bogotá del Siglo XXI",3,{"$f":"IF(ISERROR(VLOOKUP(K48,Proposito_programa!$C$2:$E$59,2,FALSE)),\" \",VLOOKUP(K48,Proposito_programa!$C$2:$E$59,2,FALSE))","v":"Movilidad social integral"},{"$f":"IF(ISERROR(VLOOKUP(K48,Proposito_programa!$C$2:$E$59,3,FALSE)),\" \",VLOOKUP(K48,Proposito_programa!$C$2:$E$59,3,FALSE))","v":"Propósito 1: Hacer un nuevo contrato social para incrementar la inclusión social, productiva y política"},"133011605570000002099",0,79611892,"JAVIER CRUZ VALBUENA","Persona Natural","N/A","N/A","N/A",18960000,null,null,0,18960000,18960000,"2021-02-06","2021-02-09","2021-10-08","8 MESES",null,"N/A",null,null,null,null,null,null,"X",null,1]
["037-2021",2021,"FDLM-CD-037-2021","https://community.secop.gov.co/Public/Tendering/OpportunityDetail/Index?noticeUID=CO1.NTC.1740891&isFromPublicArea=True&isModal=False\n","Contratos de prestación de servicios profesionales y de apoyo a la gestión","Contratación directa","Prestación de servicios profesionales y de apoyo a la gestión, o para la ejecución de trabajos artísticos que sólo puedan encomendarse a determinadas personas naturales;","APOYAR AL EQUIPO DE PRENSA Y COMUNICACIONES DE LA ALCALDÍA LOCAL EN LA REALIZACIÓN DE PRODUCTOS Y PIEZAS DIGITALES, IMPRESAS Y PUBLICITARIAS DE GRAN FORMATO Y DE ANIMACIÓN GRÁFICA, ASÍ COMO APOYAR LA PRODUCCIÓN Y MONTAJE DE EVENTOS","Inversión","Un Nuevo Contrato Social y Ambiental para la Bogotá del Siglo XXI",3,{"$f":"IF(ISERROR(VLOOKUP(K49,Proposito_programa!$C$2:$E$59,2,FALSE)),\" \",VLOOKUP(K49,Proposito_programa!$C$2:$E$59,2,FALSE))","v":"Movilidad social integral"},{"$f":"IF(ISERROR(VLOOKUP(K49,Proposito_programa!$C$2:$E$59,3,FALSE)),\" \",VLOOKUP(K49,Proposito_programa!$C$2:$E$59,3,FALSE))","v":"Propósito 1: Hacer un nuevo contrato social para incrementar la inclusión social, productiva y política"},"133011605570000002099",0,1026283071,"JUAN FELIPE BOCANEGRA LEON","Persona Natural","N/A","N/A","N/A",34800000,null,null,0,34800000,34800000,"2021-02-08","2021-02-09","2021-10-08","8 MESES",null,"N/A",null,null,null,null,null,null,"X",null,1]
["038-2021",2021,"FDLM-CD-038-2021","https://community.secop.gov.co/Public/Tendering/OpportunityDetail/Index?noticeUID=CO1.NTC.1757820&isFromPublicArea=True&isModal=False\n","Contratos de prestación de servicios profesionales y de apoyo a la gestión","Contratación directa","Prestación de servicios profesionales y de apoyo a la gestión, o para la ejecución de trabajos artísticos que sólo puedan encomendarse a determinadas personas naturales;","PRESTAR LOS SERVICIOS PROFESIONALES ADMINISTRATIVOS AL FONDO DE DESARROLLO LOCAL DE LA LOCALIDAD DE LOS MÁRTIRES","Inversión","Un Nuevo Contrato Social y Ambiental para la Bogotá del Siglo XXI",3,{"$f":"IF(ISERROR(VLOOKUP(K50,Proposito_programa!$C$2:$E$59,2,FALSE)),\" \",VLOOKUP(K50,Proposito_programa!$C$2:$E$59,2,FALSE))","v":"Movilidad social integral"},{"$f":"IF(ISERROR(VLOOKUP(K50,Proposito_programa!$C$2:$E$59,3,FALSE)),\" \",VLOOKUP(K50,Proposito_programa!$C$2:$E$59,3,FALSE))","v":"Propósito 1: Hacer un nuevo contrato social para incrementar la inclusión social, productiva y política"},"133011605570000002099",0,1012399674,"GINNA LIZETH SERNA GARCIA","Persona Natural","N/A","N/A","N/A",34888000,null,null,0,34888000,34888000,"2021-02-11","2021-02-15","2021-10-14","8 MESES",null,"N/A",null,null,null,null,null,null,"X",null,1]
["039-2021",2021,"FDLM-CD-039-2021","https://community.secop.gov.co/Public/Tendering/OpportunityDetail/Index?noticeUID=CO1.NTC.1749700&isFromPublicArea=True&isModal=False","Contratos de prestación de servicios profesionales y de apoyo a la gestión","Contratación directa","Prestación de servicios profesionales y de apoyo a la gestión, o para la ejecución de trabajos artísticos que sólo puedan encomendarse a determinadas personas naturales;","PRESTAR SERVICIOS PROFESIONALES COMO ENLACE INTERINSTITUCIONAL EN TEMAS DE GESTIÓN DE RIESGO Y AGLOMERACIONES, A CARGO DE LA LOCALIDAD DE LOS MÁRTIRES DE CONFORMIDAD CON EL MARCO NORMATIVO APLICABLE PARA LA MATERIA.","Inversión","Un Nuevo Contrato Social y Ambiental para la Bogotá del Siglo XXI",3,{"$f":"IF(ISERROR(VLOOKUP(K51,Proposito_programa!$C$2:$E$59,2,FALSE)),\" \",VLOOKUP(K51,Proposito_programa!$C$2:$E$59,2,FALSE))","v":"Movilidad social integral"},{"$f":"IF(ISERROR(VLOOKUP(K51,Proposito_programa!$C$2:$E$59,3,FALSE)),\" \",VLOOKUP(K51,Proposito_programa!$C$2:$E$59,3,FALSE))","v":"Propósito 1: Hacer un nuevo contrato social para incrementar la inclusión social, productiva y política"},"133011605570000002099",0,79967824,"VICTOR FERNANDO ENCISO CONTRERAS","Persona Natural","N/A","N/A","N/A",42128000,null,null,0,42128000,42128000,"2021-02-10","2021-02-17","2021-10-16","8 MESES",null,"N/A",null,null,null,null,null,null,"X",null,1]
["040-2021",2021,"FDLM-CD-040-2021","https://community.secop.gov.co/Public/Tendering/OpportunityDetail/Index?noticeUID=CO1.NTC.1746898&isFromPublicArea=True&isModal=False\n","Contratos de prestación de servicios profesionales y de apoyo a la gestión","Contratación directa","Prestación de servicios profesionales y de apoyo a la gestión, o para la ejecución de trabajos artísticos que sólo puedan encomendarse a determinadas personas naturales;","APOYAR LA FORMULACIÓN, GESTIÓN Y SEGUIMIENTO DE ACTIVIDADES ENFOCADAS A LA GESTIÓN AMBIENTAL EXTERNA, ENCAMINADAS A LA MITIGACIÓN DE LOS DIFERENTES IMPACTOS AMBIENTALES Y LA CONSERVACIÓN DE LOS RECURSOS NATURALES DE LA LOCALIDAD.","Inversión","Un Nuevo Contrato Social y Ambiental para la Bogotá del Siglo XXI",3,{"$f":"IF(ISERROR(VLOOKUP(K52,Proposito_programa!$C$2:$E$59,2,FALSE)),\" \",VLOOKUP(K52,Proposito_programa!$C$2:$E$59,2,FALSE))","v":"Movilidad social integral"},{"$f":"IF(ISERROR(VLOOKUP(K52,Proposito_programa!$C$2:$E$59,3,FALSE)),\" \",VLOOKUP(K52,Proposito_programa!$C$2:$E$59,3,FALSE))","v":"Propósito 1: Hacer un nuevo contrato social para incrementar la inclusión social, productiva y política"},"133011605570000002099",0,1019115093,"WILLINTON ALDEMAR TOLOSA ALBA","Persona Natural","N/A","N/A","N/A",39200000,null,null,0,39200000,39200000,"2021-02-09","2021-02-10","2021-10-09","8 MESES",null,"N/A",null,null,null,null,null,null,"X",null,1]
["041-2021",2021,"FDLM-CD-041-2021","https://community.secop.gov.co/Public/Tendering/OpportunityDetail/Index?noticeUID=CO1.NTC.1756860&isFromPublicArea=True&isModal=False\n","Contratos de prestación de servicios profesionales y de apoyo a la gestión","Contratación directa","Prestación de servicios profesionales y de apoyo a la gestión, o para la ejecución de trabajos artísticos que sólo puedan encomendarse a determinadas personas naturales;","PRESTAR SUS SERVICIOS DE APOYO ASISTENCIAL PARA CON EL DESPACHO DE LA LOCAL DE LOS MÁRTIRES, ESPECIALMENTE EN DISTRIBUCIÓN Y CUSTODIA DE LA CORRESPONDENCIA, ATENCIÓN TELEFÓNICA Y FOTOCOPIADO DE DOCUMENTOS.","Inversión","Un Nuevo Contrato Social y Ambiental para la Bogotá del Siglo XXI",3,{"$f":"IF(ISERROR(VLOOKUP(K53,Proposito_programa!$C$2:$E$59,2,FALSE)),\" \",VLOOKUP(K53,Proposito_programa!$C$2:$E$59,2,FALSE))","v":"Movilidad social integral"},{"$f":"IF(ISERROR(VLOOKUP(K53,Proposito_programa!$C$2:$E$59,3,FALSE)),\" \",VLOOKUP(K53,Proposito_programa!$C$2:$E$59,3,FALSE))","v":"Propósito 1: Hacer un nuevo contrato social para incrementar la inclusión social, productiva y política"},"133011605570000002099",0,52456192,"PATRICIA BUCURU MORALES","Persona Natural","N/A","N/A","N/A",19680000,null,null,0,19680000,19680000,"2021-02-12","2021-02-15","2021-10-14","8 MESES",null,"N/A",null,null,null,null,null,null,"X",null,1]
["042-2021",2021,"FDLM-CD-042-2021","https://community.secop.gov.co/Public/Tendering/OpportunityDetail/Index?noticeUID=CO1.NTC.1758434&isFromPublicArea=True&isModal=False\n","Contratos de prestación de servicios profesionales y de apoyo a la gestión","Contratación directa","Prestación de servicios profesionales y de apoyo a la gestión, o para la ejecución de trabajos artísticos que sólo puedan encomendarse a determinadas personas naturales;","APOYAR JURÍDICAMENTE LA EJECUCIÓN DE LAS ACCIONES REQUERIDAS PARA LA DEPURACIÓN DE LAS ACTUACIONES ADMINISTRATIVAS QUE CURSAN EN LA ALCALDÍA LOCAL.","Inversión","Un Nuevo Contrato Social y Ambiental para la Bogotá del Siglo XXI",3,{"$f":"IF(ISERROR(VLOOKUP(K54,Proposito_programa!$C$2:$E$59,2,FALSE)),\" \",VLOOKUP(K54,Proposito_programa!$C$2:$E$59,2,FALSE))","v":"Movilidad social integral"},{"$f":"IF(ISERROR(VLOOKUP(K54,Proposito_programa!$C$2:$E$59,3,FALSE)),\" \",VLOOKUP(K54,Proposito_programa!$C$2:$E$59,3,FALSE))","v":"Propósito 1: Hacer un nuevo contrato social para incrementar la inclusión social, productiva y política"},"133011605570000002099",0,1026274713,"RICARDO ERNESTO SANCHEZ MENESES","Persona Natural","N/A","N/A","N/A",29490000,null,null,0,29490000,29490000,"2021-02-11","2021-02-16","2021-08-15","6 MESES",null,"N/A",null,null,null,null,null,null,"X",null,1]
["043-2021",2021,"FDLM-CD-043-2021","https://community.secop.gov.co/Public/Tendering/OpportunityDetail/Index?noticeUID=CO1.NTC.1751649&isFromPublicArea=True&isModal=False\n","Contratos de prestación de servicios profesionales y de apoyo a la gestión","Contratación directa","Prestación de servicios profesionales y de apoyo a la gestión, o para la ejecución de trabajos artísticos que sólo puedan encomendarse a determinadas personas naturales;","PRESTAR LOS SERVICIOS PROFESIONALES DE ABOGADO AL ÁREA DE GESTIÓN POLICIVA Y JURÍDICA DE LA LOCALIDAD DE LOS MÁRTIRES, PARA EL SEGUIMIENTO AL COBRO COACTIVO, PERSUASIVO, INFORMES MENSUALES DE SIVICOF, MANEJO DEL SISTEMA SICO Y RESPUESTA A LOS DERECHOS DE PETICIÓN Y TUTELAS QUE LE SEAN ASIGNADOS.","Inversión","Un Nuevo Contrato Social y Ambiental para la Bogotá del Siglo XXI",3,{"$f":"IF(ISERROR(VLOOKUP(K55,Proposito_programa!$C$2:$E$59,2,FALSE)),\" \",VLOOKUP(K55,Proposito_programa!$C$2:$E$59,2,FALSE))","v":"Movilidad social integral"},{"$f":"IF(ISERROR(VLOOKUP(K55,Proposito_programa!$C$2:$E$59,3,FALSE)),\" \",VLOOKUP(K55,Proposito_programa!$C$2:$E$59,3,FALSE))","v":"Propósito 1: Hacer un nuevo contrato social para incrementar la inclusión social, productiva y política"},"133011605570000002099",0,53115231,"LAURA JANNETH RICO BELTRAN","Persona Natural","N/A","N/A","N/A",39200000,null,null,0,39200000,39200000,"2021-02-10","2021-02-11","2021-10-10","8 MESES",null,"N/A",null,null,null,null,null,null,"X",null,1]
["044-2021",2021,"FDLM-CD-044-2021","Presentación de oferta\nhttps://community.secop.gov.co/Public/Tendering/OpportunityDetail/Index?noticeUID=CO1.NTC.1749952&isFromPublicArea=True&isModal=False\n","Contratos de prestación de servicios profesionales y de apoyo a la gestión","Contratación directa","Prestación de servicios profesionales y de apoyo a la gestión, o para la ejecución de trabajos artísticos que sólo puedan encomendarse a determinadas personas naturales;","PRESTAR LOS SERVICIOS TÉCNICOS DE APOYO AL DESPACHO DE LA ALCALDÍA LOCAL DE LOS MÁRTIRES, ESPECIALMENTE ASISTENCIA A REUNIONES, ELABORACIÓN DE LAS ACTAS QUE CORRESPONDAN, COORDINACIÓN DE LA AGENDA, CONTROL Y SEGUIMIENTO DE DOCUMENTOS,","Inversión","Un Nuevo Contrato Social y Ambiental para la Bogotá del Siglo XXI",3,{"$f":"IF(ISERROR(VLOOKUP(K56,Proposito_programa!$C$2:$E$59,2,FALSE)),\" \",VLOOKUP(K56,Proposito_programa!$C$2:$E$59,2,FALSE))","v":"Movilidad social integral"},{"$f":"IF(ISERROR(VLOOKUP(K56,Proposito_programa!$C$2:$E$59,3,FALSE)),\" \",VLOOKUP(K56,Proposito_programa!$C$2:$E$59,3,FALSE))","v":"Propósito 1: Hacer un nuevo contrato social para incrementar la inclusión social, productiva y política"},"133011605570000002099",0,52118985,"MARTHA INES BERNAL ALVAREZ","Persona Natural","N/A","N/A","N/A",26680000,null,null,0,26680000,26680000,"2021-02-09","2021-02-11","2021-10-10","8 MESES",null,"N/A",null,null,null,null,null,null,"X",null,1]
["045-2021",2021,"FDLM-CD-045-2021","https://community.secop.gov.co/Public/Tendering/OpportunityDetail/Index?noticeUID=CO1.NTC.1750017&isFromPublicArea=True&isModal=False\n","Contratos de prestación de servicios profesionales y de apoyo a la gestión","Contratación directa","Prestación de servicios profesionales y de apoyo a la gestión, o para la ejecución de trabajos artísticos que sólo puedan encomendarse a determinadas personas naturales;","PRESTAR LOS SERVICIOS DE APOYO A GESTIÓN EN LAS DIFERENTES LABORES ADMINISTRATIVAS QUE SURJAN DE LAS ACTIVIDADES DE LA JUNTA ADMINISTRADORA LOCAL DE LOS MÁRTIRES","Inversión","Un Nuevo Contrato Social y Ambiental para la Bogotá del Siglo XXI",3,{"$f":"IF(ISERROR(VLOOKUP(K57,Proposito_programa!$C$2:$E$59,2,FALSE)),\" \",VLOOKUP(K57,Proposito_programa!$C$2:$E$59,2,FALSE))","v":"Movilidad social integral"},{"$f":"IF(ISERROR(VLOOKUP(K57,Proposito_programa!$C$2:$E$59,3,FALSE)),\" \",VLOOKUP(K57,Proposito_programa!$C$2:$E$59,3,FALSE))","v":"Propósito 1: Hacer un nuevo contrato social para incrementar la inclusión social, productiva y política"},"133011605570000002099",0,51880973,"ARIS SEDITH CABARCAS MARTINEZ","Persona Natural","N/A","N/A","N/A",18960000,null,null,0,18960000,18960000,"2021-02-10","2021-02-10","2021-10-09","8 MESES",null,"N/A",null,null,null,null,null,null,"X",null,1]
["046-2021",2021,"FDLM-CD-046-2021","https://community.secop.gov.co/Public/Tendering/OpportunityDetail/Index?noticeUID=CO1.NTC.1759107&isFromPublicArea=True&isModal=False\n","Contratos de prestación de servicios profesionales y de apoyo a la gestión","Contratación directa","Prestación de servicios profesionales y de apoyo a la gestión, o para la ejecución de trabajos artísticos que sólo puedan encomendarse a determinadas personas naturales;","APOYAR AL EQUIPO DE PRENSA Y COMUNICACIONES DE LA ALCALDÍA LOCAL EN LA CREACIÓN, REALIZACIÓN, PRODUCCIÓN Y EDICIÓN DE VÍDEOS, ASÍ COMO EL REGISTRO, EDICIÓN Y LA PRESENTACIÓN DE FOTOGRAFÍAS DE LOS ACONTECIMIENTOS, HECHOS Y EVENTOS EXTERNOS E INTERNOS DE LA ALCALDÍA LOCAL, PARA SER UTILIZADOS COMO INSUMOS DE COMUNICACIÓN EN LOS MEDIOS, ESPECIALMENTE ESCRITOS, DIGITALES Y AUDIOVISUALES.","Inversión","Un Nuevo Contrato Social y Ambiental para la Bogotá del Siglo XXI",3,{"$f":"IF(ISERROR(VLOOKUP(K58,Proposito_programa!$C$2:$E$59,2,FALSE)),\" \",VLOOKUP(K58,Proposito_programa!$C$2:$E$59,2,FALSE))","v":"Movilidad social integral"},{"$f":"IF(ISERROR(VLOOKUP(K58,Proposito_programa!$C$2:$E$59,3,FALSE)),\" \",VLOOKUP(K58,Proposito_programa!$C$2:$E$59,3,FALSE))","v":"Propósito 1: Hacer un nuevo contrato social para incrementar la inclusión social, productiva y política"},"133011605570000002099",0,1015433078,"NATALIA STEPHANY DURAN CAMARGO","Persona Natural","N/A","N/A","N/A",34800000,null,1,10875000,45675000,34600000,"2021-02-11","2021-02-16","2021-12-31","8 MESES",2,"2 MESES Y 16 DIAS",null,null,null,null,null,null,"X",null,0.75752599890530925]
["047-2021",2021,"FDLM-CD-047-2021","https://community.secop.gov.co/Public/Tendering/OpportunityDetail/Index?noticeUID=CO1.NTC.1753330&isFromPublicArea=True&isModal=False\n","Contratos de prestación de servicios profesionales y de apoyo a la gestión","Contratación directa","Prestación de servicios profesionales y de apoyo a la gestión, o para la ejecución de trabajos artísticos que sólo puedan encomendarse a determinadas personas naturales;","PRESTAR SUS SERVICIOS PROFESIONALES PARA LA FORMULACIÓN PRE CONTRACTUAL PARTICIPATIVA, APOYO A LA SUPERVISIÓN, SEGUIMIENTO, ACOMPAÑAMIENTO, ATENCIÓN Y EVALUACIÓN DE LOS PROYECTOS E INSTANCIAS DE ARTICULACIÓN INTERINSTITUCIONAL Y PARTICIPACIÓN LOCAL ASIGNADAS, ASÍ COMO LAS DEMÁS ACTIVIDADES RELACIONADAS CON EL ÁREA DE PLANEACIÓN Y PARTICIPACIÓN DE LA LOCALIDAD DE LOS MÁRTIRES, EN CUMPLIMIENTO DEL PLAN DE DESARROLLO LOCAL VIGENTE.","Inversión","Un Nuevo Contrato Social y Ambiental para la Bogotá del Siglo XXI",3,{"$f":"IF(ISERROR(VLOOKUP(K59,Proposito_programa!$C$2:$E$59,2,FALSE)),\" \",VLOOKUP(K59,Proposito_programa!$C$2:$E$59,2,FALSE))","v":"Movilidad social integral"},{"$f":"IF(ISERROR(VLOOKUP(K59,Proposito_programa!$C$2:$E$59,3,FALSE)),\" \",VLOOKUP(K59,Proposito_programa!$C$2:$E$59,3,FALSE))","v":"Propósito 1: Hacer un nuevo contrato social para incrementar la inclusión social, productiva y política"},"133011605570000002099",0,1013591512,"SERGIO NARAYAN JIUSEPPE ARMANDO BERNAL RUIZ","Persona Natural","N/A","N/A","N/A",44000000,null,null,0,44000000,44000000,"2021-02-11","2021-02-15","2021-10-14","8 MESES",null,"N/A",null,null,null,null,null,null,"X",null,1]
["048-2021",2021,"FDLM-CD-048-2021","https://community.secop.gov.co/Public/Tendering/OpportunityDetail/Index?noticeUID=CO1.NTC.1754341&isFromPublicArea=True&isModal=False\n","Contratos de prestación de servicios profesionales y de apoyo a la gestión","Contratación directa","Prestación de servicios profesionales y de apoyo a la gestión, o para la ejecución de trabajos artísticos que sólo puedan encomendarse a determinadas personas naturales;","PRESTAR SUS SERVICIOS PROFESIONALES PARA LA FORMULACIÓN PRE CONTRACTUAL PARTICIPATIVA, APOYO A LA SUPERVISIÓN, SEGUIMIENTO, ACOMPAÑAMIENTO, ATENCIÓN Y EVALUACIÓN DE LOS PROYECTOS E INSTANCIAS DE ARTICULACIÓN INTERINSTITUCIONAL Y PARTICIPACIÓN LOCAL ASIGNADAS, ASÍ COMO LAS DEMÁS ACTIVIDADES RELACIONADAS CON EL ÁREA DE PLANEACIÓN Y PARTICIPACIÓN DE LA LOCALIDAD DE LOS MÁRTIRES, EN CUMPLIMIENTO DEL PLAN DE DESARROLLO LOCAL VIGENTE","Inversión","Un Nuevo Contrato Social y Ambiental para la Bogotá del Siglo XXI",3,{"$f":"IF(ISERROR(VLOOKUP(K60,Proposito_programa!$C$2:$E$59,2,FALSE)),\" \",VLOOKUP(K60,Proposito_programa!$C$2:$E$59,2,FALSE))","v":"Movilidad social integral"},{"$f":"IF(ISERROR(VLOOKUP(K60,Proposito_programa!$C$2:$E$59,3,FALSE)),\" \",VLOOKUP(K60,Proposito_programa!$C$2:$E$59,3,FALSE))","v":"Propósito 1: Hacer un nuevo contrato social para incrementar la inclusión social, productiva y política"},"133011605570000002099",0,1032366275,"LILIANA PARDO MONTENEGRO","Persona Natural","N/A","N/A","N/A",44000000,null,null,0,44000000,44000000,"2021-02-10","2021-02-15","2021-10-14","8 MESES",null,"N/A",null,null,null,null,null,null,"X",null,1]
["049-2021",2021,"FDLM-CD-049-2021","https://community.secop.gov.co/Public/Tendering/OpportunityDetail/Index?noticeUID=CO1.NTC.1756103&isFromPublicArea=True&isModal=False\n","Contratos de prestación de servicios profesionales y de apoyo a la gestión","Contratación directa","Prestación de servicios profesionales y de apoyo a la gestión, o para la ejecución de trabajos artísticos que sólo puedan encomendarse a determinadas personas naturales;","PRESTAR SUS SERVICIOS PROFESIONALES PARA LA FORMULACIÓN PRE CONTRACTUAL PARTICIPATIVA, APOYO A LA SUPERVISIÓN, SEGUIMIENTO, ACOMPAÑAMIENTO, ATENCIÓN Y EVALUACIÓN DE LOS PROYECTOS E INSTANCIAS DE ARTICULACIÓN INTERINSTITUCIONAL Y PARTICIPACIÓN LOCAL ASIGNADAS, ASÍ COMO LAS DEMÁS ACTIVIDADES RELACIONADAS CON EL ÁREA DE PLANEACIÓN Y PARTICIPACIÓN DE LA LOCALIDAD DE LOS MÁRTIRES, EN CUMPLIMIENTO DEL PLAN DE DESARROLLO LOCAL VIGENTE.","Inversión","Un Nuevo Contrato Social y Ambiental para la Bogotá del Siglo XXI",3,{"$f":"IF(ISERROR(VLOOKUP(K61,Proposito_programa!$C$2:$E$59,2,FALSE)),\" \",VLOOKUP(K61,Proposito_programa!$C$2:$E$59,2,FALSE))","v":"Movilidad social integral"},{"$f":"IF(ISERROR(VLOOKUP(K61,Proposito_programa!$C$2:$E$59,3,FALSE)),\" \",VLOOKUP(K61,Proposito_programa!$C$2:$E$59,3,FALSE))","v":"Propósito 1: Hacer un nuevo contrato social para incrementar la inclusión social, productiva y política"},"133011605570000002099",0,1019028211,"LAURA CATALINA MARTINEZ CASTILLO","Persona Natural","N/A","N/A","N/A",44000000,null,null,0,44000000,44000000,"2021-02-12","2021-02-15","2021-10-14","8 MESES",null,"N/A",null,null,null,null,null,null,"X",null,1]
["051-2021",2021,"FDLM-CD-051-2021","https://community.secop.gov.co/Public/Tendering/OpportunityDetail/Index?noticeUID=CO1.NTC.1754614&isFromPublicArea=True&isModal=False\n","Contratos de prestación de servicios profesionales y de apoyo a la gestión","Contratación directa","Prestación de servicios profesionales y de apoyo a la gestión, o para la ejecución de trabajos artísticos que sólo puedan encomendarse a determinadas personas naturales;","PRESTAR LOS SERVICIOS DE APOYO ADMINISTRATIVO AL ÁREA DE GESTIÓN POLICIVA Y JURÍDICA DE LA ALCALDÍA LOCAL DE LOS MÁRTIRES.","Inversión","Un Nuevo Contrato Social y Ambiental para la Bogotá del Siglo XXI",3,{"$f":"IF(ISERROR(VLOOKUP(K62,Proposito_programa!$C$2:$E$59,2,FALSE)),\" \",VLOOKUP(K62,Proposito_programa!$C$2:$E$59,2,FALSE))","v":"Movilidad social integral"},{"$f":"IF(ISERROR(VLOOKUP(K62,Proposito_programa!$C$2:$E$59,3,FALSE)),\" \",VLOOKUP(K62,Proposito_programa!$C$2:$E$59,3,FALSE))","v":"Propósito 1: Hacer un nuevo contrato social para incrementar la inclusión social, productiva y política"},"133011605570000002099",0,79863965,"FREDY ALONSO SANCHEZ RAMIREZ","Persona Natural","N/A","N/A","N/A",21040000,null,null,0,21040000,876667,"2021-02-10","2021-02-12","2021-10-11","8 MESES",null,"N/A",null,null,null,null,null,null,"X",null,4.1666682509505705E-2]
["052-2021",2021,"FDLM-CD-052-2021","https://community.secop.gov.co/Public/Tendering/OpportunityDetail/Index?noticeUID=CO1.NTC.1754438&isFromPublicArea=True&isModal=False\n","Contratos de prestación de servicios profesionales y de apoyo a la gestión","Contratación directa","Prestación de servicios profesionales y de apoyo a la gestión, o para la ejecución de trabajos artísticos que sólo puedan encomendarse a determinadas personas naturales;","PRESTAR LOS SERVICIOS DE APOYO ADMINISTRATIVO AL ÁREA DE GESTIÓN POLICIVA Y JURÍDICA DE LA ALCALDÍA LOCAL DE LOS MÁRTIRES.","Inversión","Un Nuevo Contrato Social y Ambiental para la Bogotá del Siglo XXI",3,{"$f":"IF(ISERROR(VLOOKUP(K63,Proposito_programa!$C$2:$E$59,2,FALSE)),\" \",VLOOKUP(K63,Proposito_programa!$C$2:$E$59,2,FALSE))","v":"Movilidad social integral"},{"$f":"IF(ISERROR(VLOOKUP(K63,Proposito_programa!$C$2:$E$59,3,FALSE)),\" \",VLOOKUP(K63,Proposito_programa!$C$2:$E$59,3,FALSE))","v":"Propósito 1: Hacer un nuevo contrato social para incrementar la inclusión social, productiva y política"},"133011605570000002099",0,1121914746,"GINA PAOLA ALBARRACIN FAJARDO","Persona Natural","N/A","N/A","N/A",21040000,null,null,0,21040000,21040000,"2021-02-10","2021-02-12","2021-10-11","8 MESES",null,"N/A",null,null,null,null,null,null,"X",null,1]
["053-2021",2021,"FDLM-CD-053-2021","https://community.secop.gov.co/Public/Tendering/OpportunityDetail/Index?noticeUID=CO1.NTC.1766707&isFromPublicArea=True&isModal=False","Contratos de prestación de servicios profesionales y de apoyo a la gestión","Contratación directa","Prestación de servicios profesionales y de apoyo a la gestión, o para la ejecución de trabajos artísticos que sólo puedan encomendarse a determinadas personas naturales;","APOYAR EL CUBRIMIENTO DE LAS ACTIVIDADES, CRONOGRAMAS Y AGENDA DE LA ALCALDÍA LOCAL A NIVEL INTERNO Y EXTERNO, ASÍ COMO LA GENERACIÓN DE CONTENIDOS PERIODÍSTICOS.","Inversión","Un Nuevo Contrato Social y Ambiental para la Bogotá del Siglo XXI",3,{"$f":"IF(ISERROR(VLOOKUP(K64,Proposito_programa!$C$2:$E$59,2,FALSE)),\" \",VLOOKUP(K64,Proposito_programa!$C$2:$E$59,2,FALSE))","v":"Movilidad social integral"},{"$f":"IF(ISERROR(VLOOKUP(K64,Proposito_programa!$C$2:$E$59,3,FALSE)),\" \",VLOOKUP(K64,Proposito_programa!$C$2:$E$59,3,FALSE))","v":"Propósito 1: Hacer un nuevo contrato social para incrementar la inclusión social, productiva y política"},"133011605570000002099",0,52992926,"MONICA VARGAS LEON","Persona Natural","N/A","N/A","N/A",39200000,null,null,0,39200000,39200000,"2021-02-15","2021-02-19","2021-10-18","8 MESES",null,"N/A",null,null,null,null,null,null,"X",null,1]
["054-2021",2021,"FDLM-CD-054-2021","https://community.secop.gov.co/Public/Tendering/OpportunityDetail/Index?noticeUID=CO1.NTC.1752996&isFromPublicArea=True&isModal=False\n","Contratos de prestación de servicios profesionales y de apoyo a la gestión","Contratación directa","Prestación de servicios profesionales y de apoyo a la gestión, o para la ejecución de trabajos artísticos que sólo puedan encomendarse a determinadas personas naturales;","APOYAR EL CUBRIMIENTO DE LAS ACTIVIDADES, CRONOGRAMAS Y AGENDA DE LA ALCALDÍA LOCAL A NIVEL INTERNO Y EXTERNO, ASÍ COMO LA GENERACIÓN DE CONTENIDOS PERIODÍSTICOS.","Inversión","Un Nuevo Contrato Social y Ambiental para la Bogotá del Siglo XXI",3,{"$f":"IF(ISERROR(VLOOKUP(K65,Proposito_programa!$C$2:$E$59,2,FALSE)),\" \",VLOOKUP(K65,Proposito_programa!$C$2:$E$59,2,FALSE))","v":"Movilidad social integral"},{"$f":"IF(ISERROR(VLOOKUP(K65,Proposito_programa!$C$2:$E$59,3,FALSE)),\" \",VLOOKUP(K65,Proposito_programa!$C$2:$E$59,3,FALSE))","v":"Propósito 1: Hacer un nuevo contrato social para incrementar la inclusión social, productiva y política"},"133011605570000002099",0,1018469710,"MARIA ALEJANDRA ARIZA ROBELTO","Persona Natural","N/A","N/A","N/A",39200000,null,null,0,39200000,39200000,"2021-02-10","2021-02-11","2021-10-10","8 MESES",null,"N/A",null,null,null,null,null,null,"X",null,1]
["055-2021",2021,"FDLM-CD-055-2021","https://community.secop.gov.co/Public/Tendering/OpportunityDetail/Index?noticeUID=CO1.NTC.1756343&isFromPublicArea=True&isModal=False\n","Contratos de prestación de servicios profesionales y de apoyo a la gestión","Contratación directa","Prestación de servicios profesionales y de apoyo a la gestión, o para la ejecución de trabajos artísticos que sólo puedan encomendarse a determinadas personas naturales;","PRESTAR LOS SERVICIOS PROFESIONALES COMO ABOGADO PARA APOYAR LAS DIFERENTES ETAPAS CONTRACTUALES, Y DEMÁS LABORES PROPIAS DE LA OFICINA DE CONTRATACIÓN DEL FONDO DE DESARROLLO LOCAL DE LOS MÁRTIRES,","Inversión","Un Nuevo Contrato Social y Ambiental para la Bogotá del Siglo XXI",3,{"$f":"IF(ISERROR(VLOOKUP(K66,Proposito_programa!$C$2:$E$59,2,FALSE)),\" \",VLOOKUP(K66,Proposito_programa!$C$2:$E$59,2,FALSE))","v":"Movilidad social integral"},{"$f":"IF(ISERROR(VLOOKUP(K66,Proposito_programa!$C$2:$E$59,3,FALSE)),\" \",VLOOKUP(K66,Proposito_programa!$C$2:$E$59,3,FALSE))","v":"Propósito 1: Hacer un nuevo contrato social para incrementar la inclusión social, productiva y política"},"133011605570000002099",0,53119341,"MARIA CAMILA LOPEZ FERNANDEZ","Persona Natural","N/A","N/A","N/A",48000000,null,null,0,48000000,48000000,"2021-02-11","2021-02-15","2021-10-14","8 MESES",null,"N/A",null,null,null,null,null,null,"X",null,1]
["057-2021",2021,"FDLM-CD-057-2021","https://community.secop.gov.co/Public/Tendering/OpportunityDetail/Index?noticeUID=CO1.NTC.1766708&isFromPublicArea=True&isModal=False\n","Contratos de prestación de servicios profesionales y de apoyo a la gestión","Contratación directa","Prestación de servicios profesionales y de apoyo a la gestión, o para la ejecución de trabajos artísticos que sólo puedan encomendarse a determinadas personas naturales;","PRESTAR LOS SERVICIOS DE APOYO A LA GESTIÓN PARA EL PROCESO DE RADICACIÓN, NOTIFICACIÓN Y ENTREGA DE LA CORRESPONDENCIA INTERNA Y EXTERNA DE LA ALCALDÍA LOCAL DE LOS MÁRTIRES.","Inversión","Un Nuevo Contrato Social y Ambiental para la Bogotá del Siglo XXI",3,{"$f":"IF(ISERROR(VLOOKUP(K67,Proposito_programa!$C$2:$E$59,2,FALSE)),\" \",VLOOKUP(K67,Proposito_programa!$C$2:$E$59,2,FALSE))","v":"Movilidad social integral"},{"$f":"IF(ISERROR(VLOOKUP(K67,Proposito_programa!$C$2:$E$59,3,FALSE)),\" \",VLOOKUP(K67,Proposito_programa!$C$2:$E$59,3,FALSE))","v":"Propósito 1: Hacer un nuevo contrato social para incrementar la inclusión social, productiva y política"},"133011605570000002099",0,80927834,"PEDRO DAVID GALEANO MARTINEZ","Persona Natural","N/A","N/A","N/A",18960000,null,null,0,18960000,18960000,"2021-02-15","2021-02-24","2021-10-23","8 MESES",null,"N/A",null,null,null,null,null,null,"X",null,1]
["058-2021",2021,"FDLM-CD-058-2021","Abajo puede ver el enlace para cada fase del procedimiento.\n\nNota: Para compartir el enlace, hay que seleccionarlo, copiar y después pegar en la herramienta donde va a transmitir la información.\n\nPresentación de oferta\nhttps://community.secop.gov.co/Public/Tendering/OpportunityDetail/Index?noticeUID=CO1.NTC.1773427&isFromPublicArea=True&isModal=False\n","Contratos de prestación de servicios profesionales y de apoyo a la gestión","Contratación directa","Prestación de servicios profesionales y de apoyo a la gestión, o para la ejecución de trabajos artísticos que sólo puedan encomendarse a determinadas personas naturales;","PRESTAR SERVICIOS PROFESIONALES EN LOS PROYECTOS QUE TIENEN POR OBJETO LA CONSTRUCCIÓN, MANTENIMIENTO Y DOTACIÓN DE PARQUES VECINALES Y/O DE BOLSILLO DE LA LOCALIDAD DE LOS MÁRTIRES.","Inversión","Un Nuevo Contrato Social y Ambiental para la Bogotá del Siglo XXI",3,{"$f":"IF(ISERROR(VLOOKUP(K68,Proposito_programa!$C$2:$E$59,2,FALSE)),\" \",VLOOKUP(K68,Proposito_programa!$C$2:$E$59,2,FALSE))","v":"Movilidad social integral"},{"$f":"IF(ISERROR(VLOOKUP(K68,Proposito_programa!$C$2:$E$59,3,FALSE)),\" \",VLOOKUP(K68,Proposito_programa!$C$2:$E$59,3,FALSE))","v":"Propósito 1: Hacer un nuevo contrato social para incrementar la inclusión social, productiva y política"},"133011602330000002092",0,52384481,"MARYORI PASACHOVA SANCHEZ","Persona Natural","N/A","N/A","N/A",47680000,null,null,0,47680000,47680000,"2021-02-17","2021-02-18","2021-10-17","8 MESES",null,"N/A",null,null,null,null,null,null,"X",null,1]
["059-2021",2021,"FDLM-059-2021 (56388)","https://community.secop.gov.co/Public/Tendering/OpportunityDetail/Index?noticeUID=CO1.NTC.1882612&isFromPublicArea=True&isModal=False\n","Contratos de prestación de servicios profesionales y de apoyo a la gestión","Contratación directa","Prestación de servicios profesionales y de apoyo a la gestión, o para la ejecución de trabajos artísticos que sólo puedan encomendarse a determinadas personas naturales;","PRESTAR LOS SERVICIOS PROFESIONALES PARA ADMINISTRAR LA RED DE VOZ Y DATOS Y EL MANEJO DE LA PLATAFORMA INFORMÁTICA DE LAS DIFERENTES DEPENDENCIAS DE LA ENTIDAD.","Inversión","Un Nuevo Contrato Social y Ambiental para la Bogotá del Siglo XXI",3,{"$f":"IF(ISERROR(VLOOKUP(K69,Proposito_programa!$C$2:$E$59,2,FALSE)),\" \",VLOOKUP(K69,Proposito_programa!$C$2:$E$59,2,FALSE))","v":"Movilidad social integral"},{"$f":"IF(ISERROR(VLOOKUP(K69,Proposito_programa!$C$2:$E$59,3,FALSE)),\" \",VLOOKUP(K69,Proposito_programa!$C$2:$E$59,3,FALSE))","v":"Propósito 1: Hacer un nuevo contrato social para incrementar la inclusión social, productiva y política"},"133011605570000002099",0,80166441,"LUIS MIGUEL LÓPEZ RODRÍGUEZ","Persona Natural","N/A","N/A","N/A",22120000,null,null,0,22120000,22120000,"2021-03-30","2021-04-06","2021-08-05","4 MESES",null,"N/A",null,null,null,null,null,null,"X",null,1]
["060-2021",2021,"FDLM-CD-060-2021","https://community.secop.gov.co/Public/Tendering/OpportunityDetail/Index?noticeUID=CO1.NTC.1788695&isFromPublicArea=True&isModal=False\n","Contratos de prestación de servicios profesionales y de apoyo a la gestión","Contratación directa","Prestación de servicios profesionales y de apoyo a la gestión, o para la ejecución de trabajos artísticos que sólo puedan encomendarse a determinadas personas naturales;","PRESTAR LOS SERVICIOS TÉCNICOS PARA LA OPERACIÓN, SEGUIMIENTO Y CUMPLIMIENTO DE LOS PROCESOS Y PROCEDIMIENTOS DEL SERVICIO SOCIAL APOYOS PARA LA SEGURIDAD ECONÓMICA TIPO C, REQUERIDOS PARA EL OPORTUNO Y ADECUADO REGISTRO, CRUCE Y REPORTE DE LOS DATOS EN EL SISTEMA DE INFORMACIÓN Y REGISTRO DE BENEFICIARIOS, QUE CONTRIBUYAN A LA GARANTÍA DE LOS DERECHOS DE LA POBLACIÓN MAYOR EN EL MARCO DE LA POLÍTICA PÚBLICA SOCIAL PARA EL ENVEJECIMIENTO Y LA VEJEZ EN EL DISTRITO CAPITAL A CARGO DE LA ALCALDÍA.","Inversión","Un Nuevo Contrato Social y Ambiental para la Bogotá del Siglo XXI",3,{"$f":"IF(ISERROR(VLOOKUP(K70,Proposito_programa!$C$2:$E$59,2,FALSE)),\" \",VLOOKUP(K70,Proposito_programa!$C$2:$E$59,2,FALSE))","v":"Movilidad social integral"},{"$f":"IF(ISERROR(VLOOKUP(K70,Proposito_programa!$C$2:$E$59,3,FALSE)),\" \",VLOOKUP(K70,Proposito_programa!$C$2:$E$59,3,FALSE))","v":"Propósito 1: Hacer un nuevo contrato social para incrementar la inclusión social, productiva y política"},"133011601010000002068",0,1026587358,"CRISTIAN ENRIQUE CARPETA RAMIREZ","Persona Natural","N/A","N/A","N/A",25600000,null,null,0,25600000,25600000,"2021-02-22","2021-02-23","2021-10-22","8 MESES",null,"N/A",null,null,null,null,null,null,"X",null,1]
["061-2021",2021,"061-2021 CPS-P (56378)","https://community.secop.gov.co/Public/Tendering/OpportunityDetail/Index?noticeUID=CO1.NTC.1819254&isFromPublicArea=True&isModal=False\n","Contratos de prestación de servicios profesionales y de apoyo a la gestión","Contratación directa","Prestación de servicios profesionales y de apoyo a la gestión, o para la ejecución de trabajos artísticos que sólo puedan encomendarse a determinadas personas naturales;","PRESTAR LOS SERVICIOS PROFESIONALES PARA LA OPERACIÓN, PRESTACIÓN, SEGUIMIENTO Y CUMPLIMIENTO DE LOS PROCEDIMIENTOS ADMINISTRATIVOS, OPERATIVOS Y PROGRAMÁTICOS DEL SERVICIO SOCIAL APOYO ECONÓMICO TIPO C, QUE CONTRIBUYAN A LA GARANTÍA DE LOS DERECHOS DE LA POBLACIÓN MAYOR EN EL MARCO DE LA POLÍTICA PÚBLICA SOCIAL PARA EL ENVEJECIMIENTO Y LA VEJEZ EN EL DISTRITO CAPITAL A CARGO DE LA ALCALDÍA LOCAL.","Inversión","Un Nuevo Contrato Social y Ambiental para la Bogotá del Siglo XXI",3,{"$f":"IF(ISERROR(VLOOKUP(K71,Proposito_programa!$C$2:$E$59,2,FALSE)),\" \",VLOOKUP(K71,Proposito_programa!$C$2:$E$59,2,FALSE))","v":"Movilidad social integral"},{"$f":"IF(ISERROR(VLOOKUP(K71,Proposito_programa!$C$2:$E$59,3,FALSE)),\" \",VLOOKUP(K71,Proposito_programa!$C$2:$E$59,3,FALSE))","v":"Propósito 1: Hacer un nuevo contrato social para incrementar la inclusión social, productiva y política"},"133011601010000002068",0,1072654515,"ALEJANDRA JARAMILLO GONZALEZ","Persona Natural","N/A","N/A","N/A",32000000,null,1,6933333,38933333,38933333,"2021-03-05","2021-03-09","2021-12-31","8 MESES",1,"1  MES Y 23 DIAS",null,null,null,null,null,null,"X",null,1]
["062-2021",2021,"FDLM-CD-062-2021","https://community.secop.gov.co/Public/Tendering/OpportunityDetail/Index?noticeUID=CO1.NTC.1784811&isFromPublicArea=True&isModal=False","Contratos de prestación de servicios profesionales y de apoyo a la gestión","Contratación directa","Prestación de servicios profesionales y de apoyo a la gestión, o para la ejecución de trabajos artísticos que sólo puedan encomendarse a determinadas personas naturales;","PRESTAR LOS SERVICIOS PROFESIONALES PARA LA OPERACIÓN, PRESTACIÓN, SEGUIMIENTO Y CUMPLIMIENTO DE LOS PROCEDIMIENTOS ADMINISTRATIVOS, OPERATIVOS Y PROGRAMÁTICOS DEL SERVICIO SOCIAL APOYO ECONÓMICO TIPO C, QUE CONTRIBUYAN A LA GARANTÍA DE LOS DERECHOS DE LA POBLACIÓN MAYOR EN EL MARCO DE LA POLÍTICA PÚBLICA SOCIAL PARA EL ENVEJECIMIENTO Y LA VEJEZ EN EL DISTRITO CAPITAL A CARGO DE LA ALCALDÍA LOCAL.","Inversión","Un Nuevo Contrato Social y Ambiental para la Bogotá del Siglo XXI",3,{"$f":"IF(ISERROR(VLOOKUP(K72,Proposito_programa!$C$2:$E$59,2,FALSE)),\" \",VLOOKUP(K72,Proposito_programa!$C$2:$E$59,2,FALSE))","v":"Movilidad social integral"},{"$f":"IF(ISERROR(VLOOKUP(K72,Proposito_programa!$C$2:$E$59,3,FALSE)),\" \",VLOOKUP(K72,Proposito_programa!$C$2:$E$59,3,FALSE))","v":"Propósito 1: Hacer un nuevo contrato social para incrementar la inclusión social, productiva y política"},"133011601010000002068",0,1032385912,"CINDY JULIETH NIÑO SABOGAL","Persona Natural","N/A","N/A","N/A",32000000,null,null,0,32000000,32000000,"2021-02-22","2021-02-24","2021-10-23","8 MESES",null,"N/A",null,null,null,null,null,null,"X",null,1]
["063-2021",2021,"FDLM-CD-063-2021","https://community.secop.gov.co/Public/Tendering/OpportunityDetail/Index?noticeUID=CO1.NTC.1783117&isFromPublicArea=True&isModal=False\n","Contratos de prestación de servicios profesionales y de apoyo a la gestión","Contratación directa","Prestación de servicios profesionales y de apoyo a la gestión, o para la ejecución de trabajos artísticos que sólo puedan encomendarse a determinadas personas naturales;","PRESTAR LOS SERVICIOS PROFESIONALES PARA LA OPERACIÓN, PRESTACIÓN, SEGUIMIENTO Y CUMPLIMIENTO DE LOS PROCEDIMIENTOS ADMINISTRATIVOS, OPERATIVOS Y PROGRAMÁTICOS DEL SERVICIO SOCIAL APOYO ECONÓMICO TIPO C, QUE CONTRIBUYAN A LA GARANTÍA DE LOS DERECHOS DE LA POBLACIÓN MAYOR EN EL MARCO DE LA POLÍTICA PÚBLICA SOCIAL PARA EL ENVEJECIMIENTO Y LA VEJEZ EN EL DISTRITO CAPITAL A CARGO DE LA ALCALDÍA LOCAL.","Inversión","Un Nuevo Contrato Social y Ambiental para la Bogotá del Siglo XXI",3,{"$f":"IF(ISERROR(VLOOKUP(K73,Proposito_programa!$C$2:$E$59,2,FALSE)),\" \",VLOOKUP(K73,Proposito_programa!$C$2:$E$59,2,FALSE))","v":"Movilidad social integral"},{"$f":"IF(ISERROR(VLOOKUP(K73,Proposito_programa!$C$2:$E$59,3,FALSE)),\" \",VLOOKUP(K73,Proposito_programa!$C$2:$E$59,3,FALSE))","v":"Propósito 1: Hacer un nuevo contrato social para incrementar la inclusión social, productiva y política"},"133011601010000002068",0,35586873,"LUZ ESTUARD HURTADO LEMUS","Persona Natural","N/A","N/A","N/A",32000000,null,null,0,32000000,32000000,"2021-02-19","2021-02-23","2021-10-22","8 MESES",null,"N/A",1032441350,"SELENE GUERRERO MEDINA","2021-08-23",32000000,null,null,"X",null,1]
["064-2021",2021,"FDLM-CD-064-2021 (55191)","https://community.secop.gov.co/Public/Tendering/OpportunityDetail/Index?noticeUID=CO1.NTC.1801504&isFromPublicArea=True&isModal=False","Contratos de prestación de servicios profesionales y de apoyo a la gestión","Contratación directa","Prestación de servicios profesionales y de apoyo a la gestión, o para la ejecución de trabajos artísticos que sólo puedan encomendarse a determinadas personas naturales;","APOYAR JURÍDICAMENTE LA EJECUCIÓN DE LAS ACCIONES REQUERIDAS PARA LA DEPURACIÓN DE LAS ACTUACIONES ADMINISTRATIVAS QUE CURSAN EN LA ALCALDÍA LOCAL.","Inversión","Un Nuevo Contrato Social y Ambiental para la Bogotá del Siglo XXI",3,{"$f":"IF(ISERROR(VLOOKUP(K74,Proposito_programa!$C$2:$E$59,2,FALSE)),\" \",VLOOKUP(K74,Proposito_programa!$C$2:$E$59,2,FALSE))","v":"Movilidad social integral"},{"$f":"IF(ISERROR(VLOOKUP(K74,Proposito_programa!$C$2:$E$59,3,FALSE)),\" \",VLOOKUP(K74,Proposito_programa!$C$2:$E$59,3,FALSE))","v":"Propósito 1: Hacer un nuevo contrato social para incrementar la inclusión social, productiva y política"},"133011605570000002099",0,51744634,"CLAUDIA PATRICIA LORENZO MEJÍA","Persona Natural","N/A","N/A","N/A",19660000,null,null,0,19660000,19660000,"2021-02-25","2021-03-01","2021-06-30","4 MESES",null,"N/A",null,null,null,null,null,null,"X",null,1]
["065-2021",2021,"FDLM-CD-065-2021 (56953)","https://community.secop.gov.co/Public/Tendering/OpportunityDetail/Index?noticeUID=CO1.NTC.1801392&isFromPublicArea=True&isModal=False\n","Contratos de prestación de servicios profesionales y de apoyo a la gestión","Contratación directa","Prestación de servicios profesionales y de apoyo a la gestión, o para la ejecución de trabajos artísticos que sólo puedan encomendarse a determinadas personas naturales;","PRESTAR LOS SERVICIOS PROFESIONALES PARA LIDERAR LOS ASUNTOS REFERENTES AL ESPACIO PÚBLICO, VENDEDORES INFORMALES EN LA LOCALIDAD DE LOS MÁRTIRES Y ACOMPAÑAMIENTO EN OPERATIVOS IVC.","Inversión","Un Nuevo Contrato Social y Ambiental para la Bogotá del Siglo XXI",3,{"$f":"IF(ISERROR(VLOOKUP(K75,Proposito_programa!$C$2:$E$59,2,FALSE)),\" \",VLOOKUP(K75,Proposito_programa!$C$2:$E$59,2,FALSE))","v":"Movilidad social integral"},{"$f":"IF(ISERROR(VLOOKUP(K75,Proposito_programa!$C$2:$E$59,3,FALSE)),\" \",VLOOKUP(K75,Proposito_programa!$C$2:$E$59,3,FALSE))","v":"Propósito 1: Hacer un nuevo contrato social para incrementar la inclusión social, productiva y política"},"133011605570000002099",0,1102807537,"JOSE MARIA CONDE AREVALO ","Persona Natural","N/A","N/A","N/A",20360000,null,1,10180000,30540000,30540000,"2021-02-25","2021-02-26","2021-08-24","4 MESES",1,"2 MESES",null,null,null,null,null,null,"X",null,1]
["066-2021",2021,"FDLM-CD-066-2021","https://community.secop.gov.co/Public/Tendering/OpportunityDetail/Index?noticeUID=CO1.NTC.1789616&isFromPublicArea=True&isModal=False","Contratos de prestación de servicios profesionales y de apoyo a la gestión","Contratación directa","Prestación de servicios profesionales y de apoyo a la gestión, o para la ejecución de trabajos artísticos que sólo puedan encomendarse a determinadas personas naturales;","APOYAR Y DAR SOPORTE TÉCNICO AL ADMINISTRADOR Y USUARIO FINAL DE LA RED DE SISTEMAS Y TECNOLOGÍA E INFORMACIÓN DE LA ALCALDÍA LOCAL.","Inversión","Un Nuevo Contrato Social y Ambiental para la Bogotá del Siglo XXI",3,{"$f":"IF(ISERROR(VLOOKUP(K76,Proposito_programa!$C$2:$E$59,2,FALSE)),\" \",VLOOKUP(K76,Proposito_programa!$C$2:$E$59,2,FALSE))","v":"Movilidad social integral"},{"$f":"IF(ISERROR(VLOOKUP(K76,Proposito_programa!$C$2:$E$59,3,FALSE)),\" \",VLOOKUP(K76,Proposito_programa!$C$2:$E$59,3,FALSE))","v":"Propósito 1: Hacer un nuevo contrato social para incrementar la inclusión social, productiva y política"},"133011605570000002099",0,79595741,"ALEJANDRO VELASQUEZ LARA","Persona Natural","N/A","N/A","N/A",13340000,null,null,0,13340000,13340000,"2021-02-23","2021-02-25","2021-06-24","4 MESES",null,"N/A",null,null,null,null,null,null,"X",null,1]
["067-2021",2021,"067-2021 CPS-P (56947)","https://community.secop.gov.co/Public/Tendering/OpportunityDetail/Index?noticeUID=CO1.NTC.1819235&isFromPublicArea=True&isModal=False\n","Contratos de prestación de servicios profesionales y de apoyo a la gestión","Contratación directa","Prestación de servicios profesionales y de apoyo a la gestión, o para la ejecución de trabajos artísticos que sólo puedan encomendarse a determinadas personas naturales;","APOYAR JURÍDICAMENTE LA EJECUCIÓN DE ACCIONES REQUERIDAS PARA EL TRÁMITE E IMPULSO PROCESAL DE LAS ACTUACIONES CONTRAVENCIONALES Y/O QUERELLAS QUE CURSEN EN LAS INSPECCIONES DE POLICÍA DE LA LOCALIDAD DE LOS MÁRTIRES.","Inversión","Un Nuevo Contrato Social y Ambiental para la Bogotá del Siglo XXI",3,{"$f":"IF(ISERROR(VLOOKUP(K77,Proposito_programa!$C$2:$E$59,2,FALSE)),\" \",VLOOKUP(K77,Proposito_programa!$C$2:$E$59,2,FALSE))","v":"Movilidad social integral"},{"$f":"IF(ISERROR(VLOOKUP(K77,Proposito_programa!$C$2:$E$59,3,FALSE)),\" \",VLOOKUP(K77,Proposito_programa!$C$2:$E$59,3,FALSE))","v":"Propósito 1: Hacer un nuevo contrato social para incrementar la inclusión social, productiva y política"},"133011605570000002099",0,51921603,"AURA ALICIA INFANTE GARCIA","Persona Natural","N/A","N/A","N/A",19600000,null,1,9800000,29400000,29400000,"2021-03-04","2021-03-08","2021-09-07","4 MESES",1,"2 MESES",null,null,null,null,null,null,"X",null,1]
["068-2021",2021,"FDLM-CD-068-2021 (57117)","https://community.secop.gov.co/Public/Tendering/OpportunityDetail/Index?noticeUID=CO1.NTC.1800039&isFromPublicArea=True&isModal=False\n","Contratos de prestación de servicios profesionales y de apoyo a la gestión","Contratación directa","Prestación de servicios profesionales y de apoyo a la gestión, o para la ejecución de trabajos artísticos que sólo puedan encomendarse a determinadas personas naturales;","PRESTAR SUS SERVICIOS PROFESIONALES ESPECIALIZADOS PARA COORDINAR, LIDERAR Y ASESORAR LOS PLANES Y ESTRATEGIAS DE COMUNICACIONES INTERNAS Y EXTERNAS PARA LA DIVULGACIÓN DE LOS PROGRAMAS, PROYECTOS Y ACTIVIDADES DE LA ALCALDÍA LOCAL.","Inversión","Un Nuevo Contrato Social y Ambiental para la Bogotá del Siglo XXI",3,{"$f":"IF(ISERROR(VLOOKUP(K78,Proposito_programa!$C$2:$E$59,2,FALSE)),\" \",VLOOKUP(K78,Proposito_programa!$C$2:$E$59,2,FALSE))","v":"Movilidad social integral"},{"$f":"IF(ISERROR(VLOOKUP(K78,Proposito_programa!$C$2:$E$59,3,FALSE)),\" \",VLOOKUP(K78,Proposito_programa!$C$2:$E$59,3,FALSE))","v":"Propósito 1: Hacer un nuevo contrato social para incrementar la inclusión social, productiva y política"},"133011605570000002099",0,80032090,"MAURICIO ALEXIS RIVEROS QUINTERO","Persona Natural","N/A","N/A","N/A",32000000,null,1,16000000,48000000,32800000,"2021-02-25","2021-02-25","2021-08-25","4 MESES",1,"2 MESES",null,null,null,null,null,null,"X",null,0.68333333333333335]
["069-2021",2021,"FDMLCD-069-2021 (57223)","https://community.secop.gov.co/Public/Tendering/OpportunityDetail/Index?noticeUID=CO1.NTC.1804917&isFromPublicArea=True&isModal=False","Arrendamiento de bienes inmuebles","Contratación directa","El arrendamiento o adquisición de inmuebles","ENTREGAR AL FONDO DE DESARROLLO LOCAL DE LOS MÁRTIRES A TÍTULO DE ARRENDAMIENTO, EL USO Y GOCE DEL INMUEBLE UBICADO EN EL PISO 06 TORRE PARQUEADEROS DEL CENTRO COMERCIAL MALLPLAZA, PARA EL FUNCIONAMIENTO DE LA SEDE ADMINISTRATIVA DE LA ALCALDÍA LOCAL.","Funcionamiento","Un Nuevo Contrato Social y Ambiental para la Bogotá del Siglo XXI","No aplica",{"$f":"IF(ISERROR(VLOOKUP(K79,Proposito_programa!$C$2:$E$59,2,FALSE)),\" \",VLOOKUP(K79,Proposito_programa!$C$2:$E$59,2,FALSE))","v":" "},{"$f":"IF(ISERROR(VLOOKUP(K79,Proposito_programa!$C$2:$E$59,3,FALSE)),\" \",VLOOKUP(K79,Proposito_programa!$C$2:$E$59,3,FALSE))","v":" "},"131020202020203",0,901120943,"MALLPLAZA SERVICIOS S A S","Persona Jurídica","N/A","N/A","N/A",401259936,null,null,null,401259936,401259936,"2021-02-25","2021-02-25","2021-08-25","4 MESES",null,null,null,null,null,null,null,null,"X",null,1]
["070-2021",2021,"FDLM-CD-070-2021","https://community.secop.gov.co/Public/Tendering/OpportunityDetail/Index?noticeUID=CO1.NTC.1804479&isFromPublicArea=True&isModal=False\n","Contratos de prestación de servicios profesionales y de apoyo a la gestión","Contratación directa","El arrendamiento o adquisición de inmuebles","CONTRATAR EL ARRENDAMIENTO DE UN BIEN INMUEBLE (BODEGA) PARA EL ALMACENAMIENTO Y SALVAGUARDA DE LOS BIENES DE PROPIEDAD DEL FONDO DE DESARROLLO LOCAL DE LOS MÁRTIRES; Y AQUELLOS QUE LLEGASE A SER LEGALMENTE RESPONSABLE.","Funcionamiento","Un Nuevo Contrato Social y Ambiental para la Bogotá del Siglo XXI","No aplica",{"$f":"IF(ISERROR(VLOOKUP(K80,Proposito_programa!$C$2:$E$59,2,FALSE)),\" \",VLOOKUP(K80,Proposito_programa!$C$2:$E$59,2,FALSE))","v":" "},{"$f":"IF(ISERROR(VLOOKUP(K80,Proposito_programa!$C$2:$E$59,3,FALSE)),\" \",VLOOKUP(K80,Proposito_programa!$C$2:$E$59,3,FALSE))","v":" "},"131020202020201",0,21527954,"JULIANA ZAPATA ZULUETA","Persona Natural","N/A","N/A","N/A",23859936,null,null,null,{"$f":"+V80+W80+Y80","v":23859936},73000000,"2021-02-27","2021-03-02","2022-03-01","12 MESES",null,null,null,null,null,null,null,"X",null,null,{"$f":"IF(ISERROR(AA80/Z80),\"-\",(AA80/Z80))","v":3.0595220372762104}]
["070-2021",2021,"FDLM-CD-070-2021","https://community.secop.gov.co/Public/Tendering/OpportunityDetail/Index?noticeUID=CO1.NTC.1804479&isFromPublicArea=True&isModal=False\n","Contratos de prestación de servicios profesionales y de apoyo a la gestión","Contratación directa","El arrendamiento o adquisición de inmuebles","CONTRATAR EL ARRENDAMIENTO DE UN BIEN INMUEBLE (BODEGA) PARA EL ALMACENAMIENTO Y SALVAGUARDA DE LOS BIENES DE PROPIEDAD DEL FONDO DE DESARROLLO LOCAL DE LOS MÁRTIRES; Y AQUELLOS QUE LLEGASE A SER LEGALMENTE RESPONSABLE.","Funcionamiento","Un Nuevo Contrato Social y Ambiental para la Bogotá del Siglo XXI","No aplica",{"$f":"IF(ISERROR(VLOOKUP(K81,Proposito_programa!$C$2:$E$59,2,FALSE)),\" \",VLOOKUP(K81,Proposito_programa!$C$2:$E$59,2,FALSE))","v":" "},{"$f":"IF(ISERROR(VLOOKUP(K81,Proposito_programa!$C$2:$E$59,3,FALSE)),\" \",VLOOKUP(K81,Proposito_programa!$C$2:$E$59,3,FALSE))","v":" "},"131020202020203",0,21527954,"JULIANA ZAPATA ZULUETA","Persona Natural","N/A","N/A","N/A",63740064,null,null,null,{"$f":"+V81+W81+Y81","v":63740064},73000000,"2021-02-27","2021-03-02","2022-03-01","12 MESES",null,null,null,null,null,null,null,"X",null,null,{"$f":"IF(ISERROR(AA81/Z81),\"-\",(AA81/Z81))","v":1.145276540669931}]
["071-2021",2021,"FDLM-PMIC-002-2021","ttps://community.secop.gov.co/Public/Tendering/OpportunityDetail/Index?noticeUID=CO1.NTC.1143122&isFromPublicArea=True&isModal=False\n","Contratos de prestación de servicios profesionales y de apoyo a la gestión","Contratación mínima cuantia","No aplica","CONTRATAR LA PRESTACIÓN DEL SERVICIO PARA LA COMPRA, MANTENIMIENTO Y RE-CARGA DE EXTINTORES DE PROPIEDAD DEL FONDO DE DESARROLLO LOCAL DE LOS MÁRTIRES","Funcionamiento","Un Nuevo Contrato Social y Ambiental para la Bogotá del Siglo XXI","No aplica",{"$f":"IF(ISERROR(VLOOKUP(K82,Proposito_programa!$C$2:$E$59,2,FALSE)),\" \",VLOOKUP(K82,Proposito_programa!$C$2:$E$59,2,FALSE))","v":" "},{"$f":"IF(ISERROR(VLOOKUP(K82,Proposito_programa!$C$2:$E$59,3,FALSE)),\" \",VLOOKUP(K82,Proposito_programa!$C$2:$E$59,3,FALSE))","v":" "},"1310201010103",0,900276396,"MEGASERVICE GVM LTDA","Persona Jurídica","N/A","N/A","N/A",1027565,null,null,null,1027565,1027565,"2021-03-03","2021-03-25","2021-04-22","1 MES",null,null,null,null,null,null,null,null,"X",null,1]
["072-2021",2021,"FDLM-PMIC-001-2021","https://community.secop.gov.co/Public/Tendering/OpportunityDetail/Index?noticeUID=CO1.NTC.1779000&isFromPublicArea=True&isModal=False\n","Suministro","Contratación mínima cuantia","No aplica","SUMINISTRO DE ELEMENTOS DE PAPELERÍA Y ÚTILES DE OFICINA PARA ATENDER LAS NECESIDADES DE LOS DI-FERENTES GRUPOS DE TRABAJO QUE CONFORMAN LA ALCALDÍA LOCAL DE LOS MARTIRES, A MONTO AGOTABLE Y PRECIOS UNITARIOS CONFORME LA PROPUESTA PRE-SENTADA Y LAS CARACTERÍSTICAS Y ESPECIFICACIONES SEÑALADAS EN LOS ESTUDIOS PREVIOS Y ANEXO TECNICO","Funcionamiento","Un Nuevo Contrato Social y Ambiental para la Bogotá del Siglo XXI","No aplica",{"$f":"IF(ISERROR(VLOOKUP(K83,Proposito_programa!$C$2:$E$59,2,FALSE)),\" \",VLOOKUP(K83,Proposito_programa!$C$2:$E$59,2,FALSE))","v":" "},{"$f":"IF(ISERROR(VLOOKUP(K83,Proposito_programa!$C$2:$E$59,3,FALSE)),\" \",VLOOKUP(K83,Proposito_programa!$C$2:$E$59,3,FALSE))","v":" "},"1310202010202",0,830006800,"SISTEMAS Y DISTRIBUCIONES FORMACON SAS","Persona Jurídica","N/A","N/A","N/A",20000000,null,null,null,20000000,20000000,"2021-03-02","2021-03-12","2021-09-11","6 MESES",null,null,null,null,null,null,null,null,"X",null,1]
["073-2021",2021,"FDLM-CD-073-2021 (56947)","https://community.secop.gov.co/Public/Tendering/OpportunityDetail/Index?noticeUID=CO1.NTC.1825122&isFromPublicArea=True&isModal=False\n","Contratos de prestación de servicios profesionales y de apoyo a la gestión","Contratación directa","Prestación de servicios profesionales y de apoyo a la gestión, o para la ejecución de trabajos artísticos que sólo puedan encomendarse a determinadas personas naturales;","APOYAR JURÍDICAMENTE LA EJECUCIÓN DE ACCIONES REQUERIDAS PARA EL TRÁMITE E IMPULSO PROCESAL DE LAS ACTUACIONES CONTRAVENCIONALES Y/O QUERELLAS QUE CURSEN EN LAS INSPECCIONES DE POLICÍA DE LA LOCALIDAD DE LOS MÁRTIRES.","Inversión","Un Nuevo Contrato Social y Ambiental para la Bogotá del Siglo XXI",3,{"$f":"IF(ISERROR(VLOOKUP(K84,Proposito_programa!$C$2:$E$59,2,FALSE)),\" \",VLOOKUP(K84,Proposito_programa!$C$2:$E$59,2,FALSE))","v":"Movilidad social integral"},{"$f":"IF(ISERROR(VLOOKUP(K84,Proposito_programa!$C$2:$E$59,3,FALSE)),\" \",VLOOKUP(K84,Proposito_programa!$C$2:$E$59,3,FALSE))","v":"Propósito 1: Hacer un nuevo contrato social para incrementar la inclusión social, productiva y política"},"133011605570000002099",0,1007539578,"JUAN PABLO TORRES ALVAREZ","Persona Natural","N/A","N/A","N/A",19600000,null,1,9800000,29400000,12900000,"2021-03-06","2021-03-10","2021-09-09","4 MESES",1,"2 MESES",null,null,null,null,null,null,"X",null,0.43877551020408162]
["074-2021",2021,"074-2021 CPS-P (57422)","https://community.secop.gov.co/Public/Tendering/OpportunityDetail/Index?noticeUID=CO1.NTC.1817546&isFromPublicArea=True&isModal=Fals","Contratos de prestación de servicios profesionales y de apoyo a la gestión","Contratación directa","Prestación de servicios profesionales y de apoyo a la gestión, o para la ejecución de trabajos artísticos que sólo puedan encomendarse a determinadas personas naturales;","PRESTAR SERVICIOS PROFESIONALES EN LOS PROYECTOS QUE TIENEN POR OBJETO LA CONSTRUCCIÓN, REHABILITACIÓN Y MANTENIMIENTO DE LA INFRAESTRUCTURA VIAL Y ESPACIO PÚBLICO DE LA LOCALIDAD DE LOS MÁRTIRES.","Inversión","Un Nuevo Contrato Social y Ambiental para la Bogotá del Siglo XXI",3,{"$f":"IF(ISERROR(VLOOKUP(K85,Proposito_programa!$C$2:$E$59,2,FALSE)),\" \",VLOOKUP(K85,Proposito_programa!$C$2:$E$59,2,FALSE))","v":"Movilidad social integral"},{"$f":"IF(ISERROR(VLOOKUP(K85,Proposito_programa!$C$2:$E$59,3,FALSE)),\" \",VLOOKUP(K85,Proposito_programa!$C$2:$E$59,3,FALSE))","v":"Propósito 1: Hacer un nuevo contrato social para incrementar la inclusión social, productiva y política"},"133011604490000002097",0,79785438,"JAIME HERNAN VILLALBA VARGAS","Persona Natural","N/A","N/A","N/A",47680000,null,null,0,47680000,46885333,"2021-03-03","2021-03-05","2021-11-04","8 MESES",null,"N/A",null,null,null,null,null,null,"X",null,0.98333332634228188]
["075-2021",2021,"FDLM-CD-075-2021 (57608)","https://community.secop.gov.co/Public/Tendering/OpportunityDetail/Index?noticeUID=CO1.NTC.1825412&isFromPublicArea=True&isModal=False","Contratos de prestación de servicios profesionales y de apoyo a la gestión","Contratación directa","Prestación de servicios profesionales y de apoyo a la gestión, o para la ejecución de trabajos artísticos que sólo puedan encomendarse a determinadas personas naturales;","APOYAR ASISTENCIALMENTE A EL (LA) ALCALDE(SA) LOCAL EN RELACIÓN CON SEGURIDAD CIUDADANA, CONVIVENCIA Y PREVENCIÓN DE CONFLICTIVIDADES, VIOLENCIAS Y DELITOS EN LA LOCALIDAD.","Inversión","Un Nuevo Contrato Social y Ambiental para la Bogotá del Siglo XXI",3,{"$f":"IF(ISERROR(VLOOKUP(K86,Proposito_programa!$C$2:$E$59,2,FALSE)),\" \",VLOOKUP(K86,Proposito_programa!$C$2:$E$59,2,FALSE))","v":"Movilidad social integral"},{"$f":"IF(ISERROR(VLOOKUP(K86,Proposito_programa!$C$2:$E$59,3,FALSE)),\" \",VLOOKUP(K86,Proposito_programa!$C$2:$E$59,3,FALSE))","v":"Propósito 1: Hacer un nuevo contrato social para incrementar la inclusión social, productiva y política"},"133011603430000002083",0,1014291719,"JESSICA LORENA GOMEZ PARDO","Persona Natural","N/A","N/A","N/A",18960000,null,null,0,18960000,18960000,"2021-03-08","2021-03-10","2021-11-09","8 MESES",null,"N/A",null,null,null,null,null,null,"X",null,1]
["076-2021",2021,"FDLM-CD-076-2021 (57606)","https://community.secop.gov.co/Public/Tendering/OpportunityDetail/Index?noticeUID=CO1.NTC.1825558&isFromPublicArea=True&isModal=False\n","Contratos de prestación de servicios profesionales y de apoyo a la gestión","Contratación directa","Prestación de servicios profesionales y de apoyo a la gestión, o para la ejecución de trabajos artísticos que sólo puedan encomendarse a determinadas personas naturales;","PRESTAR LOS SERVICIOS COMO APOYO ADMINISTRATIVO Y ASISTENCIAL EN EL ÁREA GESTIÓN DEL DESARROLLO, ADMINISTRATIVA Y FINANZAS, A LOS PROFESIONALES QUE DESARROLLAN OBLIGACIONES DE OBRAS DE INFRAESTRUCTURA (MALLA VIAL, PARQUES Y ESTABILIDAD).","Inversión","Un Nuevo Contrato Social y Ambiental para la Bogotá del Siglo XXI",3,{"$f":"IF(ISERROR(VLOOKUP(K87,Proposito_programa!$C$2:$E$59,2,FALSE)),\" \",VLOOKUP(K87,Proposito_programa!$C$2:$E$59,2,FALSE))","v":"Movilidad social integral"},{"$f":"IF(ISERROR(VLOOKUP(K87,Proposito_programa!$C$2:$E$59,3,FALSE)),\" \",VLOOKUP(K87,Proposito_programa!$C$2:$E$59,3,FALSE))","v":"Propósito 1: Hacer un nuevo contrato social para incrementar la inclusión social, productiva y política"},"133011604490000002097",0,1026297121,"PAULA ANDREA RODRÍGUEZ BURGOS.","Persona Natural","N/A","N/A","N/A",15000000,null,null,0,15000000,15000000,"2021-03-08","2021-03-12","2021-09-11","6 MESES",null,"N/A",null,null,null,null,null,null,"X",null,1]
["077-2021",2021,"FDLM-SABMC-0001-2021","https://community.secop.gov.co/Public/Tendering/OpportunityDetail/Index?noticeUID=CO1.NTC.1837845&isFromPublicArea=True&isModal=False\n","Contratos de prestación de servicios profesionales y de apoyo a la gestión","Contratación directa","No aplica","LA PRESTACIÓN DEL SERVICIO DE VIGILANCIA Y SEGURIDAD PRIVADA INCLUIDO MEDIOS TECNOLOGICOS, PARA LOS PREDIOS DE PROPIEDAD Y/O TENENCIA DE LA ALCALDÍA LOCAL DE LOS MÁRTIRES, DE CONFORMIDAD CON LAS ESPECIFICACIONES ESTABLECIDAS EN EL DOCUMENTO DE CONDICIONES ESPECIALES, SEGÚN EL PROCEDIMIENTO ESTABLECIDO EN EL REGLAMENTO DE FUNCIONAMIENTO Y OPERACIÓN DE LA BOLSA PARA EL MERCADO DE COMPRAS PÚBLICAS – MCP- DE LA BOLSA MERCANTIL DE COLOMBIA S.A.","Funcionamiento","Un Nuevo Contrato Social y Ambiental para la Bogotá del Siglo XXI","No aplica",{"$f":"IF(ISERROR(VLOOKUP(K88,Proposito_programa!$C$2:$E$59,2,FALSE)),\" \",VLOOKUP(K88,Proposito_programa!$C$2:$E$59,2,FALSE))","v":" "},{"$f":"IF(ISERROR(VLOOKUP(K88,Proposito_programa!$C$2:$E$59,3,FALSE)),\" \",VLOOKUP(K88,Proposito_programa!$C$2:$E$59,3,FALSE))","v":" "},"131020202030501",0,805000867,"CORREAGRO S.A.","Persona Jurídica","N/A","N/A","N/A",204835071,null,1,83769651,288604722,174835071,"2021-03-11","2021-03-23","2022-02-07","7 MESES Y 15 DIAS HASTA AGOTAR RECURSOS",1,"3 MESES",null,null,null,null,null,"X",null,null,0.60579421496783414]
["078-2021",2021,"FDLM-096-2021 (57758)","https://community.secop.gov.co/Public/Tendering/OpportunityDetail/Index?noticeUID=CO1.NTC.1900796&isFromPublicArea=True&isModal=False","Contratos de prestación de servicios profesionales y de apoyo a la gestión","Contratación directa","Prestación de servicios profesionales y de apoyo a la gestión, o para la ejecución de trabajos artísticos que sólo puedan encomendarse a determinadas personas naturales;","PRESTAR SUS SERVICIOS PROFESIONALES AL FONDO DE DESARROLLO LOCAL DE LOS MÁRTIRES PARA EL DISEÑO, LA IMPLEMENTACIÓN, APOYO AL SEGUIMIENTO Y EVALUACIÓN DE LOS PROYECTOS DE INVERSIÓN, PROYECTOS ESTRATEGICOS Y PROYECTOS PARTICIPATIVOS PARA LA REACTIVACIÓN ECÓNOMICA Y EL EMPRENDIMIENTO DE LA LOCALIDAD EN CUMPLIMIENTO DEL PLAN DE DESARROLLO DISTRITAL Y LOCAL","Inversión","Un Nuevo Contrato Social y Ambiental para la Bogotá del Siglo XXI",3,{"$f":"IF(ISERROR(VLOOKUP(K89,Proposito_programa!$C$2:$E$59,2,FALSE)),\" \",VLOOKUP(K89,Proposito_programa!$C$2:$E$59,2,FALSE))","v":"Movilidad social integral"},{"$f":"IF(ISERROR(VLOOKUP(K89,Proposito_programa!$C$2:$E$59,3,FALSE)),\" \",VLOOKUP(K89,Proposito_programa!$C$2:$E$59,3,FALSE))","v":"Propósito 1: Hacer un nuevo contrato social para incrementar la inclusión social, productiva y política"},"133011601060000002060",0,53009898,"LADY ANDREA FEO MAHECHA","Persona Natural","N/A","N/A","N/A",36000000,null,null,0,36000000,36000000,"2021-03-18","2021-03-26","2022-01-25","10 MESES",null,"N/A",null,null,null,null,null,null,"X",null,1]
["079-2021",2021,"FDLM-079-2021 (57480)","https://community.secop.gov.co/Public/Tendering/OpportunityDetail/Index?noticeUID=CO1.NTC.1851917&isFromPublicArea=True&isModal=False","Contratos de prestación de servicios profesionales y de apoyo a la gestión","Contratación directa","Prestación de servicios profesionales y de apoyo a la gestión, o para la ejecución de trabajos artísticos que sólo puedan encomendarse a determinadas personas naturales;","EL CONTRATISTA SE OBLIGA CON EL FONDO DE DESARROLLO LOCAL DE LOS MÁRTIRES A PRESTAR SUS SERVICIOS DE APOYO A LA GESTION TERRITORIAL EN LOS TEMAS DE SEGURIDAD Y CONVIVENCIA CIUDADANA; EN EL MARCO DEL PROYECTO 2083 “ATENCIÓN A MOVILIZACIONES Y AGLOMERACIONES”.","Inversión","Un Nuevo Contrato Social y Ambiental para la Bogotá del Siglo XXI",3,{"$f":"IF(ISERROR(VLOOKUP(K90,Proposito_programa!$C$2:$E$59,2,FALSE)),\" \",VLOOKUP(K90,Proposito_programa!$C$2:$E$59,2,FALSE))","v":"Movilidad social integral"},{"$f":"IF(ISERROR(VLOOKUP(K90,Proposito_programa!$C$2:$E$59,3,FALSE)),\" \",VLOOKUP(K90,Proposito_programa!$C$2:$E$59,3,FALSE))","v":"Propósito 1: Hacer un nuevo contrato social para incrementar la inclusión social, productiva y política"},"133011603430000002083",0,72140467,"JAVIER ENRIQUE GUZMAN CAMARGO","Persona Natural","N/A","N/A","N/A",25000000,null,null,0,25000000,22083333,"2021-03-16","2021-03-23","2022-01-22","10 MESES",null,"N/A",null,null,null,null,null,null,"X",null,0.88333331999999998]
["080-2021",2021,"080-2021 CPS-AG (57480)","https://community.secop.gov.co/Public/Tendering/OpportunityDetail/Index?noticeUID=CO1.NTC.1846643&isFromPublicArea=True&isModal=False","Contratos de prestación de servicios profesionales y de apoyo a la gestión","Contratación directa","Prestación de servicios profesionales y de apoyo a la gestión, o para la ejecución de trabajos artísticos que sólo puedan encomendarse a determinadas personas naturales;","EL CONTRATISTA SE OBLIGA CON EL FONDO DE DESARROLLO LOCAL DE LOS MÁRTIRES A PRESTAR SUS SERVICIOS DE APOYO A LA GESTION TERRITORIAL EN LOS TEMAS DE SEGURIDAD Y CONVIVENCIA CIUDADANA; EN EL MARCO DEL PROYECTO 2083 “ATENCIÓN A MOVILIZACIONES Y AGLOMERACIONES","Inversión","Un Nuevo Contrato Social y Ambiental para la Bogotá del Siglo XXI",3,{"$f":"IF(ISERROR(VLOOKUP(K91,Proposito_programa!$C$2:$E$59,2,FALSE)),\" \",VLOOKUP(K91,Proposito_programa!$C$2:$E$59,2,FALSE))","v":"Movilidad social integral"},{"$f":"IF(ISERROR(VLOOKUP(K91,Proposito_programa!$C$2:$E$59,3,FALSE)),\" \",VLOOKUP(K91,Proposito_programa!$C$2:$E$59,3,FALSE))","v":"Propósito 1: Hacer un nuevo contrato social para incrementar la inclusión social, productiva y política"},"133011603430000002083",0,1022341132,"JEFFREY DARIO GOMEZ GALVAN","Persona Natural","N/A","N/A","N/A",25000000,null,null,0,25000000,22333332,"2021-03-16","2021-03-26","2022-01-25","10 MESES",null,"N/A",null,null,null,null,null,null,"X",null,0.89333328000000001]
["081-2021",2021,"FDLM-CD-081-2021 (57480)","https://community.secop.gov.co/Public/Tendering/OpportunityDetail/Index?noticeUID=CO1.NTC.1845940&isFromPublicArea=True&isModal=False\n","Contratos de prestación de servicios profesionales y de apoyo a la gestión","Contratación directa","Prestación de servicios profesionales y de apoyo a la gestión, o para la ejecución de trabajos artísticos que sólo puedan encomendarse a determinadas personas naturales;","EL CONTRATISTA SE OBLIGA CON EL FONDO DE DESARROLLO LOCAL DE LOS MÁRTIRES A PRESTAR SUS SERVICIOS DE APOYO A LA GESTIÓN TERRITORIAL EN LOS TEMAS DE SEGURIDAD Y CONVIVENCIA CIUDADANA; EN EL MARCO DEL PROYECTO 2083 “ATENCIÓN A MOVILIZACIONES Y AGLOMERACIONES”","Inversión","Un Nuevo Contrato Social y Ambiental para la Bogotá del Siglo XXI",3,{"$f":"IF(ISERROR(VLOOKUP(K92,Proposito_programa!$C$2:$E$59,2,FALSE)),\" \",VLOOKUP(K92,Proposito_programa!$C$2:$E$59,2,FALSE))","v":"Movilidad social integral"},{"$f":"IF(ISERROR(VLOOKUP(K92,Proposito_programa!$C$2:$E$59,3,FALSE)),\" \",VLOOKUP(K92,Proposito_programa!$C$2:$E$59,3,FALSE))","v":"Propósito 1: Hacer un nuevo contrato social para incrementar la inclusión social, productiva y política"},"133011603430000002083",0,1013618655,"FABIO ANDRES SOLORZA CORRALES","Persona Natural","N/A","N/A","N/A",25000000,null,null,0,25000000,22083333,"2021-03-16","2021-03-23","2022-01-22","10 MESES",null,"N/A",null,null,null,null,null,null,"X",null,0.88333331999999998]
["082-2021",2021,"082-2021 CPS-AG (57480)","https://community.secop.gov.co/Public/Tendering/OpportunityDetail/Index?noticeUID=CO1.NTC.1846971&isFromPublicArea=True&isModal=False\n","Contratos de prestación de servicios profesionales y de apoyo a la gestión","Contratación directa","Prestación de servicios profesionales y de apoyo a la gestión, o para la ejecución de trabajos artísticos que sólo puedan encomendarse a determinadas personas naturales;","EL CONTRATISTA SE OBLIGA CON EL FONDO DE DESARROLLO LOCAL DE LOS MARTIRES A PRESTAR SUS SERVICIOS DE APOYO A LA GESTION TERRITORIAL EN LOS TEMAS DE SEGURIDAD Y CONVIVENCIA CIUDADANA EN EL MARCO DEL PROYECTO 2083 ATENCIÓN A MOVILIZACIONES Y AGLOMERACIONES","Inversión","Un Nuevo Contrato Social y Ambiental para la Bogotá del Siglo XXI",3,{"$f":"IF(ISERROR(VLOOKUP(K93,Proposito_programa!$C$2:$E$59,2,FALSE)),\" \",VLOOKUP(K93,Proposito_programa!$C$2:$E$59,2,FALSE))","v":"Movilidad social integral"},{"$f":"IF(ISERROR(VLOOKUP(K93,Proposito_programa!$C$2:$E$59,3,FALSE)),\" \",VLOOKUP(K93,Proposito_programa!$C$2:$E$59,3,FALSE))","v":"Propósito 1: Hacer un nuevo contrato social para incrementar la inclusión social, productiva y política"},"133011603430000002083",0,1018429480,"GINNA MARCELA CISNEROS PÁEZ","Persona Natural","N/A","N/A","N/A",25000000,null,null,0,25000000,22333332,"2021-03-16","2021-03-26","2022-01-25","10 MESES",null,"N/A",null,null,null,null,null,null,"X",null,0.89333328000000001]
["083-2021",2021,"FDLMCD-083-2021 (57480)","https://community.secop.gov.co/Public/Tendering/OpportunityDetail/Index?noticeUID=CO1.NTC.1855651&isFromPublicArea=True&isModal=False\n","Contratos de prestación de servicios profesionales y de apoyo a la gestión","Contratación directa","Prestación de servicios profesionales y de apoyo a la gestión, o para la ejecución de trabajos artísticos que sólo puedan encomendarse a determinadas personas naturales;","EL CONTRATISTA SE OBLIGA CON EL FONDO DE DESARROLLO LOCAL DE LOS MÁRTIRES A PRESTAR SUS SERVICIOS DE APOYO A LA GESTION TERRITORIAL EN LOS TEMAS DE SEGURIDAD Y CONVIVENCIA CIUDADANA; EN EL MARCO DEL PROYECTO 2083 “ATENCIÓN A MOVILIZACIONES Y AGLOMERACIONES","Inversión","Un Nuevo Contrato Social y Ambiental para la Bogotá del Siglo XXI",3,{"$f":"IF(ISERROR(VLOOKUP(K94,Proposito_programa!$C$2:$E$59,2,FALSE)),\" \",VLOOKUP(K94,Proposito_programa!$C$2:$E$59,2,FALSE))","v":"Movilidad social integral"},{"$f":"IF(ISERROR(VLOOKUP(K94,Proposito_programa!$C$2:$E$59,3,FALSE)),\" \",VLOOKUP(K94,Proposito_programa!$C$2:$E$59,3,FALSE))","v":"Propósito 1: Hacer un nuevo contrato social para incrementar la inclusión social, productiva y política"},"133011603430000002083",0,1022428142,"ANDRES MATEO GOMEZ RAMOS","Persona Natural","N/A","N/A","N/A",25000000,null,null,0,25000000,22083333,"2021-03-30","2021-04-07","2022-02-06","10 MESES",null,"N/A",null,null,null,null,null,null,"X",null,0.88333331999999998]
["084-2021",2021,"FDLM-CD-084-2021 (57480)","https://community.secop.gov.co/Public/Tendering/OpportunityDetail/Index?noticeUID=CO1.NTC.1872097&isFromPublicArea=True&isModal=False\n","Contratos de prestación de servicios profesionales y de apoyo a la gestión","Contratación directa","Prestación de servicios profesionales y de apoyo a la gestión, o para la ejecución de trabajos artísticos que sólo puedan encomendarse a determinadas personas naturales;","EL CONTRATISTA SE OBLIGA CON EL FONDO DE DESARROLLO LOCAL DE LOS MÁRTIRES A PRESTAR SUS SERVICIOS DE APOYO A LA GESTION TERRITORIAL EN LOS TEMAS DE SEGURIDAD Y CONVIVENCIA CIUDADANA; EN EL MARCO DEL PROYECTO 2083 “ATENCIÓN A MOVILIZACIONES Y AGLOMERACIONES","Inversión","Un Nuevo Contrato Social y Ambiental para la Bogotá del Siglo XXI",3,{"$f":"IF(ISERROR(VLOOKUP(K95,Proposito_programa!$C$2:$E$59,2,FALSE)),\" \",VLOOKUP(K95,Proposito_programa!$C$2:$E$59,2,FALSE))","v":"Movilidad social integral"},{"$f":"IF(ISERROR(VLOOKUP(K95,Proposito_programa!$C$2:$E$59,3,FALSE)),\" \",VLOOKUP(K95,Proposito_programa!$C$2:$E$59,3,FALSE))","v":"Propósito 1: Hacer un nuevo contrato social para incrementar la inclusión social, productiva y política"},"133011603430000002083",0,1017240452,"JULIANA LONDOÑO BOTERO","Persona Natural","N/A","N/A","N/A",25000000,null,null,0,25000000,21166666,"2021-03-17","2021-03-24","2021-07-23","4 MESES",null,"N/A",null,null,null,null,null,null,"X",null,0.84666664000000003]
["085-2021",2021,"FDLMCD-085-2021 (55191)","https://community.secop.gov.co/Public/Tendering/OpportunityDetail/Index?noticeUID=CO1.NTC.1850278&isFromPublicArea=True&isModal=False","Contratos de prestación de servicios profesionales y de apoyo a la gestión","Contratación directa","Prestación de servicios profesionales y de apoyo a la gestión, o para la ejecución de trabajos artísticos que sólo puedan encomendarse a determinadas personas naturales;","APOYAR JURÍDICAMENTE LA EJECUCIÓN DE LAS ACCIONES REQUERIDAS PARA LA DEPURACIÓN DE LAS ACTUACIONES ADMINISTRATIVAS QUE CURSAN EN LA ALCALDÍA LOCAL.","Inversión","Un Nuevo Contrato Social y Ambiental para la Bogotá del Siglo XXI",3,{"$f":"IF(ISERROR(VLOOKUP(K96,Proposito_programa!$C$2:$E$59,2,FALSE)),\" \",VLOOKUP(K96,Proposito_programa!$C$2:$E$59,2,FALSE))","v":"Movilidad social integral"},{"$f":"IF(ISERROR(VLOOKUP(K96,Proposito_programa!$C$2:$E$59,3,FALSE)),\" \",VLOOKUP(K96,Proposito_programa!$C$2:$E$59,3,FALSE))","v":"Propósito 1: Hacer un nuevo contrato social para incrementar la inclusión social, productiva y política"},"133011605570000002099",0,1014263010,"KAREN JIMENA BURBANO MORENO","Persona Natural","N/A","N/A","N/A",19660000,null,1,{"$f":"8722000","v":8722000},28382000,19500000,"2021-03-16","2021-03-18","2021-09-17","4 MESES",1,"2 MESES",null,null,null,null,null,null,"X",null,0.68705517581565778]
["086-2021",2021,"DFLMCD-086-2021 (57191)","https://community.secop.gov.co/Public/Tendering/OpportunityDetail/Index?noticeUID=CO1.NTC.1849758&isFromPublicArea=True&isModal=False\n","Contratos de prestación de servicios profesionales y de apoyo a la gestión","Contratación directa","Prestación de servicios profesionales y de apoyo a la gestión, o para la ejecución de trabajos artísticos que sólo puedan encomendarse a determinadas personas naturales;","APOYAR JURÍDICAMENTE LA EJECUCIÓN DE LAS ACCIONES REQUERIDAS PARA LA DEPURACIÓN DE LAS ACTUACIONES ADMINISTRATIVAS QUE CURSAN EN LA ALCALDÍA LOCAL.","Inversión","Un Nuevo Contrato Social y Ambiental para la Bogotá del Siglo XXI",3,{"$f":"IF(ISERROR(VLOOKUP(K97,Proposito_programa!$C$2:$E$59,2,FALSE)),\" \",VLOOKUP(K97,Proposito_programa!$C$2:$E$59,2,FALSE))","v":"Movilidad social integral"},{"$f":"IF(ISERROR(VLOOKUP(K97,Proposito_programa!$C$2:$E$59,3,FALSE)),\" \",VLOOKUP(K97,Proposito_programa!$C$2:$E$59,3,FALSE))","v":"Propósito 1: Hacer un nuevo contrato social para incrementar la inclusión social, productiva y política"},"133011605570000002099",0,1022380775,"SHARON PAULETT BERNAL AGUDELO","Persona Natural","N/A","N/A","N/A",17444000,null,null,0,17444000,17444000,"2021-03-24","2021-03-26","2022-01-25","10 MESES",null,"N/A",null,null,null,null,null,null,"X",null,1]
["087-2021",2021,"FDLM-087-2021 (57480)","https://community.secop.gov.co/Public/Tendering/OpportunityDetail/Index?noticeUID=CO1.NTC.1851784&isFromPublicArea=True&isModal=False","Contratos de prestación de servicios profesionales y de apoyo a la gestión","Contratación directa","Prestación de servicios profesionales y de apoyo a la gestión, o para la ejecución de trabajos artísticos que sólo puedan encomendarse a determinadas personas naturales;","EL CONTRATISTA SE OBLIGA CON EL FONDO DE DESARROLLO LOCAL DE LOS MÁRTIRES A PRESTAR SUS SERVICIOS DE APOYO A LA GESTION TERRITORIAL EN LOS TEMAS DE SEGURIDAD Y CONVIVENCIA CIUDADANA; EN EL MARCO DEL PROYECTO 2083 “ATENCIÓN A MOVILIZACIONES Y AGLOMERACIONES”.","Inversión","Un Nuevo Contrato Social y Ambiental para la Bogotá del Siglo XXI",3,{"$f":"IF(ISERROR(VLOOKUP(K98,Proposito_programa!$C$2:$E$59,2,FALSE)),\" \",VLOOKUP(K98,Proposito_programa!$C$2:$E$59,2,FALSE))","v":"Movilidad social integral"},{"$f":"IF(ISERROR(VLOOKUP(K98,Proposito_programa!$C$2:$E$59,3,FALSE)),\" \",VLOOKUP(K98,Proposito_programa!$C$2:$E$59,3,FALSE))","v":"Propósito 1: Hacer un nuevo contrato social para incrementar la inclusión social, productiva y política"},"133011603430000002083",0,1030689971,"MIGUEL ALEXANDER CELY HERNNADEZ","Persona Natural","N/A","N/A","N/A",25000000,null,1,7350000,32350000,22083333,"2021-03-19","2021-03-25","2021-08-09","3 MESES",1,"45 DIAS",null,null,null,null,null,null,"X",null,0.68263780525502316]
["088-2021",2021,"FDLM-088-2021 CPS-P (56949)","https://community.secop.gov.co/Public/Tendering/OpportunityDetail/Index?noticeUID=CO1.NTC.1856386&isFromPublicArea=True&isModal=False","Contratos de prestación de servicios profesionales y de apoyo a la gestión","Contratación directa","Prestación de servicios profesionales y de apoyo a la gestión, o para la ejecución de trabajos artísticos que sólo puedan encomendarse a determinadas personas naturales;","APOYAR TÉCNICAMENTE LAS DISTINTAS ETAPAS DE LOS PROCESOS DE COMPETENCIA DE LAS INSPECCIONES DE POLICÍA DE LA LOCALIDAD, SEGÚN REPARTO.","Inversión","Un Nuevo Contrato Social y Ambiental para la Bogotá del Siglo XXI",3,{"$f":"IF(ISERROR(VLOOKUP(K99,Proposito_programa!$C$2:$E$59,2,FALSE)),\" \",VLOOKUP(K99,Proposito_programa!$C$2:$E$59,2,FALSE))","v":"Movilidad social integral"},{"$f":"IF(ISERROR(VLOOKUP(K99,Proposito_programa!$C$2:$E$59,3,FALSE)),\" \",VLOOKUP(K99,Proposito_programa!$C$2:$E$59,3,FALSE))","v":"Propósito 1: Hacer un nuevo contrato social para incrementar la inclusión social, productiva y política"},"133011605570000002099",0,79487850,"CARLOS ALBERTO OLARTE AVILA","Persona Natural","N/A","N/A","N/A",14700000,null,null,0,14700000,9800000,"2021-03-18","2021-03-23","2021-09-23","6 MESES",null,"N/A",null,null,null,null,null,null,"X",null,0.66666666666666663]
["089-2021",2021,"FDLM-CD-089-2021 (57193)","https://community.secop.gov.co/Public/Tendering/OpportunityDetail/Index?noticeUID=CO1.NTC.1856423&isFromPublicArea=True&isModal=False\n","Contratos de prestación de servicios profesionales y de apoyo a la gestión","Contratación directa","Prestación de servicios profesionales y de apoyo a la gestión, o para la ejecución de trabajos artísticos que sólo puedan encomendarse a determinadas personas naturales;","PRESTAR LOS SERVICIOS DE APOYO ADMINISTRATIVO AL ÁREA DE GESTIÓN POLICIVA Y JURÍDICA DE LA ALCALDÍA LOCAL DE LOS MÁRTIRES.","Inversión","Un Nuevo Contrato Social y Ambiental para la Bogotá del Siglo XXI",3,{"$f":"IF(ISERROR(VLOOKUP(K100,Proposito_programa!$C$2:$E$59,2,FALSE)),\" \",VLOOKUP(K100,Proposito_programa!$C$2:$E$59,2,FALSE))","v":"Movilidad social integral"},{"$f":"IF(ISERROR(VLOOKUP(K100,Proposito_programa!$C$2:$E$59,3,FALSE)),\" \",VLOOKUP(K100,Proposito_programa!$C$2:$E$59,3,FALSE))","v":"Propósito 1: Hacer un nuevo contrato social para incrementar la inclusión social, productiva y política"},"133011605570000002099",0,1127356929,"PAULA ANDREA PEÑALOZA CAMARGO","Persona Natural","N/A","N/A","N/A",15300000,null,null,0,15300000,980000,"2021-03-23","2021-03-24","2021-09-23","6 MESES",null,"N/A",null,null,null,null,null,null,"X",null,6.4052287581699341E-2]
["090-2021",2021,"FDLM-CD-AG 090-2021 (57193)","https://community.secop.gov.co/Public/Tendering/OpportunityDetail/Index?noticeUID=CO1.NTC.1860445&isFromPublicArea=True&isModal=False","Contratos de prestación de servicios profesionales y de apoyo a la gestión","Contratación directa","Prestación de servicios profesionales y de apoyo a la gestión, o para la ejecución de trabajos artísticos que sólo puedan encomendarse a determinadas personas naturales;","PRESTAR SERVICIOS DE APOYO ADMINISTRATIVO AL ÁREA DE GESTIÓN POLICIVA Y JURÍDICA DE LA ALCALDÍA LOCAL DE LOS MÁRTIRES.","Inversión","Un Nuevo Contrato Social y Ambiental para la Bogotá del Siglo XXI",3,{"$f":"IF(ISERROR(VLOOKUP(K101,Proposito_programa!$C$2:$E$59,2,FALSE)),\" \",VLOOKUP(K101,Proposito_programa!$C$2:$E$59,2,FALSE))","v":"Movilidad social integral"},{"$f":"IF(ISERROR(VLOOKUP(K101,Proposito_programa!$C$2:$E$59,3,FALSE)),\" \",VLOOKUP(K101,Proposito_programa!$C$2:$E$59,3,FALSE))","v":"Propósito 1: Hacer un nuevo contrato social para incrementar la inclusión social, productiva y política"},"133011605570000002099",0,51716306,"ROSALBA TOLEDO","Persona Natural","N/A","N/A","N/A",15300000,null,null,0,15300000,7600000,"2021-03-23","2021-03-24","2021-09-23","6 MESES",null,"N/A",null,null,null,null,null,null,"X",null,0.49673202614379086]
["091-2021",2021,"FDLM-PMIC-003-2021","https://community.secop.gov.co/Public/Tendering/OpportunityDetail/Index?noticeUID=CO1.NTC.1839652&isFromPublicArea=True&isModal=False\n","Contratos de prestación de servicios","Contratación mínima cuantia","No aplica","PRESTACIÓN DEL SERVICIO PARA EL MANTENIMIENTO PREVENTIVO Y CORRECTIVO INCLUIDA MANO DE OBRA Y EL SUMINISTRO DE REPUESTOS Y ACCESORIOS, PARA LOS VEHÍCULOS QUE INTEGRAN EL PARQUE AUTOMOTOR DEL FONDO DE DESARROLLO LOCAL DE MÁRTIRES, ASÍ COMO DE LOS VEHÍCULOS POR LOS CUÁLES LLEGARE A SER RESPONSABLE DURANTE LA VIGENCIA DEL CONTRATO","Funcionamiento","Un Nuevo Contrato Social y Ambiental para la Bogotá del Siglo XXI","No aplica",{"$f":"IF(ISERROR(VLOOKUP(K102,Proposito_programa!$C$2:$E$59,2,FALSE)),\" \",VLOOKUP(K102,Proposito_programa!$C$2:$E$59,2,FALSE))","v":" "},{"$f":"IF(ISERROR(VLOOKUP(K102,Proposito_programa!$C$2:$E$59,3,FALSE)),\" \",VLOOKUP(K102,Proposito_programa!$C$2:$E$59,3,FALSE))","v":" "},"131020202030604",0,900274811," EYM COMPANY SAS","Persona Natural","N/A","N/A","N/A",25000000,null,null,null,25000000,25000000,"2021-03-29","2021-02-07","2022-02-07","10 MESES",null,null,null,null,null,null,null,null,"X",null,1]
["092-2021",2021,"FDLM-CD-092-2021 (57193)","https://community.secop.gov.co/Public/Tendering/OpportunityDetail/Index?noticeUID=CO1.NTC.1872324&isFromPublicArea=True&isModal=False","Contratos de prestación de servicios profesionales y de apoyo a la gestión","Contratación directa","Prestación de servicios profesionales y de apoyo a la gestión, o para la ejecución de trabajos artísticos que sólo puedan encomendarse a determinadas personas naturales;","PRESTAR SERVICIOS DE APOYO ADMINISTRATIVO AL ÁREA DE GESTIÓN POLICIVA Y JURÍDICA DE LA ALCALDÍA LOCAL DE LOS MÁRTIRES.","Inversión","Un Nuevo Contrato Social y Ambiental para la Bogotá del Siglo XXI",3,{"$f":"IF(ISERROR(VLOOKUP(K103,Proposito_programa!$C$2:$E$59,2,FALSE)),\" \",VLOOKUP(K103,Proposito_programa!$C$2:$E$59,2,FALSE))","v":"Movilidad social integral"},{"$f":"IF(ISERROR(VLOOKUP(K103,Proposito_programa!$C$2:$E$59,3,FALSE)),\" \",VLOOKUP(K103,Proposito_programa!$C$2:$E$59,3,FALSE))","v":"Propósito 1: Hacer un nuevo contrato social para incrementar la inclusión social, productiva y política"},"133011605570000002099",0,52466772,"LUX MARINELA FORERO CHIGUAZUQUE","Persona Natural","N/A","N/A","N/A",15300000,null,null,0,15300000,9300000,"2021-03-26","2021-04-05","2021-10-04","6 MESES",null,"N/A",null,null,null,null,null,null,"X",null,0.60784313725490191]
["093-2021",2021,"FDLM-_CD-093-2021 (57040)","https://community.secop.gov.co/Public/Tendering/OpportunityDetail/Index?noticeUID=CO1.NTC.1898877&isFromPublicArea=True&isModal=False","Contratos de prestación de servicios profesionales y de apoyo a la gestión","Contratación directa","Prestación de servicios profesionales y de apoyo a la gestión, o para la ejecución de trabajos artísticos que sólo puedan encomendarse a determinadas personas naturales;","EL CONTRATO QUE SE PRETENDE CELEBRAR, TENDRÁ POR OBJETO “APOYAR LA FORMULACIÓN, EJECUCIÓN, SEGUIMIENTO Y MEJORA CONTINUA DE LAS HERRAMIENTAS QUE CONFORMAN LA GESTIÓN AMBIENTAL INSTITUCIONAL DE LA ALCALDÍA LOCAL.","Inversión","Un Nuevo Contrato Social y Ambiental para la Bogotá del Siglo XXI",3,{"$f":"IF(ISERROR(VLOOKUP(K104,Proposito_programa!$C$2:$E$59,2,FALSE)),\" \",VLOOKUP(K104,Proposito_programa!$C$2:$E$59,2,FALSE))","v":"Movilidad social integral"},{"$f":"IF(ISERROR(VLOOKUP(K104,Proposito_programa!$C$2:$E$59,3,FALSE)),\" \",VLOOKUP(K104,Proposito_programa!$C$2:$E$59,3,FALSE))","v":"Propósito 1: Hacer un nuevo contrato social para incrementar la inclusión social, productiva y política"},"133011605570000002099",0,1030526489,"DIEGO JAVIER FORERO ORTIZ","Persona Natural","N/A","N/A","N/A",19600000,null,null,0,19600000,19600000,"2021-04-09","2021-04-19","2021-10-18","4 MESES",null,"N/A",null,null,null,null,null,null,"X",null,1]
["094-2021",2021,"FDLM-CD-094-2021 (57213)","https://community.secop.gov.co/Public/Tendering/OpportunityDetail/Index?noticeUID=CO1.NTC.1898666&isFromPublicArea=True&isModal=False","Contratos de prestación de servicios profesionales y de apoyo a la gestión","Contratación directa","Prestación de servicios profesionales y de apoyo a la gestión, o para la ejecución de trabajos artísticos que sólo puedan encomendarse a determinadas personas naturales;","PRESTAR SUS SERVICIOS PROFESIONALES AL FONDO DE DESARROLLO LOCAL DE LOS MÁRTIRES PARA EL ACOMPAÑAMIENTO A LA ESTRATEGIA CONSTRUCTORES LOCALES, DISEÑO, LA IMPLEMENTACIÓN, APOYO AL SEGUIMIENTO Y EVALUACIÓN DE LOS PROYECTOS DE INVERSIÓN, PROYECTOS ESTRATÉGICOS Y PROYECTOS PARTICIPATIVOS PARA LA REACTIVACIÓN ECONÓMICA Y EL EMPRENDIMIENTO DE LA LOCALIDAD EN CUMPLIMIENTO DEL PLAN DE DESARROLLO DISTRITAL Y LOCAL.","Inversión","Un Nuevo Contrato Social y Ambiental para la Bogotá del Siglo XXI",3,{"$f":"IF(ISERROR(VLOOKUP(K105,Proposito_programa!$C$2:$E$59,2,FALSE)),\" \",VLOOKUP(K105,Proposito_programa!$C$2:$E$59,2,FALSE))","v":"Movilidad social integral"},{"$f":"IF(ISERROR(VLOOKUP(K105,Proposito_programa!$C$2:$E$59,3,FALSE)),\" \",VLOOKUP(K105,Proposito_programa!$C$2:$E$59,3,FALSE))","v":"Propósito 1: Hacer un nuevo contrato social para incrementar la inclusión social, productiva y política"},"133011605570000002099",0,79443949,"JORGE ERNESTO MONTOYA URIBE ","Persona Natural","N/A","N/A","N/A",30000000,null,null,0,30000000,24000000,"2021-04-08","2021-04-12","2021-10-11","6 MESES",null,"N/A",37549001,"ANA MARIA SERRANO ZAMORA","2021-05-06",30000000,null,null,"X",null,0.8]
["095-2021 OC 69234",2021,"OC 69234","https://www.colombiacompra.gov.co/tienda-virtual-del-estado-colombiano/ordenes-compra/69234","Compraventa de bienes muebles","Selección abreviada","No aplica","COMPRAVENTA DE LICENCIAS A TRAVÉS DE LA PLATAFORMA DE LA TIENDA VIRTUAL DEL ESTADO COLOMBIANO POR INSTRUMENTO DE AGREGACIÓN DE DEMANDA PARA LA ADQUISICIÓN DE SOFTWARE POR CATÁLOGO QUE REQUIERAN LAS ENTIDADES ESTATALES CCE 139-IAD-2020","Funcionamiento","Un Nuevo Contrato Social y Ambiental para la Bogotá del Siglo XXI","No aplica",{"$f":"IF(ISERROR(VLOOKUP(K106,Proposito_programa!$C$2:$E$59,2,FALSE)),\" \",VLOOKUP(K106,Proposito_programa!$C$2:$E$59,2,FALSE))","v":" "},{"$f":"IF(ISERROR(VLOOKUP(K106,Proposito_programa!$C$2:$E$59,3,FALSE)),\" \",VLOOKUP(K106,Proposito_programa!$C$2:$E$59,3,FALSE))","v":" "},"1310201010105",0,901374618,"UNION TEMPORAL NIMBIT","Unión Temporal",901356559,"COMERCIALIZADORA F.F. SAS",90,35959000,null,null,0,35959000,35959000,"2021-05-18","N/A","2021-07-18","2 MESES",null,"N/A",null,null,null,null,null,null,"X",null,1]
["096-2021",2021,"FDLM-PMIC-004-2021","https://community.secop.gov.co/Public/Tendering/OpportunityDetail/Index?noticeUID=CO1.NTC.1890483&isFromPublicArea=True&isModal=False\n","Contratos de prestación de servicios","Contratación mínima cuantia","No aplica","PRESTACIÓN DEL SERVICIO INTEGRAL DE ALQUILER DE IMPRESORAS LÁSER MULTIFUNCIONALES PARA EL FUNCIONAMIENTO DE JUNTA ADMINISTRADORA LOCAL Y DE LAS DISTINTAS ÁREAS DE LA ALCALDÍA LOCAL DE LOS MÁRTIRES.","Funcionamiento","Un Nuevo Contrato Social y Ambiental para la Bogotá del Siglo XXI","No aplica",{"$f":"IF(ISERROR(VLOOKUP(K107,Proposito_programa!$C$2:$E$59,2,FALSE)),\" \",VLOOKUP(K107,Proposito_programa!$C$2:$E$59,2,FALSE))","v":" "},{"$f":"IF(ISERROR(VLOOKUP(K107,Proposito_programa!$C$2:$E$59,3,FALSE)),\" \",VLOOKUP(K107,Proposito_programa!$C$2:$E$59,3,FALSE))","v":" "},"131020202030501",0,830053669,"SOLUTION COPY LTDA","Persona Jurídica","N/A","N/A","N/A",25000000,null,null,0,25000000,25000000,"2021-04-08","2021-04-13","2021-12-12","8 MESES",null,"N/A",null,null,null,null,null,null,"X",null,1]
["097-2021",2021,"FDLM-PMIC-005-2021","https://community.secop.gov.co/Public/Tendering/OpportunityDetail/Index?noticeUID=CO1.NTC.1894507&isFromPublicArea=True&isModal=False\n","Contratos de prestación de servicios","Contratación mínima cuantia","No aplica","PRESTAR LOS SERVICIOS LOGÍSTICOS PARA LA REALIZACIÓN DE LA AUDIENCIA PÚBLICA DE RENDICIÓN DE CUENTAS DE LA VIGENCIA 2020 PARA LA LOCALIDAD DE LOS MÁRTIRES.","Funcionamiento","Un Nuevo Contrato Social y Ambiental para la Bogotá del Siglo XXI","No aplica",{"$f":"IF(ISERROR(VLOOKUP(K108,Proposito_programa!$C$2:$E$59,2,FALSE)),\" \",VLOOKUP(K108,Proposito_programa!$C$2:$E$59,2,FALSE))","v":" "},{"$f":"IF(ISERROR(VLOOKUP(K108,Proposito_programa!$C$2:$E$59,3,FALSE)),\" \",VLOOKUP(K108,Proposito_programa!$C$2:$E$59,3,FALSE))","v":" "},"133011605570000002099",0,80085650,"JORGE AURELIO  MONTERROZA  BARRIOS","Persona Natural","N/A","N/A","N/A",6679748,null,null,0,6679748,5800000,"2021-04-14","2021-05-12","2021-06-11","30 DIAS",null,"N/A",null,null,null,null,null,null,"X",null,0.86829622913918314]
["OC 65912",2021,"OC 65912","https://www.colombiacompra.gov.co/tienda-virtual-del-estado-colombiano/ordenes-compra/?number_order=65912&state=&entity=&tool=&date_to&date_from","Compraventa de bienes muebles","Contratación directa","No aplica","ORDEN DE COMPRA POR ACUERDO MARCO DE PRECIOS PARA ADQUIRIR LOS SERVICIOS DE ASEO Y CAFETERIA FDLM.","Funcionamiento","Un Nuevo Contrato Social y Ambiental para la Bogotá del Siglo XXI","No aplica",{"$f":"IF(ISERROR(VLOOKUP(K109,Proposito_programa!$C$2:$E$59,2,FALSE)),\" \",VLOOKUP(K109,Proposito_programa!$C$2:$E$59,2,FALSE))","v":" "},{"$f":"IF(ISERROR(VLOOKUP(K109,Proposito_programa!$C$2:$E$59,3,FALSE)),\" \",VLOOKUP(K109,Proposito_programa!$C$2:$E$59,3,FALSE))","v":" "},"131020202030501",0,830068543,"MUNDOLIMPIEZA LTDA","Persona Jurídica","N/A","N/A","N/A",73765489,null,1,14234511,88000000,88000000,"2021-03-19","2021-03-19","2022-03-22","10 MESES",1,"2 MESES",null,null,null,null,null,null,"X",null,1]
["CI-098-2021",2021,"FDLM-PMIC-007-2021","https://community.secop.gov.co/Public/Tendering/OpportunityDetail/Index?noticeUID=CO1.NTC.1971295&isFromPublicArea=True&isModal=False","Interventoría","Contratación mínima cuantia","No aplica","CONTRATAR LA INTERVENTORÍA ADMINISTRATIVA, TÉCNICA Y FINANCIERA A LA EJECUCIÓN DEL CONVENIO INTERADMINISTRATIVO QUE SE SUSCRIBA ENTRE EL FONDO DE DESARROLLO LOCAL DE LOS MÁRTIRES Y LA SUBRED INTEGRADA DE SERVICIOS DE SALUD CENTRO ORIENTE E.S.E.","Funcionamiento","Un Nuevo Contrato Social y Ambiental para la Bogotá del Siglo XXI","No aplica",{"$f":"IF(ISERROR(VLOOKUP(K110,Proposito_programa!$C$2:$E$59,2,FALSE)),\" \",VLOOKUP(K110,Proposito_programa!$C$2:$E$59,2,FALSE))","v":" "},{"$f":"IF(ISERROR(VLOOKUP(K110,Proposito_programa!$C$2:$E$59,3,FALSE)),\" \",VLOOKUP(K110,Proposito_programa!$C$2:$E$59,3,FALSE))","v":" "},"133011601060000002043",0,39576229,"\tMONICA NATALIA BASTIDAS CUENCA","Persona Natural","N/A","N/A","N/A",20000000,null,null,null,20000000,12000000,"2021-05-25","2021-06-01","2022-01-31","8 MESES",null,null,null,null,null,null,null,null,"X",null,0.6]
["099-2021",2021,"FDLM-CD-P-099-2021 (58771)","https://community.secop.gov.co/Public/Tendering/OpportunityDetail/Index?noticeUID=CO1.NTC.2008140&isFromPublicArea=True&isModal=False","Contratos de prestación de servicios profesionales y de apoyo a la gestión","Contratación directa","Prestación de servicios profesionales y de apoyo a la gestión, o para la ejecución de trabajos artísticos que sólo puedan encomendarse a determinadas personas naturales;","PRESTAR LOS SERVICIOS PROFESIONALES COMO APOYO EN LA REALIZACIÓN DE ACUERDOS QUE PROMUEVAN LA CONVIVENCIA ARMÓNICA ENTRE LA CIUDADANÍA Y LOS VENDEDORES INFORMALES Y ESTACIONARIOS, LA PARTICIPACIÓN DE LA POBLACIÓN VULNERABLE GENERANDO EMPRENDIMIENTOS FORMALIZADOS QUE COADYUVEN AL DESARROLLO ECONÓMICO Y PRODUCTIVO DE ESTA POBLACIÓN Y LOGRAR LA VINCULACIÓN DE LOS HABITANTES DE LA LOCALIDAD EN PROGRAMAS QUE MOTIVEN EL USO DEL ESPACIO PÚBLICO CON FINES CULTURALES, DEPORTIVOS, RECREACIONALES O DE MERC.","Inversión","Un Nuevo Contrato Social y Ambiental para la Bogotá del Siglo XXI",3,{"$f":"IF(ISERROR(VLOOKUP(K111,Proposito_programa!$C$2:$E$59,2,FALSE)),\" \",VLOOKUP(K111,Proposito_programa!$C$2:$E$59,2,FALSE))","v":"Movilidad social integral"},{"$f":"IF(ISERROR(VLOOKUP(K111,Proposito_programa!$C$2:$E$59,3,FALSE)),\" \",VLOOKUP(K111,Proposito_programa!$C$2:$E$59,3,FALSE))","v":"Propósito 1: Hacer un nuevo contrato social para incrementar la inclusión social, productiva y política"},"133011603450000002080",0,1014187715,"DIANA KATHERINE CANCINO NIÑO","Persona Natural","N/A","N/A","N/A",35000000,null,null,0,35000000,17833333,"2021-06-01","2021-07-01","2022-01-30","7 MESES",null,"N/A",1033716552,"JHON FREDY MENDEZ SOLAQUE","2021-09-10",35000000,null,null,"X",null,0.50952379999999997]
["100-2021",2021,"FDLM-CD-P-100-2021 (58772)","https://community.secop.gov.co/Public/Tendering/OpportunityDetail/Index?noticeUID=CO1.NTC.2012326&isFromPublicArea=True&isModal=False","Contratos de prestación de servicios profesionales y de apoyo a la gestión","Contratación directa","Prestación de servicios profesionales y de apoyo a la gestión, o para la ejecución de trabajos artísticos que sólo puedan encomendarse a determinadas personas naturales;","PRESTAR LOS SERVICIOS PROFESIONALES COMO APOYO EN LA REALIZACIÓN DE ACUERDOS QUE PROMUEVAN LA CONVIVENCIA ARMÓNICA ENTRE LA CIUDADANÍA Y LOS VENDEDORES INFORMALES Y ESTACIONARIOS, LA PARTICIPACIÓN DE LA POBLACIÓN VULNERABLE GENERANDO EMPRENDIMIENTOS FORMALIZADOS QUE COADYUVEN AL DESARROLLO ECONÓMICO Y PRODUCTIVO DE ESTA POBLACIÓN Y LOGRAR LA VINCULACIÓN DE LOS HABITANTES DE LA LOCALIDAD EN PROGRAMAS QUE MOTIVEN EL USO ADECUADO DE LOS MEDIOS DE TRANSPORTE NO MOTORIZADOS, POR MEDIO DE LA PROMOCIÓN.","Inversión","Un Nuevo Contrato Social y Ambiental para la Bogotá del Siglo XXI",3,{"$f":"IF(ISERROR(VLOOKUP(K112,Proposito_programa!$C$2:$E$59,2,FALSE)),\" \",VLOOKUP(K112,Proposito_programa!$C$2:$E$59,2,FALSE))","v":"Movilidad social integral"},{"$f":"IF(ISERROR(VLOOKUP(K112,Proposito_programa!$C$2:$E$59,3,FALSE)),\" \",VLOOKUP(K112,Proposito_programa!$C$2:$E$59,3,FALSE))","v":"Propósito 1: Hacer un nuevo contrato social para incrementar la inclusión social, productiva y política"},"133011603450000002080",0,1136885879,"ALVARO ERNESTO MORENO CASTILLEJO","Persona Natural","N/A","N/A","N/A",35000000,null,null,0,35000000,17833333,"2021-06-02","2021-07-01","2022-01-30","7 MESES",null,"N/A",null,null,null,null,null,null,"X",null,0.50952379999999997]
["101-2021",2021,"FDLM-CD-101-2021 (58771)","https://community.secop.gov.co/Public/Tendering/OpportunityDetail/Index?noticeUID=CO1.NTC.2012371&isFromPublicArea=True&isModal=False","Contratos de prestación de servicios profesionales y de apoyo a la gestión","Contratación directa","Prestación de servicios profesionales y de apoyo a la gestión, o para la ejecución de trabajos artísticos que sólo puedan encomendarse a determinadas personas naturales;","PRESTAR LOS SERVICIOS PROFESIONALES COMO APOYO EN LA REALIZACIÓN DE ACUERDOS QUE PROMUEVAN LA CONVIVENCIA ARMÓNICA ENTRE LA CIUDADANÍA Y LOS VENDEDORES INFORMALES Y ESTACIONARIOS, LA PARTICIPACIÓN DE LA POBLACIÓN VULNERABLE GENERANDO EMPRENDIMIENTOS FORMALIZADOS QUE COADYUVEN AL DESARROLLO ECONÓMICO Y PRODUCTIVO DE ESTA POBLACIÓN Y LOGRAR LA VINCULACIÓN DE LOS HABITANTES DE LA LOCALIDAD EN PROGRAMAS QUE MOTIVEN EL USO DEL ESPACIO PÚBLICO CON FINES CULTURALES, DEPORTIVOS, RECREACIONALES O DE MERC","Inversión","Un Nuevo Contrato Social y Ambiental para la Bogotá del Siglo XXI",3,{"$f":"IF(ISERROR(VLOOKUP(K113,Proposito_programa!$C$2:$E$59,2,FALSE)),\" \",VLOOKUP(K113,Proposito_programa!$C$2:$E$59,2,FALSE))","v":"Movilidad social integral"},{"$f":"IF(ISERROR(VLOOKUP(K113,Proposito_programa!$C$2:$E$59,3,FALSE)),\" \",VLOOKUP(K113,Proposito_programa!$C$2:$E$59,3,FALSE))","v":"Propósito 1: Hacer un nuevo contrato social para incrementar la inclusión social, productiva y política"},"133011603450000002080",0,1022338424,"DIANA PILAR PARADA ESPINOSA","Persona Natural","N/A","N/A","N/A",35000000,null,null,0,35000000,25000000,"2021-06-02","2021-07-01","2022-01-30","7 MESES",null,"N/A",null,null,null,null,null,null,"X",null,0.7142857142857143]
["102-2021",2021,"FDLM-CD-102-2021 (58771)","https://community.secop.gov.co/Public/Tendering/OpportunityDetail/Index?noticeUID=CO1.NTC.2036188&isFromPublicArea=True&isModal=False","Contratos de prestación de servicios profesionales y de apoyo a la gestión","Contratación directa","Prestación de servicios profesionales y de apoyo a la gestión, o para la ejecución de trabajos artísticos que sólo puedan encomendarse a determinadas personas naturales;","PRESTAR LOS SERVICIOS PROFESIONALES COMO APOYO EN LA REALIZACIÓN DE ACUERDOS QUE PROMUEVAN LA CONVIVENCIA ARMÓNICA ENTRE LA CIUDADANÍA Y LOS VENDEDORES INFORMALES Y ESTACIONARIOS, LA PARTICIPACIÓN DE LA POBLACIÓN VULNERABLE GENERANDO EMPRENDIMIENTOS FORMALIZADOS QUE COADYUVEN AL DESARROLLO ECONÓMICO Y PRODUCTIVO DE ESTA POBLACIÓN Y LOGRAR LA VINCULACIÓN DE LOS HABITANTES DE LA LOCALIDAD EN PROGRAMAS QUE MOTIVEN EL USO DEL ESPACIO PÚBLICO CON FINES CULTURALES, DEPORTIVOS, RECREACIONALES O DE MERC","Inversión","Un Nuevo Contrato Social y Ambiental para la Bogotá del Siglo XXI",3,{"$f":"IF(ISERROR(VLOOKUP(K114,Proposito_programa!$C$2:$E$59,2,FALSE)),\" \",VLOOKUP(K114,Proposito_programa!$C$2:$E$59,2,FALSE))","v":"Movilidad social integral"},{"$f":"IF(ISERROR(VLOOKUP(K114,Proposito_programa!$C$2:$E$59,3,FALSE)),\" \",VLOOKUP(K114,Proposito_programa!$C$2:$E$59,3,FALSE))","v":"Propósito 1: Hacer un nuevo contrato social para incrementar la inclusión social, productiva y política"},"133011603450000002080",0,52855391,"SANDRA PATRICIA LADINO CLAVIJO","Persona Natural","N/A","N/A","N/A",35000000,null,null,0,35000000,25000000,"2021-06-29","2021-07-01","2022-01-30","7 MESES",null,"N/A",null,null,null,null,null,null,"X",null,0.7142857142857143]
["103-2021",2021,"FDLM-CD-103-2021 (58772)","https://community.secop.gov.co/Public/Tendering/OpportunityDetail/Index?noticeUID=CO1.NTC.2037140&isFromPublicArea=True&isModal=False","Contratos de prestación de servicios profesionales y de apoyo a la gestión","Contratación directa","Prestación de servicios profesionales y de apoyo a la gestión, o para la ejecución de trabajos artísticos que sólo puedan encomendarse a determinadas personas naturales;","PRESTAR LOS SERVICIOS PROFESIONALES COMO APOYO EN LA REALIZACIÓN DE ACUERDOS QUE PROMUEVAN LA CONVIVENCIA ARMÓNICA ENTRE LA CIUDADANÍA Y LOS VENDEDORES INFORMALES Y ESTACIONARIOS, LA PARTICIPACIÓN DE LA POBLACIÓN VULNERABLE GENERANDO EMPRENDIMIENTOS FORMALIZADOS QUE COADYUVEN AL DESARROLLO ECONÓMICO Y PRODUCTIVO DE ESTA POBLACIÓN Y LOGRAR LA VINCULACIÓN DE LOS HABITANTES DE LA LOCALIDAD EN PROGRAMAS QUE MOTIVEN EL USO ADECUADO DE LOS MEDIOS DE TRANSPORTE NO MOTORIZADOS, POR MEDIO DE LA PROMOCIÓN.","Inversión","Un Nuevo Contrato Social y Ambiental para la Bogotá del Siglo XXI",3,{"$f":"IF(ISERROR(VLOOKUP(K115,Proposito_programa!$C$2:$E$59,2,FALSE)),\" \",VLOOKUP(K115,Proposito_programa!$C$2:$E$59,2,FALSE))","v":"Movilidad social integral"},{"$f":"IF(ISERROR(VLOOKUP(K115,Proposito_programa!$C$2:$E$59,3,FALSE)),\" \",VLOOKUP(K115,Proposito_programa!$C$2:$E$59,3,FALSE))","v":"Propósito 1: Hacer un nuevo contrato social para incrementar la inclusión social, productiva y política"},"133011603450000002080",0,1023934492,"ANA CATALINA MEDINA SALAMANCA","Persona Natural","N/A","N/A","N/A",35000000,null,null,0,35000000,25000000,"2021-06-21","2021-07-01","2022-01-30","7 MESES",null,"N/A",null,null,null,null,null,null,"X",null,0.7142857142857143]
["104-2021",2021,"FDLM-CD-104-2021 (58772)","https://community.secop.gov.co/Public/Tendering/OpportunityDetail/Index?noticeUID=CO1.NTC.2044800&isFromPublicArea=True&isModal=False","Contratos de prestación de servicios profesionales y de apoyo a la gestión","Contratación directa","Prestación de servicios profesionales y de apoyo a la gestión, o para la ejecución de trabajos artísticos que sólo puedan encomendarse a determinadas personas naturales;","PRESTAR LOS SERVICIOS PROFESIONALES COMO APOYO EN LA REALIZACIÓN DE ACUERDOS QUE PROMUEVAN LA CONVIVENCIA ARMÓNICA ENTRE LA CIUDADANÍA Y LOS VENDEDORES INFORMALES Y ESTACIONARIOS, LA PARTICIPACIÓN DE LA POBLACIÓN VULNERABLE GENERANDO EMPRENDIMIENTOS FORMALIZADOS QUE COADYUVEN AL DESARROLLO ECONÓMICO Y PRODUCTIVO DE ESTA POBLACIÓN Y LOGRAR LA VINCULACIÓN DE LOS HABITANTES DE LA LOCALIDAD EN PROGRAMAS QUE MOTIVEN EL USO ADECUADO DE LOS MEDIOS DE TRANSPORTE NO MOTORIZADOS, POR MEDIO DE LA PROMOCIÓN.","Inversión","Un Nuevo Contrato Social y Ambiental para la Bogotá del Siglo XXI",3,{"$f":"IF(ISERROR(VLOOKUP(K116,Proposito_programa!$C$2:$E$59,2,FALSE)),\" \",VLOOKUP(K116,Proposito_programa!$C$2:$E$59,2,FALSE))","v":"Movilidad social integral"},{"$f":"IF(ISERROR(VLOOKUP(K116,Proposito_programa!$C$2:$E$59,3,FALSE)),\" \",VLOOKUP(K116,Proposito_programa!$C$2:$E$59,3,FALSE))","v":"Propósito 1: Hacer un nuevo contrato social para incrementar la inclusión social, productiva y política"},"133011603450000002080",0,38286243,"EGNA MARIA CORREA DIAZ","Persona Natural","N/A","N/A","N/A",35000000,null,null,0,35000000,25000000,"2021-06-22","2021-07-01","2022-01-30","7 MESES",null,"N/A",null,null,null,null,null,null,"X",null,0.7142857142857143]
["\t\nCI-02-2021",2021,"FDLM-CI-002-2021","21-22-27594 (SECOP I)","Convenios de apoyo y/o convenios de asociación ","Contratación directa","Prestación de servicios profesionales y de apoyo a la gestión, o para la ejecución de trabajos artísticos que sólo puedan encomendarse a determinadas personas naturales;","EL CONVENIO QUE SE PRETENDE CELEBRAR TENDRÁ POR OBJETO “AUNAR ESFUERZOS TÉCNICOS,  ADMINISTRATIVOS Y FINANCIEROS CON EL FIN DE DESARROLLAR ACCIONES ARTICULADAS ENTRE LAS PARTES ORIENTADAS A FOMENTAR LA GENERACIÓN Y CIRCULACIÓN DE BIENES Y SERVICIOS CULTURALES, ARTÍSTICOS Y PATRIMONIALES, ASÍ COMO AL FORTALECIMIENTO DE LOS AGENTES DE ESTOS SECTORES EN LAS LOCALIDADES DEL DISTRITO CAPITAL DE ACUERDO CON LOS PROYECTOS PRESENTADOS A LOS FONDOS DE DESARROLLO LOCAL DE MÁRTIRES Y DE SANTAFÉ EN EL MARCO DEL PROGRAMA \"ES CULTURA LOCAL 2021.","Inversión","Un Nuevo Contrato Social y Ambiental para la Bogotá del Siglo XXI",3,{"$f":"IF(ISERROR(VLOOKUP(K117,Proposito_programa!$C$2:$E$59,2,FALSE)),\" \",VLOOKUP(K117,Proposito_programa!$C$2:$E$59,2,FALSE))","v":"Movilidad social integral"},{"$f":"IF(ISERROR(VLOOKUP(K117,Proposito_programa!$C$2:$E$59,3,FALSE)),\" \",VLOOKUP(K117,Proposito_programa!$C$2:$E$59,3,FALSE))","v":"Propósito 1: Hacer un nuevo contrato social para incrementar la inclusión social, productiva y política"},"133011601210000002070",0,899999061,"SECRETARIA DE EDUCACION DEL DISTRITO","Persona Jurídica","N/A","N/A","N/A",211100000,null,null,null,211100000,211100000,"2021-07-02","2021-07-02","2021-12-31","179 DIAS",null,null,null,null,null,null,null,null,"X",null,1]
["\t\nCI-02-2021",2021,"FDLM-CI-002-2021","21-22-27594 (SECOP I)","Convenios de apoyo y/o convenios de asociación ","Contratación directa","Prestación de servicios profesionales y de apoyo a la gestión, o para la ejecución de trabajos artísticos que sólo puedan encomendarse a determinadas personas naturales;","EL CONVENIO QUE SE PRETENDE CELEBRAR TENDRÁ POR OBJETO “AUNAR ESFUERZOS TÉCNICOS,  ADMINISTRATIVOS Y FINANCIEROS CON EL FIN DE DESARROLLAR ACCIONES ARTICULADAS ENTRE LAS PARTES ORIENTADAS A FOMENTAR LA GENERACIÓN Y CIRCULACIÓN DE BIENES Y SERVICIOS CULTURALES, ARTÍSTICOS Y PATRIMONIALES, ASÍ COMO AL FORTALECIMIENTO DE LOS AGENTES DE ESTOS SECTORES EN LAS LOCALIDADES DEL DISTRITO CAPITAL DE ACUERDO CON LOS PROYECTOS PRESENTADOS A LOS FONDOS DE DESARROLLO LOCAL DE MÁRTIRES Y DE SANTAFÉ EN EL MARCO DEL PROGRAMA \"ES CULTURA LOCAL 2021.","Inversión","Un Nuevo Contrato Social y Ambiental para la Bogotá del Siglo XXI",3,{"$f":"IF(ISERROR(VLOOKUP(K118,Proposito_programa!$C$2:$E$59,2,FALSE)),\" \",VLOOKUP(K118,Proposito_programa!$C$2:$E$59,2,FALSE))","v":"Movilidad social integral"},{"$f":"IF(ISERROR(VLOOKUP(K118,Proposito_programa!$C$2:$E$59,3,FALSE)),\" \",VLOOKUP(K118,Proposito_programa!$C$2:$E$59,3,FALSE))","v":"Propósito 1: Hacer un nuevo contrato social para incrementar la inclusión social, productiva y política"},"133011601210000002070",0,899999061,"SECRETARIA DE EDUCACION DEL DISTRITO","Persona Jurídica","N/A","N/A","N/A",8900000,null,null,null,{"$f":"+V118+W118+Y118","v":8900000},null,"2021-07-02","2021-07-02","2021-12-31","179 DIAS",null,null,null,null,null,null,null,null,"X",null,{"$f":"IF(ISERROR(AA118/Z118),\"-\",(AA118/Z118))","v":0}]
["\t\nCI-02-2021",2021,"FDLM-CI-002-2021","21-22-27594 (SECOP I)","Convenios de apoyo y/o convenios de asociación ","Contratación directa","Prestación de servicios profesionales y de apoyo a la gestión, o para la ejecución de trabajos artísticos que sólo puedan encomendarse a determinadas personas naturales;","EL CONVENIO QUE SE PRETENDE CELEBRAR TENDRÁ POR OBJETO “AUNAR ESFUERZOS TÉCNICOS,  ADMINISTRATIVOS Y FINANCIEROS CON EL FIN DE DESARROLLAR ACCIONES ARTICULADAS ENTRE LAS PARTES ORIENTADAS A FOMENTAR LA GENERACIÓN Y CIRCULACIÓN DE BIENES Y SERVICIOS CULTURALES, ARTÍSTICOS Y PATRIMONIALES, ASÍ COMO AL FORTALECIMIENTO DE LOS AGENTES DE ESTOS SECTORES EN LAS LOCALIDADES DEL DISTRITO CAPITAL DE ACUERDO CON LOS PROYECTOS PRESENTADOS A LOS FONDOS DE DESARROLLO LOCAL DE MÁRTIRES Y DE SANTAFÉ EN EL MARCO DEL PROGRAMA \"ES CULTURA LOCAL 2021.","Inversión","Un Nuevo Contrato Social y Ambiental para la Bogotá del Siglo XXI",3,{"$f":"IF(ISERROR(VLOOKUP(K119,Proposito_programa!$C$2:$E$59,2,FALSE)),\" \",VLOOKUP(K119,Proposito_programa!$C$2:$E$59,2,FALSE))","v":"Movilidad social integral"},{"$f":"IF(ISERROR(VLOOKUP(K119,Proposito_programa!$C$2:$E$59,3,FALSE)),\" \",VLOOKUP(K119,Proposito_programa!$C$2:$E$59,3,FALSE))","v":"Propósito 1: Hacer un nuevo contrato social para incrementar la inclusión social, productiva y política"},"133011601240000002093",0,899999061,"SECRETARIA DE EDUCACION DEL DISTRITO","Persona Jurídica","N/A","N/A","N/A",218995000,null,null,null,{"$f":"+V119+W119+Y119","v":218995000},438995000,"2021-07-02","2021-07-02","2021-12-31","179 DIAS",null,null,null,null,null,null,null,null,"X",null,{"$f":"IF(ISERROR(AA119/Z119),\"-\",(AA119/Z119))","v":2.0045891458709102}]
["\t\nCI-03-2021",2021,"FDL - CI-03-2021","21-22-27595 (SECOP I)","Convenios de apoyo y/o convenios de asociación ","Contratación directa","Prestación de servicios profesionales y de apoyo a la gestión, o para la ejecución de trabajos artísticos que sólo puedan encomendarse a determinadas personas naturales;","EL CONVENIO QUE SE PRETENDE CELEBRAR TENDRÁ POR OBJETO “AUNAR ESFUERZOS TÉCNICOS, ADMINISTRATIVOS, JURÍDICOS Y FINANCIEROS ENTRE LA SECRETARÍA DE EDUCACIÓN DEL DISTRITO Y LOS FONDOS DE DESARROLLO LOCAL QUE HACEN PARTE DEL DISTRITO CAPITAL, PARA LA IMPLEMENTACIÓN DE UN NUEVO MODELO  INCLUSIVO,  EFICIENTE  Y  FLEXIBLE  PARA  EL  ACCESO  Y  LA  PERMANENCIA  DE  LAS  Y  LOS  JÓVENES  EGRESADOS  DE INSTITUCIONES DE EDUCACIÓN MEDIA A PROGRAMAS DE EDUCACIÓN SUPERIOR.","Inversión","Un Nuevo Contrato Social y Ambiental para la Bogotá del Siglo XXI",3,{"$f":"IF(ISERROR(VLOOKUP(K120,Proposito_programa!$C$2:$E$59,2,FALSE)),\" \",VLOOKUP(K120,Proposito_programa!$C$2:$E$59,2,FALSE))","v":"Movilidad social integral"},{"$f":"IF(ISERROR(VLOOKUP(K120,Proposito_programa!$C$2:$E$59,3,FALSE)),\" \",VLOOKUP(K120,Proposito_programa!$C$2:$E$59,3,FALSE))","v":"Propósito 1: Hacer un nuevo contrato social para incrementar la inclusión social, productiva y política"},"133011601170000002056",0,899999061,"SECRETARIA DISTRITAL DE CULTURA RECREACION Y DEPORTE","Persona Jurídica","N/A","N/A","N/A",1119049419,null,null,null,1119049419,1119049419,"2021-07-02","2021-07-02","2027-06-30","72 MESES",null,null,null,null,null,null,null,null,"X",null,1]
["105-2021",2021,"FDLM-CD-105-2021 (59616)","\nhttps://community.secop.gov.co/Public/Tendering/OpportunityDetail/Index?noticeUID=CO1.NTC.2129082&isFromPublicArea=True&isModal=False","Contratos de prestación de servicios profesionales y de apoyo a la gestión","Contratación directa","Prestación de servicios profesionales y de apoyo a la gestión, o para la ejecución de trabajos artísticos que sólo puedan encomendarse a determinadas personas naturales;","PRESTACIÓN DE SERVICIOS DE APOYO A LA GESTIÓN EN LA EJECUCIÓN DE LABORES ADMINISTRATIVAS DEL PROYECTO DE PREVENCIÓN DE VIOLENCIA INTRAFAMILIAR EN LA LOCALIDAD DE LOS MÁRTIRES","Inversión","Un Nuevo Contrato Social y Ambiental para la Bogotá del Siglo XXI",3,{"$f":"IF(ISERROR(VLOOKUP(K121,Proposito_programa!$C$2:$E$59,2,FALSE)),\" \",VLOOKUP(K121,Proposito_programa!$C$2:$E$59,2,FALSE))","v":"Movilidad social integral"},{"$f":"IF(ISERROR(VLOOKUP(K121,Proposito_programa!$C$2:$E$59,3,FALSE)),\" \",VLOOKUP(K121,Proposito_programa!$C$2:$E$59,3,FALSE))","v":"Propósito 1: Hacer un nuevo contrato social para incrementar la inclusión social, productiva y política"},"133011601060000002077",0,80920065,"DIEGO ALEJANDRO SILVA ZAPATA","Persona Natural","N/A","N/A","N/A",10800000,null,null,null,10800000,10800000,"2021-07-28","2021-08-03","2022-02-02","6 MESES",null,null,null,null,null,null,null,null,"X",null,1]
["106-2021",2021,"FDLM-CD-106-2021 (59852)","https://community.secop.gov.co/Public/Tendering/OpportunityDetail/Index?noticeUID=CO1.NTC.2142459&isFromPublicArea=True&isModal=False","Contratos de prestación de servicios profesionales y de apoyo a la gestión","Contratación directa","Prestación de servicios profesionales y de apoyo a la gestión, o para la ejecución de trabajos artísticos que sólo puedan encomendarse a determinadas personas naturales;","RESTACIÓN DE SERVICIOS DE APOYO A LA GESTION COMO TECNOLOGO EN LA IMPLEMENTACION DE ESTRATEGIAS DE INTERVENCION QUE PROPENDAN POR LA REDUCCION DEL RIESGO Y ADAPTACION AL CAMBIO CLIMATICO EN LA LOCALIDAD DE LOS MÁRTIRES, EN EL MARCO DEL PROYECTO NO. 2088","Inversión","Un Nuevo Contrato Social y Ambiental para la Bogotá del Siglo XXI",3,{"$f":"IF(ISERROR(VLOOKUP(K122,Proposito_programa!$C$2:$E$59,2,FALSE)),\" \",VLOOKUP(K122,Proposito_programa!$C$2:$E$59,2,FALSE))","v":"Movilidad social integral"},{"$f":"IF(ISERROR(VLOOKUP(K122,Proposito_programa!$C$2:$E$59,3,FALSE)),\" \",VLOOKUP(K122,Proposito_programa!$C$2:$E$59,3,FALSE))","v":"Propósito 1: Hacer un nuevo contrato social para incrementar la inclusión social, productiva y política"},"133011602380000002088",0,1022349639,"CRISTIAN CAMILO MONTAÑEZ CAMACHO","Persona Natural","N/A","N/A","N/A",15340000,null,null,null,15340000,15340000,"2021-08-02","2021-08-03","2022-02-02","6 MESES",null,null,null,null,null,null,null,null,"X",null,1]
["107-2021",2021,"FDLM-107-2021 (59851)","https://community.secop.gov.co/Public/Tendering/OpportunityDetail/Index?noticeUID=CO1.NTC.2142179&isFromPublicArea=True&isModal=False","Contratos de prestación de servicios profesionales y de apoyo a la gestión","Contratación directa","Prestación de servicios profesionales y de apoyo a la gestión, o para la ejecución de trabajos artísticos que sólo puedan encomendarse a determinadas personas naturales;","PRESTACIÓN DE SERVICIOS DE APOYO A LA GESTION EN LA IMPLEMENTACION DE ESTRATEGIAS DE INTERVENCION QUE PROPENDAN POR LA REDUCCION DEL RIESGO Y ADAPTACION AL CAMBIO CLIMATICO EN LA LOCALIDAD DE LOS MÁRTIRES, EN EL MARCO DEL PROYECTO NO. 2088","Inversión","Un Nuevo Contrato Social y Ambiental para la Bogotá del Siglo XXI",3,{"$f":"IF(ISERROR(VLOOKUP(K123,Proposito_programa!$C$2:$E$59,2,FALSE)),\" \",VLOOKUP(K123,Proposito_programa!$C$2:$E$59,2,FALSE))","v":"Movilidad social integral"},{"$f":"IF(ISERROR(VLOOKUP(K123,Proposito_programa!$C$2:$E$59,3,FALSE)),\" \",VLOOKUP(K123,Proposito_programa!$C$2:$E$59,3,FALSE))","v":"Propósito 1: Hacer un nuevo contrato social para incrementar la inclusión social, productiva y política"},"133011602380000002088",0,1000934947,"NICOOLE  JANETH OROZCO \tGONZALEZ","Persona Natural","N/A","N/A","N/A",11416667,null,null,null,11416667,11416667,"2021-08-02","2021-08-04","2022-02-03","6 MESES",null,null,null,null,null,null,null,null,"X",null,1]
["108-2021",2021,"FDLM-CD-108-2021 (60595)","https://community.secop.gov.co/Public/Tendering/OpportunityDetail/Index?noticeUID=CO1.NTC.2143207&isFromPublicArea=True&isModal=False","Contratos de prestación de servicios profesionales y de apoyo a la gestión","Contratación directa","Prestación de servicios profesionales y de apoyo a la gestión, o para la ejecución de trabajos artísticos que sólo puedan encomendarse a determinadas personas naturales;","APOYAR JURIDICAMENTE LA EJECUCIÓN DE ACCIONES REQUERIDAS PARA EL TRÁMITE E IMPULSO PROCESAL DE LAS ACTUACIONES CONTRAVENCIONALES Y/O QUERELLAS QUE CURSEN EN LAS INSPECCIONES DE POLICÍA DE LA LOCALIDAD DE LOS MÁRTIRES","Inversión","Un Nuevo Contrato Social y Ambiental para la Bogotá del Siglo XXI",3,{"$f":"IF(ISERROR(VLOOKUP(K124,Proposito_programa!$C$2:$E$59,2,FALSE)),\" \",VLOOKUP(K124,Proposito_programa!$C$2:$E$59,2,FALSE))","v":"Movilidad social integral"},{"$f":"IF(ISERROR(VLOOKUP(K124,Proposito_programa!$C$2:$E$59,3,FALSE)),\" \",VLOOKUP(K124,Proposito_programa!$C$2:$E$59,3,FALSE))","v":"Propósito 1: Hacer un nuevo contrato social para incrementar la inclusión social, productiva y política"},"133011605570000002099",0,51921603,"AURA ALICIA INFANTE GARCIA","Persona Natural","N/A","N/A","N/A",9800000,null,null,null,9800000,7000000,"2021-08-06","2021-08-10","2021-10-09","2 MESES",null,null,null,null,null,null,null,null,"X",null,0.7142857142857143]
["109-2021",2021,"FDLM-CD-109-2021 (60595)","https://community.secop.gov.co/Public/Tendering/ContractNoticePhases/View?PPI=CO1.PPI.14467508&isFromPublicArea=True&isModal=False","Contratos de prestación de servicios profesionales y de apoyo a la gestión","Contratación directa","Prestación de servicios profesionales y de apoyo a la gestión, o para la ejecución de trabajos artísticos que sólo puedan encomendarse a determinadas personas naturales;","APOYAR JURÍDICAMENTE LA EJECUCIÓN DE ACCIONES REQUERIDAS PARA EL TRÁMITE E IMPULSO PROCESAL DE LAS ACTUACIONES CONTRAVENCIONALES Y/O QUERELLAS QUE CURSEN EN LAS INSPECCIONES DE POLICÍA DE LA LOCALIDAD DE LOS MÁRTIRES.","Inversión","Un Nuevo Contrato Social y Ambiental para la Bogotá del Siglo XXI",3,{"$f":"IF(ISERROR(VLOOKUP(K125,Proposito_programa!$C$2:$E$59,2,FALSE)),\" \",VLOOKUP(K125,Proposito_programa!$C$2:$E$59,2,FALSE))","v":"Movilidad social integral"},{"$f":"IF(ISERROR(VLOOKUP(K125,Proposito_programa!$C$2:$E$59,3,FALSE)),\" \",VLOOKUP(K125,Proposito_programa!$C$2:$E$59,3,FALSE))","v":"Propósito 1: Hacer un nuevo contrato social para incrementar la inclusión social, productiva y política"},"133011605570000002099",0,1007539578,"JUAN PABLO TORRES ALVAREZ","Persona Natural","N/A","N/A","N/A",9800000,null,null,null,9800000,8600000,"2021-08-05","2021-08-06","2021-10-05","2 MESES",null,null,null,null,null,null,null,null,"X",null,0.87755102040816324]
["110-2021",2021,"FDLM-CD-110-2021 (59620)","https://community.secop.gov.co/Public/Tendering/OpportunityDetail/Index?noticeUID=CO1.NTC.2163156&isFromPublicArea=True&isModal=False","Contratos de prestación de servicios profesionales y de apoyo a la gestión","Contratación directa","Prestación de servicios profesionales y de apoyo a la gestión, o para la ejecución de trabajos artísticos que sólo puedan encomendarse a determinadas personas naturales;","CONTRATAR LA PRESTACIÓN DE SERVICIOS PROFESIONALES COMO PSICÓLOGO(A) EN LA EJECUCIÓN DEL PROYECTO DE PREVENCIÓN DE VIOLENCIA INTRAFAMILIAR, VIOLENCIA SEXUAL EN EL CONTEXTO FAMILIAR Y PROMOCIÓN DEL BUEN TRATO Y ENTORNO PROTECTORES PARA POBLACIONES EN SITUACIÓN DE RIESGO Y DE POSIBLES VULNERACIONES DE DERECHOS EN LA LOCALIDAD DE LOS MÁRTIRES","Inversión","Un Nuevo Contrato Social y Ambiental para la Bogotá del Siglo XXI",3,{"$f":"IF(ISERROR(VLOOKUP(K126,Proposito_programa!$C$2:$E$59,2,FALSE)),\" \",VLOOKUP(K126,Proposito_programa!$C$2:$E$59,2,FALSE))","v":"Movilidad social integral"},{"$f":"IF(ISERROR(VLOOKUP(K126,Proposito_programa!$C$2:$E$59,3,FALSE)),\" \",VLOOKUP(K126,Proposito_programa!$C$2:$E$59,3,FALSE))","v":"Propósito 1: Hacer un nuevo contrato social para incrementar la inclusión social, productiva y política"},"133011601060000002077",0,19234991,"EDUARDO VEGA GARCIA","Persona Natural","N/A","N/A","N/A",21750000,null,null,null,21750000,21750000,"2021-08-11","2021-08-12","2022-01-12","5 MESES",null,null,null,null,null,null,null,null,"X",null,1]
["111-2021",2021,"FDLM-CD-111-2021 (59997)","https://community.secop.gov.co/Public/Tendering/OpportunityDetail/Index?noticeUID=CO1.NTC.2164685&isFromPublicArea=True&isModal=False","Contratos de prestación de servicios profesionales y de apoyo a la gestión","Contratación directa","Prestación de servicios profesionales y de apoyo a la gestión, o para la ejecución de trabajos artísticos que sólo puedan encomendarse a determinadas personas naturales;","PRESTACIÓN DE SERVICIOS DE APOYO A LA GESTION EN LA IMPLEMENTACION DE ESTRATEGIAS DE INTERVENCION QUE PROPENDAN POR LA REDUCCION DEL RIESGO Y ADAPTACION AL CAMBIO CLIMATICO EN LA LOCALIDAD DE LOS MÁRTIRES, EN EL MARCO DEL PROYECTO NO. 2088","Inversión","Un Nuevo Contrato Social y Ambiental para la Bogotá del Siglo XXI",3,{"$f":"IF(ISERROR(VLOOKUP(K127,Proposito_programa!$C$2:$E$59,2,FALSE)),\" \",VLOOKUP(K127,Proposito_programa!$C$2:$E$59,2,FALSE))","v":"Movilidad social integral"},{"$f":"IF(ISERROR(VLOOKUP(K127,Proposito_programa!$C$2:$E$59,3,FALSE)),\" \",VLOOKUP(K127,Proposito_programa!$C$2:$E$59,3,FALSE))","v":"Propósito 1: Hacer un nuevo contrato social para incrementar la inclusión social, productiva y política"},"133011602380000002088",0,79863965,"FREDY ALONSO SANCHEZ RAMIREZ","Persona Natural","N/A","N/A","N/A",10750000,null,null,null,10750000,10750000,"2021-08-12","2021-08-12","2022-02-09","178 DIAS",null,null,null,null,null,null,null,null,"X",null,1]
["112-2021",2021,"FDLM-CD-112-2021 (59621)","https://community.secop.gov.co/Public/Tendering/OpportunityDetail/Index?noticeUID=CO1.NTC.2170466&isFromPublicArea=True&isModal=False","Contratos de prestación de servicios profesionales y de apoyo a la gestión","Contratación directa","Prestación de servicios profesionales y de apoyo a la gestión, o para la ejecución de trabajos artísticos que sólo puedan encomendarse a determinadas personas naturales;","CONTRATAR LA PRESTACIÓN DE SERVICIOS PROFESIONALES COMO TRABAJADOR(A) SOCIAL EN LA EJECUCIÓN DEL PROYECTO DE PREVENCIÓN DE VIOLENCIA INTRAFAMILIAR, VIOLENCIA SEXUAL EN EL CONTEXTO FAMILIAR Y PROMOCIÓN DEL BUEN TRATO Y ENTORNO PROTECTORES PARA POBLACIONES EN SITUACIÓN DE RIESGO Y DE POSIBLES VULNERACIONES DE DERECHOS EN LA LOCALIDAD DE LOS MÁRTIRES.","Inversión","Un Nuevo Contrato Social y Ambiental para la Bogotá del Siglo XXI",3,{"$f":"IF(ISERROR(VLOOKUP(K128,Proposito_programa!$C$2:$E$59,2,FALSE)),\" \",VLOOKUP(K128,Proposito_programa!$C$2:$E$59,2,FALSE))","v":"Movilidad social integral"},{"$f":"IF(ISERROR(VLOOKUP(K128,Proposito_programa!$C$2:$E$59,3,FALSE)),\" \",VLOOKUP(K128,Proposito_programa!$C$2:$E$59,3,FALSE))","v":"Propósito 1: Hacer un nuevo contrato social para incrementar la inclusión social, productiva y política"},"133011601060000002077",0,52907964,"ZULY ANDREA DUARTE","Persona Natural","N/A","N/A","N/A",21750000,null,null,null,21750000,21750000,"2021-08-12","2021-08-17","2022-01-16","5 MESES",null,null,null,null,null,null,null,null,"X",null,1]
["113-2021",2021,"FDLM-CD-113-2021 (60229)","https://community.secop.gov.co/Public/Tendering/OpportunityDetail/Index?noticeUID=CO1.NTC.2192686&isFromPublicArea=True&isModal=False","Contratos de prestación de servicios profesionales y de apoyo a la gestión","Contratación directa","Prestación de servicios profesionales y de apoyo a la gestión, o para la ejecución de trabajos artísticos que sólo puedan encomendarse a determinadas personas naturales;","PRESTACIÓN DE SERVICIOS PROFESIONALES PARA APOYAR A LA ALCALDÍA LOCAL DE LOS MÁRTIRES EN LA PROMOCIÓN, ARTICULACIÓN, ACOMPAÑAMIENTO Y SEGUIMIENTO PARA LA ATENCIÓN Y PROTECCIÓN DE LOS ANIMALES DOMÉSTICOS Y SILVESTRES DE LA LOCALIDAD.","Inversión","Un Nuevo Contrato Social y Ambiental para la Bogotá del Siglo XXI",3,{"$f":"IF(ISERROR(VLOOKUP(K129,Proposito_programa!$C$2:$E$59,2,FALSE)),\" \",VLOOKUP(K129,Proposito_programa!$C$2:$E$59,2,FALSE))","v":"Movilidad social integral"},{"$f":"IF(ISERROR(VLOOKUP(K129,Proposito_programa!$C$2:$E$59,3,FALSE)),\" \",VLOOKUP(K129,Proposito_programa!$C$2:$E$59,3,FALSE))","v":"Propósito 1: Hacer un nuevo contrato social para incrementar la inclusión social, productiva y política"},"133011602340000002085",0,52867935,"ELSA MARGARITA FLOREZ LOPEZ","Persona Natural","N/A","N/A","N/A",17614900,null,null,null,17614900,4942467,"2021-08-24","2021-08-27","2021-12-31","127 DIAS",null,null,null,null,null,null,null,null,"X",null,0.28058444839312174]
["114-2021",2021,"FDLM-CD-114-2021 (59617)","https://community.secop.gov.co/Public/Tendering/OpportunityDetail/Index?noticeUID=CO1.NTC.2192326&isFromPublicArea=True&isModal=False","Contratos de prestación de servicios profesionales y de apoyo a la gestión","Contratación directa","Prestación de servicios profesionales y de apoyo a la gestión, o para la ejecución de trabajos artísticos que sólo puedan encomendarse a determinadas personas naturales;","CONTRATAR LA PRESTACIÓN DE SERVICIOS PROFESIONALES EN LA COORDINACIÓN PARA LA EJECUCIÓN DEL PROYECTO DE PREVENCIÓN DE VIOLENCIA INTRAFAMILIAR, VIOLENCIA SEXUAL EN EL CONTEXTO FAMILIAR Y PROMOCIÓN DEL BUEN TRATO Y ENTORNO PROTECTORES PARA POBLACIONES EN SITUACIÓN DE RIESGO Y DE POSIBLES VULNERACIONES DE DERECHOS EN LA LOCALIDAD DE LOS MÁRTIRES.","Inversión","Un Nuevo Contrato Social y Ambiental para la Bogotá del Siglo XXI",3,{"$f":"IF(ISERROR(VLOOKUP(K130,Proposito_programa!$C$2:$E$59,2,FALSE)),\" \",VLOOKUP(K130,Proposito_programa!$C$2:$E$59,2,FALSE))","v":"Movilidad social integral"},{"$f":"IF(ISERROR(VLOOKUP(K130,Proposito_programa!$C$2:$E$59,3,FALSE)),\" \",VLOOKUP(K130,Proposito_programa!$C$2:$E$59,3,FALSE))","v":"Propósito 1: Hacer un nuevo contrato social para incrementar la inclusión social, productiva y política"},"133011601060000002077",0,79987860,"DANIEL MAURICIO GARCÍA LAMUS","Persona Natural","N/A","N/A","N/A",30000000,null,null,null,30000000,24000000,"2021-08-24","2021-08-25","2022-02-24","6 MESES",null,null,null,null,null,null,null,"X",null,null,0.8]
["115-2021",2021,"FDLM-CD-115-2021 (61134)","https://community.secop.gov.co/Public/Tendering/OpportunityDetail/Index?noticeUID=CO1.NTC.2218273&isFromPublicArea=True&isModal=False","Contratos de prestación de servicios profesionales y de apoyo a la gestión","Contratación directa","Prestación de servicios profesionales y de apoyo a la gestión, o para la ejecución de trabajos artísticos que sólo puedan encomendarse a determinadas personas naturales;","PRESTAR LOS SERVICIOS PROFESIONALES COMO ABOGADO PARA APOYAR LOS ASUNTOS JURÍDICOS QUE SE REQUIERAN EN EL PROYECTO 2084 TERRITORIO EFICIENTE EN EL MANEJO Y DISPOSICIÓN DE RESIDUOS Y DEMÁS PROYECTOS DE INVERSIÓN DE LA LOCALIDAD, ASÍ COMO EN LAS ACTIVIDADES RELACIONADAS CON LA GESTIÓN CONTRACTUAL DEL FONDO DE DESARROLLO LOCAL DE LOS MÁRTIRES","Inversión","Un Nuevo Contrato Social y Ambiental para la Bogotá del Siglo XXI",3,{"$f":"IF(ISERROR(VLOOKUP(K131,Proposito_programa!$C$2:$E$59,2,FALSE)),\" \",VLOOKUP(K131,Proposito_programa!$C$2:$E$59,2,FALSE))","v":"Movilidad social integral"},{"$f":"IF(ISERROR(VLOOKUP(K131,Proposito_programa!$C$2:$E$59,3,FALSE)),\" \",VLOOKUP(K131,Proposito_programa!$C$2:$E$59,3,FALSE))","v":"Propósito 1: Hacer un nuevo contrato social para incrementar la inclusión social, productiva y política"},"133011602380000002088",0,53119341,"MARIA CAMILA LOPEZ FERNANDEZ","Persona Natural","N/A","N/A","N/A",16526666,null,null,null,16526666,8416667,"2021-09-01","2021-09-03","2022-01-02","4 MESES",null,null,null,null,null,null,null,null,"X",null,0.50927797536417807]
["116-2021",2021,"FDLM-CD-116-2021 (61128)","https://community.secop.gov.co/Public/Tendering/OpportunityDetail/Index?noticeUID=CO1.NTC.2218092&isFromPublicArea=True&isModal=False","Contratos de prestación de servicios profesionales y de apoyo a la gestión","Contratación directa","Prestación de servicios profesionales y de apoyo a la gestión, o para la ejecución de trabajos artísticos que sólo puedan encomendarse a determinadas personas naturales;","PRESTAR LOS SERVICIOS PROFESIONALES COMO ABOGADO PARA APOYAR LOS ASUNTOS JURÍDICOS QUE SE REQUIERAN EN EL PROYECTO 2075 RECREACIÓN Y DEPORTE PARA UNA VIDA MÁS SANA Y DEMÁS PROYECTOS DE INVERSIÓN DE LA LOCALIDAD, ASÍ COMO EN LAS ACTIVIDADES RELACIONADAS CON LA GESTIÓN CONTRACTUAL DEL FONDO DE DESARROLLO LOCAL DE LOS MÁRTIRES","Inversión","Un Nuevo Contrato Social y Ambiental para la Bogotá del Siglo XXI",3,{"$f":"IF(ISERROR(VLOOKUP(K132,Proposito_programa!$C$2:$E$59,2,FALSE)),\" \",VLOOKUP(K132,Proposito_programa!$C$2:$E$59,2,FALSE))","v":"Movilidad social integral"},{"$f":"IF(ISERROR(VLOOKUP(K132,Proposito_programa!$C$2:$E$59,3,FALSE)),\" \",VLOOKUP(K132,Proposito_programa!$C$2:$E$59,3,FALSE))","v":"Propósito 1: Hacer un nuevo contrato social para incrementar la inclusión social, productiva y política"},"133011601200000002075",0,79991580,"RENNE ROMERO HERNANDEZ","Persona Natural","N/A","N/A","N/A",22000000,null,null,0,22000000,19799998,"2021-09-01","2021-09-03","2022-01-02","4 MESES",null,null,1022419985,"ERIK ASDRUBAL SALAZAR ROJAS","2021-11-23",22000000,null,null,"X",null,0.8999999090909091]
["117-2021",2021,"FDLM-CD-117-2021 (61172)","https://community.secop.gov.co/Public/Tendering/OpportunityDetail/Index?noticeUID=CO1.NTC.2218192&isFromPublicArea=True&isModal=False","Contratos de prestación de servicios profesionales y de apoyo a la gestión","Contratación directa","Prestación de servicios profesionales y de apoyo a la gestión, o para la ejecución de trabajos artísticos que sólo puedan encomendarse a determinadas personas naturales;","PRESTAR LOS SERVICIOS PROFESIONALES COMO ABOGADO PARA APOYAR LOS ASUNTOS JURÍDICOS QUE SE REQUIERAN EN EL PROYECTO 2098 SEGURIDAD Y JUSTICIA COMUNITARIA Y DEMÁS PROYECTOS DE INVERSIÓN DE LA LOCALIDAD, ASÍ COMO EN LAS ACTIVIDADES RELACIONADAS CON LA GESTIÓN CONTRACTUAL DEL FONDO DE DESARROLLO LOCAL DE LOS MÁRTIRES","Inversión","Un Nuevo Contrato Social y Ambiental para la Bogotá del Siglo XXI",3,{"$f":"IF(ISERROR(VLOOKUP(K133,Proposito_programa!$C$2:$E$59,2,FALSE)),\" \",VLOOKUP(K133,Proposito_programa!$C$2:$E$59,2,FALSE))","v":"Movilidad social integral"},{"$f":"IF(ISERROR(VLOOKUP(K133,Proposito_programa!$C$2:$E$59,3,FALSE)),\" \",VLOOKUP(K133,Proposito_programa!$C$2:$E$59,3,FALSE))","v":"Propósito 1: Hacer un nuevo contrato social para incrementar la inclusión social, productiva y política"},"133011603480000002098",0,80770210,"SERGIO DANIEL BORBON TORRES","Persona Natural","N/A","N/A","N/A",22000000,null,null,null,22000000,19800000,"2021-09-01","2021-09-03","2022-01-02","4 MESES",null,null,null,null,null,null,null,null,"X",null,0.9]
["118-2021",2021,"FDLM-CD-118-2021 (61139)","https://community.secop.gov.co/Public/Tendering/OpportunityDetail/Index?noticeUID=CO1.NTC.2218907&isFromPublicArea=True&isModal=False","Contratos de prestación de servicios profesionales y de apoyo a la gestión","Contratación directa","Prestación de servicios profesionales y de apoyo a la gestión, o para la ejecución de trabajos artísticos que sólo puedan encomendarse a determinadas personas naturales;","PRESTAR LOS SERVICIOS PROFESIONALES PARA APOYAR LA FORMULACIÓN, GESTIÓN Y SEGUIMIENTO DE LAS ACTIVIDADES DEL FONDO ENFOCADAS A LA GESTIÓN ADMINISTRATIVA Y AMBIENTAL INTERNA Y EXTERNA, EN PRO DE LA MITIGACIÓN DE LOS DIFERENTES IMPACTOS AMBIENTALES DE LA CONSERVACIÓN LOCALIZACIÓN","Inversión","Un Nuevo Contrato Social y Ambiental para la Bogotá del Siglo XXI",3,{"$f":"IF(ISERROR(VLOOKUP(K134,Proposito_programa!$C$2:$E$59,2,FALSE)),\" \",VLOOKUP(K134,Proposito_programa!$C$2:$E$59,2,FALSE))","v":"Movilidad social integral"},{"$f":"IF(ISERROR(VLOOKUP(K134,Proposito_programa!$C$2:$E$59,3,FALSE)),\" \",VLOOKUP(K134,Proposito_programa!$C$2:$E$59,3,FALSE))","v":"Propósito 1: Hacer un nuevo contrato social para incrementar la inclusión social, productiva y política"},"133011602270000002086",0,1012399674,"GINNA LIZETH SERNA GARCIA","Persona Natural","N/A","N/A","N/A",17444000,null,null,null,17444000,17444000,"2021-09-02","2021-09-03","2022-01-02","4 MESES",null,null,null,null,null,null,null,null,"X",null,1]
["119-2021",2021,"FDLM-CD-119-2021 (61149)","https://community.secop.gov.co/Public/Tendering/OpportunityDetail/Index?noticeUID=CO1.NTC.2218709&isFromPublicArea=True&isModal=False","Contratos de prestación de servicios profesionales y de apoyo a la gestión","Contratación directa","Prestación de servicios profesionales y de apoyo a la gestión, o para la ejecución de trabajos artísticos que sólo puedan encomendarse a determinadas personas naturales;","\tPRESTAR LOS SERVICIOS PROFESIONALES PARA LA FORMULACIÓN PRECONTRACTUAL PARTICIPATIVA, APOYO A LA SUPERVISIÓN, SEGUIMIENTO, ACOMPAÑAMIENTO, ATENCIÓN Y EVALUACIÓN DE LOS PROYECTOS E INSTANCIAS DE ARTICULACIÓN INTERINSTITUCIONAL Y PARTICIPACIÓN LOCAL QUE SE REQUIERAN EN EL PROYECTO 2077 TERRITORIOS DIVERSOS Y LIBRES DE VIOLENCIA","Inversión","Un Nuevo Contrato Social y Ambiental para la Bogotá del Siglo XXI",3,{"$f":"IF(ISERROR(VLOOKUP(K135,Proposito_programa!$C$2:$E$59,2,FALSE)),\" \",VLOOKUP(K135,Proposito_programa!$C$2:$E$59,2,FALSE))","v":"Movilidad social integral"},{"$f":"IF(ISERROR(VLOOKUP(K135,Proposito_programa!$C$2:$E$59,3,FALSE)),\" \",VLOOKUP(K135,Proposito_programa!$C$2:$E$59,3,FALSE))","v":"Propósito 1: Hacer un nuevo contrato social para incrementar la inclusión social, productiva y política"},"133011601060000002077",0,1019028211,"LAURA CATALINA MARTINEZ CASTILLO","Persona Natural","N/A","N/A","N/A",22000000,null,null,null,22000000,7464999,"2021-09-02","2021-09-03","2022-01-02","4 MESES",null,null,null,null,null,null,null,null,"X",null,0.33931813636363639]
["120-2021",2021,"FDLM-CD-120-2021 (61125)","https://community.secop.gov.co/Public/Tendering/OpportunityDetail/Index?noticeUID=CO1.NTC.2218912&isFromPublicArea=True&isModal=False","Contratos de prestación de servicios profesionales y de apoyo a la gestión","Contratación directa","Prestación de servicios profesionales y de apoyo a la gestión, o para la ejecución de trabajos artísticos que sólo puedan encomendarse a determinadas personas naturales;","PRESTAR LOS SERVICIOS PROFESIONALES COMO ABOGADO PARA APOYAR LOS ASUNTOS JURÍDICOS DEL ESPACIO PÚBLICO Y OTRAS MATERIAS QUE SE REQUIERAN EN EL MARCO DEL PROYECTO 2080 PAISAJE URBANO AMIGABLE Y SEGURO","Inversión","Un Nuevo Contrato Social y Ambiental para la Bogotá del Siglo XXI",3,{"$f":"IF(ISERROR(VLOOKUP(K136,Proposito_programa!$C$2:$E$59,2,FALSE)),\" \",VLOOKUP(K136,Proposito_programa!$C$2:$E$59,2,FALSE))","v":"Movilidad social integral"},{"$f":"IF(ISERROR(VLOOKUP(K136,Proposito_programa!$C$2:$E$59,3,FALSE)),\" \",VLOOKUP(K136,Proposito_programa!$C$2:$E$59,3,FALSE))","v":"Propósito 1: Hacer un nuevo contrato social para incrementar la inclusión social, productiva y política"},"133011603450000002080",0,53115231,"LAURA JANNETH RICO BELTRAN","Persona Natural","N/A","N/A","N/A",20000000,null,null,null,20000000,12500000,"2021-09-02","2021-09-03","2022-01-02","4 MESES",null,null,null,null,null,null,null,null,"X",null,0.625]
["121-2021",2021,"FDLM-CD-121-2021 (61141)","https://community.secop.gov.co/Public/Tendering/OpportunityDetail/Index?noticeUID=CO1.NTC.2219098&isFromPublicArea=True&isModal=False","Contratos de prestación de servicios profesionales y de apoyo a la gestión","Contratación directa","Prestación de servicios profesionales y de apoyo a la gestión, o para la ejecución de trabajos artísticos que sólo puedan encomendarse a determinadas personas naturales;","PRESTAR LOS SERVICIOS PROFESIONALES CON EL FONDO PARA LA FORMULACIÓN, GESTIÓN, FORTALECIMIENTO, SOSTENIBILIDAD Y MEJORA DE LAS ACTIVIDADES AMBIENTALES ORIENTADAS A LA MITIGACIÓN DE LOS DIFERENTES IMPACTOS Y LA CONSERVACIÓN DE LOS RECURSOS NATURALES DE LA LOCALIDAD","Inversión","Un Nuevo Contrato Social y Ambiental para la Bogotá del Siglo XXI",3,{"$f":"IF(ISERROR(VLOOKUP(K137,Proposito_programa!$C$2:$E$59,2,FALSE)),\" \",VLOOKUP(K137,Proposito_programa!$C$2:$E$59,2,FALSE))","v":"Movilidad social integral"},{"$f":"IF(ISERROR(VLOOKUP(K137,Proposito_programa!$C$2:$E$59,3,FALSE)),\" \",VLOOKUP(K137,Proposito_programa!$C$2:$E$59,3,FALSE))","v":"Propósito 1: Hacer un nuevo contrato social para incrementar la inclusión social, productiva y política"},"133011602270000002086",0,1019115093,"WILLINTON ALDEMAR TOLOSA ALBA","Persona Natural","N/A","N/A","N/A",20000000,null,null,null,20000000,20000000,"2021-09-02","2021-09-06","2022-01-05","4 MESES",null,null,null,null,null,null,null,null,"X",null,1]
["122-2021",2021,"FDLM-CD-122-2021 (61174)","https://community.secop.gov.co/Public/Tendering/OpportunityDetail/Index?noticeUID=CO1.NTC.2219097&isFromPublicArea=True&isModal=False","Contratos de prestación de servicios profesionales y de apoyo a la gestión","Contratación directa","Prestación de servicios profesionales y de apoyo a la gestión, o para la ejecución de trabajos artísticos que sólo puedan encomendarse a determinadas personas naturales;","PRESTAR SUS SERVICIOS PROFESIONALES PARA FORTALECER LOS MEDIOS DE REPRESENTACIÓN LOCAL Y DIVULGACIÓN DE CONTENIDOS RELACIONADOS CON LA PROTECCIÓN Y EL BIENESTAR ANIMAL EN EL TERRITORIO, EN EL MARCO DEL PROYECTO 2085","Inversión","Un Nuevo Contrato Social y Ambiental para la Bogotá del Siglo XXI",3,{"$f":"IF(ISERROR(VLOOKUP(K138,Proposito_programa!$C$2:$E$59,2,FALSE)),\" \",VLOOKUP(K138,Proposito_programa!$C$2:$E$59,2,FALSE))","v":"Movilidad social integral"},{"$f":"IF(ISERROR(VLOOKUP(K138,Proposito_programa!$C$2:$E$59,3,FALSE)),\" \",VLOOKUP(K138,Proposito_programa!$C$2:$E$59,3,FALSE))","v":"Propósito 1: Hacer un nuevo contrato social para incrementar la inclusión social, productiva y política"},"133011602340000002085",0,1018469710,"MARIA ALEJANDRA ARIZA ROBELTO","Persona Natural","N/A","N/A","N/A",20000000,null,null,null,20000000,17500000,"2021-09-02","2021-09-06","2022-01-05","4 MESES",null,null,null,null,null,null,null,null,"X",null,0.875]
["123-2021",2021,"FDLM-CD-123-2021 (61178)","https://community.secop.gov.co/Public/Tendering/OpportunityDetail/Index?noticeUID=CO1.NTC.2220527&isFromPublicArea=True&isModal=False","Contratos de prestación de servicios profesionales y de apoyo a la gestión","Contratación directa","Prestación de servicios profesionales y de apoyo a la gestión, o para la ejecución de trabajos artísticos que sólo puedan encomendarse a determinadas personas naturales;","PRESTAR SUS SERVICIOS PROFESIONALES PARA FORTALECER LOS MEDIOS DE REPRESENTACIÓN LOCAL Y DIVULGACIÓN DE CONTENIDOS RELACIONADOS CON ACCIONES DE EMPODERAMIENTO Y DESARROLLO DE CAPACIDADES QUE FORTALEZCAN LA CONSTRUCCIÓN DE CIUDADANÍA Y LA PREVENCIÓN DE LOS CASOS DE FEMINICIDIOS YESTICIAS OTRAS MARCO DEL PROYECTO 2089.","Inversión","Un Nuevo Contrato Social y Ambiental para la Bogotá del Siglo XXI",3,{"$f":"IF(ISERROR(VLOOKUP(K139,Proposito_programa!$C$2:$E$59,2,FALSE)),\" \",VLOOKUP(K139,Proposito_programa!$C$2:$E$59,2,FALSE))","v":"Movilidad social integral"},{"$f":"IF(ISERROR(VLOOKUP(K139,Proposito_programa!$C$2:$E$59,3,FALSE)),\" \",VLOOKUP(K139,Proposito_programa!$C$2:$E$59,3,FALSE))","v":"Propósito 1: Hacer un nuevo contrato social para incrementar la inclusión social, productiva y política"},"133011603400000002089",0,79943624,"FRANCISCO ARTURO TAFUR LOPEZ","Persona Natural","N/A","N/A","N/A",20000000,null,null,0,20000000,17166333,"2021-09-02","2021-09-06","2022-01-05","4 MESES",null,null,1233499200,"LAURA MELISSA GUEVARA","2021-09-13",20000000,null,null,"X",null,0.85831665000000001]
["124-2021",2021,"FDLM-CD-124-2021 (61169)","https://community.secop.gov.co/Public/Tendering/OpportunityDetail/Index?noticeUID=CO1.NTC.2219392&isFromPublicArea=True&isModal=False","Contratos de prestación de servicios profesionales y de apoyo a la gestión","Contratación directa","Prestación de servicios profesionales y de apoyo a la gestión, o para la ejecución de trabajos artísticos que sólo puedan encomendarse a determinadas personas naturales;","PRESTAR SUS SERVICIOS PROFESIONALES PARA FORTALECER LOS MEDIOS DE REPRESENTACIÓN LOCAL Y DIVULGACIÓN DE CONTENIDOS RELACIONADOS CON ACCIONES QUE PERMITAN FOMENTAR Y PROMOVER CAMBIOS EN LA CULTURA CIUDADANA EN TEMAS DE SEPARACIÓN EN LA FUENTE EN LA LOCALIDAD DE LOS PROYECTO MARCORTIRES 20.\t ","Inversión","Un Nuevo Contrato Social y Ambiental para la Bogotá del Siglo XXI",3,{"$f":"IF(ISERROR(VLOOKUP(K140,Proposito_programa!$C$2:$E$59,2,FALSE)),\" \",VLOOKUP(K140,Proposito_programa!$C$2:$E$59,2,FALSE))","v":"Movilidad social integral"},{"$f":"IF(ISERROR(VLOOKUP(K140,Proposito_programa!$C$2:$E$59,3,FALSE)),\" \",VLOOKUP(K140,Proposito_programa!$C$2:$E$59,3,FALSE))","v":"Propósito 1: Hacer un nuevo contrato social para incrementar la inclusión social, productiva y política"},"133011602380000002084",0,1026283071,"JUAN FELIPE BOCANEGRA LEON","Persona Natural","N/A","N/A","N/A",20000000,null,null,null,20000000,14166667,"2021-09-03","2021-09-06","2022-01-05","4 MESES",null,null,null,null,null,null,null,null,"X",null,0.70833334999999997]
["125-2021",2021,"FDLM-CD-125-2021(61170)","https://community.secop.gov.co/Public/Tendering/OpportunityDetail/Index?noticeUID=CO1.NTC.2219731&isFromPublicArea=True&isModal=False","Contratos de prestación de servicios profesionales y de apoyo a la gestión","Contratación directa","Prestación de servicios profesionales y de apoyo a la gestión, o para la ejecución de trabajos artísticos que sólo puedan encomendarse a determinadas personas naturales;","PRESTAR LOS SERVICIOS PROFESIONALES PARA APOYAR Y ACOMPAÑAR LAS INSTANCIAS DE COORDINACIÓN INTERINSTITUCIONALES E INSTANCIAS DE PARTICIPACIÓN LOCALES, ASÍ COMO EN LA FORMULACIÓN PRE CONTRACTUAL, APOYO A LA QUE SE REQUIERAN EN EL PROYECTO 2089 \"MÁRTIRES LIBRE DE VIOLENCIAS\" Y DEMÁS PROYECTOS DE INVERSIÓN DE LA LOCALIDAD,, ASÍ COMO LAS DEMÁS ACTIVIDADES RELACIONADAS CON LA PLANEACIÓN Y PARTICIPACIÓN DE LA LOCALIDAD DE LOS MÁRTIRES, EN CUMPLIMIENTO DEL PLAN DE DESARROLLO LOCAL VIGENTE","Inversión","Un Nuevo Contrato Social y Ambiental para la Bogotá del Siglo XXI",3,{"$f":"IF(ISERROR(VLOOKUP(K141,Proposito_programa!$C$2:$E$59,2,FALSE)),\" \",VLOOKUP(K141,Proposito_programa!$C$2:$E$59,2,FALSE))","v":"Movilidad social integral"},{"$f":"IF(ISERROR(VLOOKUP(K141,Proposito_programa!$C$2:$E$59,3,FALSE)),\" \",VLOOKUP(K141,Proposito_programa!$C$2:$E$59,3,FALSE))","v":"Propósito 1: Hacer un nuevo contrato social para incrementar la inclusión social, productiva y política"},"133011603400000002089",0,53051848,"NELCY ORHUELA HERRERA","Persona Natural","N/A","N/A","N/A",20000000,null,null,null,20000000,14166666,"2021-09-02","2021-09-06","2021-12-31","4 MESES",null,null,null,null,null,null,null,null,"X",null,0.70833330000000005]
["126-2021",2021,"FDLM-CD-126-2021 (59997)","https://community.secop.gov.co/Public/Tendering/OpportunityDetail/Index?noticeUID=CO1.NTC.2218265&isFromPublicArea=True&isModal=False","Contratos de prestación de servicios profesionales y de apoyo a la gestión","Contratación directa","Prestación de servicios profesionales y de apoyo a la gestión, o para la ejecución de trabajos artísticos que sólo puedan encomendarse a determinadas personas naturales;","PRESTACIÓN DE SERVICIOS DE APOYO A LA GESTION EN LA IMPLEMENTACION DE ESTRATEGIAS DE INTERVENCION QUE PROPENDAN POR LA REDUCCION DEL RIESGO Y ADAPTACION AL CAMBIO CLIMATICO EN LA LOCALIDAD DE LOS MÁRTIRES, EN EL MARCO DEL PROYECTO NO. 2088.","Inversión","Un Nuevo Contrato Social y Ambiental para la Bogotá del Siglo XXI",3,{"$f":"IF(ISERROR(VLOOKUP(K142,Proposito_programa!$C$2:$E$59,2,FALSE)),\" \",VLOOKUP(K142,Proposito_programa!$C$2:$E$59,2,FALSE))","v":"Movilidad social integral"},{"$f":"IF(ISERROR(VLOOKUP(K142,Proposito_programa!$C$2:$E$59,3,FALSE)),\" \",VLOOKUP(K142,Proposito_programa!$C$2:$E$59,3,FALSE))","v":"Propósito 1: Hacer un nuevo contrato social para incrementar la inclusión social, productiva y política"},"133011602380000002088",0,51638228,"MAIRA ISABEL ISAZA ARAUJO","Persona Natural","N/A","N/A","N/A",14833333,null,null,null,14833333,7916667,"2021-09-02","2021-09-10","2022-03-10","178 DIAS",null,null,null,null,null,null,null,"X",null,null,0.53370789963388543]
["127-2021",2021,"FDLM-127-2021 (61133)","https://community.secop.gov.co/Public/Tendering/OpportunityDetail/Index?noticeUID=CO1.NTC.2219974&isFromPublicArea=True&isModal=False\n","Contratos de prestación de servicios profesionales y de apoyo a la gestión","Contratación directa","Prestación de servicios profesionales y de apoyo a la gestión, o para la ejecución de trabajos artísticos que sólo puedan encomendarse a determinadas personas naturales;","CONTRATAR LA PRESTACIÓN DE SERVICIOS PROFESIONALES PARA LIDERAR EL EQUIPO QUE TIENE A SU CARGO LA EJECUCIÓN DEL PROYECTO DE PREVENCIÓN DE VIOLENCIA INTRAFAMILIAR, VIOLENCIA SEXUAL EN EL CONTEXTO FAMILIAR Y PROMOCIÓN DEL BUEN TRATO Y ENTORNO PROTECTORES PARA POBLACIONES EN SITUACIÓN DE RIESGO EN CUMPLIMIENTO DEL PLAN DE DESARROLLO LOCAL","Inversión","Un Nuevo Contrato Social y Ambiental para la Bogotá del Siglo XXI",3,{"$f":"IF(ISERROR(VLOOKUP(K143,Proposito_programa!$C$2:$E$59,2,FALSE)),\" \",VLOOKUP(K143,Proposito_programa!$C$2:$E$59,2,FALSE))","v":"Movilidad social integral"},{"$f":"IF(ISERROR(VLOOKUP(K143,Proposito_programa!$C$2:$E$59,3,FALSE)),\" \",VLOOKUP(K143,Proposito_programa!$C$2:$E$59,3,FALSE))","v":"Propósito 1: Hacer un nuevo contrato social para incrementar la inclusión social, productiva y política"},"133011603400000002089",0,52085298,"ADRIANA INES PIRAQUIVE BAUTISTA","Persona Natural","N/A","N/A","N/A",24000000,null,null,0,24000000,17000000,"2021-09-02","2021-09-06","2022-01-05","4 MESES",null,null,1013643257,"MONICA STEFFANY CONSUEGRA AVENDAÑO","2021-12-01",24000000,null,null,"X",null,0.70833333333333337]
["128-2021",2021,"FDLM-CD-128-2021 (61181)","https://community.secop.gov.co/Public/Tendering/OpportunityDetail/Index?noticeUID=CO1.NTC.2220493&isFromPublicArea=True&isModal=False\n","Contratos de prestación de servicios profesionales y de apoyo a la gestión","Contratación directa","Prestación de servicios profesionales y de apoyo a la gestión, o para la ejecución de trabajos artísticos que sólo puedan encomendarse a determinadas personas naturales;","CONTRATAR LA PRESTACIÓN DE SERVICIOS PROFESIONALES PARA COORDINAR, LIDERAR Y VISIBILIZAR LOS PLANES Y ESTRATEGIAS DE COMUNICACIONES INTERNAS Y EXTERNAS PARA LA DIVULGACIÓN DEL PROYECTO 2080 Y DEMÁS PROYECTOS DE INVERSIÓN, ASÍ COMO LAS ACTIVIDADES DE LA ALCALDÍA LOCAL DE LOS MÁRTIRES EN CUMPLIMIENTO DEL PLAN DE DESARROLLO LOCAL Y DISTRITAL","Inversión","Un Nuevo Contrato Social y Ambiental para la Bogotá del Siglo XXI",3,{"$f":"IF(ISERROR(VLOOKUP(K144,Proposito_programa!$C$2:$E$59,2,FALSE)),\" \",VLOOKUP(K144,Proposito_programa!$C$2:$E$59,2,FALSE))","v":"Movilidad social integral"},{"$f":"IF(ISERROR(VLOOKUP(K144,Proposito_programa!$C$2:$E$59,3,FALSE)),\" \",VLOOKUP(K144,Proposito_programa!$C$2:$E$59,3,FALSE))","v":"Propósito 1: Hacer un nuevo contrato social para incrementar la inclusión social, productiva y política"},"133011603450000002080",0,80032090,"MAURICIO ALEXIS RIVEROS QUINTERO","Persona Natural","N/A","N/A","N/A",24000000,null,null,null,24000000,21000000,"2021-09-02","2021-09-06","2022-01-05","4 MESES",null,null,null,null,null,null,null,null,"X",null,0.875]
["129-2021",2021,"FDLM-CD-127-2021 (61137)","https://community.secop.gov.co/Public/Tendering/OpportunityDetail/Index?noticeUID=CO1.NTC.2220543&isFromPublicArea=True&isModal=False\n","Contratos de prestación de servicios profesionales y de apoyo a la gestión","Contratación directa","Prestación de servicios profesionales y de apoyo a la gestión, o para la ejecución de trabajos artísticos que sólo puedan encomendarse a determinadas personas naturales;","PRESTAR LOS SERVICIOS PROFESIONALES PARA LIDERAR EL EQUIPO QUE TIENE A SU CARGO EL APOYO EN LA FORMULACIÓN, PROYECCIÓN, CONCERTACIÓN, FOMENTO A LA PARTICIPACIÓN Y PUESTA EN MARCHA DE LOS ACUERDOS LOCALES DE ESPACIO PÚBLICO CONTENIDOS EN EL MARCO DEL PROYECTO 2080 DENOMINADO PAISAJE URBANO AMIGABLE Y SEGURO, EN CUMPLIMIENTO DEL PLAN DE DESARROLLO LOCAL Y DISTRITAL","Inversión","Un Nuevo Contrato Social y Ambiental para la Bogotá del Siglo XXI",3,{"$f":"IF(ISERROR(VLOOKUP(K145,Proposito_programa!$C$2:$E$59,2,FALSE)),\" \",VLOOKUP(K145,Proposito_programa!$C$2:$E$59,2,FALSE))","v":"Movilidad social integral"},{"$f":"IF(ISERROR(VLOOKUP(K145,Proposito_programa!$C$2:$E$59,3,FALSE)),\" \",VLOOKUP(K145,Proposito_programa!$C$2:$E$59,3,FALSE))","v":"Propósito 1: Hacer un nuevo contrato social para incrementar la inclusión social, productiva y política"},"133011603450000002080",0,31152253,"MARIA DEL ROSARIO VALDERRUTEN BUENO","Persona Natural","N/A","N/A","N/A",24000000,null,null,null,{"$f":"+V145+W145+Y145","v":24000000},17000000,"2021-09-03","2021-09-06","2022-01-05","4 MESES",null,null,null,null,null,null,null,null,"X",null,{"$f":"IF(ISERROR(AA145/Z145),\"-\",(AA145/Z145))","v":0.70833333333333337}]
["130-2021",2021,"FDLM-CD-130-2021 (61140)","https://community.secop.gov.co/Public/Tendering/OpportunityDetail/Index?noticeUID=CO1.NTC.2220947&isFromPublicArea=True&isModal=False","Contratos de prestación de servicios profesionales y de apoyo a la gestión","Contratación directa","Prestación de servicios profesionales y de apoyo a la gestión, o para la ejecución de trabajos artísticos que sólo puedan encomendarse a determinadas personas naturales;","CONTRATAR LA PRESTACIÓN DE SERVICIOS PROFESIONALES PARA EL SEGUIMIENTO ADMINISTRATIVO Y FINANCIERO DEL PROYECTO 2085 Y DEMÁS PROYECTOS DE INVERSIÓN DE LA ALCALDÍA LOCAL DE LOS MÁRTIRES, EN CUMPLIMIENTO DEL PLAN DE DESARROLLO LOCAL Y DISTRITAL.","Inversión","Un Nuevo Contrato Social y Ambiental para la Bogotá del Siglo XXI",3,{"$f":"IF(ISERROR(VLOOKUP(K146,Proposito_programa!$C$2:$E$59,2,FALSE)),\" \",VLOOKUP(K146,Proposito_programa!$C$2:$E$59,2,FALSE))","v":"Movilidad social integral"},{"$f":"IF(ISERROR(VLOOKUP(K146,Proposito_programa!$C$2:$E$59,3,FALSE)),\" \",VLOOKUP(K146,Proposito_programa!$C$2:$E$59,3,FALSE))","v":"Propósito 1: Hacer un nuevo contrato social para incrementar la inclusión social, productiva y política"},"133011602340000002085",0,1016026075,"DANNA SALOME MARTINEZ RAMIREZ","Persona Natural","N/A","N/A","N/A",24000000,null,null,null,24000000,17000000,"2021-09-02","2021-09-06","2022-01-05","4 MESES",null,null,null,null,null,null,null,null,"X",null,0.70833333333333337]
["131-2021",2021,"FDLM-MC-009-2021","https://community.secop.gov.co/Public/Tendering/OpportunityDetail/Index?noticeUID=CO1.NTC.2206251&isFromPublicArea=True&isModal=False\n","Seguros","Contratación directa","No aplica","CONTRATAR EL SEGURO DE VIDA GRUPO PARA LOS EDILES DEL FONDO DE DESA-RROLLO LOCAL DE LOS MARTIRES","Funcionamiento","Un Nuevo Contrato Social y Ambiental para la Bogotá del Siglo XXI","No aplica",{"$f":"IF(ISERROR(VLOOKUP(K147,Proposito_programa!$C$2:$E$59,2,FALSE)),\" \",VLOOKUP(K147,Proposito_programa!$C$2:$E$59,2,FALSE))","v":" "},{"$f":"IF(ISERROR(VLOOKUP(K147,Proposito_programa!$C$2:$E$59,3,FALSE)),\" \",VLOOKUP(K147,Proposito_programa!$C$2:$E$59,3,FALSE))","v":" "},"131020202030501",0,860037013,"COMPAÑIA MUNDIAL DE SEGUROS S.A.","Persona Jurídica","N/A","N/A","N/A",4183800,null,null,null,4183800,4183800,"2021-09-06","2021-09-06","2022-06-11","276 DIAS",null,null,null,null,null,null,null,"X",null,null,1]
["132-2021",2021,"FDLM-MC-008-2021.","https://community.secop.gov.co/Public/Tendering/OpportunityDetail/Index?noticeUID=CO1.NTC.2206526&isFromPublicArea=True&isModal=False\n","Suministro","Contratación mínima cuantia","No aplica","CONTRATAR EL SUMINISTRO DE RE-FRIGERIOS Y/O ALIMENTOS PREPA-RADOS A PRECIOS UNITARIOS Y A MONTO AGOTABLE, NECESARIOS EN LAS DIFERENTES ACTIVIDADES QUE REALIZA LA ADMINISTRACIÓN LOCAL DE LOS MÁRTIRES","Funcionamiento","Un Nuevo Contrato Social y Ambiental para la Bogotá del Siglo XXI","No aplica",{"$f":"IF(ISERROR(VLOOKUP(K148,Proposito_programa!$C$2:$E$59,2,FALSE)),\" \",VLOOKUP(K148,Proposito_programa!$C$2:$E$59,2,FALSE))","v":" "},{"$f":"IF(ISERROR(VLOOKUP(K148,Proposito_programa!$C$2:$E$59,3,FALSE)),\" \",VLOOKUP(K148,Proposito_programa!$C$2:$E$59,3,FALSE))","v":" "},"1310202020101",0,901461046,"ALFA LOGISTIC SG SAS","Persona Jurídica","N/A","N/A","N/A",25438728,null,null,null,25438728,25438728,"2021-09-06","2021-09-15","2022-03-14","6 MESES",null,null,null,null,null,null,null,null,"X",null,1]
["133-2021",2021,"FDLM-PSAMC-01-2021","https://community.secop.gov.co/Public/Tendering/OpportunityDetail/Index?noticeUID=CO1.NTC.2179751&isFromPublicArea=True&isModal=False\n","Contratos de prestación de servicios","Contratación directa","No aplica","PRESTAR LOS SERVICIOS PROFESIONALES, TÉCNICOS Y LOGÍSTICOS PARA REALIZAR ACCIONES QUE PROMUEVAN EL EMPODERAMIENTO Y DESARROLLO DE ESTRATEGIAS DE CUIDADO PARA LAS MUJERES CUIDADORAS EN TODAS SUS CONDICIONES Y DIVERSIDADES DE LA LOCALIDAD DE LOS MÁRTIRES, EN EL MARCO DEL PROYECTO NO. 2065","Inversión","Un Nuevo Contrato Social y Ambiental para la Bogotá del Siglo XXI",3,{"$f":"IF(ISERROR(VLOOKUP(K149,Proposito_programa!$C$2:$E$59,2,FALSE)),\" \",VLOOKUP(K149,Proposito_programa!$C$2:$E$59,2,FALSE))","v":"Movilidad social integral"},{"$f":"IF(ISERROR(VLOOKUP(K149,Proposito_programa!$C$2:$E$59,3,FALSE)),\" \",VLOOKUP(K149,Proposito_programa!$C$2:$E$59,3,FALSE))","v":"Propósito 1: Hacer un nuevo contrato social para incrementar la inclusión social, productiva y política"},"133011601060000002065",0,830133329,"FUNDACION PARA EL DESARROLLO SOCIOCULTURAL DEPORTIVO Y COMUNITARIO FUNDESCO","Persona Jurídica","N/A","N/A","N/A",206179984,null,null,null,206179984,35123612,"2021-09-07","2021-09-13","2022-02-12","5 MESES",null,null,null,null,null,null,null,null,"X",null,0.17035413098101704]
["134-2021",2021,"FDLM-LP-01-2021","https://community.secop.gov.co/Public/Tendering/OpportunityDetail/Index?noticeUID=CO1.NTC.2126646&isFromPublicArea=True&isModal=False\n","Contratos de prestación de servicios","Contratación directa","Prestación de servicios profesionales y de apoyo a la gestión, o para la ejecución de trabajos artísticos que sólo puedan encomendarse a determinadas personas naturales;","PRESTAR LOS SERVICIOS PROFESIONALES, TÉCNICOS Y LOGÍSTICOS PARA REALIZAR ACCIONES DE EMPODERAMIENTO Y DESARROLLO DE CAPACIDADES QUE FORTALEZCAN LA CONSTRUCCIÓN DE CIUDADANÍA, LA PROMOCION DE LOS DERECHOS DE LAS MUJERES Y LA PREVENCIÓN DEL FEMINICIDIO Y OTRAS VIOLENCIAS EN CONTRA DE LAS MUJERES EN TODAS SUS DIVERSIDADES Y CONDICIONES DE LA LOCALIDAD DE LOS MÁRTIRES","Inversión","Un Nuevo Contrato Social y Ambiental para la Bogotá del Siglo XXI",3,{"$f":"IF(ISERROR(VLOOKUP(K150,Proposito_programa!$C$2:$E$59,2,FALSE)),\" \",VLOOKUP(K150,Proposito_programa!$C$2:$E$59,2,FALSE))","v":"Movilidad social integral"},{"$f":"IF(ISERROR(VLOOKUP(K150,Proposito_programa!$C$2:$E$59,3,FALSE)),\" \",VLOOKUP(K150,Proposito_programa!$C$2:$E$59,3,FALSE))","v":"Propósito 1: Hacer un nuevo contrato social para incrementar la inclusión social, productiva y política"},"133011603400000002089",0,830145974,"CORPORACION ACADEMICA Y DE INVESTIGACION PARA EL DESARROLLO LA COMUNICACION Y LA CULTURA","Persona Jurídica","N/A","N/A","N/A",288530018,null,null,null,288530018,11900000,"2021-09-07","2021-11-02","2022-05-01","6 MESES",null,null,null,null,null,null,null,null,"X",null,4.124354229236557E-2]
["135-2021",2021,"FDLM-135-2021","https://community.secop.gov.co/Public/Tendering/OpportunityDetail/Index?noticeUID=CO1.NTC.2241172&isFromPublicArea=True&isModal=False\n","Contratos de prestación de servicios profesionales y de apoyo a la gestión","Contratación directa","Prestación de servicios profesionales y de apoyo a la gestión, o para la ejecución de trabajos artísticos que sólo puedan encomendarse a determinadas personas naturales;","PRESTAR LOS SERVICIOS PROFESIONALES PARA APOYAR LA FORMULACIÓN, GESTIÓN Y SEGUIMIENTO DE LAS ACTIVIDADES DEL FONDO DE DESARROLLO LOCAL ENFOCADA A LA GESTIÓN ADMINISTRATIVA DE LOS ACUERDOS PARA LA VINCULACIÓN DE LA CIUDADANÍA EN LOS PROGRAMAS ADELANTADOS POR EL IDRD Y ACUERDOS CON VENDEDORES INFORMALES O ESTACIONARIOS DE LA LOCALIDAD DE LOS MÁRTIRES.","Inversión","Un Nuevo Contrato Social y Ambiental para la Bogotá del Siglo XXI",3,{"$f":"IF(ISERROR(VLOOKUP(K151,Proposito_programa!$C$2:$E$59,2,FALSE)),\" \",VLOOKUP(K151,Proposito_programa!$C$2:$E$59,2,FALSE))","v":"Movilidad social integral"},{"$f":"IF(ISERROR(VLOOKUP(K151,Proposito_programa!$C$2:$E$59,3,FALSE)),\" \",VLOOKUP(K151,Proposito_programa!$C$2:$E$59,3,FALSE))","v":"Propósito 1: Hacer un nuevo contrato social para incrementar la inclusión social, productiva y política"},"133011603450000002080",0,19396517,"HECTOR ALFONSO DELGADO RODRIGUEZ","Persona Natural","N/A","N/A","N/A",15263500,null,null,null,15263500,10902500,"2021-09-10","2021-09-14","2021-12-28","105 DIAS",null,null,null,null,null,null,null,null,"X",null,0.7142857142857143]
["136-2021",2021,"FDLM-CD-136-2021 (61558)","https://community.secop.gov.co/Public/Tendering/OpportunityDetail/Index?noticeUID=CO1.NTC.2234088&isFromPublicArea=True&isModal=False\n","Contratos de prestación de servicios profesionales y de apoyo a la gestión","Contratación directa","Prestación de servicios profesionales y de apoyo a la gestión, o para la ejecución de trabajos artísticos que sólo puedan encomendarse a determinadas personas naturales;","PRESTAR SERVICIOS PROFESIONALES A LA ALCALDÍA LOCAL DE MÁRTIRES, PARA APOYAR EL DISEÑO E IMPLEMENTACIÓN DEL PROGRAMA PEDAGOGICO DE RESOLUCION EN CONFLICTOS, ENFOCADA EN LA RESOLUCIÓN DE CONFLICTOS ESCOLARES, DE ACUERDO CON LOS LINEAMIENTOS DADOS POR EL DISTRITO, EN PROYECTO NO. 2098","Inversión","Un Nuevo Contrato Social y Ambiental para la Bogotá del Siglo XXI",3,{"$f":"IF(ISERROR(VLOOKUP(K152,Proposito_programa!$C$2:$E$59,2,FALSE)),\" \",VLOOKUP(K152,Proposito_programa!$C$2:$E$59,2,FALSE))","v":"Movilidad social integral"},{"$f":"IF(ISERROR(VLOOKUP(K152,Proposito_programa!$C$2:$E$59,3,FALSE)),\" \",VLOOKUP(K152,Proposito_programa!$C$2:$E$59,3,FALSE))","v":"Propósito 1: Hacer un nuevo contrato social para incrementar la inclusión social, productiva y política"},"133011603480000002098",0,1026572572,"JUAN CARLOS SANCHEZ SOLANO","Persona Natural","N/A","N/A","N/A",15750000,null,null,null,15750000,14700000,"2021-09-09","2021-06-13","2021-12-28","105 DIAS",null,null,null,null,null,null,null,null,"X",null,0.93333333333333335]
["137-2021",2021,"FDLM-CD-137-2021 (27782)","https://community.secop.gov.co/Public/Tendering/OpportunityDetail/Index?noticeUID=CO1.NTC.2238110&isFromPublicArea=True&isModal=False\n","Contratos de prestación de servicios profesionales y de apoyo a la gestión","Contratación directa","Prestación de servicios profesionales y de apoyo a la gestión, o para la ejecución de trabajos artísticos que sólo puedan encomendarse a determinadas personas naturales;","PRESTAR SERVICIOS PROFESIONALES A LA ALCALDÍA LOCAL DE MÁRTIRES, PARA APOYAR EL DISEÑO E IMPLEMENTACIÓN DEL PROGRAMA PEDAGOGICO DE RESOLUCION EN CONFLICTOS, ENFOCADA EN LA RESOLUCIÓN DE CONFLICTOS ESCOLARES, DE ACUERDO CON LOS LINEAMIENTOS DADOS POR EL DISTRITO, EN PROYECTO NO. 2098","Inversión","Un Nuevo Contrato Social y Ambiental para la Bogotá del Siglo XXI",3,{"$f":"IF(ISERROR(VLOOKUP(K153,Proposito_programa!$C$2:$E$59,2,FALSE)),\" \",VLOOKUP(K153,Proposito_programa!$C$2:$E$59,2,FALSE))","v":"Movilidad social integral"},{"$f":"IF(ISERROR(VLOOKUP(K153,Proposito_programa!$C$2:$E$59,3,FALSE)),\" \",VLOOKUP(K153,Proposito_programa!$C$2:$E$59,3,FALSE))","v":"Propósito 1: Hacer un nuevo contrato social para incrementar la inclusión social, productiva y política"},"133011603480000002098",0,52774562,"LINDAKATHERINE HERNANDEZ GUZMAN","Persona Natural","N/A","N/A","N/A",15750000,null,null,null,15750000,14250000,"2021-09-09","2021-09-16","2021-12-30","105 DIAS",null,null,null,null,null,null,null,null,"X",null,0.90476190476190477]
["138-2021",2021,"FDLM- CD - 138-2021 P (61125)","https://community.secop.gov.co/Public/Tendering/OpportunityDetail/Index?noticeUID=CO1.NTC.2238232&isFromPublicArea=True&isModal=False","Contratos de prestación de servicios profesionales y de apoyo a la gestión","Contratación directa","Prestación de servicios profesionales y de apoyo a la gestión, o para la ejecución de trabajos artísticos que sólo puedan encomendarse a determinadas personas naturales;","PRESTAR LOS SERVICIOS PROFESIONALES COMO ABOGADO PARA APOYAR LOS ASUNTOS JURÍDICOS DEL ESPACIO PÚBLICO Y OTRAS MATERIAS QUE SE REQUIERAN EN EL MARCO DEL PROYECTO 2080 PAISAJE URBANO AMIGABLE Y SEGURO","Inversión","Un Nuevo Contrato Social y Ambiental para la Bogotá del Siglo XXI",3,{"$f":"IF(ISERROR(VLOOKUP(K154,Proposito_programa!$C$2:$E$59,2,FALSE)),\" \",VLOOKUP(K154,Proposito_programa!$C$2:$E$59,2,FALSE))","v":"Movilidad social integral"},{"$f":"IF(ISERROR(VLOOKUP(K154,Proposito_programa!$C$2:$E$59,3,FALSE)),\" \",VLOOKUP(K154,Proposito_programa!$C$2:$E$59,3,FALSE))","v":"Propósito 1: Hacer un nuevo contrato social para incrementar la inclusión social, productiva y política"},"133011603450000002080",0,1026274713,"RICARDO ERNESTO SANCHEZ MENESES","Persona Natural","N/A","N/A","N/A",20000000,null,null,null,20000000,12500000,"2021-09-10","2021-09-16","2022-01-15","4 MESES",null,null,null,null,null,null,null,null,"X",null,0.625]
["139-2021",2021,"FDLM-139-2021 CONV-INT (62243)","https://community.secop.gov.co/Public/Tendering/OpportunityDetail/Index?noticeUID=CO1.NTC.2241075&isFromPublicArea=True&isModal=False","Convenios de apoyo y/o convenios de asociación ","Contratación directa","Prestación de servicios profesionales y de apoyo a la gestión, o para la ejecución de trabajos artísticos que sólo puedan encomendarse a determinadas personas naturales;","AUNAR ESFUERZOS TÉCNICOS, ADMINISTRATIVOS Y FINANCIEROS PARA LA GENERACIÓN DE PROCESOS DE FORTALECIMIENTO DE LAS MIPYMES, FOMENTO Y PROMOCIÓN DE CAMBIOS EN CULTURA CIUDADANA EN SEPARACIÓN EN LA FUENTE Y EL DISEÑO Y EJECUCIÓN DE TRES (3) PROCESOS COMUNITARIOS DE EDUCACIÓN AMBIENTAL PROCEDA, EN LA LOCALIDAD DE LOS MÁRTIRES","Inversión","Un Nuevo Contrato Social y Ambiental para la Bogotá del Siglo XXI",3,{"$f":"IF(ISERROR(VLOOKUP(K155,Proposito_programa!$C$2:$E$59,2,FALSE)),\" \",VLOOKUP(K155,Proposito_programa!$C$2:$E$59,2,FALSE))","v":"Movilidad social integral"},{"$f":"IF(ISERROR(VLOOKUP(K155,Proposito_programa!$C$2:$E$59,3,FALSE)),\" \",VLOOKUP(K155,Proposito_programa!$C$2:$E$59,3,FALSE))","v":"Propósito 1: Hacer un nuevo contrato social para incrementar la inclusión social, productiva y política"},"133011601060000002060",0,900068796,"\tINFOTIC S.A.","Persona Jurídica","N/A","N/A","N/A",967107000,null,null,null,967107000,216621400,"2021-09-10","2021-09-20","2022-03-19","6 MESES",null,null,null,null,null,null,null,null,"X",null,0.22398907256384248]
["139-2021",2021,"FDLM-139-2021 CONV-INT (62243)","https://community.secop.gov.co/Public/Tendering/OpportunityDetail/Index?noticeUID=CO1.NTC.2241075&isFromPublicArea=True&isModal=False","Convenios de apoyo y/o convenios de asociación ","Contratación directa","Prestación de servicios profesionales y de apoyo a la gestión, o para la ejecución de trabajos artísticos que sólo puedan encomendarse a determinadas personas naturales;","AUNAR ESFUERZOS TÉCNICOS, ADMINISTRATIVOS Y FINANCIEROS PARA LA GENERACIÓN DE PROCESOS DE FORTALECIMIENTO DE LAS MIPYMES, FOMENTO Y PROMOCIÓN DE CAMBIOS EN CULTURA CIUDADANA EN SEPARACIÓN EN LA FUENTE Y EL DISEÑO Y EJECUCIÓN DE TRES (3) PROCESOS COMUNITARIOS DE EDUCACIÓN AMBIENTAL PROCEDA, EN LA LOCALIDAD DE LOS MÁRTIRES","Inversión","Un Nuevo Contrato Social y Ambiental para la Bogotá del Siglo XXI",3,{"$f":"IF(ISERROR(VLOOKUP(K156,Proposito_programa!$C$2:$E$59,2,FALSE)),\" \",VLOOKUP(K156,Proposito_programa!$C$2:$E$59,2,FALSE))","v":"Movilidad social integral"},{"$f":"IF(ISERROR(VLOOKUP(K156,Proposito_programa!$C$2:$E$59,3,FALSE)),\" \",VLOOKUP(K156,Proposito_programa!$C$2:$E$59,3,FALSE))","v":"Propósito 1: Hacer un nuevo contrato social para incrementar la inclusión social, productiva y política"},"133011602270000002086",0,900068796,"\tINFOTIC S.A.","Persona Jurídica","N/A","N/A","N/A",149108000,null,null,null,{"$f":"+V156+W156+Y156","v":149108000},25577200,"2021-09-10","2021-09-20","2022-03-19","6 MESES",null,null,null,null,null,null,null,null,"X",null,{"$f":"IF(ISERROR(AA156/Z156),\"-\",(AA156/Z156))","v":0.17153472650696139}]
["139-2021",2021,"FDLM-139-2021 CONV-INT (62243)","https://community.secop.gov.co/Public/Tendering/OpportunityDetail/Index?noticeUID=CO1.NTC.2241075&isFromPublicArea=True&isModal=False","Convenios de apoyo y/o convenios de asociación ","Contratación directa","Prestación de servicios profesionales y de apoyo a la gestión, o para la ejecución de trabajos artísticos que sólo puedan encomendarse a determinadas personas naturales;","AUNAR ESFUERZOS TÉCNICOS, ADMINISTRATIVOS Y FINANCIEROS PARA LA GENERACIÓN DE PROCESOS DE FORTALECIMIENTO DE LAS MIPYMES, FOMENTO Y PROMOCIÓN DE CAMBIOS EN CULTURA CIUDADANA EN SEPARACIÓN EN LA FUENTE Y EL DISEÑO Y EJECUCIÓN DE TRES (3) PROCESOS COMUNITARIOS DE EDUCACIÓN AMBIENTAL PROCEDA, EN LA LOCALIDAD DE LOS MÁRTIRES","Inversión","Un Nuevo Contrato Social y Ambiental para la Bogotá del Siglo XXI",3,{"$f":"IF(ISERROR(VLOOKUP(K157,Proposito_programa!$C$2:$E$59,2,FALSE)),\" \",VLOOKUP(K157,Proposito_programa!$C$2:$E$59,2,FALSE))","v":"Movilidad social integral"},{"$f":"IF(ISERROR(VLOOKUP(K157,Proposito_programa!$C$2:$E$59,3,FALSE)),\" \",VLOOKUP(K157,Proposito_programa!$C$2:$E$59,3,FALSE))","v":"Propósito 1: Hacer un nuevo contrato social para incrementar la inclusión social, productiva y política"},"133011602380000002084",0,900068796,"\tINFOTIC S.A.","Persona Jurídica","N/A","N/A","N/A",280000000,null,null,null,280000000,71400000,"2021-09-10","2021-09-20","2022-03-19","6 MESES",null,null,null,null,null,null,null,null,"X",null,0.255]
["140-2021",2021,"FDLM-CD-140-2021 (61558)","https://community.secop.gov.co/Public/Tendering/OpportunityDetail/Index?noticeUID=CO1.NTC.2241005&isFromPublicArea=True&isModal=False","Contratos de prestación de servicios profesionales y de apoyo a la gestión","Contratación directa","Prestación de servicios profesionales y de apoyo a la gestión, o para la ejecución de trabajos artísticos que sólo puedan encomendarse a determinadas personas naturales;","PRESTAR SERVICIOS PROFESIONALES A LA ALCALDÍA LOCAL DE MÁRTIRES, PARA APOYAR EL DISEÑO E IMPLEMENTACIÓN DEL PROGRAMA PEDAGÓGICO DE RESOLUCIÓN EN CONFLICTOS, ENFOCADA EN LA RESOLUCIÓN DE CONFLICTOS ESCOLARES, DE ACUERDO CON LOS LINEAMIENTOS DADOS POR EL DISTRITO, EN PROYECTO NO. 2098.","Inversión","Un Nuevo Contrato Social y Ambiental para la Bogotá del Siglo XXI",3,{"$f":"IF(ISERROR(VLOOKUP(K158,Proposito_programa!$C$2:$E$59,2,FALSE)),\" \",VLOOKUP(K158,Proposito_programa!$C$2:$E$59,2,FALSE))","v":"Movilidad social integral"},{"$f":"IF(ISERROR(VLOOKUP(K158,Proposito_programa!$C$2:$E$59,3,FALSE)),\" \",VLOOKUP(K158,Proposito_programa!$C$2:$E$59,3,FALSE))","v":"Propósito 1: Hacer un nuevo contrato social para incrementar la inclusión social, productiva y política"},"133011603480000002098",0,80000689,"\tWILLIAM DONALDO ALVAREZ CABALLERO","Persona Natural","N/A","N/A","N/A",15750000,null,null,null,15750000,14400000,"2021-09-10","2021-09-15","2021-12-30","105 DIAS",null,null,null,null,null,null,null,null,"X",null,0.91428571428571426]
["141-2021",2021,"FDLM-CD-141-2021 (61558)","https://community.secop.gov.co/Public/Tendering/OpportunityDetail/Index?noticeUID=CO1.NTC.2240986&isFromPublicArea=True&isModal=False","Contratos de prestación de servicios profesionales y de apoyo a la gestión","Contratación directa","Prestación de servicios profesionales y de apoyo a la gestión, o para la ejecución de trabajos artísticos que sólo puedan encomendarse a determinadas personas naturales;","PRESTAR SERVICIOS PROFESIONALES A LA ALCALDÍA LOCAL DE MÁRTIRES, PARA APOYAR EL DISEÑO E IMPLEMENTACIÓN DEL PROGRAMA PEDAGÓGICO DE RESOLUCIÓN EN CONFLICTOS, ENFOCADA EN LA RESOLUCIÓN DE CONFLICTOS ESCOLARES, DE ACUERDO CON LOS LINEAMIENTOS DADOS POR EL DISTRITO, EN PROYECTO NO. 2098.","Inversión","Un Nuevo Contrato Social y Ambiental para la Bogotá del Siglo XXI",3,{"$f":"IF(ISERROR(VLOOKUP(K159,Proposito_programa!$C$2:$E$59,2,FALSE)),\" \",VLOOKUP(K159,Proposito_programa!$C$2:$E$59,2,FALSE))","v":"Movilidad social integral"},{"$f":"IF(ISERROR(VLOOKUP(K159,Proposito_programa!$C$2:$E$59,3,FALSE)),\" \",VLOOKUP(K159,Proposito_programa!$C$2:$E$59,3,FALSE))","v":"Propósito 1: Hacer un nuevo contrato social para incrementar la inclusión social, productiva y política"},"133011603480000002098",0,51877535,"AMANDA LUCIA GALINDO PEÑALOSA","Persona Natural","N/A","N/A","N/A",15750000,null,null,null,15750000,14400000,"2021-09-10","2021-09-15","2021-12-30","105 DIAS",null,null,null,null,null,null,null,null,"X",null,0.91428571428571426]
["142-2021",2021,"FDLM-CD-142-2021 (27927)","https://community.secop.gov.co/Public/Tendering/OpportunityDetail/Index?noticeUID=CO1.NTC.2241074&isFromPublicArea=True&isModal=False","Contratos de prestación de servicios profesionales y de apoyo a la gestión","Contratación directa","Prestación de servicios profesionales y de apoyo a la gestión, o para la ejecución de trabajos artísticos que sólo puedan encomendarse a determinadas personas naturales;","APOYAR JURIDICAMENTE LA EJECUCIÓN DE ACCIONES REQUERIDAS PARA EL TRÁMITE E IMPULSO PROCESAL DE LAS ACTUACIONES CONTRAVENCIONALES Y/O QUERELLAS QUE CURSEN EN LAS INSPECCIONES DE POLICÍA DE LA LOCALIDAD DE LOS MÁRTIRES.","Inversión","Un Nuevo Contrato Social y Ambiental para la Bogotá del Siglo XXI",3,{"$f":"IF(ISERROR(VLOOKUP(K160,Proposito_programa!$C$2:$E$59,2,FALSE)),\" \",VLOOKUP(K160,Proposito_programa!$C$2:$E$59,2,FALSE))","v":"Movilidad social integral"},{"$f":"IF(ISERROR(VLOOKUP(K160,Proposito_programa!$C$2:$E$59,3,FALSE)),\" \",VLOOKUP(K160,Proposito_programa!$C$2:$E$59,3,FALSE))","v":"Propósito 1: Hacer un nuevo contrato social para incrementar la inclusión social, productiva y política"},"133011605570000002099",0,1010197465,"MANUEL ALEJANDRO GRISALES LOAIZA","Persona Natural","N/A","N/A","N/A",17150000,null,null,null,17150000,17150000,"2021-09-10","2021-09-16","2021-12-30","105 DIAS",null,null,null,null,null,null,null,null,"X",null,1]
["143-2021",2021,"DFLM-CD-P-143-2021 (61782)","https://community.secop.gov.co/Public/Tendering/OpportunityDetail/Index?noticeUID=CO1.NTC.2246328&isFromPublicArea=True&isModal=False","Contratos de prestación de servicios profesionales y de apoyo a la gestión","Contratación directa","Prestación de servicios profesionales y de apoyo a la gestión, o para la ejecución de trabajos artísticos que sólo puedan encomendarse a determinadas personas naturales;","APOYAR TÉCNICAMENTE LAS DISTINTAS ETAPAS DE LOS PROCESOS DE COMPETENCIA DE LA ALCALDÍA LOCAL PARA LA DEPURACIÓN DE ACTUACIONES ADMINISTRATIVAS","Inversión","Un Nuevo Contrato Social y Ambiental para la Bogotá del Siglo XXI",3,{"$f":"IF(ISERROR(VLOOKUP(K161,Proposito_programa!$C$2:$E$59,2,FALSE)),\" \",VLOOKUP(K161,Proposito_programa!$C$2:$E$59,2,FALSE))","v":"Movilidad social integral"},{"$f":"IF(ISERROR(VLOOKUP(K161,Proposito_programa!$C$2:$E$59,3,FALSE)),\" \",VLOOKUP(K161,Proposito_programa!$C$2:$E$59,3,FALSE))","v":"Propósito 1: Hacer un nuevo contrato social para incrementar la inclusión social, productiva y política"},"133011605570000002099",0,79749022,"FREDDY RICARDO BRIÑEZ MONTOYA","Persona Natural","N/A","N/A","N/A",12492500,null,null,null,12492500,12492500,"2021-09-13","2021-09-17","2021-12-01","75 DIAS",null,null,null,null,null,null,null,null,"X",null,1]
["144-2021",2021,"FDLM-CD-144-2021 (61320)","https://community.secop.gov.co/Public/Tendering/OpportunityDetail/Index?noticeUID=CO1.NTC.2246156&isFromPublicArea=True&isModal=False","Contratos de prestación de servicios profesionales y de apoyo a la gestión","Contratación directa","Prestación de servicios profesionales y de apoyo a la gestión, o para la ejecución de trabajos artísticos que sólo puedan encomendarse a determinadas personas naturales;","PRESTACIÓN DE SERVICIOS DE APOYO A LA GESTION EN LA IMPLEMENTACION DE ESTRATEGIAS DE INTERVENCION QUE PROPENDAN POR LA REDUCCION DEL RIESGO Y ADAPTACION AL CAMBIO CLIMATICO EN LA LOCALIDAD DE LOS MÁRTIRES, EN EL MARCO DEL PROYECTO NO. 2088","Inversión","Un Nuevo Contrato Social y Ambiental para la Bogotá del Siglo XXI",3,{"$f":"IF(ISERROR(VLOOKUP(K162,Proposito_programa!$C$2:$E$59,2,FALSE)),\" \",VLOOKUP(K162,Proposito_programa!$C$2:$E$59,2,FALSE))","v":"Movilidad social integral"},{"$f":"IF(ISERROR(VLOOKUP(K162,Proposito_programa!$C$2:$E$59,3,FALSE)),\" \",VLOOKUP(K162,Proposito_programa!$C$2:$E$59,3,FALSE))","v":"Propósito 1: Hacer un nuevo contrato social para incrementar la inclusión social, productiva y política"},"133011602380000002088",0,1121914746,"GINA PAOLA ALBARRACIN FAJARDO","Persona Natural","N/A","N/A","N/A",8750000,null,null,null,8750000,735500,"2021-09-14","2021-09-16","2021-12-30","105 DIAS",null,null,null,null,null,null,null,null,"X",null,8.4057142857142858E-2]
["145-2021",2021,"FDLM-CD-145-2021 (61782)","https://community.secop.gov.co/Public/Tendering/OpportunityDetail/Index?noticeUID=CO1.NTC.2246608&isFromPublicArea=True&isModal=False","Contratos de prestación de servicios profesionales y de apoyo a la gestión","Contratación directa","Prestación de servicios profesionales y de apoyo a la gestión, o para la ejecución de trabajos artísticos que sólo puedan encomendarse a determinadas personas naturales;","APOYAR TÉCNICAMENTE LAS DISTINTAS ETAPAS DE LOS PROCESOS DE COMPETENCIA DE LA ALCALDÍA LOCAL PARA LA DEPURACIÓN DE ACTUACIONES ADMINISTRATIVAS","Inversión","Un Nuevo Contrato Social y Ambiental para la Bogotá del Siglo XXI",3,{"$f":"IF(ISERROR(VLOOKUP(K163,Proposito_programa!$C$2:$E$59,2,FALSE)),\" \",VLOOKUP(K163,Proposito_programa!$C$2:$E$59,2,FALSE))","v":"Movilidad social integral"},{"$f":"IF(ISERROR(VLOOKUP(K163,Proposito_programa!$C$2:$E$59,3,FALSE)),\" \",VLOOKUP(K163,Proposito_programa!$C$2:$E$59,3,FALSE))","v":"Propósito 1: Hacer un nuevo contrato social para incrementar la inclusión social, productiva y política"},"133011605570000002099",0,79996671,"CARLOS ANDRES SERRANO GARZON","Persona Natural","N/A","N/A","N/A",12492500,null,null,null,12492500,12492500,"2021-09-13","2021-09-17","2021-12-02","75 DIAS",null,null,null,null,null,null,null,null,"X",null,1]
["146-2021",2021,"FDLM-CD-146-2021 (62028)","https://community.secop.gov.co/Public/Tendering/OpportunityDetail/Index?noticeUID=CO1.NTC.2248874&isFromPublicArea=True&isModal=False","Contratos de prestación de servicios profesionales y de apoyo a la gestión","Contratación directa","Prestación de servicios profesionales y de apoyo a la gestión, o para la ejecución de trabajos artísticos que sólo puedan encomendarse a determinadas personas naturales;","PRESTAR LOS SERVICIOS PROFESIONALES PARA APOYAR LA FORMULACIÓN, GESTIÓN Y SEGUIMIENTO DE LAS ACTIVIDADES DEL FONDO DE DESARROLLO LOCAL ENFOCADA A LA GESTIÓN ADMINISTRATIVA DE LOS ACUERDOS PARA LA VINCULACIÓN DE LA CIUDADANÍA EN LOS PROGRAMAS ADELANTADOS POR EL IDRD Y ACUERDOS CON VENDEDORES INFORMALES O ESTACIONARIOS DE LA LOCALIDAD DE LOS MÁRTIRES.","Inversión","Un Nuevo Contrato Social y Ambiental para la Bogotá del Siglo XXI",3,{"$f":"IF(ISERROR(VLOOKUP(K164,Proposito_programa!$C$2:$E$59,2,FALSE)),\" \",VLOOKUP(K164,Proposito_programa!$C$2:$E$59,2,FALSE))","v":"Movilidad social integral"},{"$f":"IF(ISERROR(VLOOKUP(K164,Proposito_programa!$C$2:$E$59,3,FALSE)),\" \",VLOOKUP(K164,Proposito_programa!$C$2:$E$59,3,FALSE))","v":"Propósito 1: Hacer un nuevo contrato social para incrementar la inclusión social, productiva y política"},"133011603450000002080",0,16187576,"\tJULIO CABRERA ZAPATA","Persona Natural","N/A","N/A","N/A",15263500,null,null,null,15263500,10902500,"2021-09-14","2021-09-16","2021-12-31","105 DIAS",null,null,null,null,null,null,null,null,"X",null,0.7142857142857143]
["147-2021",2021,"FDLM-CD-147-2021 (61794)","https://community.secop.gov.co/Public/Tendering/OpportunityDetail/Index?noticeUID=CO1.NTC.2249547&isFromPublicArea=True&isModal=False","Contratos de prestación de servicios profesionales y de apoyo a la gestión","Contratación directa","Prestación de servicios profesionales y de apoyo a la gestión, o para la ejecución de trabajos artísticos que sólo puedan encomendarse a determinadas personas naturales;","EL CONTRATO QUE SE PRETENDE CELEBRAR, TENDRÁ POR OBJETO APOYAR TÉCNICAMENTE LAS DISTINTAS ETAPAS DE LOS PROCESOS DE COMPETENCIA DE LAS INSPECCIONES DE POLICÍA DE LA LOCALIDAD, SEGÚN REPARTO","Inversión","Un Nuevo Contrato Social y Ambiental para la Bogotá del Siglo XXI",3,{"$f":"IF(ISERROR(VLOOKUP(K165,Proposito_programa!$C$2:$E$59,2,FALSE)),\" \",VLOOKUP(K165,Proposito_programa!$C$2:$E$59,2,FALSE))","v":"Movilidad social integral"},{"$f":"IF(ISERROR(VLOOKUP(K165,Proposito_programa!$C$2:$E$59,3,FALSE)),\" \",VLOOKUP(K165,Proposito_programa!$C$2:$E$59,3,FALSE))","v":"Propósito 1: Hacer un nuevo contrato social para incrementar la inclusión social, productiva y política"},"133011605570000002099",0,79487850,"CARLOS ALBERTO OLARTE AVILA","Persona Natural","N/A","N/A","N/A",17489500,null,null,null,17489500,17489500,"2021-09-15","2021-09-16","2021-12-31","105 DIAS",null,null,null,null,null,null,null,null,"X",null,1]
["148-2021",2021,"FDLM-CD-P-148-2021 (61125)","https://community.secop.gov.co/Public/Tendering/OpportunityDetail/Index?noticeUID=CO1.NTC.2255007&isFromPublicArea=True&isModal=False","Contratos de prestación de servicios profesionales y de apoyo a la gestión","Contratación directa","Prestación de servicios profesionales y de apoyo a la gestión, o para la ejecución de trabajos artísticos que sólo puedan encomendarse a determinadas personas naturales;","PRESTAR LOS SERVICIOS PROFESIONALES COMO ABOGADO PARA APOYAR LOS ASUNTOS JURÍDICOS DEL ESPACIO PÚBLICO Y OTRAS MATERIAS QUE SE REQUIERAN EN EL MARCO DEL PROYECTO 2080 PAISAJE URBANO AMIGABLE Y SEGURO.","Inversión","Un Nuevo Contrato Social y Ambiental para la Bogotá del Siglo XXI",3,{"$f":"IF(ISERROR(VLOOKUP(K166,Proposito_programa!$C$2:$E$59,2,FALSE)),\" \",VLOOKUP(K166,Proposito_programa!$C$2:$E$59,2,FALSE))","v":"Movilidad social integral"},{"$f":"IF(ISERROR(VLOOKUP(K166,Proposito_programa!$C$2:$E$59,3,FALSE)),\" \",VLOOKUP(K166,Proposito_programa!$C$2:$E$59,3,FALSE))","v":"Propósito 1: Hacer un nuevo contrato social para incrementar la inclusión social, productiva y política"},"133011603450000002080",0,1018440410,"RICHARD ALEJANDRO MARÍN ZIPACÓN","Persona Natural","N/A","N/A","N/A",20000000,null,null,null,20000000,10855500,"2021-09-17","2021-10-20","2022-02-19","4 MESES",null,null,null,null,null,null,null,null,"X",null,0.54277500000000001]
["149-2021",2021,"FDLM-CD-149-2021 (61961)","https://community.secop.gov.co/Public/Tendering/OpportunityDetail/Index?noticeUID=CO1.NTC.2261677&isFromPublicArea=True&isModal=False","Contratos de prestación de servicios profesionales y de apoyo a la gestión","Contratación directa","Prestación de servicios profesionales y de apoyo a la gestión, o para la ejecución de trabajos artísticos que sólo puedan encomendarse a determinadas personas naturales;","APOYAR JURÍDICAMENTE LA EJECUCIÓN DE LAS ACCIONES REQUERIDAS PARA LA DEPURACIÓN DE LAS ACTUACIONES ADMINISTRATIVAS QUE CURSAN EN LA ALCALDÍA LOCAL.","Inversión","Un Nuevo Contrato Social y Ambiental para la Bogotá del Siglo XXI",3,{"$f":"IF(ISERROR(VLOOKUP(K167,Proposito_programa!$C$2:$E$59,2,FALSE)),\" \",VLOOKUP(K167,Proposito_programa!$C$2:$E$59,2,FALSE))","v":"Movilidad social integral"},{"$f":"IF(ISERROR(VLOOKUP(K167,Proposito_programa!$C$2:$E$59,3,FALSE)),\" \",VLOOKUP(K167,Proposito_programa!$C$2:$E$59,3,FALSE))","v":"Propósito 1: Hacer un nuevo contrato social para incrementar la inclusión social, productiva y política"},"133011605570000002099",0,1022380775,"SHARON PAULETT BERNAL AGUDELO","Persona Natural","N/A","N/A","N/A",13083000,null,null,null,13083000,13083000,"2021-09-20","2021-09-21","2021-12-20","3 MESES",null,null,null,null,null,null,null,null,"X",null,1]
["150-2021",2021,"FDLM-CD-P-150-2021 (62960)","https://community.secop.gov.co/Public/Tendering/OpportunityDetail/Index?noticeUID=CO1.NTC.2322646&isFromPublicArea=True&isModal=False","Contratos de prestación de servicios profesionales y de apoyo a la gestión","Contratación directa","Prestación de servicios profesionales y de apoyo a la gestión, o para la ejecución de trabajos artísticos que sólo puedan encomendarse a determinadas personas naturales;","PRESTAR SERVICIOS PROFESIONALES AL ÁREA POLICIVA DE LA ALCALDÍA LOCAL DE LOS MÁRTIRES, PARA ADELANTAR TRÁMITES, PROCEDIMIENTOS Y LINEAMIENTOS EN MATERIA JURÍDICA QUE PERMITAN GARANTIZAR EL CUMPLIMIENTO DE LAS METAS ESTABLECIDAS EN EL PLAN DE DESARROLLO LOCAL VIGENTE","Inversión","Un Nuevo Contrato Social y Ambiental para la Bogotá del Siglo XXI",3,{"$f":"IF(ISERROR(VLOOKUP(K168,Proposito_programa!$C$2:$E$59,2,FALSE)),\" \",VLOOKUP(K168,Proposito_programa!$C$2:$E$59,2,FALSE))","v":"Movilidad social integral"},{"$f":"IF(ISERROR(VLOOKUP(K168,Proposito_programa!$C$2:$E$59,3,FALSE)),\" \",VLOOKUP(K168,Proposito_programa!$C$2:$E$59,3,FALSE))","v":"Propósito 1: Hacer un nuevo contrato social para incrementar la inclusión social, productiva y política"},"133011605570000002099",0,1032418847,"DIEGO FERNANDO PULIDO CHICA","Persona Natural","N/A","N/A","N/A",15600000,null,1,3250000,18850000,18850000,"2021-10-15","2021-10-19","2022-01-14","2 MESES Y 13 DIAS",1,3250000,null,null,null,null,null,null,"X",null,1]
["151-2021",2021,"FDLM-CD-P-151-2021 (62975)","https://community.secop.gov.co/Public/Tendering/OpportunityDetail/Index?noticeUID=CO1.NTC.2328261&isFromPublicArea=True&isModal=False","Contratos de prestación de servicios profesionales y de apoyo a la gestión","Contratación directa","Prestación de servicios profesionales y de apoyo a la gestión, o para la ejecución de trabajos artísticos que sólo puedan encomendarse a determinadas personas naturales;","PRESTAR LOS SERVICIOS PROFESIONALES ESPECIALIZADOS AL FONDO DE DESARROLLO LOCAL DE LOS MÁRTIRES, PARA ESTABLECER LOS LINEAMIENTOS DEL EQUIPO DE PLANEACIÓN E INFRASTRUCTURA, PARA LA FORMULACIÓN, EJECUCIÓN, SEGUIMIENTO TÉCNICO, ADMINISTRATIVO, FINANCIERO YAS CON EL ÁREA DE GESTIÓN DEL DESARROLLO LOCAL, EN CUMPLIMIENTO DEL PLAN DE DESARROLLO LOCAL VIGENTE","Inversión","Un Nuevo Contrato Social y Ambiental para la Bogotá del Siglo XXI",3,{"$f":"IF(ISERROR(VLOOKUP(K169,Proposito_programa!$C$2:$E$59,2,FALSE)),\" \",VLOOKUP(K169,Proposito_programa!$C$2:$E$59,2,FALSE))","v":"Movilidad social integral"},{"$f":"IF(ISERROR(VLOOKUP(K169,Proposito_programa!$C$2:$E$59,3,FALSE)),\" \",VLOOKUP(K169,Proposito_programa!$C$2:$E$59,3,FALSE))","v":"Propósito 1: Hacer un nuevo contrato social para incrementar la inclusión social, productiva y política"},"133011605570000002099",0,1140845417,"HANS DIETER VAN STRAHLEN BARTEL","Persona Natural","N/A","N/A","N/A",18933333,null,1,4000000,22933333,17600000,"2021-10-19","2021-10-20","2021-12-31","2 MESES 12 DIAS",1,4000000,null,null,null,null,null,null,"X",null,0.7674418716197946]
["152-2021",2021,"FDLM-CD-152-2021 (62970)","https://community.secop.gov.co/Public/Tendering/OpportunityDetail/Index?noticeUID=CO1.NTC.2328414&isFromPublicArea=True&isModal=False","Contratos de prestación de servicios profesionales y de apoyo a la gestión","Contratación directa","Prestación de servicios profesionales y de apoyo a la gestión, o para la ejecución de trabajos artísticos que sólo puedan encomendarse a determinadas personas naturales;","PRESTACIÓN DE SERVICIOS COMO PROFESIONAL ESPECIALIZADO AL DESPACHO DEL ALCALDE EN LA GESTIÓN PÚBLICA PRECONTRACTUAL, CONTRACTUAL Y POST CONTRACTUAL QUE SE REQUIERA EN CUMPLIMIENTO DEL PLAN DE DESARROLLO LOCAL.","Inversión","Un Nuevo Contrato Social y Ambiental para la Bogotá del Siglo XXI",3,{"$f":"IF(ISERROR(VLOOKUP(K170,Proposito_programa!$C$2:$E$59,2,FALSE)),\" \",VLOOKUP(K170,Proposito_programa!$C$2:$E$59,2,FALSE))","v":"Movilidad social integral"},{"$f":"IF(ISERROR(VLOOKUP(K170,Proposito_programa!$C$2:$E$59,3,FALSE)),\" \",VLOOKUP(K170,Proposito_programa!$C$2:$E$59,3,FALSE))","v":"Propósito 1: Hacer un nuevo contrato social para incrementar la inclusión social, productiva y política"},"133011605570000002099",0,1140843788,"FREDY ANDRES PAUTT BARCELO","Persona Natural","N/A","N/A","N/A",18933333,null,1,4000000,22933333,15300000,"2021-10-19","2021-10-20","2022-01-15","2 MESES 12 DIAS",1,4000000,null,null,null,null,null,null,"X",null,0.66715117248766242]
["153-2021",2021,"FDLM-P-153-2021 (62968)","https://community.secop.gov.co/Public/Tendering/OpportunityDetail/Index?noticeUID=CO1.NTC.2322843&isFromPublicArea=True&isModal=False","Contratos de prestación de servicios profesionales y de apoyo a la gestión","Contratación directa","Prestación de servicios profesionales y de apoyo a la gestión, o para la ejecución de trabajos artísticos que sólo puedan encomendarse a determinadas personas naturales;","\tPRESTAR LOS SERVICIOS PROFESIONALES COMO ABOGADO, PARA APOYAR LA GESTIÓN DEL DESPACHO DEL ALCALDE DE LA LOCALIDAD DE LOS MÁRTIRES, EN LA IMPLEMENTACIÓN DEL PLAN DE DESARROLLO LOCAL Y EL ACOMPAÑAMIENTO TRANSVERSAL DE SUS FUNCIONES","Inversión","Un Nuevo Contrato Social y Ambiental para la Bogotá del Siglo XXI",3,{"$f":"IF(ISERROR(VLOOKUP(K171,Proposito_programa!$C$2:$E$59,2,FALSE)),\" \",VLOOKUP(K171,Proposito_programa!$C$2:$E$59,2,FALSE))","v":"Movilidad social integral"},{"$f":"IF(ISERROR(VLOOKUP(K171,Proposito_programa!$C$2:$E$59,3,FALSE)),\" \",VLOOKUP(K171,Proposito_programa!$C$2:$E$59,3,FALSE))","v":"Propósito 1: Hacer un nuevo contrato social para incrementar la inclusión social, productiva y política"},"133011605570000002099",0,1140872699,"ALBERTO MARIO OROZCO RAVELO","Persona Natural","N/A","N/A","N/A",16320000,null,1,3400000,19720000,12600000,"2021-10-15","2021-10-19","2022-01-14","2 MESES 13 DIAS",1,3400000,null,null,null,null,null,null,"X",null,0.63894523326572006]
["154-2021",2021,"FDLM-CD-P-154-2021 (63849)","https://community.secop.gov.co/Public/Tendering/OpportunityDetail/Index?noticeUID=CO1.NTC.2373257&isFromPublicArea=True&isModal=False","Contratos de prestación de servicios profesionales y de apoyo a la gestión","Contratación directa","Prestación de servicios profesionales y de apoyo a la gestión, o para la ejecución de trabajos artísticos que sólo puedan encomendarse a determinadas personas naturales;","PRESTAR SUS SERVICIOS PROFESIONALES PARA LA FORMULACIÓN PRECONTRACTUAL PARTICIPATIVA, APOYO A LA SUPERVISIÓN, SEGUIMIENTO, ACOMPAÑAMIENTO, ATENCIÓN Y EVALUACIÓN DE LOS PROYECTOS E INSTANCIAS DE ARTICULACIÓN INTERINSTITUCIONAL Y PARTICIPACIÓN LOCAL EN CUMPLIMIENTO DEL PLAN DE DESARROLLO LOCAL VIGENTE.","Inversión","Un Nuevo Contrato Social y Ambiental para la Bogotá del Siglo XXI",3,{"$f":"IF(ISERROR(VLOOKUP(K172,Proposito_programa!$C$2:$E$59,2,FALSE)),\" \",VLOOKUP(K172,Proposito_programa!$C$2:$E$59,2,FALSE))","v":"Movilidad social integral"},{"$f":"IF(ISERROR(VLOOKUP(K172,Proposito_programa!$C$2:$E$59,3,FALSE)),\" \",VLOOKUP(K172,Proposito_programa!$C$2:$E$59,3,FALSE))","v":"Propósito 1: Hacer un nuevo contrato social para incrementar la inclusión social, productiva y política"},"133011605570000002099",0,80849721,"JACK CRISTOPHER REINA RODRIGUEZ","Persona Natural","N/A","N/A","N/A",9533333,null,null,0,9533333,9533333,"2021-11-08","2021-11-09","2022-01-01","1 MES 23 DIAS",null,0,null,null,null,null,null,null,"X",null,1]
["155-2021",2021,"FDLM-CD-155-2021 (63847)","https://community.secop.gov.co/Public/Tendering/OpportunityDetail/Index?noticeUID=CO1.NTC.2373464&isFromPublicArea=True&isModal=False","Contratos de prestación de servicios profesionales y de apoyo a la gestión","Contratación directa","Prestación de servicios profesionales y de apoyo a la gestión, o para la ejecución de trabajos artísticos que sólo puedan encomendarse a determinadas personas naturales;","PRESTAR SUS SERVICIOS PROFESIONALES PARA LA FORMULACIÓN PRE CONTRACTUAL PARTICIPATIVA, APOYO A LA SUPERVISIÓN, SEGUIMIENTO, ACOMPAÑAMIENTO, ATENCIÓN Y EVALUACIÓN DE LOS PROYECTOS E INSTANCIAS DE ARTICULACIÓN INTERINSTITUCIONAL Y PARTICIPACIÓN LOCAL EN CUMPLIMIENTO DEL PLAN DE DESIGARENTE.","Inversión","Un Nuevo Contrato Social y Ambiental para la Bogotá del Siglo XXI",3,{"$f":"IF(ISERROR(VLOOKUP(K173,Proposito_programa!$C$2:$E$59,2,FALSE)),\" \",VLOOKUP(K173,Proposito_programa!$C$2:$E$59,2,FALSE))","v":"Movilidad social integral"},{"$f":"IF(ISERROR(VLOOKUP(K173,Proposito_programa!$C$2:$E$59,3,FALSE)),\" \",VLOOKUP(K173,Proposito_programa!$C$2:$E$59,3,FALSE))","v":"Propósito 1: Hacer un nuevo contrato social para incrementar la inclusión social, productiva y política"},"133011605570000002099",0,1129518741,"ANDREA CAROLINA CARDENAS CAYON","Persona Natural","N/A","N/A","N/A",9533333,null,null,0,9533333,9533333,"2021-11-08","2021-11-10","2022-01-02","1 MES 23 DIAS",null,0,null,null,null,null,null,null,"X",null,1]
["156-2021",2021,"FDLM-CD-P-156-2021 (63846)","https://community.secop.gov.co/Public/Tendering/OpportunityDetail/Index?noticeUID=CO1.NTC.2373824&isFromPublicArea=True&isModal=False","Contratos de prestación de servicios profesionales y de apoyo a la gestión","Contratación directa","Prestación de servicios profesionales y de apoyo a la gestión, o para la ejecución de trabajos artísticos que sólo puedan encomendarse a determinadas personas naturales;","PRESTAR SUS SERVICIOS PROFESIONALES PARA LA FORMULACIÓN PRE CONTRACTUAL PARTICIPATIVA, APOYO A LA SUPERVISIÓN, SEGUIMIENTO, ACOMPAÑAMIENTO, ATENCIÓN Y EVALUACIÓN DE LOS PROYECTOS E INSTANCIAS DE ARTICULACIÓN INTERINSTITUCIONAL Y PARTICIPACIÓN LOCAL EN CUMPLIMIENTO DEL PLAN DE DESARROLLO LOCAL VIGENTE.","Inversión","Un Nuevo Contrato Social y Ambiental para la Bogotá del Siglo XXI",3,{"$f":"IF(ISERROR(VLOOKUP(K174,Proposito_programa!$C$2:$E$59,2,FALSE)),\" \",VLOOKUP(K174,Proposito_programa!$C$2:$E$59,2,FALSE))","v":"Movilidad social integral"},{"$f":"IF(ISERROR(VLOOKUP(K174,Proposito_programa!$C$2:$E$59,3,FALSE)),\" \",VLOOKUP(K174,Proposito_programa!$C$2:$E$59,3,FALSE))","v":"Propósito 1: Hacer un nuevo contrato social para incrementar la inclusión social, productiva y política"},"133011605570000002099",0,1094933233,"STEFANNY ALONSO MUÑOZ","Persona Natural","N/A","N/A","N/A",9533333,null,null,0,9533333,9533333,"2021-11-08","2021-11-10","2022-01-02","1 MES 23 DIAS",null,0,null,null,null,null,null,null,"X",null,1]
["157-2021",2021,"FDLM-CD-AP-157-2021 (63670)","https://community.secop.gov.co/Public/Tendering/OpportunityDetail/Index?noticeUID=CO1.NTC.2377268&isFromPublicArea=True&isModal=False","Contratos de prestación de servicios profesionales y de apoyo a la gestión","Contratación directa","Prestación de servicios profesionales y de apoyo a la gestión, o para la ejecución de trabajos artísticos que sólo puedan encomendarse a determinadas personas naturales;","PRESTAR LOS SERVICIOS TÉCNICOS DE APOYO AL DESPACHO DE LA ALCALDÍA LOCAL DE LOS MÁRTIRES, ESPECIALMENTE ASISTENCIA A REUNIONES, ELABORACIÓN DE LAS ACTAS QUE CORRESPONDAN, COORDINACIÓN DE LA AGENDA, CONTROL Y SEGUIMIENTO DE DOCUMENTOS.","Inversión","Un Nuevo Contrato Social y Ambiental para la Bogotá del Siglo XXI",3,{"$f":"IF(ISERROR(VLOOKUP(K175,Proposito_programa!$C$2:$E$59,2,FALSE)),\" \",VLOOKUP(K175,Proposito_programa!$C$2:$E$59,2,FALSE))","v":"Movilidad social integral"},{"$f":"IF(ISERROR(VLOOKUP(K175,Proposito_programa!$C$2:$E$59,3,FALSE)),\" \",VLOOKUP(K175,Proposito_programa!$C$2:$E$59,3,FALSE))","v":"Propósito 1: Hacer un nuevo contrato social para incrementar la inclusión social, productiva y política"},"133011605570000002099",0,52118985,"MARTHA INES BERNAL ALVAREZ","Persona Natural","N/A","N/A","N/A",5669500,null,null,0,5669500,5669500,"2021-11-09","2021-11-11","2022-01-02","1 MES 22 DIAS",null,0,null,null,null,null,null,null,"X",null,1]
["158-2021",2021,"FDLM-CD-158-2021 (63983)","https://community.secop.gov.co/Public/Tendering/OpportunityDetail/Index?noticeUID=CO1.NTC.2379370&isFromPublicArea=True&isModal=False","Contratos de prestación de servicios profesionales y de apoyo a la gestión","Contratación directa","Prestación de servicios profesionales y de apoyo a la gestión, o para la ejecución de trabajos artísticos que sólo puedan encomendarse a determinadas personas naturales;","PRESTAR SUS SERVICIOS PROFESIONALES AL FONDO DE DESARROLLO LOCAL\nDE LOS MÁRTIRES PARA EL ACOMPAÑAMIENTO A LA ESTRATEGIA\nCONSTRUCTORES LOCALES, DISEÑO, LA IMPLEMENTACIÓN, APOYO AL\nSEGUIMIENTO Y EVALUACIÓN DE LOS PROYECTOS DE INVERSIÓN, PROYECTOS\nESTRATÉGICOS Y PROYECTOS PARTICIPATIVOS PARA LA REACTIVACIÓN\nECONÓMICA Y EL EMPRENDIMIENTO DE LA LOCALIDAD EN CUMPLIMIENTO DEL\nPLAN DE DESARROLLO DISTRITAL Y LOCAL.","Inversión","Un Nuevo Contrato Social y Ambiental para la Bogotá del Siglo XXI",3,{"$f":"IF(ISERROR(VLOOKUP(K176,Proposito_programa!$C$2:$E$59,2,FALSE)),\" \",VLOOKUP(K176,Proposito_programa!$C$2:$E$59,2,FALSE))","v":"Movilidad social integral"},{"$f":"IF(ISERROR(VLOOKUP(K176,Proposito_programa!$C$2:$E$59,3,FALSE)),\" \",VLOOKUP(K176,Proposito_programa!$C$2:$E$59,3,FALSE))","v":"Propósito 1: Hacer un nuevo contrato social para incrementar la inclusión social, productiva y política"},"133011605570000002099",0,79980371,"\tJUAN CARLOS TOLOSA BUITRAGO","Persona Natural","N/A","N/A","N/A",10000000,null,1,1800000,11800000,9600000,"2021-11-10","2021-11-16","2022-01-15","1 MES 21 DIAS",1,1800000,null,null,null,null,null,null,"X",null,0.81355932203389836]
["159-2021",2021,"FDLM-CD-P-159-2021 (63683)","https://community.secop.gov.co/Public/Tendering/OpportunityDetail/Index?noticeUID=CO1.NTC.2380845&isFromPublicArea=True&isModal=False","Contratos de prestación de servicios profesionales y de apoyo a la gestión","Contratación directa","Prestación de servicios profesionales y de apoyo a la gestión, o para la ejecución de trabajos artísticos que sólo puedan encomendarse a determinadas personas naturales;","\nPRESTAR SUS SERVICIOS PROFESIONALES AL FONDO DE DESARROLLO LOCAL DE LOS MÁRTIRES PARA EL APOYO Y ACOMPAÑAMIENTO DE LAS INSTANCIAS DE COORDINACIÓN INTERINSTITUCIONALES E INSTANCIAS DE PARTICIPACIÓN LOCALES, APOYO A LA SUPERVISIÓN Y SEGUIMIENTO AL PLAN DE DESARROLLO LOCAL Y EVALUACIÓN DE PROYECTOS.","Inversión","Un Nuevo Contrato Social y Ambiental para la Bogotá del Siglo XXI",3,{"$f":"IF(ISERROR(VLOOKUP(K177,Proposito_programa!$C$2:$E$59,2,FALSE)),\" \",VLOOKUP(K177,Proposito_programa!$C$2:$E$59,2,FALSE))","v":"Movilidad social integral"},{"$f":"IF(ISERROR(VLOOKUP(K177,Proposito_programa!$C$2:$E$59,3,FALSE)),\" \",VLOOKUP(K177,Proposito_programa!$C$2:$E$59,3,FALSE))","v":"Propósito 1: Hacer un nuevo contrato social para incrementar la inclusión social, productiva y política"},"133011605570000002099",0,52844341,"CARMEN ANDREA AVELLANEDA SANTOYA","Persona Natural","N/A","N/A","N/A",8500000,null,null,0,8500000,8500000,"2021-11-10","2021-11-16","2022-01-06","1 MES 21 DIAS",null,0,null,null,null,null,null,null,"X",null,1]
["160-2021",2021,"FDLM-CD-P-160-2021 (62743)","https://community.secop.gov.co/Public/Tendering/OpportunityDetail/Index?noticeUID=CO1.NTC.2380459&isFromPublicArea=True&isModal=False","Contratos de prestación de servicios profesionales y de apoyo a la gestión","Contratación directa","Prestación de servicios profesionales y de apoyo a la gestión, o para la ejecución de trabajos artísticos que sólo puedan encomendarse a determinadas personas naturales;","LIDERAR Y GARANTIZAR LA IMPLEMENTACIÓN Y SEGUIMIENTO DE LOS PROCESOS Y PROCEDIMIENTOS DEL SERVICIO SOCIAL.","Inversión","Un Nuevo Contrato Social y Ambiental para la Bogotá del Siglo XXI",3,{"$f":"IF(ISERROR(VLOOKUP(K178,Proposito_programa!$C$2:$E$59,2,FALSE)),\" \",VLOOKUP(K178,Proposito_programa!$C$2:$E$59,2,FALSE))","v":"Movilidad social integral"},{"$f":"IF(ISERROR(VLOOKUP(K178,Proposito_programa!$C$2:$E$59,3,FALSE)),\" \",VLOOKUP(K178,Proposito_programa!$C$2:$E$59,3,FALSE))","v":"Propósito 1: Hacer un nuevo contrato social para incrementar la inclusión social, productiva y política"},"133011601010000002068",0,1032385912,"CINDY JULIETH NIÑO SABOGAL","Persona Natural","N/A","N/A","N/A",9166667,null,null,0,9166667,9166667,"2021-11-10","2021-11-16","2022-01-06","1 MES 21 DIAS",null,0,null,null,null,null,null,null,"X",null,1]
["161-2021",2021,"FDLM-CD-161-2021 (63686)","https://community.secop.gov.co/Public/Tendering/OpportunityDetail/Index?noticeUID=CO1.NTC.2380850&isFromPublicArea=True&isModal=False","Contratos de prestación de servicios profesionales y de apoyo a la gestión","Contratación directa","Prestación de servicios profesionales y de apoyo a la gestión, o para la ejecución de trabajos artísticos que sólo puedan encomendarse a determinadas personas naturales;","PRESTAR SUS SERVICIOS COMO PERSONAL DE APOYO EN LA CONDUCCIÓN DE LOS VEHICULOS LIVIANOS O PESADOS DE PROPIEDAD DEL FONDO DE DESARROLLO LOCAL DE LOS MÁRTIRES, DE CONFORMIDAD CON LOS LINEAMIENTOS DEL DESPACHO","Inversión","Un Nuevo Contrato Social y Ambiental para la Bogotá del Siglo XXI",3,{"$f":"IF(ISERROR(VLOOKUP(K179,Proposito_programa!$C$2:$E$59,2,FALSE)),\" \",VLOOKUP(K179,Proposito_programa!$C$2:$E$59,2,FALSE))","v":"Movilidad social integral"},{"$f":"IF(ISERROR(VLOOKUP(K179,Proposito_programa!$C$2:$E$59,3,FALSE)),\" \",VLOOKUP(K179,Proposito_programa!$C$2:$E$59,3,FALSE))","v":"Propósito 1: Hacer un nuevo contrato social para incrementar la inclusión social, productiva y política"},"133011605570000002099",0,9140998,"JHONY ENRIQUE RAMOS ALVAREZ","Persona Natural","N/A","N/A","N/A",4391208,null,null,null,4391208,4391208,"2021-11-10","2021-11-16","2022-01-06","1 MES 21 DIAS",null,null,null,null,null,null,null,null,"X",null,1]
["162-2021",2021,"FDLM-CD-162-2021 (63684)","https://community.secop.gov.co/Public/Tendering/OpportunityDetail/Index?noticeUID=CO1.NTC.2380853&isFromPublicArea=True&isModal=False","Contratos de prestación de servicios profesionales y de apoyo a la gestión","Contratación directa","Prestación de servicios profesionales y de apoyo a la gestión, o para la ejecución de trabajos artísticos que sólo puedan encomendarse a determinadas personas naturales;","PRESTAR LOS SERVICIOS DE APOYO A GESTIÓN EN LAS DIFERENTES LABORES ADMINISTRATIVAS QUE SURJAN DE LAS ACTIVIDADES DE LA JUNTA ADMINISTRADORA LOCAL DE LOS MÁRTIRES","Inversión","Un Nuevo Contrato Social y Ambiental para la Bogotá del Siglo XXI",3,{"$f":"IF(ISERROR(VLOOKUP(K180,Proposito_programa!$C$2:$E$59,2,FALSE)),\" \",VLOOKUP(K180,Proposito_programa!$C$2:$E$59,2,FALSE))","v":"Movilidad social integral"},{"$f":"IF(ISERROR(VLOOKUP(K180,Proposito_programa!$C$2:$E$59,3,FALSE)),\" \",VLOOKUP(K180,Proposito_programa!$C$2:$E$59,3,FALSE))","v":"Propósito 1: Hacer un nuevo contrato social para incrementar la inclusión social, productiva y política"},"133011605570000002099",0,51880973,"ARIS SEDITH CABARCAS MARTINEZ","Persona Natural","N/A","N/A","N/A",3950000,null,null,null,3950000,3950000,"2021-11-10","2021-11-16","2022-01-06","1 MES 21 DIAS",null,null,null,null,null,null,null,null,"X",null,1]
["163-2021",2021,"FDLM-CD-P-163-2021 (63689)","https://community.secop.gov.co/Public/Tendering/OpportunityDetail/Index?noticeUID=CO1.NTC.2384260&isFromPublicArea=True&isModal=False","Contratos de prestación de servicios profesionales y de apoyo a la gestión","Contratación directa","Prestación de servicios profesionales y de apoyo a la gestión, o para la ejecución de trabajos artísticos que sólo puedan encomendarse a determinadas personas naturales;","PRESTAR SERVICIOS PROFESIONALES AL ÁREA DE GESTIÓN PARA EL DESARROLLO ADMINISTRATIVO Y FINANCIERO, EN LAS ACTIVIDADES DE SEGUIMIENTO A LA INVERSIÓN, SOLICITUDES DE INFORMACIÓN A PROVEEDORES Y APOYO EN LA PROYECCIÓN DE INFORMES REQUERIDOS EN EL ÁREA DE GESTIÓN DEL FONDO DE DESARROLLO LOCAL DE LOS MÁRTIRES.","Inversión","Un Nuevo Contrato Social y Ambiental para la Bogotá del Siglo XXI",3,{"$f":"IF(ISERROR(VLOOKUP(K181,Proposito_programa!$C$2:$E$59,2,FALSE)),\" \",VLOOKUP(K181,Proposito_programa!$C$2:$E$59,2,FALSE))","v":"Movilidad social integral"},{"$f":"IF(ISERROR(VLOOKUP(K181,Proposito_programa!$C$2:$E$59,3,FALSE)),\" \",VLOOKUP(K181,Proposito_programa!$C$2:$E$59,3,FALSE))","v":"Propósito 1: Hacer un nuevo contrato social para incrementar la inclusión social, productiva y política"},"133011605570000002099",0,37844642,"LUZ ANGELA PINTO POSADA","Persona Natural","N/A","N/A","N/A",7840000,null,null,null,7840000,7840000,"2021-11-11","2021-11-16","2022-01-03","1 MES 18 DIAS",null,null,null,null,null,null,null,null,"X",null,1]
["164-2021",2021,"FDLM-CD-P-164-2021 (63688)","https://community.secop.gov.co/Public/Tendering/OpportunityDetail/Index?noticeUID=CO1.NTC.2407626&isFromPublicArea=True&isModal=False","Contratos de prestación de servicios profesionales y de apoyo a la gestión","Contratación directa","Prestación de servicios profesionales y de apoyo a la gestión, o para la ejecución de trabajos artísticos que sólo puedan encomendarse a determinadas personas naturales;","PRESTAR SERVICIOS PROFESIONALES COMO ENLACE EN TEMAS DE GESTIÓN DE RIESGO Y AGLOMERACIONES, A CARGO DE LA LOCALIDAD DE LOS MÁRTIRES DE CONFORMIDAD CON EL MARCO NORMATIVO APLICABLE PARA LA MATERIA.\n","Inversión","Un Nuevo Contrato Social y Ambiental para la Bogotá del Siglo XXI",3,{"$f":"IF(ISERROR(VLOOKUP(K182,Proposito_programa!$C$2:$E$59,2,FALSE)),\" \",VLOOKUP(K182,Proposito_programa!$C$2:$E$59,2,FALSE))","v":"Movilidad social integral"},{"$f":"IF(ISERROR(VLOOKUP(K182,Proposito_programa!$C$2:$E$59,3,FALSE)),\" \",VLOOKUP(K182,Proposito_programa!$C$2:$E$59,3,FALSE))","v":"Propósito 1: Hacer un nuevo contrato social para incrementar la inclusión social, productiva y política"},"133011605570000002099",0,79967824,"VICTOR FERNANDO ENCISO CONTRERAS","Persona Natural","N/A","N/A","N/A",6845800,null,null,null,6845800,5800000,"2021-11-19","2021-11-23","2022-01-01","1 MES 9 DIAS",null,null,null,null,null,null,null,null,"X",null,0.84723480089982184]
["165-2021",2021,"FDLM-CD-165-2021","https://community.secop.gov.co/Public/Tendering/OpportunityDetail/Index?noticeUID=CO1.NTC.2385807&isFromPublicArea=True&isModal=False","Contratos de prestación de servicios profesionales y de apoyo a la gestión","Contratación directa","Prestación de servicios profesionales y de apoyo a la gestión, o para la ejecución de trabajos artísticos que sólo puedan encomendarse a determinadas personas naturales;","PRESTAR SUS SERVICIOS PARA APOYAR EL CENTRO DE DOCUMENTACIÓN E INFORMACIÓN - CDI - EN EL PROCESO DE RADICACIÓN, NOTIFICACIÓN Y ENTREGA DE LA CORRESPONDENCIA INTERNA Y EXTERNA DE LA ALCALDÍA LOCAL DE LOS MÁRTIRES Y CONTROL DE LOS DERECHOS DE PETICIÓN.","Inversión","Un Nuevo Contrato Social y Ambiental para la Bogotá del Siglo XXI",3,{"$f":"IF(ISERROR(VLOOKUP(K183,Proposito_programa!$C$2:$E$59,2,FALSE)),\" \",VLOOKUP(K183,Proposito_programa!$C$2:$E$59,2,FALSE))","v":"Movilidad social integral"},{"$f":"IF(ISERROR(VLOOKUP(K183,Proposito_programa!$C$2:$E$59,3,FALSE)),\" \",VLOOKUP(K183,Proposito_programa!$C$2:$E$59,3,FALSE))","v":"Propósito 1: Hacer un nuevo contrato social para incrementar la inclusión social, productiva y política"},"133011605570000002099",0,1019088888,"HANS SNEIDER CABARCAS TOROS","Persona Natural","N/A","N/A","N/A",4302200,null,null,null,4302200,0,"2021-11-12","2021-11-12","2021-12-30","1 MES 19 DIAS",null,null,null,null,null,null,null,"X",null,null,0]
["166-2021",2021,"FDLM-CD-AP-166-2021 (63668)","https://community.secop.gov.co/Public/Tendering/OpportunityDetail/Index?noticeUID=CO1.NTC.2390803&isFromPublicArea=True&isModal=False","Contratos de prestación de servicios profesionales y de apoyo a la gestión","Contratación directa","Prestación de servicios profesionales y de apoyo a la gestión, o para la ejecución de trabajos artísticos que sólo puedan encomendarse a determinadas personas naturales;","PRESTAR SUS SERVICIOS PARA APOYAR EL CENTRO DE DOCUMENTACIÓN E INFORMACIÓN - CDI - EN EL PROCESO DE RADICACIÓN, NOTIFICACIÓN Y ENTREGA DE LA CORRESPONDENCIA INTERNA Y EXTERNA DE LA ALCALDÍA LOCAL DE LOS MÁRTIRES Y CONTROL DE LOS DERECHOS DE PETICIÓN.","Inversión","Un Nuevo Contrato Social y Ambiental para la Bogotá del Siglo XXI",3,{"$f":"IF(ISERROR(VLOOKUP(K184,Proposito_programa!$C$2:$E$59,2,FALSE)),\" \",VLOOKUP(K184,Proposito_programa!$C$2:$E$59,2,FALSE))","v":"Movilidad social integral"},{"$f":"IF(ISERROR(VLOOKUP(K184,Proposito_programa!$C$2:$E$59,3,FALSE)),\" \",VLOOKUP(K184,Proposito_programa!$C$2:$E$59,3,FALSE))","v":"Propósito 1: Hacer un nuevo contrato social para incrementar la inclusión social, productiva y política"},"133011605570000002099",0,1032505874,"MARIA ALEJANDRA MARTINEZ DE LA PEÑA","Persona Natural","N/A","N/A","N/A",3951000,null,null,null,3951000,3951000,"2021-11-12","2021-11-17","2022-01-01","1 MES 15 DIAS",null,null,null,null,null,null,null,null,"X",null,1]
["FDLM-CI-005-2021",2021,"FDLM-CI-005-2021FDLM-CI-005-2021","https://community.secop.gov.co/Public/Tendering/ContractNoticePhases/View?PPI=CO1.PPI.15961705&isFromPublicArea=True&isModal=False","Convenios de apoyo y/o convenios de asociación ","Contratación directa","Prestación de servicios profesionales y de apoyo a la gestión, o para la ejecución de trabajos artísticos que sólo puedan encomendarse a determinadas personas naturales;","AUNAR ESFUERZOS PARA LA REALIZACIÓN DE ACCIONES DE FORTALECIMIENTO (CONVOCATORIA, EVALUACIÓN Y SELECCIÓN) DE ORGANIZACIONES SOCIALES, INSTANCIAS DE PARTICIPACIÓN, ORGANIZACIONES DE ACTORES DE PROPIEDAD HORIZONTAL Y LA CELEBRACIÓN DEL EVENTO DÍA COMUNAL","Inversión","Un Nuevo Contrato Social y Ambiental para la Bogotá del Siglo XXI",3,{"$f":"IF(ISERROR(VLOOKUP(K185,Proposito_programa!$C$2:$E$59,2,FALSE)),\" \",VLOOKUP(K185,Proposito_programa!$C$2:$E$59,2,FALSE))","v":"Movilidad social integral"},{"$f":"IF(ISERROR(VLOOKUP(K185,Proposito_programa!$C$2:$E$59,3,FALSE)),\" \",VLOOKUP(K185,Proposito_programa!$C$2:$E$59,3,FALSE))","v":"Propósito 1: Hacer un nuevo contrato social para incrementar la inclusión social, productiva y política"},"133011605550000002096",0,901100455,"RED COLOMBIANA DE INSTITUCIONES DE EDUCACION SUPERIOR","Persona Jurídica","N/A","N/A","N/A",291000000,null,null,null,291000000,0,"2021-11-12","2021-11-17","2022-03-16","4 MESES",null,null,null,null,null,null,null,"X",null,null,0]
["FDLM-CI-006-2021",2021,"FDLM-CI-006-2021","https://community.secop.gov.co/Public/Tendering/OpportunityDetail/Index?noticeUID=CO1.NTC.2390372&isFromPublicArea=True&isModal=False","Contratos interadministrativos","Contratación directa","Contratos interadministrativos","AUNAR ESFUERZOS PARA VINCULAR 600 PERSONAS CON DISCAPACIDAD, CUIDA-DORES Y CUIDADORAS, EN ACTIVIDADES ALTERNATIVAS DE SALUD Y 400 PERSO-NAS A LAS ACCIONES DESARROLLADAS DESDE LOS DISPOSITIVOS DE BASE CO-MUNITARIA EN RESPUESTA AL CONSUMO DE SPA","Funcionamiento","Un Nuevo Contrato Social y Ambiental para la Bogotá del Siglo XXI","No aplica",null,null,"133011601060000002065",0,356406507,"SUBRED INTEGRADA DE SERVICIOS DE SALUD CENTRO ORIENTE E.S.E","Persona Jurídica","N/A","N/A","N/A",262816263,null,null,null,262816263,null,"2021-11-12","PEN","PEN","5 MESES",null,null,null,null,null,null,"X",null,null,null,0]
["FDLM-CI-007-2021",2021,"FDLM-CI-007-2021","https://community.secop.gov.co/Public/Tendering/OpportunityDetail/Index?noticeUID=CO1.NTC.2391231&isFromPublicArea=True&isModal=False","Contratos interadministrativos","Contratación directa","Contratos interadministrativos","PRESTAR LOS SERVICIOS DE CORREO CERTIFICADO Y APOYO A LA OPOERACION DEL CENTRO DE DOCUMENTACION E INFORMACION (CDI) DE LA ALCALDIA LOCAL DE LOS MARTIRES EN SU SEDE PRINCIPAL, INSPECCIONES DE POLICIA Y DEMAS QUE LLEGUEN A REQUERIR DURAN CON LA EJECUCION, QUECION CURSO Y ENTREGA DE CORRESPONDENCIA TANTO INTERNA COMO EXTERNA.","Funcionamiento","Un Nuevo Contrato Social y Ambiental para la Bogotá del Siglo XXI","No aplica",null,null,"131020202010601",0,67000000,"SERVICIOS POSTALES NACIONALES S.A","Persona Jurídica","N/A","N/A","N/A",70000000,null,null,null,70000000,null,"2021-11-11","PEN","PEN","165 DIAS",null,null,null,null,null,null,"X",null,null,null,0]
["FDLM-CI-007-2021",2021,"FDLM-CI-007-2021","https://community.secop.gov.co/Public/Tendering/OpportunityDetail/Index?noticeUID=CO1.NTC.2391231&isFromPublicArea=True&isModal=False","Contratos interadministrativos","Contratación directa","Contratos interadministrativos","PRESTAR LOS SERVICIOS DE CORREO CERTIFICADO Y APOYO A LA OPOERACION DEL CENTRO DE DOCUMENTACION E INFORMACION (CDI) DE LA ALCALDIA LOCAL DE LOS MARTIRES EN SU SEDE PRINCIPAL, INSPECCIONES DE POLICIA Y DEMAS QUE LLEGUEN A REQUERIR DURAN CON LA EJECUCION, QUECION CURSO Y ENTREGA DE CORRESPONDENCIA TANTO INTERNA COMO EXTERNA.","Funcionamiento","Un Nuevo Contrato Social y Ambiental para la Bogotá del Siglo XXI","No aplica",null,null,"131020202010602",0,3000000,"SERVICIOS POSTALES NACIONALES S.A","Persona Jurídica","N/A","N/A","N/A",70000000,null,null,null,{"$f":"+V188+W188+Y188","v":70000000},null,"2021-11-11","PEN","PEN","165 DIAS",null,null,null,null,null,null,"X",null,null,null,{"$f":"IF(ISERROR(AA188/Z188),\"-\",(AA188/Z188))","v":0}]
["167-2021",2021,"FDLM-CD-AP-167-2021 (63935)","https://community.secop.gov.co/Public/Tendering/OpportunityDetail/Index?noticeUID=CO1.NTC.2401720&isFromPublicArea=True&isModal=False","Contratos de prestación de servicios profesionales y de apoyo a la gestión","Contratación directa","Prestación de servicios profesionales y de apoyo a la gestión, o para la ejecución de trabajos artísticos que sólo puedan encomendarse a determinadas personas naturales;","APOYAR EN LAS TAREAS OPERATIVAS DE CARÁCTER ARCHIVÍSTICO DESARROLLADAS EN LA ALCALDÍA LOCAL PARA GARANTIZAR LA APLICACIÓN CORRECTA DE LOS PROCEDIMIENTOS TÉCNICOS.","Inversión","Un Nuevo Contrato Social y Ambiental para la Bogotá del Siglo XXI",3,{"$f":"IF(ISERROR(VLOOKUP(K189,Proposito_programa!$C$2:$E$59,2,FALSE)),\" \",VLOOKUP(K189,Proposito_programa!$C$2:$E$59,2,FALSE))","v":"Movilidad social integral"},{"$f":"IF(ISERROR(VLOOKUP(K189,Proposito_programa!$C$2:$E$59,3,FALSE)),\" \",VLOOKUP(K189,Proposito_programa!$C$2:$E$59,3,FALSE))","v":"Propósito 1: Hacer un nuevo contrato social para incrementar la inclusión social, productiva y política"},"133011605570000002099",0,51689390,"CARMEN MARIA NISPERUZA FLOREZ","Persona Natural","N/A","N/A","N/A",4780167,null,null,0,4780167,4780167,"2021-11-17","2021-11-22","2022-01-04","1 MES 13 DIAS",null,"N/A",null,null,null,null,null,null,"X",null,1]
["168-2021",2021,"FDLM-CD-168-2021 (64081)","https://community.secop.gov.co/Public/Tendering/OpportunityDetail/Index?noticeUID=CO1.NTC.2401358&isFromPublicArea=True&isModal=False","Contratos de prestación de servicios profesionales y de apoyo a la gestión","Contratación directa","Prestación de servicios profesionales y de apoyo a la gestión, o para la ejecución de trabajos artísticos que sólo puedan encomendarse a determinadas personas naturales;","PRESTAR LOS SERVICIOS PROFESIONALES COMO APOYO AL ÁREA DE GESTIÓN DEL DESARROLLO ADMINISTRATIVA Y FINANCIERA LOCAL, EN LO RELACIONADO EN TEMAS DE PRESUPUESTO Y CONTABILIDAD EN LAS DIFERENTES ACTIVIDADES QUE SE REQUIERA, ADEMÁS DEL APOYO CORRESPONDIENTE PARA EL MANEJO DE LOS APLICATIVOS PREDIS, OPGET, ORFEO, PAC, SIPROJ, SICO, SIPSE Y BOG DATA","Inversión","Un Nuevo Contrato Social y Ambiental para la Bogotá del Siglo XXI",3,{"$f":"IF(ISERROR(VLOOKUP(K190,Proposito_programa!$C$2:$E$59,2,FALSE)),\" \",VLOOKUP(K190,Proposito_programa!$C$2:$E$59,2,FALSE))","v":"Movilidad social integral"},{"$f":"IF(ISERROR(VLOOKUP(K190,Proposito_programa!$C$2:$E$59,3,FALSE)),\" \",VLOOKUP(K190,Proposito_programa!$C$2:$E$59,3,FALSE))","v":"Propósito 1: Hacer un nuevo contrato social para incrementar la inclusión social, productiva y política"},"133011605570000002099",0,1013603935,"CATHERINE DIAZ LOZANO","Persona Natural","N/A","N/A","N/A",7926333,null,null,0,7926333,7926333,"2021-11-17","2021-11-18","2021-12-31","1 MES 13 DIAS",null,"N/A",null,null,null,null,null,null,"X",null,1]
["172-2021",2021,"FDLM-CD-P-168-2021 (63685)","https://community.secop.gov.co/Public/Tendering/OpportunityDetail/Index?noticeUID=CO1.NTC.2407599&isFromPublicArea=True&isModal=False","Contratos de prestación de servicios profesionales y de apoyo a la gestión","Contratación directa","Prestación de servicios profesionales y de apoyo a la gestión, o para la ejecución de trabajos artísticos que sólo puedan encomendarse a determinadas personas naturales;","APOYAR JURÍDICAMENTE LA EJECUCIÓN DE ACCIONES REQUERIDAS PARA EL TRÁMITE E IMPULSO PROCESAL DE LAS ACTUACIONES CONTRAVENCIONALES Y/O QUERELLAS QUE CURSEN EN LAS INSPECCIONES DE POLICÍA DE LA LOCALIDAD DE LOS MÁRTIRES.","Inversión","Un Nuevo Contrato Social y Ambiental para la Bogotá del Siglo XXI",3,{"$f":"IF(ISERROR(VLOOKUP(K191,Proposito_programa!$C$2:$E$59,2,FALSE)),\" \",VLOOKUP(K191,Proposito_programa!$C$2:$E$59,2,FALSE))","v":"Movilidad social integral"},{"$f":"IF(ISERROR(VLOOKUP(K191,Proposito_programa!$C$2:$E$59,3,FALSE)),\" \",VLOOKUP(K191,Proposito_programa!$C$2:$E$59,3,FALSE))","v":"Propósito 1: Hacer un nuevo contrato social para incrementar la inclusión social, productiva y política"},"133011605570000002099",0,51921603,"AURA ALICIA INFANTE GARCIA","Persona Natural","N/A","N/A","N/A",6370000,null,null,0,6370000,5950000,"2021-11-20","2021-11-25","2022-01-01","1 MES 9 DIAS",null,"N/A",null,null,null,null,null,null,"X",null,0.93406593406593408]
["169-2021",2021,"FDLM-CD-P-169-2021 (64477)","https://community.secop.gov.co/Public/Tendering/OpportunityDetail/Index?noticeUID=CO1.NTC.2411189&isFromPublicArea=True&isModal=False","Contratos de prestación de servicios profesionales y de apoyo a la gestión","Contratación directa","Prestación de servicios profesionales y de apoyo a la gestión, o para la ejecución de trabajos artísticos que sólo puedan encomendarse a determinadas personas naturales;","PRESTAR SUS SERVICIOS PROFESIONALES PARA LA FORMULACIÓN PRE CONTRACTUAL PARTICIPATIVA, APOYO A LA SUPERVISIÓN, SEGUIMIENTO, ACOMPAÑAMIENTO, ATENCIÓN Y EVALUACIÓN DE LOS PROYECTOS E INSTANCIAS DE ARTICULACIÓN INTERINSTITUCIONAL Y PARTICIPACIÓN LOCAL EN CUMPLIMROLIENTO DEL PLAN DE DESIGARENTE","Inversión","Un Nuevo Contrato Social y Ambiental para la Bogotá del Siglo XXI",3,{"$f":"IF(ISERROR(VLOOKUP(K192,Proposito_programa!$C$2:$E$59,2,FALSE)),\" \",VLOOKUP(K192,Proposito_programa!$C$2:$E$59,2,FALSE))","v":"Movilidad social integral"},{"$f":"IF(ISERROR(VLOOKUP(K192,Proposito_programa!$C$2:$E$59,3,FALSE)),\" \",VLOOKUP(K192,Proposito_programa!$C$2:$E$59,3,FALSE))","v":"Propósito 1: Hacer un nuevo contrato social para incrementar la inclusión social, productiva y política"},"133011605570000002099",0,1022369884,"ANDREA CATALINA LEÓN QUINTERO","Persona Natural","N/A","N/A","N/A",7150000,null,null,0,7150000,5900000,"2021-11-23","2021-11-23","2022-01-01","1 MES 9 DIAS",null,"N/A",null,null,null,null,null,null,"X",null,0.82517482517482521]
["170-20121",2021,"FDLM-CD-P-170-2021 (64134)","https://community.secop.gov.co/Public/Tendering/OpportunityDetail/Index?noticeUID=CO1.NTC.2407701&isFromPublicArea=True&isModal=False","Contratos de prestación de servicios profesionales y de apoyo a la gestión","Contratación directa","Prestación de servicios profesionales y de apoyo a la gestión, o para la ejecución de trabajos artísticos que sólo puedan encomendarse a determinadas personas naturales;","PRESTAR SERVICIOS PROFESIONALES AL ÁREA POLICIVA DE LA ALCALDÍA LOCAL DE LOS MÁRTIRES, PARA ADELANTAR TRÁMITES Y PROCEDIMIENTOS EN MATERIA JURÍDICA QUE PERMITAN GARANTIZAR EL CUMPLIMIENTO DE LAS METAS ESTABLECIDAS EN EL PLAN DE DESARROLLO LOCAL VIGENTE.","Inversión","Un Nuevo Contrato Social y Ambiental para la Bogotá del Siglo XXI",3,{"$f":"IF(ISERROR(VLOOKUP(K193,Proposito_programa!$C$2:$E$59,2,FALSE)),\" \",VLOOKUP(K193,Proposito_programa!$C$2:$E$59,2,FALSE))","v":"Movilidad social integral"},{"$f":"IF(ISERROR(VLOOKUP(K193,Proposito_programa!$C$2:$E$59,3,FALSE)),\" \",VLOOKUP(K193,Proposito_programa!$C$2:$E$59,3,FALSE))","v":"Propósito 1: Hacer un nuevo contrato social para incrementar la inclusión social, productiva y política"},"133011605570000002099",0,80075984,"HERNANDO ESPELETA MAIGUEL","Persona Natural","N/A","N/A","N/A",7150000,null,1,2566667,9716667,9716667,"2021-11-19","2021-11-23","2022-01-15","1 MES 9 DIAS",1,"14 DIAS",null,null,null,null,null,null,"X",null,1]
["171-2021",2021,"FDLM-CPS-171-2021","https://community.secop.gov.co/Public/Tendering/OpportunityDetail/Index?noticeUID=CO1.NTC.2407708&isFromPublicArea=True&isModal=False","Contratos de prestación de servicios profesionales y de apoyo a la gestión","Contratación directa","Prestación de servicios profesionales y de apoyo a la gestión, o para la ejecución de trabajos artísticos que sólo puedan encomendarse a determinadas personas naturales;","PRESTAR LOS SERVICIOS PROFESIONALES PARA ADMINISTRAR LA RED DE VOZ Y DATOS Y EL MANEJO DE LA PLATAFORMA INFORMÁTICA DE LAS DIFERENTES DEPENDENCIAS DE LA ENTIDAD","Inversión","Un Nuevo Contrato Social y Ambiental para la Bogotá del Siglo XXI",3,{"$f":"IF(ISERROR(VLOOKUP(K194,Proposito_programa!$C$2:$E$59,2,FALSE)),\" \",VLOOKUP(K194,Proposito_programa!$C$2:$E$59,2,FALSE))","v":"Movilidad social integral"},{"$f":"IF(ISERROR(VLOOKUP(K194,Proposito_programa!$C$2:$E$59,3,FALSE)),\" \",VLOOKUP(K194,Proposito_programa!$C$2:$E$59,3,FALSE))","v":"Propósito 1: Hacer un nuevo contrato social para incrementar la inclusión social, productiva y política"},"133011605570000002099",0,80166441,"LUIS MIGUEL LÓPEZ RODRÍGUEZ","Persona Natural","N/A","N/A","N/A",7189000,null,null,0,7189000,7189000,"2021-11-22","2021-11-24","2022-01-02","1 MES 9 DIAS",null,"N/A",null,null,null,null,null,null,"X",null,1]
["173-2021",2021,"FDLM-CD-173-2021 (64029)","https://community.secop.gov.co/Public/Tendering/OpportunityDetail/Index?noticeUID=CO1.NTC.2420347&isFromPublicArea=True&isModal=False","Contratos de prestación de servicios profesionales y de apoyo a la gestión","Contratación directa","Prestación de servicios profesionales y de apoyo a la gestión, o para la ejecución de trabajos artísticos que sólo puedan encomendarse a determinadas personas naturales;","APOYAR JURÍDICAMENTE LA EJECUCIÓN DE LAS ACCIONES REQUERIDAS PARA LA DEPURACIÓN DE LAS ACTUACIONES ADMINISTRATIVAS QUE CURSAN EN LA ALCALDÍA LOCAL,","Inversión","Un Nuevo Contrato Social y Ambiental para la Bogotá del Siglo XXI",3,{"$f":"IF(ISERROR(VLOOKUP(K195,Proposito_programa!$C$2:$E$59,2,FALSE)),\" \",VLOOKUP(K195,Proposito_programa!$C$2:$E$59,2,FALSE))","v":"Movilidad social integral"},{"$f":"IF(ISERROR(VLOOKUP(K195,Proposito_programa!$C$2:$E$59,3,FALSE)),\" \",VLOOKUP(K195,Proposito_programa!$C$2:$E$59,3,FALSE))","v":"Propósito 1: Hacer un nuevo contrato social para incrementar la inclusión social, productiva y política"},"133011605570000002099",0,52796223,"ALEXANDRA GUZMAN LAMUS","Persona Natural","N/A","N/A","N/A",5734167,null,null,0,5734167,5734167,"2021-11-25","2021-11-29","2022-01-03","1 MES 5 DIAS",null,"N/A",null,null,null,null,null,null,"X",null,1]
["174-2021",2021,"FDLM-CD-174-2021 (64911)","https://community.secop.gov.co/Public/Tendering/OpportunityDetail/Index?noticeUID=CO1.NTC.2430690&isFromPublicArea=True&isModal=False","Contratos de prestación de servicios profesionales y de apoyo a la gestión","Contratación directa","Prestación de servicios profesionales y de apoyo a la gestión, o para la ejecución de trabajos artísticos que sólo puedan encomendarse a determinadas personas naturales;","APOYAR JURIDICAMENTE LA EJECUCIÓN DE LAS ACCIONES REQUERIDAS PARA LA DEPURACIÓN DE LAS ACTUACIONES ADMINISTRATIVAS QUE CURSAN EN LA ALCALDIA LOCAL.","Inversión","Un Nuevo Contrato Social y Ambiental para la Bogotá del Siglo XXI",3,{"$f":"IF(ISERROR(VLOOKUP(K196,Proposito_programa!$C$2:$E$59,2,FALSE)),\" \",VLOOKUP(K196,Proposito_programa!$C$2:$E$59,2,FALSE))","v":"Movilidad social integral"},{"$f":"IF(ISERROR(VLOOKUP(K196,Proposito_programa!$C$2:$E$59,3,FALSE)),\" \",VLOOKUP(K196,Proposito_programa!$C$2:$E$59,3,FALSE))","v":"Propósito 1: Hacer un nuevo contrato social para incrementar la inclusión social, productiva y política"},"133011605570000002099",0,1014263010,"KAREN JIMENA BURBANO MORENO","Persona Natural","N/A","N/A","N/A",5734167,null,null,0,5734167,5734167,"2021-11-30","2021-12-03","2022-01-07","1 MES 5 DIAS",null,"N/A",null,null,null,null,null,null,"X",null,1]
["175-2021",2021,"FDLM-CD-175-2021 (64882)","https://community.secop.gov.co/Public/Tendering/OpportunityDetail/Index?noticeUID=CO1.NTC.2445756&isFromPublicArea=True&isModal=False","Contratos de prestación de servicios profesionales y de apoyo a la gestión","Contratación directa","Prestación de servicios profesionales y de apoyo a la gestión, o para la ejecución de trabajos artísticos que sólo puedan encomendarse a determinadas personas naturales;","PRESTAR SERVICIOS PROFESIONALES EN LOS PROYECTOS QUE TIENEN POR OBJETO LA CONSTRUCCIÓN, MANTENIMIENTO Y DOTACIÓN DE PARQUES VECINALES Y / O DE BOLSILLO DE LA LOCALIDAD DE LOS MÁRTIRES","Inversión","Un Nuevo Contrato Social y Ambiental para la Bogotá del Siglo XXI",3,{"$f":"IF(ISERROR(VLOOKUP(K197,Proposito_programa!$C$2:$E$59,2,FALSE)),\" \",VLOOKUP(K197,Proposito_programa!$C$2:$E$59,2,FALSE))","v":"Movilidad social integral"},{"$f":"IF(ISERROR(VLOOKUP(K197,Proposito_programa!$C$2:$E$59,3,FALSE)),\" \",VLOOKUP(K197,Proposito_programa!$C$2:$E$59,3,FALSE))","v":"Propósito 1: Hacer un nuevo contrato social para incrementar la inclusión social, productiva y política"},"133011602330000002092",0,52384481,"MARYORI PASACHOVA SANCHEZ","Persona Natural","N/A","N/A","N/A",8344000,null,null,0,8344000,8344000,"2021-12-07","2021-12-09","2022-01-20","1 MES 12 DIAS",null,"N/A",null,null,null,null,null,null,"X",null,1]
["176-2021",2021,"FDLM ‑ CD ‑ 176‑2021 (65022)","https://community.secop.gov.co/Public/Tendering/OpportunityDetail/Index?noticeUID=CO1.NTC.2431014&isFromPublicArea=True&isModal=False","Contratos de prestación de servicios profesionales y de apoyo a la gestión","Contratación directa","Prestación de servicios profesionales y de apoyo a la gestión, o para la ejecución de trabajos artísticos que sólo puedan encomendarse a determinadas personas naturales;","PRESTAR LOS SERVICIOS TÉCNICOS PARA LA OPERACIÓN, SEGUIMIENTO Y CUMPLIMIENTO DE LOS PROCESOS Y PROCEDIMIENTOS DEL SERVICIO SOCIAL APOYOS PARA LA SEGURIDAD ECONÓMICA TIPO C, REQUERIDOS PARA EL OPORTUNO Y ADECUADO REGISTRO, CRUCE Y REPORTE DE LOS DATOS EN EL SISTEMA DE INFORMACIÓN Y REGISTRO DE BENEFICIARIOS-SIRBE, QUE CONTRIBUYAN A LA GARANTÍA DE LOS DERECHOS DE LA POBLACIÓN MAYOR EN EL MARCO DE LA POLÍTICA PÚBLICA SOCIAL PARA EL ENVEJECIMIENTO Y LA VEJEZ EN EL DISTRITO CAPITAL A CARGO DE LA ALCA","Inversión","Un Nuevo Contrato Social y Ambiental para la Bogotá del Siglo XXI",3,{"$f":"IF(ISERROR(VLOOKUP(K198,Proposito_programa!$C$2:$E$59,2,FALSE)),\" \",VLOOKUP(K198,Proposito_programa!$C$2:$E$59,2,FALSE))","v":"Movilidad social integral"},{"$f":"IF(ISERROR(VLOOKUP(K198,Proposito_programa!$C$2:$E$59,3,FALSE)),\" \",VLOOKUP(K198,Proposito_programa!$C$2:$E$59,3,FALSE))","v":"Propósito 1: Hacer un nuevo contrato social para incrementar la inclusión social, productiva y política"},"133011601010000002068",0,1031157993,"YEIMI PAHOLA HERRERA RUIZ","Persona Natural","N/A","N/A","N/A",3733333,null,null,0,3733333,3733333,"2021-11-30","2021-12-03","2022-01-07","1 MES 5 DIAS",null,"N/A",null,null,null,null,null,null,"X",null,1]
["177-2021",2021,"FDLM-CD-177-2021 (64475)","https://community.secop.gov.co/Public/Tendering/OpportunityDetail/Index?noticeUID=CO1.NTC.2445760&isFromPublicArea=True&isModal=False","Contratos de prestación de servicios profesionales y de apoyo a la gestión","Contratación directa","Prestación de servicios profesionales y de apoyo a la gestión, o para la ejecución de trabajos artísticos que sólo puedan encomendarse a determinadas personas naturales;","PRESTAR LOS SERVICIOS PROFESIONALES COMO ABOGADO PARA APOYAR LAS DIFERENTES ETAPAS CONTRACTUALES, Y DEMÁS LABORES PROPIAS DE LA OFICINA DE CONTRATACIÓN DEL FONDO DE DESARROLLO LOCAL DE LOS MÁRTIRES.","Inversión","Un Nuevo Contrato Social y Ambiental para la Bogotá del Siglo XXI",3,{"$f":"IF(ISERROR(VLOOKUP(K199,Proposito_programa!$C$2:$E$59,2,FALSE)),\" \",VLOOKUP(K199,Proposito_programa!$C$2:$E$59,2,FALSE))","v":"Movilidad social integral"},{"$f":"IF(ISERROR(VLOOKUP(K199,Proposito_programa!$C$2:$E$59,3,FALSE)),\" \",VLOOKUP(K199,Proposito_programa!$C$2:$E$59,3,FALSE))","v":"Propósito 1: Hacer un nuevo contrato social para incrementar la inclusión social, productiva y política"},"133011605570000002099",0,1032383222,"JESUS MAURICIO ROA OME","Persona Natural","N/A","N/A","N/A",9600000,null,null,0,9600000,9600000,"2021-12-07","2021-12-09","2022-01-26","1 MES 18 DIAS",null,"N/A",null,null,null,null,null,null,"X",null,1]
["178-2021",2021,"178-2021-CPS P (64962)","https://community.secop.gov.co/Public/Tendering/OpportunityDetail/Index?noticeUID=CO1.NTC.2439176&isFromPublicArea=True&isModal=False","Contratos de prestación de servicios profesionales y de apoyo a la gestión","Contratación directa","Prestación de servicios profesionales y de apoyo a la gestión, o para la ejecución de trabajos artísticos que sólo puedan encomendarse a determinadas personas naturales;","PRESTAR LOS SERVICIOS PROFESIONALES PARA LA OPERACIÓN, PRESTACIÓN, SEGUIMIENTO Y CUMPLIMIENTO DE LOS PROCEDIMIENTOS ADMINISTRATIVOS, OPERATIVOS Y PROGRAMÁTICOS DEL SERVICIO SOCIAL APOYO ECONÓMICO TIPO C, QUE CONTRIBUYAN A LA GARANTÍA DE LOS DERECHOS DE LA POBLACIÓN SOCIAL POLÍTICA EL ENVEJECIMIENTO Y LA VEJEZ EN EL DISTRITO CAPITAL A CARGO DE LA ALCALDÍA LOCAL.","Inversión","Un Nuevo Contrato Social y Ambiental para la Bogotá del Siglo XXI",3,{"$f":"IF(ISERROR(VLOOKUP(K200,Proposito_programa!$C$2:$E$59,2,FALSE)),\" \",VLOOKUP(K200,Proposito_programa!$C$2:$E$59,2,FALSE))","v":"Movilidad social integral"},{"$f":"IF(ISERROR(VLOOKUP(K200,Proposito_programa!$C$2:$E$59,3,FALSE)),\" \",VLOOKUP(K200,Proposito_programa!$C$2:$E$59,3,FALSE))","v":"Propósito 1: Hacer un nuevo contrato social para incrementar la inclusión social, productiva y política"},"133011601010000002068",0,52198702,"LEDI ANYELI CASTRILLON MARTINEZ","Persona Natural","N/A","N/A","N/A",4500000,null,null,0,4500000,4500000,"2021-12-03","2021-12-06","2022-01-05","1 MES",null,"N/A",null,null,null,null,null,null,"X",null,1]
["179-2021",2021,"FDLM-CD-179-2021 (65818)","https://community.secop.gov.co/Public/Tendering/OpportunityDetail/Index?noticeUID=CO1.NTC.2438170&isFromPublicArea=True&isModal=False","Contratos de prestación de servicios profesionales y de apoyo a la gestión","Contratación directa","Prestación de servicios profesionales y de apoyo a la gestión, o para la ejecución de trabajos artísticos que sólo puedan encomendarse a determinadas personas naturales;","PRESTAR SUS SERVICIOS PROFESIONALES AL FONDO DE DESARROLLO LOCAL DE LOS MÁRTIRES PARA EL APOYO Y ACOMPAÑAMIENTO DE LAS INSTANCIAS DE COORDINACIÓN INTERINSTITUCIONALES E INSTANCIAS DE PARTICIPACIÓN LOCALES, APOYO A LA SUPERVISIÓN Y SEGUIMIENTO AL PLAN DE DESARROLLO LOCAL Y EVALUACIÓN DE PROYECTOS","Inversión","Un Nuevo Contrato Social y Ambiental para la Bogotá del Siglo XXI",3,{"$f":"IF(ISERROR(VLOOKUP(K201,Proposito_programa!$C$2:$E$59,2,FALSE)),\" \",VLOOKUP(K201,Proposito_programa!$C$2:$E$59,2,FALSE))","v":"Movilidad social integral"},{"$f":"IF(ISERROR(VLOOKUP(K201,Proposito_programa!$C$2:$E$59,3,FALSE)),\" \",VLOOKUP(K201,Proposito_programa!$C$2:$E$59,3,FALSE))","v":"Propósito 1: Hacer un nuevo contrato social para incrementar la inclusión social, productiva y política"},"133011605570000002099",0,88281606,"\nDENIS EDUARDO BARROZO ROJAS","Persona Natural","N/A","N/A","N/A",6000000,null,null,0,6000000,0,"2021-12-03","2021-12-06","2022-01-05","1 MES",null,"N/A",null,null,null,null,null,null,"X",null,0]
["180-2021",2021,"FDLM-CD-180-2021 (63934)","https://community.secop.gov.co/Public/Tendering/OpportunityDetail/Index?noticeUID=CO1.NTC.2448979&isFromPublicArea=True&isModal=False ","Contratos de prestación de servicios profesionales y de apoyo a la gestión","Contratación directa","Prestación de servicios profesionales y de apoyo a la gestión, o para la ejecución de trabajos artísticos que sólo puedan encomendarse a determinadas personas naturales;","APOYAR JURÍDICAMENTE LA EJECUCIÓN DE ACCIONES REQUERIDAS PARA EL TRÁMITE E IMPULSO PROCESAL DE LAS ACTUACIONES CONTRAVENCIONALES Y/O QUERELLAS QUE CURSEN EN LAS INSPECCIONES DE POLICÍA DE LA LOCALIDAD DE LOS MÁRTIRES","Inversión","Un Nuevo Contrato Social y Ambiental para la Bogotá del Siglo XXI",3,{"$f":"IF(ISERROR(VLOOKUP(K202,Proposito_programa!$C$2:$E$59,2,FALSE)),\" \",VLOOKUP(K202,Proposito_programa!$C$2:$E$59,2,FALSE))","v":"Movilidad social integral"},{"$f":"IF(ISERROR(VLOOKUP(K202,Proposito_programa!$C$2:$E$59,3,FALSE)),\" \",VLOOKUP(K202,Proposito_programa!$C$2:$E$59,3,FALSE))","v":"Propósito 1: Hacer un nuevo contrato social para incrementar la inclusión social, productiva y política"},"133011605570000002099",0,1007539578,"JUAN PABLO TORRES ALVAREZ","Persona Natural","N/A","N/A","N/A",6533333,null,null,0,6533333,6533333,"2021-12-09","2021-12-13","2022-01-22","40 DIAS",null,"N/A",null,null,null,null,null,null,"X",null,1]
["181-2021",2021,"FDLM-CD-181-2021 (64448)","https://community.secop.gov.co/Public/Tendering/OpportunityDetail/Index?noticeUID=CO1.NTC.2463922&isFromPublicArea=True&isModal=False","Contratos de prestación de servicios profesionales y de apoyo a la gestión","Contratación directa","Prestación de servicios profesionales y de apoyo a la gestión, o para la ejecución de trabajos artísticos que sólo puedan encomendarse a determinadas personas naturales;","PRESTAR SERVICIOS PROFESIONALES EN LOS PROYECTOS QUE TIENEN POR OBJETO LA CONSTRUCCIÓN, REHABILITACIÓN Y MANTENIMIENTO DE LA INFRAESTRUCTURA VIAL Y ESPACIO PÚBLICO DE LA LOCALIDAD DE LOS MÁRTIRES.","Inversión","Un Nuevo Contrato Social y Ambiental para la Bogotá del Siglo XXI",3,{"$f":"IF(ISERROR(VLOOKUP(K203,Proposito_programa!$C$2:$E$59,2,FALSE)),\" \",VLOOKUP(K203,Proposito_programa!$C$2:$E$59,2,FALSE))","v":"Movilidad social integral"},{"$f":"IF(ISERROR(VLOOKUP(K203,Proposito_programa!$C$2:$E$59,3,FALSE)),\" \",VLOOKUP(K203,Proposito_programa!$C$2:$E$59,3,FALSE))","v":"Propósito 1: Hacer un nuevo contrato social para incrementar la inclusión social, productiva y política"},"133011604490000002097",0,79785438,"JAIME HERNAN VILLALBA VARGAS","Persona Natural","N/A","N/A","N/A",6953333,null,null,0,6953333,914900,"2021-12-17","2021-12-20","2022-01-24","1 MES Y 5 DIAS",null,"N/A",null,null,null,null,null,null,"X",null,0.13157718751568492]
["182-2021",2021,"FDLM-CD-182-2021 (65698)","https://community.secop.gov.co/Public/Tendering/OpportunityDetail/Index?noticeUID=CO1.NTC.2455671&isFromPublicArea=True&isModal=False","Contratos de prestación de servicios profesionales y de apoyo a la gestión","Contratación directa","Prestación de servicios profesionales y de apoyo a la gestión, o para la ejecución de trabajos artísticos que sólo puedan encomendarse a determinadas personas naturales;","PRESTAR LOS SERVICIOS PROFESIONALES PARA LA OPERACIÓN, PRESTACIÓN, SEGUIMIENTO Y CUMPLIMIENTO DE LOS PROCEDIMIENTOS ADMINISTRATIVOS, OPERATIVOS Y PROGRAMÁTICOS DEL SERVICIO SOCIAL APOYO ECONÓMICO TIPO C, QUE CONTRIBUYAN A LA GARANTÍA DE LOS DERECHOS DE LA POBLACIÓN MAYOR EN EL MARCO DE LA POLÍTICA PÚBLICA SOCIAL PARA EL ENVEJECIMIENTO Y LA VEJEZ EN EL DISTRITO CAPITAL A CARGO DE LA ALCALDÍA LOCAL.\n","Inversión","Un Nuevo Contrato Social y Ambiental para la Bogotá del Siglo XXI",3,{"$f":"IF(ISERROR(VLOOKUP(K204,Proposito_programa!$C$2:$E$59,2,FALSE)),\" \",VLOOKUP(K204,Proposito_programa!$C$2:$E$59,2,FALSE))","v":"Movilidad social integral"},{"$f":"IF(ISERROR(VLOOKUP(K204,Proposito_programa!$C$2:$E$59,3,FALSE)),\" \",VLOOKUP(K204,Proposito_programa!$C$2:$E$59,3,FALSE))","v":"Propósito 1: Hacer un nuevo contrato social para incrementar la inclusión social, productiva y política"},"133011601010000002068",0,1014260640,"VALENTINA MAYO CASTRO","Persona Natural","N/A","N/A","N/A",4500000,null,null,0,4500000,4500000,"2021-12-14","2021-12-16","2022-01-15","1 MES",null,"N/A",null,null,null,null,null,null,"X",null,1]
["183-2021",2021,"FDLM-CD-183-2021 (66060)","https://community.secop.gov.co/Public/Tendering/OpportunityDetail/Index?noticeUID=CO1.NTC.2463925&isFromPublicArea=True&isModal=False","Contratos de prestación de servicios profesionales y de apoyo a la gestión","Contratación directa","Prestación de servicios profesionales y de apoyo a la gestión, o para la ejecución de trabajos artísticos que sólo puedan encomendarse a determinadas personas naturales;","PRESTAR LOS SERVICIOS PROFESIONALES COMO ABOGADO PARA APOYAR LAS DIFERENTES ETAPAS CONTRACTUALES, Y DEMÁS LABORES PROPIAS DE CONTRATACIÓN DEL FONDO DE DESARROLLO LOCAL DE LOS MÁRTIRES.","Inversión","Un Nuevo Contrato Social y Ambiental para la Bogotá del Siglo XXI",3,{"$f":"IF(ISERROR(VLOOKUP(K205,Proposito_programa!$C$2:$E$59,2,FALSE)),\" \",VLOOKUP(K205,Proposito_programa!$C$2:$E$59,2,FALSE))","v":"Movilidad social integral"},{"$f":"IF(ISERROR(VLOOKUP(K205,Proposito_programa!$C$2:$E$59,3,FALSE)),\" \",VLOOKUP(K205,Proposito_programa!$C$2:$E$59,3,FALSE))","v":"Propósito 1: Hacer un nuevo contrato social para incrementar la inclusión social, productiva y política"},"133011605570000002099",0,7368660,"ALFONSO LUIS MONTES OTERO","Persona Natural","N/A","N/A","N/A",5500000,null,null,null,5500000,2600000,"2021-12-17","2021-12-20","2022-01-19","1 MES",null,null,null,null,null,null,null,null,"X",null,0.47272727272727272]
["184-2021",2021,"FDLM-SAMC-002-2021","https://community.secop.gov.co/Public/Tendering/OpportunityDetail/Index?noticeUID=CO1.NTC.2434141&isFromPublicArea=True&isModal=False","Otros","Contratación directa","No aplica","PRESTAR LOS SERVICIOS PARA REALIZAR LA ATENCIÓN DE ANIMALES DE LA LOCALIDAD DE LOS MÁRTIRES EN ACCIONES DE URGENCIAS MÉDICAS VETERINARIAS, BRIGADAS MÉDICO VETERINARIAS, ESTERILIZACIÓN, EDUCACIÓN Y ADOPCIÓN RESPONSABLE.","Funcionamiento","Un Nuevo Contrato Social y Ambiental para la Bogotá del Siglo XXI","No aplica",null,null,"133011602340000002085",0,249195000,"\tFUNDACION ECODES","Persona Jurídica","N/A","N/A","N/A",249195000,null,null,null,249195000,0,"2021-12-21","PEN","PEN","4 MESES",null,null,null,null,null,null,"X",null,null,null,0]
["185-2021",2021,"FDLM-CD-185-2021 (65388)","https://community.secop.gov.co/Public/Tendering/OpportunityDetail/Index?noticeUID=CO1.NTC.2473040&isFromPublicArea=True&isModal=False","Contratos de prestación de servicios profesionales y de apoyo a la gestión","Contratación directa","Prestación de servicios profesionales y de apoyo a la gestión, o para la ejecución de trabajos artísticos que sólo puedan encomendarse a determinadas personas naturales;","PRESTAR SUS SERVICIOS PROFESIONALES PARA APOYAR A LA ALCALDÍA LOCAL DE LOS MÁRTIRES, EN LA ARTICULACIÓN, ACOMPAÑAMIENTO Y SEGUIMIENTO DEL CONTRATO RESULTANTE DEL PROCESO DE SELECCIÓN FDLM-SAMC-002-2021.","Inversión","Un Nuevo Contrato Social y Ambiental para la Bogotá del Siglo XXI",3,{"$f":"IF(ISERROR(VLOOKUP(K207,Proposito_programa!$C$2:$E$59,2,FALSE)),\" \",VLOOKUP(K207,Proposito_programa!$C$2:$E$59,2,FALSE))","v":"Movilidad social integral"},{"$f":"IF(ISERROR(VLOOKUP(K207,Proposito_programa!$C$2:$E$59,3,FALSE)),\" \",VLOOKUP(K207,Proposito_programa!$C$2:$E$59,3,FALSE))","v":"Propósito 1: Hacer un nuevo contrato social para incrementar la inclusión social, productiva y política"},"133011602340000002085",0,11605534,"\tJOHN JADER SUAREZ DELGADO","Persona Natural","N/A","N/A","N/A",6800000,null,null,null,6800000,0,"2021-12-23","2021-12-24","2022-01-23","1 MES",null,null,null,null,null,null,null,null,"X",null,0]
["186-2021",2021,"FDLM-CD-186-2021 (67066)","https://community.secop.gov.co/Public/Tendering/OpportunityDetail/Index?noticeUID=CO1.NTC.2471627&isFromPublicArea=True&isModal=False","Contratos de prestación de servicios profesionales y de apoyo a la gestión","Contratación directa","Prestación de servicios profesionales y de apoyo a la gestión, o para la ejecución de trabajos artísticos que sólo puedan encomendarse a determinadas personas naturales;","APOYAR JURÍDICAMENTE LA EJECUCIÓN DE LAS ACCIONES REQUERIDAS PARA LA DEPURACIÓN DE LAS ACTUACIONES ADMINISTRATIVAS QUE CURSAN EN LA ALCALDÍA LOCAL.","Inversión","Un Nuevo Contrato Social y Ambiental para la Bogotá del Siglo XXI",3,{"$f":"IF(ISERROR(VLOOKUP(K208,Proposito_programa!$C$2:$E$59,2,FALSE)),\" \",VLOOKUP(K208,Proposito_programa!$C$2:$E$59,2,FALSE))","v":"Movilidad social integral"},{"$f":"IF(ISERROR(VLOOKUP(K208,Proposito_programa!$C$2:$E$59,3,FALSE)),\" \",VLOOKUP(K208,Proposito_programa!$C$2:$E$59,3,FALSE))","v":"Propósito 1: Hacer un nuevo contrato social para incrementar la inclusión social, productiva y política"},"133011605570000002099",0,1121881058,"ANDRES CRUZ CASTAÑEDA","Persona Natural","N/A","N/A","N/A",4915000,null,null,null,4915000,2298402,"2021-12-22","2021-12-23","2022-01-22","1 MES",null,null,null,null,null,null,null,null,"X",null,0.46763011190233977]
["187-2021",2021,"FDLM-CD-187-2021 (67080)","https://community.secop.gov.co/Public/Tendering/OpportunityDetail/Index?noticeUID=CO1.NTC.2471450&isFromPublicArea=True&isModal=False","Contratos de prestación de servicios profesionales y de apoyo a la gestión","Contratación directa","Prestación de servicios profesionales y de apoyo a la gestión, o para la ejecución de trabajos artísticos que sólo puedan encomendarse a determinadas personas naturales;","APOYAR JURÍDICAMENTE LA EJECUCIÓN DE LAS ACCIONES REQUERIDAS PARA LA DEPURACIÓN DE LAS ACTUACIONES ADMINISTRATIVAS QUE CURSAN EN LA ALCALDÍA LOCAL.","Inversión","Un Nuevo Contrato Social y Ambiental para la Bogotá del Siglo XXI",3,{"$f":"IF(ISERROR(VLOOKUP(K209,Proposito_programa!$C$2:$E$59,2,FALSE)),\" \",VLOOKUP(K209,Proposito_programa!$C$2:$E$59,2,FALSE))","v":"Movilidad social integral"},{"$f":"IF(ISERROR(VLOOKUP(K209,Proposito_programa!$C$2:$E$59,3,FALSE)),\" \",VLOOKUP(K209,Proposito_programa!$C$2:$E$59,3,FALSE))","v":"Propósito 1: Hacer un nuevo contrato social para incrementar la inclusión social, productiva y política"},"133011605570000002099",0,46383509,"YENNY ANDREA CARDENAS LEON","Persona Natural","N/A","N/A","N/A",4915000,null,null,null,4915000,4915000,"2021-12-22","2021-12-23","2022-01-22","1 MES",null,null,null,null,null,null,null,null,"X",null,1]
["188-2021",2021,"FDLM-CD-188-2021 (66061)","https://community.secop.gov.co/Public/Tendering/OpportunityDetail/Index?noticeUID=CO1.NTC.2471447&isFromPublicArea=True&isModal=False","Contratos de prestación de servicios profesionales y de apoyo a la gestión","Contratación directa","Prestación de servicios profesionales y de apoyo a la gestión, o para la ejecución de trabajos artísticos que sólo puedan encomendarse a determinadas personas naturales;","PRESTAR LOS SERVICIOS PROFESIONALES AL FONDO DE DESARROLLO LOCAL DE LOS MÁRTIRES EN EL FORTALECIMIENTO DEL GRUPO DE GESTIÓN DEL DESARROLLO PARA EL CUMPLIMIENTO ","Inversión","Un Nuevo Contrato Social y Ambiental para la Bogotá del Siglo XXI",3,{"$f":"IF(ISERROR(VLOOKUP(K210,Proposito_programa!$C$2:$E$59,2,FALSE)),\" \",VLOOKUP(K210,Proposito_programa!$C$2:$E$59,2,FALSE))","v":"Movilidad social integral"},{"$f":"IF(ISERROR(VLOOKUP(K210,Proposito_programa!$C$2:$E$59,3,FALSE)),\" \",VLOOKUP(K210,Proposito_programa!$C$2:$E$59,3,FALSE))","v":"Propósito 1: Hacer un nuevo contrato social para incrementar la inclusión social, productiva y política"},"133011605570000002099",0,1022325511,"JHONN ALEXANDER BAHOS HERRERA","Persona Natural","N/A","N/A","N/A",5500000,null,null,null,5500000,0,"2021-12-22","2021-12-23","2022-01-22","1 MES",null,null,null,null,null,null,null,null,"X",null,0]
["189-2021",2021,"FDLM-CD-189-2021 (67089)","https://community.secop.gov.co/Public/Tendering/ContractNoticePhases/View?PPI=CO1.PPI.16462543&isFromPublicArea=True&isModal=False","Contratos de prestación de servicios profesionales y de apoyo a la gestión","Contratación directa","Prestación de servicios profesionales y de apoyo a la gestión, o para la ejecución de trabajos artísticos que sólo puedan encomendarse a determinadas personas naturales;","\t\nPRESTAR LOS SERVICIOS PROFESIONALES ADMINISTRATIVOS AL FONDO DE DESARROLLO LOCAL DE LA LOCALIDAD DE LOS MÁRTIRES.","Inversión","Un Nuevo Contrato Social y Ambiental para la Bogotá del Siglo XXI",3,{"$f":"IF(ISERROR(VLOOKUP(K211,Proposito_programa!$C$2:$E$59,2,FALSE)),\" \",VLOOKUP(K211,Proposito_programa!$C$2:$E$59,2,FALSE))","v":"Movilidad social integral"},{"$f":"IF(ISERROR(VLOOKUP(K211,Proposito_programa!$C$2:$E$59,3,FALSE)),\" \",VLOOKUP(K211,Proposito_programa!$C$2:$E$59,3,FALSE))","v":"Propósito 1: Hacer un nuevo contrato social para incrementar la inclusión social, productiva y política"},"133011605570000002099",0,1030544996,"JEIMMY ALEXANDRA RODRIGUEZ BOLIVAR","Persona Natural","N/A","N/A","N/A",5000000,null,null,null,5000000,5000000,"2021-12-23","2021-12-24","2022-01-23","1 MES",null,null,null,null,null,null,null,null,"X",null,1]
["190 2021",2021,"FDLM-CPS-190-2021","https://community.secop.gov.co/Public/Tendering/OpportunityDetail/Index?noticeUID=CO1.NTC.2457481&isFromPublicArea=True&isModal=False","Seguros","Selección abreviada","No aplica","CONTRATAR CON UNA COMPAÑÍA ASEGURADORA LOS SEGUROS QUE AMPAREN LOS INTERESES PATRIMONIALES ACTUALES Y FUTUROS, ASÍ COMO LOS BIENES DE PROPIEDAD DE LA ALCALDÍA LOCAL DE LOS MÁRTIRES, QUE ESTEN BAJO SU RESPONSABILIDAD Y CUSTODIA Y AQUELLOS QUE SEAN ADQUIRIDOS PARA DESARROLLAR LAS FUNCIONES INHERENTES A SU ACTIVIDAD, ASÍ COMO CUALQUIER OTRA PÓLIZA DE SEGUROS QUE REQUIERA LA ENTIDAD EN EL DESARROLLO DE SU ACTIVIDAD.","Funcionamiento","Un Nuevo Contrato Social y Ambiental para la Bogotá del Siglo XXI","No aplica",{"$f":"IF(ISERROR(VLOOKUP(K212,Proposito_programa!$C$2:$E$59,2,FALSE)),\" \",VLOOKUP(K212,Proposito_programa!$C$2:$E$59,2,FALSE))","v":" "},{"$f":"IF(ISERROR(VLOOKUP(K212,Proposito_programa!$C$2:$E$59,3,FALSE)),\" \",VLOOKUP(K212,Proposito_programa!$C$2:$E$59,3,FALSE))","v":" "},"131020202020109",0,4316585,"LA PREVISORA S A COMPAÑIA DE SEGUROS","Persona Jurídica","N/A","N/A","N/A",116442160,null,null,null,116442160,0,"2021-12-29","PEN","PEN","456 DIAS",null,null,null,null,null,null,"X",null,null,null,0]
["190 2021",2021,"FDLM-CPS-190-2021","https://community.secop.gov.co/Public/Tendering/OpportunityDetail/Index?noticeUID=CO1.NTC.2457481&isFromPublicArea=True&isModal=False","Seguros","Selección abreviada","No aplica","CONTRATAR CON UNA COMPAÑÍA ASEGURADORA LOS SEGUROS QUE AMPAREN LOS INTERESES PATRIMONIALES ACTUALES Y FUTUROS, ASÍ COMO LOS BIENES DE PROPIEDAD DE LA ALCALDÍA LOCAL DE LOS MÁRTIRES, QUE ESTEN BAJO SU RESPONSABILIDAD Y CUSTODIA Y AQUELLOS QUE SEAN ADQUIRIDOS PARA DESARROLLAR LAS FUNCIONES INHERENTES A SU ACTIVIDAD, ASÍ COMO CUALQUIER OTRA PÓLIZA DE SEGUROS QUE REQUIERA LA ENTIDAD EN EL DESARROLLO DE SU ACTIVIDAD.","Funcionamiento","Un Nuevo Contrato Social y Ambiental para la Bogotá del Siglo XXI","No aplica",{"$f":"IF(ISERROR(VLOOKUP(K213,Proposito_programa!$C$2:$E$59,2,FALSE)),\" \",VLOOKUP(K213,Proposito_programa!$C$2:$E$59,2,FALSE))","v":" "},{"$f":"IF(ISERROR(VLOOKUP(K213,Proposito_programa!$C$2:$E$59,3,FALSE)),\" \",VLOOKUP(K213,Proposito_programa!$C$2:$E$59,3,FALSE))","v":" "},"131020202020107",0,41498598,"LA PREVISORA S A COMPAÑIA DE SEGUROS","Persona Jurídica","N/A","N/A","N/A",116442160,null,null,null,{"$f":"+V213+W213+Y213","v":116442160},0,"2021-12-29","PEN","PEN","456 DIAS",null,null,null,null,null,null,"X",null,null,null,{"$f":"IF(ISERROR(AA213/Z213),\"-\",(AA213/Z213))","v":0}]
["190 2021",2021,"FDLM-CPS-190-2021","https://community.secop.gov.co/Public/Tendering/OpportunityDetail/Index?noticeUID=CO1.NTC.2457481&isFromPublicArea=True&isModal=False","Seguros","Selección abreviada","No aplica","CONTRATAR CON UNA COMPAÑÍA ASEGURADORA LOS SEGUROS QUE AMPAREN LOS INTERESES PATRIMONIALES ACTUALES Y FUTUROS, ASÍ COMO LOS BIENES DE PROPIEDAD DE LA ALCALDÍA LOCAL DE LOS MÁRTIRES, QUE ESTEN BAJO SU RESPONSABILIDAD Y CUSTODIA Y AQUELLOS QUE SEAN ADQUIRIDOS PARA DESARROLLAR LAS FUNCIONES INHERENTES A SU ACTIVIDAD, ASÍ COMO CUALQUIER OTRA PÓLIZA DE SEGUROS QUE REQUIERA LA ENTIDAD EN EL DESARROLLO DE SU ACTIVIDAD.","Funcionamiento","Un Nuevo Contrato Social y Ambiental para la Bogotá del Siglo XXI","No aplica",{"$f":"IF(ISERROR(VLOOKUP(K214,Proposito_programa!$C$2:$E$59,2,FALSE)),\" \",VLOOKUP(K214,Proposito_programa!$C$2:$E$59,2,FALSE))","v":" "},{"$f":"IF(ISERROR(VLOOKUP(K214,Proposito_programa!$C$2:$E$59,3,FALSE)),\" \",VLOOKUP(K214,Proposito_programa!$C$2:$E$59,3,FALSE))","v":" "},"131020202020108",0,70626977,"LA PREVISORA S A COMPAÑIA DE SEGUROS","Persona Jurídica","N/A","N/A","N/A",116442160,null,null,null,116442160,0,"2021-12-29","PEN","PEN","456 DIAS",null,null,null,null,null,null,"X",null,null,null,0]
["191 2021",2021,"FDLM-CPS-191-2021","https://community.secop.gov.co/Public/Tendering/OpportunityDetail/Index?noticeUID=CO1.NTC.2471445&isFromPublicArea=True&isModal=False","Contratos de prestación de servicios","Contratación mínima cuantia","No aplica","VINCULAR PERSONAS DE LA LOCALIDAD DE LOS MÁRTIRES A LAS ACCIONES Y ESTRATEGIAS DE RECONOCIMIENTO DE LOS SABERES ANCESTRALES INDIGENA EN MEDICINA, EN MARCO DEL PROYECTO 2043-AYUDAS TÉCNICAS Y MEDICINA ANCESTRAL","Funcionamiento","Un Nuevo Contrato Social y Ambiental para la Bogotá del Siglo XXI","No aplica",{"$f":"IF(ISERROR(VLOOKUP(K215,Proposito_programa!$C$2:$E$59,2,FALSE)),\" \",VLOOKUP(K215,Proposito_programa!$C$2:$E$59,2,FALSE))","v":" "},{"$f":"IF(ISERROR(VLOOKUP(K215,Proposito_programa!$C$2:$E$59,3,FALSE)),\" \",VLOOKUP(K215,Proposito_programa!$C$2:$E$59,3,FALSE))","v":" "},"133011601060000002043",0,900950959,"CORPORACION BINYE  DESARROYO HUMANO Y SOCIAL","Persona Jurídica","N/A","N/A","N/A",14750100,null,null,null,14750100,0,"2021-12-30","PEN","PEN","1 MES",null,null,null,null,null,null,"X",null,null,null,0]
["192 2021",2021,"FDLM-CPS-192-2021\t","https://community.secop.gov.co/Public/Tendering/OpportunityDetail/Index?noticeUID=CO1.NTC.2459771&isFromPublicArea=True&isModal=False","Contratos de prestación de servicios","Selección abreviada","No aplica","PRESTAR LOS SERVICIOS TÉCNICOS Y LOGÍSTICOS PARA LA FORMACIÓN DE PERSONAS EN ESTRATEGIAS PERSONALES Y COMUNITARIAS DE PREVENCIÓN DE LA VIOLENCIA INTRAFAMILIAR Y/O VIOLENCIA SEXUAL.","Funcionamiento","Un Nuevo Contrato Social y Ambiental para la Bogotá del Siglo XXI","No aplica",{"$f":"IF(ISERROR(VLOOKUP(K216,Proposito_programa!$C$2:$E$59,2,FALSE)),\" \",VLOOKUP(K216,Proposito_programa!$C$2:$E$59,2,FALSE))","v":" "},{"$f":"IF(ISERROR(VLOOKUP(K216,Proposito_programa!$C$2:$E$59,3,FALSE)),\" \",VLOOKUP(K216,Proposito_programa!$C$2:$E$59,3,FALSE))","v":" "},"133011601060000002077",0,900419169,"CORPORACION PARA LA ASESORIA CONSULTORIA INTERVENT","Persona Jurídica","N/A","N/A","N/A",131753253,null,null,null,131753253,0,"2021-12-30","PEN","PEN","4 MESES",null,null,null,null,null,null,"X",null,null,null,0]
["193 2021",2021,"FDLM-CV-193-2021","https://community.secop.gov.co/Public/Tendering/OpportunityDetail/Index?noticeUID=CO1.NTC.2445761&isFromPublicArea=True&isModal=False","Compraventa de bienes muebles","Selección abreviada","No aplica","ADQUISICIÓN DE ELEMENTOS PARA LA DOTACIÓN DE LA CASA DE LA JUVENTUD Y ELCENTRO DE ATENCION INTEGRAL A LA DIVERSIDAD SEXUAL Y DE GENEROS (CAIDSG)DE LA LOCALIDAD DE LOS MÁRTIRES, DE CONFORMIDAD CON LAS ESPECIFICACIONESY CANTIDADES ESTABLECIDAS EN LAS FICHAS TÉCNICAS.","Funcionamiento","Un Nuevo Contrato Social y Ambiental para la Bogotá del Siglo XXI","No aplica",{"$f":"IF(ISERROR(VLOOKUP(K217,Proposito_programa!$C$2:$E$59,2,FALSE)),\" \",VLOOKUP(K217,Proposito_programa!$C$2:$E$59,2,FALSE))","v":" "},{"$f":"IF(ISERROR(VLOOKUP(K217,Proposito_programa!$C$2:$E$59,3,FALSE)),\" \",VLOOKUP(K217,Proposito_programa!$C$2:$E$59,3,FALSE))","v":" "},"133011601060000002077",0,830029017,"AMERICANA CORP S A S","Persona Jurídica","N/A","N/A","N/A",240353306,null,null,null,240353306,0,"2021-12-31","PEN","PEN","4 MESES",null,null,null,null,null,null,"X",null,null,null,0]
["193 2021",2021,"FDLM-CV-193-2021","https://community.secop.gov.co/Public/Tendering/OpportunityDetail/Index?noticeUID=CO1.NTC.2445761&isFromPublicArea=True&isModal=False","Compraventa de bienes muebles","Selección abreviada","No aplica","ADQUISICIÓN DE ELEMENTOS PARA LA DOTACIÓN DE LA CASA DE LA JUVENTUD Y ELCENTRO DE ATENCION INTEGRAL A LA DIVERSIDAD SEXUAL Y DE GENEROS (CAIDSG)DE LA LOCALIDAD DE LOS MÁRTIRES, DE CONFORMIDAD CON LAS ESPECIFICACIONESY CANTIDADES ESTABLECIDAS EN LAS FICHAS TÉCNICAS.","Funcionamiento","Un Nuevo Contrato Social y Ambiental para la Bogotá del Siglo XXI","No aplica",{"$f":"IF(ISERROR(VLOOKUP(K218,Proposito_programa!$C$2:$E$59,2,FALSE)),\" \",VLOOKUP(K218,Proposito_programa!$C$2:$E$59,2,FALSE))","v":" "},{"$f":"IF(ISERROR(VLOOKUP(K218,Proposito_programa!$C$2:$E$59,3,FALSE)),\" \",VLOOKUP(K218,Proposito_programa!$C$2:$E$59,3,FALSE))","v":" "},"133011601170000002056",0,830029017,"AMERICANA CORP S A S","Persona Jurídica","N/A","N/A","N/A",461378677,null,null,null,{"$f":"+V218+W218+Y218","v":461378677},0,"2021-12-31","PEN","PEN","4 MESES",null,null,null,null,null,null,"X",null,null,null,{"$f":"IF(ISERROR(AA218/Z218),\"-\",(AA218/Z218))","v":0}]
["194-2021",2021,"FDLM-CV-194-2021","https://community.secop.gov.co/Public/Tendering/OpportunityDetail/Index?noticeUID=CO1.NTC.2448994&isFromPublicArea=True&isModal=False","Compraventa de bienes muebles","Selección abreviada","No aplica","ADQUISICIÓN DE ELEMENTOS PARA DOTACIÓN TECNOLÓGICA DE LAS SEDES EDUCATIVAS EDUARDO SANTOS SEDE A, REPÚBLICA BOLIVARIANA DE VENEZUELA SEDE A, LICEO NACIONAL AGUSTIN NIETO SEDE ÚNICA y PANAMERICANO SEDE ÚNICA. DE LA LOCALIDAD DE LOS MÁRTIRES, DE CONFORMIDAD CON LAS ESPECIFICACIONES Y CANTIDADES ESTABLECIDAS EN LAS FICHAS TÉCNICAS.","Funcionamiento","Un Nuevo Contrato Social y Ambiental para la Bogotá del Siglo XXI","No aplica",{"$f":"IF(ISERROR(VLOOKUP(K219,Proposito_programa!$C$2:$E$59,2,FALSE)),\" \",VLOOKUP(K219,Proposito_programa!$C$2:$E$59,2,FALSE))","v":" "},{"$f":"IF(ISERROR(VLOOKUP(K219,Proposito_programa!$C$2:$E$59,3,FALSE)),\" \",VLOOKUP(K219,Proposito_programa!$C$2:$E$59,3,FALSE))","v":" "},"133011601140000002052",0,830068850,"AMERICAN OUTSOURCING S A","Persona Jurídica","N/A","N/A","N/A",374198710,null,null,null,374198710,0,"2021-12-31","PEN","PEN","4 MESES",null,null,null,null,null,null,"X",null,null,null,0]
["195 2021",2021,"FDLM-CPS-195-2021","https://community.secop.gov.co/Public/Tendering/OpportunityDetail/Index?noticeUID=CO1.NTC.2430681&isFromPublicArea=True&isModal=False","Contratos de prestación de servicios","Licitación pública","No aplica","PRESTAR LOS SERVICIOS PARA LA IMPLEMENTACIÓN Y EJECUCIÓN DE LOS PROYECTOS PEDAGÓGICOS DE LA LÍNEA DESARROLLO INTEGRAL DE LA PRIMERA INFANCIA Y LA RELACIÓN ESCUELA, FAMILIA Y COMUNIDAD, DE LAS INSTITUCIONES EDUCATIVAS DISTRITALES, LICEO NACIONAL AGUSTÍN NIETO CABALLERO Y COLEGIO PANAMERICANO DE LA LOCALIDAD DE LOS MÁRTIRES.","Funcionamiento","Un Nuevo Contrato Social y Ambiental para la Bogotá del Siglo XXI","No aplica",{"$f":"IF(ISERROR(VLOOKUP(K220,Proposito_programa!$C$2:$E$59,2,FALSE)),\" \",VLOOKUP(K220,Proposito_programa!$C$2:$E$59,2,FALSE))","v":" "},{"$f":"IF(ISERROR(VLOOKUP(K220,Proposito_programa!$C$2:$E$59,3,FALSE)),\" \",VLOOKUP(K220,Proposito_programa!$C$2:$E$59,3,FALSE))","v":" "},"133011601120000002047",0,901552375,"UNION TEMPORAL ALMART 2021","Persona Jurídica","N/A","N/A","N/A",471336000,null,null,null,471336000,0,"2021-12-31","PEN","PEN","4 MESES",null,null,null,null,null,null,"X",null,null,null,0]
["196 2021",2021,"FDLM-COP-196-2021","https://community.secop.gov.co/Public/Tendering/OpportunityDetail/Index?noticeUID=CO1.NTC.2433958&isFromPublicArea=True&isModal=False","Obra pública","Licitación pública","No aplica","CONTRATAR A PRECIOS UNITARIOS FIJOS POR LA MODALIDAD DE MONTO AGOTABLE, LAS OBRAS Y ACTIVIDADES PARA LA CONSERVACION DE LA MALLA VIAL, ESPACIO PUBLICO Y CICLO-INFRAESTRUCTURA DE LA LOCALIDAD DE LOS MARTIRES","Funcionamiento","Un Nuevo Contrato Social y Ambiental para la Bogotá del Siglo XXI","No aplica",{"$f":"IF(ISERROR(VLOOKUP(K221,Proposito_programa!$C$2:$E$59,2,FALSE)),\" \",VLOOKUP(K221,Proposito_programa!$C$2:$E$59,2,FALSE))","v":" "},{"$f":"IF(ISERROR(VLOOKUP(K221,Proposito_programa!$C$2:$E$59,3,FALSE)),\" \",VLOOKUP(K221,Proposito_programa!$C$2:$E$59,3,FALSE))","v":" "},"133011604490000002097",0,830073703,"PAVIOBRAS SAS","Persona Jurídica","N/A","N/A","N/A",660000000,null,null,null,660000000,0,"2021-12-31","PEN","PEN","5 MESES",null,null,null,null,null,null,"X",null,null,null,0]
["197 2021",2021,"FDLM-CPS-197-2021","https://community.secop.gov.co/Public/Tendering/OpportunityDetail/Index?noticeUID=CO1.NTC.2460759&isFromPublicArea=True&isModal=False","Contratos de prestación de servicios","Selección abreviada","No aplica","CONTRATAR LOS SERVICIOS PARA LA REALIZACIÓN, COORDINACIÓN Y EJECUCIÓN DE LOS EVENTOS RECREO DEPORTIVOS Y JUEGOS DE LA LOCALIDAD DE LOS MÁRTIRES EN EL MARCO DEL PROYECTO 2075 RECREACIÓN Y DEPORTE PARA UNA VIDA MÁS SANA SEGÚN LOS ANEXOS TÉCNICOS Y DEMÁS DOCUMENTOS QUE HACEN PARTE INTEGRAL DEL PRESENTE PROCESO","Funcionamiento","Un Nuevo Contrato Social y Ambiental para la Bogotá del Siglo XXI","No aplica",{"$f":"IF(ISERROR(VLOOKUP(K222,Proposito_programa!$C$2:$E$59,2,FALSE)),\" \",VLOOKUP(K222,Proposito_programa!$C$2:$E$59,2,FALSE))","v":" "},{"$f":"IF(ISERROR(VLOOKUP(K222,Proposito_programa!$C$2:$E$59,3,FALSE)),\" \",VLOOKUP(K222,Proposito_programa!$C$2:$E$59,3,FALSE))","v":" "},"133011601200000002075",0,900270576,"FUNDACION CONSTRUCCION LOCAL","Persona Jurídica","N/A","N/A","N/A",232877380,null,null,null,232877380,0,"2021-12-31","PEN","PEN","4 MESES",null,null,null,null,null,null,"X",null,null,null,0]
["198 2021",2021,"FDLM-CI-198-2021","https://community.secop.gov.co/Public/Tendering/ContractNoticePhases/View?PPI=CO1.PPI.16200887&isFromPublicArea=True&isModal=False","Interventoría","Concurso de méritos","No aplica","REALIZAR LA INTERVENTORÍA TÉCNICA, ADMINISTRATIVA, FINANCIERA, JURÍDICA, SOCIAL, AMBIENTAL Y SISO AL CONTRATO DE OBRA PUBLICA QUE TENDRÁ POR OBJETO CONTRATAR A PRECIOS UNITARIOS FIJOS POR LA MODALIDAD DE MONTO AGOTABLE, LAS OBRAS Y ACTIVIDADES PARA LA CONSERVACION DE LA MALLA VIAL, ESPACIO PUBLICO Y CICLO-INFRAESTRUCTURA DE LA LOCALIDAD DE LOS MARTIRES.","Funcionamiento","Un Nuevo Contrato Social y Ambiental para la Bogotá del Siglo XXI","No aplica",{"$f":"IF(ISERROR(VLOOKUP(K223,Proposito_programa!$C$2:$E$59,2,FALSE)),\" \",VLOOKUP(K223,Proposito_programa!$C$2:$E$59,2,FALSE))","v":" "},{"$f":"IF(ISERROR(VLOOKUP(K223,Proposito_programa!$C$2:$E$59,3,FALSE)),\" \",VLOOKUP(K223,Proposito_programa!$C$2:$E$59,3,FALSE))","v":" "},"133011604490000002097",0,900503599,"DAM SOLUCIONES E INGENIERIA SAS","Persona Jurídica","N/A","N/A","N/A",57261000,null,null,null,57261000,0,"2021-12-31","PEN","PEN","5 MESES",null,null,null,null,null,null,"X",null,null,null,0]
["OC 84003",2021,"OC 84003","https://colombiacompra.gov.co/tienda-virtual-del-estado-colombiano/ordenes-compra/84003","Compraventa de bienes muebles","Selección abreviada","No aplica","CONTRATAR EL SUMINISTRO DE EQUIPOS DE COMPUTO A TRAVES DE LA PLATAFORMA A DE LA TIENDA VIRTUAL DEL ESTADO COLOMBIANO CONFORME AL ACUERDO MARCO DE PRECIOS PARA COMPRA O ALQUILER DE EQUIPOS TECNOLÓGICOS Y PERIFÉRICOS ,ACUERDO CCE925-AMP-2019","Funcionamiento","Un Nuevo Contrato Social y Ambiental para la Bogotá del Siglo XXI","No aplica",{"$f":"IF(ISERROR(VLOOKUP(K224,Proposito_programa!$C$2:$E$59,2,FALSE)),\" \",VLOOKUP(K224,Proposito_programa!$C$2:$E$59,2,FALSE))","v":" "},{"$f":"IF(ISERROR(VLOOKUP(K224,Proposito_programa!$C$2:$E$59,3,FALSE)),\" \",VLOOKUP(K224,Proposito_programa!$C$2:$E$59,3,FALSE))","v":" "},"1310201010105",0,900741497,"TECNOPHONE COLOMBIA SAS","Persona Jurídica","N/A","N/A","N/A",9763950,null,null,null,9763950,9763950,"2021-12-31","2021-12-31","2022-01-30","1 MES",null,null,null,null,null,null,null,null,"X",null,1]
["OC 84004",2021,"OC 84004","https://colombiacompra.gov.co/tienda-virtual-del-estado-colombiano/ordenes-compra/84004","Compraventa de bienes muebles","Selección abreviada","No aplica","CONTRATAR EL SUMINISTRO DE EQUIPOS DE COMPUTO A TRAVES DE LA PLATAFORMA A DE LA TIENDA VIRTUAL DEL ESTADO COLOMBIANO CONFORME AL ACUERDO MARCO DE PRECIOS PARA COMPRA O ALQUILER DE EQUIPOS TECNOLÓGICOS Y PERIFÉRICOS ,ACUERDO CCE925-AMP-2019","Funcionamiento","Un Nuevo Contrato Social y Ambiental para la Bogotá del Siglo XXI","No aplica",{"$f":"IF(ISERROR(VLOOKUP(K225,Proposito_programa!$C$2:$E$59,2,FALSE)),\" \",VLOOKUP(K225,Proposito_programa!$C$2:$E$59,2,FALSE))","v":" "},{"$f":"IF(ISERROR(VLOOKUP(K225,Proposito_programa!$C$2:$E$59,3,FALSE)),\" \",VLOOKUP(K225,Proposito_programa!$C$2:$E$59,3,FALSE))","v":" "},"1310201010105",0,830110570,"NEX COMPUTER SAS","Persona Jurídica","N/A","N/A","N/A",10948000,null,null,null,10948000,10948000,"2021-12-31","2021-12-31","2022-01-30","1 MES",null,null,null,null,null,null,null,null,"X",null,1]
["OC 84005",2021,"OC 84005","https://colombiacompra.gov.co/tienda-virtual-del-estado-colombiano/ordenes-compra/84005","Compraventa de bienes muebles","Selección abreviada","No aplica","CONTRATAR EL SUMINISTRO DE EQUIPOS DE COMPUTO A TRAVES DE LA PLATAFORMA A DE LA TIENDA VIRTUAL DEL ESTADO COLOMBIANO CONFORME AL ACUERDO MARCO DE PRECIOS PARA COMPRA O ALQUILER DE EQUIPOS TECNOLÓGICOS Y PERIFÉRICOS ,ACUERDO CCE925-AMP-2019","Funcionamiento","Un Nuevo Contrato Social y Ambiental para la Bogotá del Siglo XXI","No aplica",{"$f":"IF(ISERROR(VLOOKUP(K226,Proposito_programa!$C$2:$E$59,2,FALSE)),\" \",VLOOKUP(K226,Proposito_programa!$C$2:$E$59,2,FALSE))","v":" "},{"$f":"IF(ISERROR(VLOOKUP(K226,Proposito_programa!$C$2:$E$59,3,FALSE)),\" \",VLOOKUP(K226,Proposito_programa!$C$2:$E$59,3,FALSE))","v":" "},"1310201010105",0,804000673,"HARDWARE ASESORIAS SOFTWARE TLDA","Persona Jurídica","N/A","N/A","N/A",7444261,null,null,null,7444261,7444261,"2021-12-31","2021-12-31","2022-01-30","1 MES",null,null,null,null,null,null,null,null,"X",null,1]
["OC 84006",2021,"OC 84006","https://colombiacompra.gov.co/tienda-virtual-del-estado-colombiano/ordenes-compra/84006","Compraventa de bienes muebles","Selección abreviada","No aplica","CONTRATAR EL SUMINISTRO DE EQUIPOS DE COMPUTO A TRAVES DE LA PLATAFORMA A DE LA TIENDA VIRTUAL DEL ESTADO COLOMBIANO CONFORME AL ACUERDO MARCO DE PRECIOS PARA COMPRA O ALQUILER DE EQUIPOS TECNOLÓGICOS Y PERIFÉRICOS ,ACUERDO CCE925-AMP-2019","Funcionamiento","Un Nuevo Contrato Social y Ambiental para la Bogotá del Siglo XXI","No aplica",{"$f":"IF(ISERROR(VLOOKUP(K227,Proposito_programa!$C$2:$E$59,2,FALSE)),\" \",VLOOKUP(K227,Proposito_programa!$C$2:$E$59,2,FALSE))","v":" "},{"$f":"IF(ISERROR(VLOOKUP(K227,Proposito_programa!$C$2:$E$59,3,FALSE)),\" \",VLOOKUP(K227,Proposito_programa!$C$2:$E$59,3,FALSE))","v":" "},"1310201010105",0,830037278,"NUEVA ERA SOLUCIONES SAS","Persona Jurídica","N/A","N/A","N/A",102162,null,null,null,{"$f":"+V227+W227+Y227","v":102162},102162,"2021-12-31","2021-12-31","2022-01-30","1 MES",null,null,null,null,null,null,null,null,"X",null,{"$f":"IF(ISERROR(AA227/Z227),\"-\",(AA227/Z227))","v":1}]
["OC 84007",2021,"OC 84007","https://colombiacompra.gov.co/tienda-virtual-del-estado-colombiano/ordenes-compra/84007","Compraventa de bienes muebles","Selección abreviada","No aplica","CONTRATAR EL SUMINISTRO DE EQUIPOS DE COMPUTO A TRAVES DE LA PLATAFORMA A DE LA TIENDA VIRTUAL DEL ESTADO COLOMBIANO CONFORME AL ACUERDO MARCO DE PRECIOS PARA COMPRA O ALQUILER DE EQUIPOS TECNOLÓGICOS Y PERIFÉRICOS ,ACUERDO CCE925-AMP-2019","Funcionamiento","Un Nuevo Contrato Social y Ambiental para la Bogotá del Siglo XXI","No aplica",{"$f":"IF(ISERROR(VLOOKUP(K228,Proposito_programa!$C$2:$E$59,2,FALSE)),\" \",VLOOKUP(K228,Proposito_programa!$C$2:$E$59,2,FALSE))","v":" "},{"$f":"IF(ISERROR(VLOOKUP(K228,Proposito_programa!$C$2:$E$59,3,FALSE)),\" \",VLOOKUP(K228,Proposito_programa!$C$2:$E$59,3,FALSE))","v":" "},"1310201010105",0,830037278,"NUEVA ERA SOLUCIONES SAS","Persona Jurídica","N/A","N/A","N/A",4998000,null,null,null,4998000,4998000,"2021-12-31","2021-12-31","2022-01-30","1 MES",null,null,null,null,null,null,null,null,"X",null,1]
["OC 84008",2021,"OC 84008","https://colombiacompra.gov.co/tienda-virtual-del-estado-colombiano/ordenes-compra/84008","Compraventa de bienes muebles","Selección abreviada","No aplica","CONTRATAR EL SUMINISTRO DE EQUIPOS DE COMPUTO A TRAVES DE LA PLATAFORMA A DE LA TIENDA VIRTUAL DEL ESTADO COLOMBIANO CONFORME AL ACUERDO MARCO DE PRECIOS PARA COMPRA O ALQUILER DE EQUIPOS TECNOLÓGICOS Y PERIFÉRICOS ,ACUERDO CCE925-AMP-2019","Funcionamiento","Un Nuevo Contrato Social y Ambiental para la Bogotá del Siglo XXI","No aplica",{"$f":"IF(ISERROR(VLOOKUP(K229,Proposito_programa!$C$2:$E$59,2,FALSE)),\" \",VLOOKUP(K229,Proposito_programa!$C$2:$E$59,2,FALSE))","v":" "},{"$f":"IF(ISERROR(VLOOKUP(K229,Proposito_programa!$C$2:$E$59,3,FALSE)),\" \",VLOOKUP(K229,Proposito_programa!$C$2:$E$59,3,FALSE))","v":" "},"1310201010105",0,830034195,"CASTOR DATA S A S","Persona Jurídica","N/A","N/A","N/A",2015860,null,null,null,2015860,2015860,"2021-12-31","2021-12-31","2022-01-30","1 MES",null,null,null,null,null,null,null,null,"X",null,1]
["OC 83249",2021,"OC 83249","https://colombiacompra.gov.co/tienda-virtual-del-estado-colombiano/ordenes-compra/83249","Compraventa de bienes muebles","Selección abreviada","No aplica","ADQUIRIR EL SEGURO DE VEHICULOS PARA EL PARQUE AUTOMOTOR DEL FONDO DE DESARRROLLLO LOCAL DE LOS MÁRTIRES, A TRAVÉS DEL ACUERDO MARCO DE PRECIOS No. CCE-877-1-AMP-2019","Funcionamiento","Un Nuevo Contrato Social y Ambiental para la Bogotá del Siglo XXI","No aplica",{"$f":"IF(ISERROR(VLOOKUP(K230,Proposito_programa!$C$2:$E$59,2,FALSE)),\" \",VLOOKUP(K230,Proposito_programa!$C$2:$E$59,2,FALSE))","v":" "},{"$f":"IF(ISERROR(VLOOKUP(K230,Proposito_programa!$C$2:$E$59,3,FALSE)),\" \",VLOOKUP(K230,Proposito_programa!$C$2:$E$59,3,FALSE))","v":" "},"131020202020107",0,860524654,"ASEGURADORA SOLIDARIA DE COLOMBIA ENTIDA D COOPERATIVA","Persona Jurídica","N/A","N/A","N/A",14667671,null,null,null,14667671,14667671,"2021-12-21","2021-12-21","2021-12-31","10 DIAS",null,null,null,null,null,null,null,null,"X",null,1]
[null,2021,null,null,"Otros",null,"No aplica","resoluciones","Inversión","Un Nuevo Contrato Social y Ambiental para la Bogotá del Siglo XXI","No aplica",{"$f":"IF(ISERROR(VLOOKUP(K231,Proposito_programa!$C$2:$E$59,2,FALSE)),\" \",VLOOKUP(K231,Proposito_programa!$C$2:$E$59,2,FALSE))","v":" "},{"$f":"IF(ISERROR(VLOOKUP(K231,Proposito_programa!$C$2:$E$59,3,FALSE)),\" \",VLOOKUP(K231,Proposito_programa!$C$2:$E$59,3,FALSE))","v":" "},"133011601010000002068",0,1000502369,"POSITIVA COMPAÑIA DE SEGUROS SA","Persona Jurídica","N/A","N/A","N/A",25600000,null,null,0,2900453776,2711017779,null,null,null,null,null,null,null,null,null,null,null,null,"X",null,0.93468746215936938]
[null,2021,null,null,"Otros",null,"No aplica","resoluciones","Inversión","Un Nuevo Contrato Social y Ambiental para la Bogotá del Siglo XXI","No aplica",{"$f":"IF(ISERROR(VLOOKUP(K232,Proposito_programa!$C$2:$E$59,2,FALSE)),\" \",VLOOKUP(K232,Proposito_programa!$C$2:$E$59,2,FALSE))","v":" "},{"$f":"IF(ISERROR(VLOOKUP(K232,Proposito_programa!$C$2:$E$59,3,FALSE)),\" \",VLOOKUP(K232,Proposito_programa!$C$2:$E$59,3,FALSE))","v":" "},"133011602330000002092",0,1000502369,"POSITIVA COMPAÑIA DE SEGUROS SA","Persona Jurídica","N/A","N/A","N/A",193489077,null,null,0,{"$f":"+V232+W232+Y232","v":193489077},86097431,null,null,null,null,null,null,null,null,null,null,null,null,"X",null,0.4449730823823197]
[null,2021,null,null,"Otros",null,"No aplica","resoluciones","Inversión","Un Nuevo Contrato Social y Ambiental para la Bogotá del Siglo XXI","No aplica",{"$f":"IF(ISERROR(VLOOKUP(K233,Proposito_programa!$C$2:$E$59,2,FALSE)),\" \",VLOOKUP(K233,Proposito_programa!$C$2:$E$59,2,FALSE))","v":" "},{"$f":"IF(ISERROR(VLOOKUP(K233,Proposito_programa!$C$2:$E$59,3,FALSE)),\" \",VLOOKUP(K233,Proposito_programa!$C$2:$E$59,3,FALSE))","v":" "},"133011603430000002083",0,1000502369,"POSITIVA COMPAÑIA DE SEGUROS SA","Persona Jurídica","N/A","N/A","N/A",4154999,null,1,7350000,4154999,4154999,null,null,null,null,null,null,null,null,null,null,null,null,"X",null,1]
[null,2021,null,null,"Otros",null,"No aplica","resoluciones","Inversión","Un Nuevo Contrato Social y Ambiental para la Bogotá del Siglo XXI","No aplica",{"$f":"IF(ISERROR(VLOOKUP(K234,Proposito_programa!$C$2:$E$59,2,FALSE)),\" \",VLOOKUP(K234,Proposito_programa!$C$2:$E$59,2,FALSE))","v":" "},{"$f":"IF(ISERROR(VLOOKUP(K234,Proposito_programa!$C$2:$E$59,3,FALSE)),\" \",VLOOKUP(K234,Proposito_programa!$C$2:$E$59,3,FALSE))","v":" "},"133011603450000002080",0,1000502369,"POSITIVA COMPAÑIA DE SEGUROS SA","Persona Jurídica","N/A","N/A","N/A",null,null,null,null,1700000,1700000,null,null,null,null,null,null,null,null,null,null,null,null,"X",null,1]
[null,2021,null,null,"Otros",null,"No aplica","resoluciones","Inversión","Un Nuevo Contrato Social y Ambiental para la Bogotá del Siglo XXI","No aplica",{"$f":"IF(ISERROR(VLOOKUP(K235,Proposito_programa!$C$2:$E$59,2,FALSE)),\" \",VLOOKUP(K235,Proposito_programa!$C$2:$E$59,2,FALSE))","v":" "},{"$f":"IF(ISERROR(VLOOKUP(K235,Proposito_programa!$C$2:$E$59,3,FALSE)),\" \",VLOOKUP(K235,Proposito_programa!$C$2:$E$59,3,FALSE))","v":" "},"133011603480000002098",0,1000502369,"POSITIVA COMPAÑIA DE SEGUROS SA","Persona Jurídica","N/A","N/A","N/A",5000000,null,null,null,5000000,189900,null,null,null,null,null,null,null,null,null,null,null,null,"X",null,3.798E-2]
[null,2021,null,null,"Otros",null,"No aplica","resoluciones","Inversión","Un Nuevo Contrato Social y Ambiental para la Bogotá del Siglo XXI","No aplica",{"$f":"IF(ISERROR(VLOOKUP(K236,Proposito_programa!$C$2:$E$59,2,FALSE)),\" \",VLOOKUP(K236,Proposito_programa!$C$2:$E$59,2,FALSE))","v":" "},{"$f":"IF(ISERROR(VLOOKUP(K236,Proposito_programa!$C$2:$E$59,3,FALSE)),\" \",VLOOKUP(K236,Proposito_programa!$C$2:$E$59,3,FALSE))","v":" "},"133011604490000002097",0,1000502369,"POSITIVA COMPAÑIA DE SEGUROS SA","Persona Jurídica","N/A","N/A","N/A",3186667,null,null,null,{"$f":"+V236+W236+Y236","v":3186667},0,null,null,null,null,null,null,null,null,null,null,null,null,"x",null,0]
[null,2021,"134-2016","134-2016","Otros",null,"No aplica","AUNAR ESFUERZOS Y RECURSOS ECONÓMICOS, TÉCNICOS Y ADMINISTRATIVOS ENTRE LAS PARTES, EN EL MARCO DE SUS COMPETENCIAS, PARA ADELANTAR LA PLANEACIÓN, LOS PROCESOS DE SELECCIÓN Y LA SUSCRIPCIÓN DE LOS CONTRATOS RELACIONADOS CON LA GESTIÓN PREDIAL, ADQUISICIÓN Y/O ADECUACIÓN Y/O ESTUDIOS Y/O DISEÑOS Y/O CONSTRUCCIÓN DE UN INMUEBLE PARA LA NUEVA SEDE DE LA ADMINISTRACIÓN LOCAL DE LOS MÁRTIRES.","Inversión","Un Nuevo Contrato Social y Ambiental para la Bogotá del Siglo XXI","No aplica",{"$f":"IF(ISERROR(VLOOKUP(K237,Proposito_programa!$C$2:$E$59,2,FALSE)),\" \",VLOOKUP(K237,Proposito_programa!$C$2:$E$59,2,FALSE))","v":" "},{"$f":"IF(ISERROR(VLOOKUP(K237,Proposito_programa!$C$2:$E$59,3,FALSE)),\" \",VLOOKUP(K237,Proposito_programa!$C$2:$E$59,3,FALSE))","v":" "},"133011605560000002041",0,830144890,"EMPRESA DE RENOVACION Y DESARROLLO URBAN O DE BOGOTA D.C.","Persona Jurídica","N/A","N/A","N/A",10582965812,null,null,null,{"$f":"+V237+W237+Y237","v":10582965812},10582965812,null,null,null,null,null,null,null,null,null,null,null,null,"x",null,{"$f":"IF(ISERROR(AA237/Z237),\"-\",(AA237/Z237))","v":1}]

{"sheet":"OBSERVACIONE Y REVISIÓN BOGDATA","index":1,"n_rows":91,"n_cols":12,"rows_kept":91,"cut":false,"hidden":false,"merged":[[0,0,0,1],[9,2,9,4],[9,5,9,8]]}
["OBSERVACIONES"]
[1,"En la hoja de \"información acumulada\", en columna \"i160\" en la columna de afectación no esta diligenciada."]
[2,"En la hoja de \"información acumulada\", en la columna \"P\" Número  de Identificación del contratista, las cedulas estan diligenciadas con puntos, el instructivo dice \"Indicar el número de identificación del contratista persona natural o jurídica o contratistas plurales (uniones temporales y consorcios) con quien se suscribió el contrato, sin comas, tildes, puntos ni caracteres especiales, y si es NIT sin dígito de verificación\"."]
[3,"En la columna \"Q\" de Nombre del contratista, en algunas casillas aparece diligenciado el nombre del contratista y entre parentecis el nombre del cesionario, el nombre del cesionario debe ir diligenciado en la columna \"AH,AI\" identificacion y nombre del cesionario."]
[4,"Hay contratos con valor final de cero, deben ser eliminados."]
[5]
[]
[]
[]
[null,null,"BOGDATA",null,null,"SUMATORIA FORMATO"]
[null,null,"DISPONIBLE","COMPROMETIDO","GIROS ACUMULADOS","COMPROMETIDO","DIFERENCIA","GIROS ACUMULADOS","DIFERENCIA"]
["131","GASTOS DE FUNCIONAMIENTO",3053936834,2658575748,1995102365,4694525480,{"$f":"+D12-F12","v":-2035949732},1191503736,{"$f":"+E12-H12","v":803598629}]
["13301","DIRECTA",26409987676,24600396328,18584075886,7856757542,{"$f":"+D13-F13","v":16743638786},null,{"$f":"+E13-H13","v":18584075886}]
["1330116","Un Nuevo Contrato Social y Ambiental para la Bogotá del Siglo XXI",26409987676,24600396328,18584075886,null,24600396328,null,{"$f":"+E14-H14","v":18584075886}]
["133011601","Hacer un nuevo contrato social con igualdad de oportunidades para la inclusión social, productiva y política",9588224622,8155982201,4586110540,{"$f":"F17+F19+F20+F21+F22+F24+F26+F28+F30+F32+F34","v":8155982201},0,{"$f":"H17+H19+H20+H21+H22+H24+H26+H28+H30+H32+H34","v":4586110540},{"$f":"+E15-H15","v":0}]
["13301160101","Subsidios y transferencias para la equidad",3123145455,3050887109,2861451112,null,3050887109,null,{"$f":"+E16-H16","v":2861451112},null,null,{"$f":"E17-F17","v":-189435997}]
["133011601010000002068","Mártires equitativa con la población más vulnerable",3123145455,3050887109,2861451112,3050887109,0,2861451112,0]
["13301160106","Sistema Distrital del Cuidado",2980247748,1985259906,374710011,null,1985259906,null,374710011]
["133011601060000002043","Ayudas técnicas y medicina ancestral",161577000,34750100,12000000,34750100,0,12000000,0]
["133011601060000002060","Localidad emprendedora y sostenible",1399637748,1003107000,252621400,1003107000,0,252621400,0]
["133011601060000002065","Mártires cuidadora",936363000,468996247,35123612,468996247,0,35123612,0]
["133011601060000002077","Territorios diversos y libres de violencia",482670000,478406559,74964999,478406559,0,74964999,0]
["13301160112","Educación inicial: Bases sólidas para la vida",471336000,471336000,0,null,471336000,null,0]
["133011601120000002047","Educación inicial para el desarrollo integral",471336000,471336000,0,471336000,0,0,0]
["13301160114","Formación integral: más y mejor tiempo en los colegios",410000000,374198710,0,null,374198710,null,0]
["133011601140000002052","Educación integral y de calidad",410000000,374198710,0,374198710,0,0,0]
["13301160117","Jóvenes con capacidades: Proyecto de vida para la ciudadanía, la innovación y el trabajo del siglo XXI",1604049419,1580428096,1119049419,null,1580428096,null,1119049419]
["133011601170000002056","Jóvenes con oportunidades para la vida",1604049419,1580428096,1119049419,1580428096,0,1119049419,0]
["13301160120","Bogotá, referente en cultura, deporte, recreación y actividad física, con parques para el desarrollo y la salud",500451000,254877380,19799998,null,254877380,null,19799998]
["133011601200000002075","Recreación y deporte para una vida más sana",500451000,254877380,19799998,254877380,0,19799998,0]
["13301160121","Creación y vida cotidiana: Apropiación ciudadana del arte, la cultura y el patrimonio, para la democracia cultural",280000000,220000000,211100000,null,220000000,null,211100000]
["133011601210000002070","Promoción de la democracia local por medio del arte y la cultura",280000000,220000000,211100000,220000000,0,211100000,0]
["13301160124","Bogotá región emprendedora e innovadora",218995000,218995000,0,null,218995000,null,0]
["133011601240000002093","Mártires, territorio emprendedor",218995000,218995000,0,218995000,0,0,0]
["133011602","Cambiar nuestros hábitos de vida para reverdecer a Bogotá y adaptarnos y mitigar la crisis climática",1184698666,1131291643,384727266,{"$f":"F37+F39+F41+F43+F45","v":1131291643},0,{"$f":"H37+H39+H41+H43+H45","v":384727266},0]
["13301160227","Cambio cultural para la gestión de la crisis climática",186552000,186552000,63021200,null,186552000,null,63021200]
["133011602270000002086","Gestión ante la crisis climática",186552000,186552000,63021200,186552000,0,63021200,0]
["13301160230","Eficiencia en la atención de emergencias",78866666,77616666,54575501,null,77616666,null,54575501]
["133011602300000002088","Mártires eficiente en atención y manejo de emergencias",78866666,77616666,54575501,77616666,0,54575501,0]
["13301160233","Más árboles y más y mejor espacio público",261280000,249513077,142121431,null,249513077,null,142121431]
["133011602330000002092","Mártires reverdece",261280000,249513077,142121431,249513077,0,142121431,0]
["13301160234","Bogotá protectora de los animales",358000000,317609900,39442467,null,317609900,null,39442467]
["133011602340000002085","Cuidado y protección de animales en el territorio",358000000,317609900,39442467,317609900,0,39442467,0]
["13301160238","Ecoeficiencia, reciclaje, manejo de residuos e inclusión de la población recicladora",300000000,300000000,85566667,null,300000000,null,85566667]
["133011602380000002084","Territorio eficiente en el manejo y disposición de residuos",300000000,300000000,85566667,300000000,0,85566667,0]
["133011603","Inspirar confianza y legitimidad para vivir sin miedo y ser epicentro de cultura ciudadana, paz y reconciliación",1083609586,994172018,548281726,{"$f":"F48+F50+F52+F54","v":994172018},0,{"$f":"H48+H50+H52+H54","v":548281726},0]
["13301160340","Más mujeres viven una vida libre de violencias, se sienten seguras y acceden con confianza al sistema de justicia",367721586,352530018,60232999,null,352530018,null,60232999]
["133011603400000002089","Mártires libre de violencias",367721586,352530018,60232999,352530018,0,60232999,0]
["13301160343","Cultura ciudadana para la confianza, la convivencia y la participación desde la vida cotidiana",201415000,201415000,177281661,null,201415000,null,177281661]
["133011603430000002083","Atención a movilizaciones y aglomeraciones",201415000,201415000,177281661,201415000,0,177281661,0]
["13301160345","Espacio público más seguro y construido colectivamente",424473000,350227000,233027166,null,350227000,null,233027166]
["133011603450000002080","Paisaje urbano amigable y seguro",424473000,350227000,233027166,350227000,0,233027166,0]
["13301160348","Plataforma institucional para la seguridad y justicia",90000000,90000000,77739900,null,90000000,null,77739900]
["133011603480000002098","Seguridad y justicia comunitaria",90000000,90000000,77739900,90000000,0,77739900,0]
["133011604","Hacer de Bogotá Región un modelo de movilidad multimodal, incluyente y sostenible",793142000,790081000,62800233,{"$f":"+F57","v":790081000},0,{"$f":"+H57","v":62800233},0]
["13301160449","Movilidad segura, sostenible y accesible",793142000,790081000,62800233,null,790081000,null,62800233]
["133011604490000002097","Movilidad segura y sostenible",793142000,790081000,62800233,790081000,0,62800233,0]
["133011605","Construir Bogotá Región con gobierno abierto, transparente y ciudadanía consciente",13760312802,13528869466,13002156121,{"$f":"F60+F62+F64","v":13528869466},0,{"$f":"H60+H62+H64","v":13002156121},0]
["13301160555","Fortalecimiento de Cultura Ciudadana y su institucionalidad",491000000,291000000,0,null,291000000,null,0]
["133011605550000002096","Mártires participa y decide",491000000,291000000,0,291000000,0,null,0]
["13301160556","Gestión Pública Efectiva",10582965812,10582965812,10582965812,null,10582965812,null,10582965812]
["133011605560000002041","CONSTRUCCIÓN Y DOTACIÓN SEDE ADMINISTRATIVA LOCAL",10582965812,10582965812,10582965812,10582965812,0,10582965812,0]
["13301160557","Gestión Pública Local",2686346990,2654903654,2419190309,null,2654903654,null,2419190309,null,null,2419190309]
["133011605570000002099","Gestión pública eficiente y transparente",2686346990,2654903654,2419190309,2654903654,0,2419190309,0,null,null,2419190309]
["13306","OBLIGACIONES POR PAGAR",12716145224,12716145214,7162232229,null,12716145214,null,7162232229,null,null,{"$f":"+L64-L64","v":0}]
["1330615","Bogotá Mejor para todos",6238341178,6238341168,5467664346,null,null,null,null,null,null,{"$f":"L63-L64","v":0}]
["133061501","Pilar Igualdad de calidad de vida",717160836,717160836,412159913]
["13306150102","Desarrollo Integral desde la gestación hasta la adolescencia",0,0,0]
["133061501020000001482","1482 - Una infancia y adolescencia mejor para todos nuestros niños, niñas y adolescentes, felices y protegidos",0,0,0]
["13306150103","Igualdad y autonomía para una Bogotá incluyente",654485063,654485063,409083763]
["133061501030000001489","1489 - Una vejez mejor para todas las personas mayores dignas, activas y felices",389626063,389626063,329626063]
["133061501030000001491","1491 - Una asistencia mejor para todas las personas con discapacidad, mejorando su calidad de vida",264859000,264859000,79457700]
["13306150111","Mejores oportunidades para el desarrollo a través de la cultura, la recreación y el deporte",62675773,62675773,3076150]
["133061501110000001499","1499 - Una mejor cultura, recreación y deporte para toda nuestra comunidad, en ejercicio de sus derechos y con enfoque diferencial",62675773,62675773,3076150]
["133061502","Pilar Democracia urbana",3860208784,3860208784,3597537048]
["13306150217","Espacio público, derecho de todos",801724050,801724050,801723712]
["133061502170000001503","1503 - Mejores parques para todos",801724050,801724050,801723712]
["13306150218","Mejor movilidad para todos",3058484734,3058484734,2795813336]
["133061502180000001505","1505 - Mejor movilidad para todos",3058484734,3058484734,2795813336]
["133061503","Pilar Construcción de comunidad y cultura ciudadana",553994955,553994955,523956958]
["13306150319","Seguridad y convivencia para todos",553994955,553994955,523956958]
["133061503190000001520","1520 - Territorios seguros para todos",553994955,553994955,523956958]
["133061506","Eje transversal Sostenibilidad ambiental basada en la eficiencia energética",100000000,100000000,61302688]
["13306150638","Recuperación y manejo de la Estructura Ecológica Principal",100000000,100000000,61302688]
["133061506380000001507","1507 - Los Mártires florecen",100000000,100000000,61302688]
["133061507","Eje transversal Gobierno legítimo, fortalecimiento local y eficiencia",1006976603,1006976593,872707739]
["13306150745","Gobernanza e influencia local, regional e internacional",1006976603,1006976593,872707739]
["133061507450000001523","1523 - Gobierno legítimo y transparente para todos",400908547,400908537,393066259]
["133061507450000001525","1525 - Mártires fortalece la participación y el control social",606068056,606068056,479641480]
["1330690","Obligaciones por pagar vigencias anteriores",6477804046,6477804046,1694567883]
["1330690","Obligaciones por pagar vigencias anteriores",6477804046,1694567883]

{"sheet":"2. PAA","index":2,"n_rows":14,"n_cols":7,"rows_kept":14,"cut":false,"hidden":false,"merged":[[9,1,9,6],[6,2,6,3],[6,5,6,6],[2,1,2,7],[3,1,3,7],[4,1,4,7],[5,2,5,3],[5,5,5,6]]}
[]
[]
[null,"PLAN ANUAL DE ADQUISIONES"]
[null,2021]
[]
[null,"Entidad","FONDO DE DESARROLLO LOCAL DE LOS MARTIRES",null,"Sector","Gestión Pública"]
[null,"Responsable diligenciamiento","Diana Carolina Cardenas Cruz ",null,"Número contacto y correo electrónico","diana.cardenas@gobiernobogota.gov.co"]
[]
[]
[null,"A continuación registre la información del Plan Anual de Adquisiciones vigencia 2021,  diligencie el presupuesto total,  el presupuesto programado y contratado del 1 de septiembre al 31 de diciembre de 2021, igualmente la fecha de la primera y ultima públicación del PAA en SECOP, y el número de modificaciones realizadas."]
[]
[null,"Presupuesto Total PAA","Presupuesto programado\nSeptiembre 1 a 31 de diciembre de 2021","Presupuesto contratado\nSeptiembre 1 a 31 de diciembre de 2021","Fecha Primera Publicación\nD/M/A","Última fecha de modificación\nD/M/A","Número modificaciones"]
[null,null,17836440005,17836440005,"2021-01-15","2021-01-15","version 1"]
[null,null,17962121823,17962121823,"2021-12-07","2021-12-07","version 16"]

{"sheet":"3. CONSOLIDADO","index":3,"n_rows":31,"n_cols":20,"rows_kept":31,"cut":false,"hidden":false,"merged":[[26,2,26,11],[49,2,51,5],[28,2,30,2],[29,3,29,4],[29,5,29,6],[29,7,29,8],[28,3,28,8],[11,21,11,22],[1,4,1,18],[2,4,2,18],[7,2,8,16],[10,2,12,2],[10,3,12,3],[10,4,10,8],[10,9,10,16],[11,4,11,5],[11,6,11,8],[11,19,11,20],[11,11,11,12],[11,13,11,14],[11,17,11,18],[9,2,9,16],[4,2,5,16],[16,2,16,16],[17,17,17,19],[19,2,21,2],[19,3,21,3],[11,9,11,10],[17,2,17,16],[11,15,11,16],[19,4,19,17],[19,18,20,19],[20,4,20,5],[20,6,20,7],[20,8,20,9],[20,10,20,11],[20,12,20,13],[20,14,20,15],[20,16,20,17]]}
[]
[null,null,null,null,"GESTIÓN CONTRACTUAL "]
[null,null,null,null,"Período de Evaluación: Septiembre 1 a 31 de diciembre de 2021"]
[]
[null,null,"La información consolidada que registra en esta hoja debe coincidir con la información que reporta en las hojas 1 \"INFORMACION ACUMULADA\" y 2 \"INFORMACION II CUATRIMESTRE\". En relación con las adiciones a contratos de años anteriores con cargo al periodo a reportar deben registrarse en filas independientes en los numerales 1 (información general, naturaleza jurídica) y 2 (modalidad). Ej. vigencia =2019; No. Contratos Adicionados:3; Número de adiciones: 4"]
[]
[]
[null,null,"1. Diligenciar en Información General el total de contratos que la entidad suscribió del 1 de septiembre al 31 de diciembre de 2021 y el valor total de ellos, igual el número de contratos que presentaron adiciones, el número de adiciones y el valor total de ellas. Respecto a la Naturaleza jurídica del contratista, diligenciar el número total de contratos suscritos y su valor por: personas naturales, jurídicas, consorcios y uniones temporales"]
[]
[]
[null,null,"Entidad","Vigencia","Información General",null,null,null,null,"Naturaleza jurídica del contratista"]
[null,null,null,null,"Contratos Suscritos",null,"Adiciones",null,null,"Contratos suscritos con personas naturales",null,"Contratos suscritos con personas jurídicas",null,"Contratos suscritos con uniones temporales",null,"Contratos suscritos con consorcios"]
[null,null,null,null,"Número Contratos","Valor Total","Número Contratos Adicionados","Número de Adiciones","Valor Total","Número Contratos y/o adiciones","Valor Total","Número Contratos y/o adiciones","Valor Total","Número Contratos y/o adiciones","Valor Total","Número Contratos y/o adiciones","Valor Total"]
[null,null,"FONDO DE DESARROLLO LOCAL DE LOS MARTIRES",2021,213,12226963427,27,27,341469595,177,4304960120]
[]
[]
[]
[null,null,"2. Registrar el número y valor total de los contratos y/o adiciones que se suscribieron del 1 de septiembre al 31 de diciembre de 2021 por cada modalidad. Igualmente en la tipología de contratos de prestación de servicios profesionales y de apoyo a la gestión."]
[]
[null,null,"Entidad","Vigencia","Modalidad",null,null,null,null,null,null,null,null,null,null,null,null,null,"Contratos realizados mediante la tipología de contratos de prestación de servicios profesionales y de apoyo a la gestión"]
[null,null,null,null,"Concurso de méritos",null,"Contratación directa",null,"Contratación mínima cuantia",null,"Selección abreviada",null,"Licitación pública",null,"Régimen privado",null,"Régimen especial"]
[null,null,null,null,"Número Contratos","Valor Total","Número Contratos","Valor Total","Número Contratos","Valor Total","Número Contratos","Valor Total","Número Contratos","Valor Total","Número Contratos","Valor Total","Número Contratos","Valor Total","Número Contratos","Valor Total"]
[null,null,"FONDO DE DESARROLLO LOCAL DE LOS MARTIRES",2021]
[]
[]
[]
[null,null,"3. Detalle cada uno de los procesos de selección adelantados en el cuatrimestre por la entidad de acuerdo a cada modalidad de selección (licitación pública, selección abreviada o concurso de méritos), y diligencie el número de proponentes que se presentaron en cada uno de ellos"]
[]
[null,null,"Entidad","Proponentes (que se presentaron a los proceso de selección)"]
[null,null,null,"Concurso de méritos",null,"Selección abreviada",null,"Licitación pública"]
[null,null,null,"Número del proceso contractual en SECOP","Número de proponentes","Número del proceso contractual en SECOP","Número de proponentes","Número del proceso contractual en SECOP","Número de proponentes"]

{"sheet":"4. INSTRUCTIVO","index":4,"n_rows":105,"n_cols":4,"rows_kept":105,"cut":false,"hidden":false,"merged":[[1,1,1,3],[2,1,2,3],[9,1,9,3],[3,1,3,3],[4,1,4,3],[5,1,5,3],[7,1,7,3],[6,1,6,3],[57,1,60,1],[59,2,60,2],[63,1,68,1],[8,1,8,3],[12,1,12,3],[23,1,23,3],[52,1,54,1],[52,2,54,2],[33,2,34,2],[29,2,30,2],[27,1,28,1],[24,1,25,1],[24,2,25,2],[29,1,51,1],[10,1,10,3],[76,1,77,1],[76,2,77,2],[71,1,71,3],[103,1,103,3],[85,1,85,3],[86,1,87,1],[86,2,87,2],[100,1,100,3],[94,1,94,3],[72,1,74,1],[72,2,74,2],[79,2,82,2],[79,1,82,1]]}
[]
[null,"INSTRUCTIVO FORMATO"]
[null,"Recomendamos leer cuidadosamente y poner en práctica las instrucciones que se explican en este instructivo. De la calidad de la información que se registre, depende en gran medida la calidad del informe de rendición de cuentas de la Gestión Contractual que presenta el Alcalde Mayor, consolidado por la Veeduría Distrital.\nEn este formato se deberán relacionar:\nHoja 1. \"INFORMACION ACUMULADA\", diligenciar en esta hoja la totalidad de la información contractual desde el 1 de enero al 31 de diciembre de 2021.\nHoja 2. “PLAN ANUAL DE ADQUISICIONES – PAA”, se pide información sobre el Plan Anual de Adquisiciones y sus modificaciones, por lo cual se deberá precisar el presupuesto total del plan; el programado del 1 de septiembre al 31 de diciembre de 2021; el efectivamente contratado en este período; la primera fecha de publicación del PAA; la última fecha de modificación y el número total de modificaciones realizadas durante este mismo período. \nHoja 3. “CONSOLIDADO”, se pide totalizar la información reportada en la hoja 1, sólo respecto a los contratos y adiciones suscritas entre el 1 de septiembre y el 31 de diciembre de 2021, por lo cual debe coincidir. Es así que en el numeral 1, se debe diligenciar el total de contratos suscritos por la entidad entre el 1 de septiembre y el 31 de diciembre de 2021, periodo de evaluación y su valor; el número total de contratos adicionados, el número total de adiciones y su valor; el número total de contratos celebrados con personas naturales, jurídicas, uniones temporales y consorcios, y su valor; en el numeral 2, se debe registrar en el periodo mencionado, el número total de contratos celebrados según la modalidad de selección y el valor total por cada modalidad; igualmente, es necesario precisar que se deberán relacionar los contratos celebrados mediante la tipología de prestación de servicios profesionales y de apoyo a la gestión y el valor total de ellos. En el numeral 3, se deberá indicar en las modalidades de licitación pública, concurso de méritos y selección abreviada, el número de procesos de selección en los que se presentaron 1 o más proponentes.\nHoja 4.“INSTRUCTIVO”, se dan las instrucciones para el diligenciamiento de la información, explicando paso a paso cada uno de los datos de la base y la manera de diligenciarla para efectos de que la información reportada sea veraz y no presente inconsistencias."]
[null,"La base en Excel a diligenciar NO debe modificarse, debe utilizar versión Excel 2010 o posteriores, la versión 2007 no habilita los macros. El formato está controlado y algunas celdas tienen opciones de selección y solo se debe escoger una de ellas.  El nombre de las hojas no se debe modificar o renombrar debido a que tiene macros. No incluya columnas con otro tipo de información que la Veeduría Distrital no está solicitando o que cambie el formato de celda establecido. Debe diliigencar la totalidad de las celdas, no combinarlas, registrar la información contractual en filas independientes. Las celdas donde se requieren relacionar valores, deben diligenciarse sin puntos, tildes, comas, ni caracteres especiales."]
[null,"Para insertar una o varias filas, en el encabezado del formato, se encuentra un botón denominado \"Insertar Filas\" en el cual se debe hacer click  y digite el número de filas a insertar. Si usted no sigue este procedimiento las filas que inserte no tomarán el formato de las filas anteriores. Se recomienda que antes de iniciar el registro de información inserte las filas que requiera, sin embargo, en cualquier momento que necesite puede hacer este paso"]
[null,"Si requiere insertar una o varias filas realícelo después de la fila A14 para que tomen el formato de las filas anteriores."]
[null,"Si necesita pegar información debe hacerlo por secciones debido a que hay columnas formuladas que están protegidas que no permiten realizar esta opción. Utilice la opción de pegado especial valores para no borrar las listas desplegables ni los formatos de las columnas. Si al pegar quedan textos en rojo,  verifique y ajuste la información, el dato que adiciono no se encuentra en la lista desplegable o no corresponde con el criterio definido en el columna."]
[null,"En primer lugar, diligencie toda la información correspondiente a los contratos suscritos con cargo la vigencia 2021."]
[null,"Una vez incluidos todos los contratos  de la vigencia 2021, a continuación diligencie el formato completo con la información correspondiente a las adiciones efectuadas con cargo a la vigencia 2021 de contratos suscritos en vigencias anteriores. La información general del contrato como: modalidad de selección, tipología contractual, objeto, entre otros, debe corresponder a la información del contrato adicionado o modificado. Respecto al valor, sólo se diligencia el valor en la columna adición, es decir, la columna de valor inicial debe quedar en blanco. No olvide registrar el número de adiciones realizadas en la columna correspondiente."]
[null,"La información que se registre en esta base de datos debe coincidir con los reportes en BOGDATA  y adicionalmente con SECOP.  Es así que la sumatoria del valor final de los contratos y adiciones, por eje/pilar/propósito, programa y proyecto registrada por la Entidad, debe coincidir con la ejecución presupuestal de la entidad, reporte de BOGDATA con corte a 31 de diciembre de 2021, es decir, se debe verificar su coincidencia por rubro con el total del compromiso acumulado; igualmente respecto al valor acumulado de los giros."]
[null,"En caso de haber realizado apropiaciones presupuestales en la vigencia a través de resoluciones, caja menor, honorarios ediles, servicios públicos, debe relacionar dicha información en una sola fila al final de la base, indicando de que se trata la apropiación y número de proyecto si hay lugar a ello. En el tipo de contrato se registra con la opción \"Otros gastos\"."]
[]
[null,"ENCABEZADO DEL FORMATO"]
[null,1,"Entidad","Indique el nombre completo de la Entidad."]
[null,2,"Sector","Seleccione el sector al cual pertenece la Entidad."]
[null,3,"Presupuesto Disponible Inversión Directa","Indique el valor total del presupuesto disponible de inversión directa, de acuerdo con el Informe de ejecución presupuestal de la entidad (BOGDATA), a 31 de diciembre de 2021."]
[null,4,"Presupuesto Comprometido de Inversión Directa ","Escriba el valor total del presupuesto comprometido de inversión directa, de acuerdo con el Informe de ejecución presupuestal de la entidad (BOGDATA), a 31 de diciembre de 2021."]
[null,5,"Presupuesto Disponible Funcionamiento","Indique el valor total del presupuesto de funcionamiento disponible, de acuerdo con el con el Informe de ejecución presupuestal de la entidad (BOGDATA), a 31 de diciembre de 2021."]
[null,6,"Presupuesto Comprometido funcionamiento ","Escriba el monto del presupuesto de funcionamiento, comprometido mediante contratos, de acuerdo con el Informe de ejecución presupuestal de la entidad (BOGDATA), a 31 de diciembre de 2021."]
[null,7,"Presupuesto Disponible Operación","Coloque el monto del presupuesto de operación disponible, de acuerdo con el Informe de ejecución presupuestal de la entidad (BOGDATA), a 31 de diciembre de 2021. Los gastos de operación corresponden solamente a aquellas entidades de régimen de contratación  privado."]
[null,8,"Presupuesto Comprometido operación mediante contratos","Escriba el monto del presupuesto de operación comprometido mediante contratos a 31 de diciembre de 2021."]
[null,9,"Nombre de quien diligencia el formato","Indique el nombre completo, cargo, número de teléfono con extensión y correo electrónico del profesional que diligencia el formato y que posteriormente realizará los ajustes y aclaraciones a que haya lugar por solicitud de la Veeduría Distrital."]
[]
[null,"1- INFORMACIÓN GENERAL"]
[null,1,"Número de Contrato","En estricto orden consecutivo registre el número del contrato, sin incluir los contratos que fueron anulados, ni comodatos."]
[null,null,null,"Una vez terminado el registro de los contratos celebrados con cargo a la vigencia 2021, en las siguientes filas registre la información correspondiente a las adiciones efectuadas con cargo a la vigencia 2021 de contratos suscritos en vigencias anteriores, especificando el año de suscripción en la columna dos."]
[null,2,"Año","Registre el año de celebración del contrato."]
[null,3,"Número de proceso en el SECOP","Relacione el número de proceso de selección con el cual se encuentra publicado el contrato en el SECOP, mas no el link o enlace. Ejemplo IDU-CMA-DTDP-240-2021"]
[null,null,"Link proceso SECOP","Registre el enlace del proceso en SECOP. Ejemplo  https://community.secop.gov.co/Public/xxxxxx"]
[null,4,"Tipo de Contrato","En esta columna seleccione de la lista, el tipo de contrato que corresponde al contrato suscrito. El formato no permite incluir tipo de contratos diferentes a los señaladas en la lista desplegable.  Se debe escoger de las tipologías contractuales que se relacionan a continuación:  "]
[null,null,null,"Para las adiciones a contratos suscritos en la vigencia 2021 y adiciones a contratos sucritos de años anteriores se debe diligenciar la tipología del contrato adicionado o modificado"]
[null,null,"Obra ","Son contratos de obra los que celebren las entidades estatales para la construcción, mantenimiento, instalación y, en general, para la realización de cualquier otro trabajo material sobre bienes inmuebles, cualquiera que sea la modalidad de ejecución y pago. Numeral 1 del artículo 32 de la Ley 80 de 1993"]
[null,null,"Consultoría","Aquellos que celebran las entidades estatales, referidos a los estudios necesarios para la ejecución de proyectos de inversión, de diagnósticos, prefactibilidad o factibilidad para programas o proyectos específicos, así como  las asesorías técnicas de coordinación, control y supervisión. Numeral 2 del artículo 32 de la Ley 80 de 1993"]
[null,null,"Interventoría","Son también  contratos de consultoría los que tienen por objeto la Interventoría, asesoría, gerencia de obras o de proyectos, dirección, programación y la ejecución de diseños, planos, anteproyectos y proyectos. Numeral 2 del artículo 32 de la Ley 80 de 1993"]
[null,null,null,"El contrato de Interventoría tiene por objeto la  supervisión, seguimiento y vigilancia a la ejecución material de un contrato principal"]
[null,null,"Contrato de Prestación de servicios","Son contratos de prestación de servicios los que celebren las entidades estatales para desarrollar actividades relacionadas con la administración o funcionamiento de la entidad. Numeral 3 del artículo 32 de la Ley 80 de 1993"]
[null,null,"Contrato de Prestación de servicios profesionales y de apoyo a la gestión","Corresponden a aquellos de naturaleza intelectual diferentes a los de consultoría que se derivan del cumplimiento de las funciones de la entidad estatal; así como los relacionados con actividades operativas, logísticas, o asistenciales. Art. 2.2.1.2.1.4.9. del Decreto 1082 de 2015"]
[null,null,"Compraventa de bienes muebles","Son aquellos contratos donde se transfiere el dominio de un bien mueble (aquellos susceptibles de ser trasladadas de un lugar a otro sin alterar ni su forma ni su esencia, tal es el caso del mobiliario y equipo de oficina, maquinaria, automóviles, etc.), cuya ejecución se agota de manera instantánea. Artículo 660, Código Civil"]
[null,null,"Compraventa de bienes inmuebles","Son aquellos contratos donde se transfiere el dominio de un bien inmueble (todos aquellos bienes considerados bienes raíces, por tener de común la circunstancia de estar íntimamente ligados al suelo, unidos de modo inseparable, física o jurídicamente, al terreno). Artículo 656, Código Civil"]
[null,null,"Arrendamiento de bienes muebles","Es un contrato que tiene por objeto, conceder el uso y goce de un bien mueble a cambio de un precio determinado. Artículo 1974, Código Civil"]
[null,null,"Arrendamiento de bienes inmuebles","Es un contrato que tiene por objeto, conceder el uso y goce de un bien inmueble a cambio de un precio determinado. Artículo 2.2.1.2.1.4.11 del Decreto 1082 de 2015"]
[null,null,"Seguros","El seguro es un contrato, en virtud del cual una persona jurídica llamada asegurador, asume, a cambio de una prima, un riesgo que le es trasladado por una persona natural o jurídica llamado tomador y en el cual éste tiene un interés asegurable, con el fin de indemnizarlo, en el evento de que ocurra la realización del riesgo amparado, de conformidad con el Título V, del Libro Cuarto del Código de Comercio"]
[null,null,"Suministro","El suministro es el contrato por el cual una parte se obliga, a cambio de una contraprestación, a cumplir en favor de otra, en forma independiente, prestaciones periódicas o continuadas de cosas o servicios. Artículo 968, Código de Comercio"]
[null,null,"Empréstitos","Son contratos de empréstito los que tienen por objeto proveer a la entidad estatal contratante de recursos en moneda nacional o extranjera con plazo para su pago. Artículo 7, Decreto 2681 de 1993"]
[null,null,"Fiducia mercantil o encargo fiduciario","Son contratos que tienen por objeto la administración o el manejo de los recursos vinculados a los contratos que tales entidades celebren. Numeral 5 del artículo 32 de la Ley 80 de 1993"]
[null,null,"Concesión","Este contrato tiene por objeto otorgar a una persona llamada concesionario la prestación, operación, explotación, organización o gestión, total o parcial, de un servicio público, o la construcción, explotación o conservación total o parcial, de una obra o bien destinados al servicio o uso público, así como todas aquellas actividades necesarias para la adecuada prestación o funcionamiento de la obra o servicio por cuenta y riesgo del concesionario, y bajo la vigilancia y control de la entidad concedente, a cambio de una remuneración que puede consistir en derechos, tarifas, tasas, valorización, o en la participación que se le otorgue en la explotación del bien, obra o servicio, o en una suma periódica, única o porcentual, y en general, en cualquier otra modalidad de contraprestación que las partes acuerden. Numeral 4 del artículo 32 de la Ley 80 de 1993"]
[null,null,"Convenios de cooperación","Son aquellos mediante los cuales se formaliza la asistencia, ayuda, auxilio, soporte o colaboración entre entidades de una misma nación, de distintos países o por parte de organizaciones internacionales de naturaleza pública o privada a favor de entidades públicas. Artículo 20 de la Ley 1150 de 2007"]
[null,null,"Convenios/Contratos interadministrativos","El convenio interadministrativo es el negocio jurídico en el cual están presentes dos entidades públicas en desarrollo de relaciones interadministrativas cuyo objeto es coordinar, cooperar, colaborar o distribuir competencias en la realización de funciones administrativas de interés común a los sujetos negociales. Artículo 95 de la Ley 489 de 1998"]
[null,null,"Convenios de Apoyo y/o Convenios de Asociación","Los contratos que en desarrollo de lo dispuesto en el segundo inciso del artículo 355 de la Constitución Política celebren la Nación, los Departamentos, Distritos y Municipios con entidades privadas sin ánimo de lucro y de reconocida idoneidad, con el propósito de impulsar programas y actividades de interés público. Reglamentado mediante Decreto 92 de 2017"]
[null,null,"Asociaciones Público Privadas","Los contratos con personas naturales o jurídicas que se celebran en desarrollo de lo dispuesto en la Ley 1508 de 2012"]
[null,null,"Otros","Los demás tipos de contratos que no se encuentren definidos en las anteriores tipologías"]
[null,null,"Otros gastos","Incluye los gastos no contractuales, estos se registran al final de la base, no cuentan con número de contrato, tipo, proceso o modalidad.  Estos gastos en los que no media un acuerdo de voluntades, en caso de ser del rubro de inversiòn, se deben discriminar por programa y proyecto. En el caso de ser del rubro de funcionamiento no requieren ser discriminados sino totalizados en una sola fila."]
[null,5,"Modalidad de Selección","Al ubicarse en la celda, se despliega una lista de modalidades de selección, de las cuales debe seleccionar la indicada"]
[null,null,null,"Para las adiciones a contratos suscritos en vigencias anteriores se debe diligenciar la modalidad de selección del contrato adicionado o modificado"]
[null,null,null,"La modalidad régimen especial se refiere a todos los contratos realizados en cumplimiento del Decreto 92 de 2017, convenios de asociación con ESAL. Régimen privado es para todas aquellas entidades que no se rigen por el Estatuto General de Contratación Pública (Ley 80 de 1993 y normas complementarias), caso en el que todos sus contratos deben ser identificados con esta modalidad"]
[null,6,"Procedimiento o causal","Esta columna solo se habilita y debe ser diligenciada, para las modalidades de selección abreviada y contratación directa. Al ubicarse en la celda, se despliega una lista de procedimientos o causales, de las cuales debe seleccionar la indicada. El formato no permite incluir procedimientos o causales diferentes a las señaladas en la lista desplegable.  "]
[null,7,"Objeto","Registre el objeto del contrato"]
[null,8,"Afectación ","Registre la afectación según la clasificación de cuentas del presupuesto de gastos. Funcionamiento, Inversión y Operación, esta última aplica únicamente para entidades de régimen privado. La celda solamente permite registrar estas tres opciones."]
[null,null,"Planes de Desarrollo Distrital","Seleccionar el PDD de acuerdo con los diferentes contratos suscritos, automáticamente en la columna K se activan  los números de programa de acuerdo al PDD."]
[null,null,"Número Programa","Si en la columna anterior “Afectación”,  indicó funcionamiento u operación deje en blanco el número de programa, es decir esta columna solamente aplica para gastos de Inversión."]
[null,null,null,"Identifíquelo de acuerdo con el código presupuestal del Plan de Desarrollo  \"Un Nuevo Contrato Social y Ambiental para la Bogotá del Siglo XXI\". Si un mismo contrato afecta más de un código presupuestal discrimine el contrato por cada código que afecte en filas separadas. Si se registra el número del programa, automáticamente en la columna L y M se despliega el nombre del programa y el  propósito según corresponda. "]
[null,9,"Número Proyecto","Indique el código presupuestal con el que se identifica el proyecto. Si un mismo contrato afecta más de un proyecto, discriminar el contrato por cada proyecto que afecte en filas separadas."]
[null,10,"Número de proponentes","Diligencie el número de proponentes que participaron en el proceso de selección adelantado que dio como resultado el contrato que se está diligenciando"]
[null,11,"Número de Identificación del contratista","Indicar el número de identificación del contratista persona natural o jurídica o contratistas plurales (uniones temporales y consorcios) con quien se suscribió el contrato, sin comas, tildes, puntos ni caracteres especiales, y si es NIT sin dígito de verificación"]
[null,null,"Nombre del Contratista","Indicar el nombre del contratista, persona natural o jurídica  o contratistas plurales (uniones temporales y consorcios) en mayúscula sostenida, sin comas, tildes, puntos ni caracteres especiales. Si se trata de personas jurídicas, diligenciar razón social y tipo societario, sin comas, tildes, puntos ni caracteres especiales. Si se trata de personas naturales diligenciar primero los nombres seguidos de los apellidos en la misma columna (nombre 1, nombre 2, apellido 1 y apellido 2)"]
[null,null,"Naturaleza Jurídica","Seleccione la naturaleza jurídica que corresponde al contratista, según las opciones"]
[null,null,"Número  de Identificación de los integrantes del Consorcio o U.T.\n(NIT sin digito de verificación)","Diligenciar este numeral sólo en los casos en que el contratista sea un Consorcio o Union Temporal, relacione en filas independientes (si son varios integrantes puede insertar filas adicionales), cada uno de los números de identificación de los integrantes de los consorcios o uniones temporales sin comas, tildes, puntos ni caracteres especiales, y si es NIT sin dígito de verificación. "]
[null,null,"Nombre del Integrante del Consorcio o U.T.","Diligenciar este numeral sólo en los casos en que el contratista sea un Consorcio o Union Temporal, relacione en filas independientes cada uno de los nombres de los integrantes de los consorcios o uniones temporales, si es persona jurídica la Razón social, es decir el nombre legal de la Empresa; si es persona natural relacione los nombres seguidos de los apellidos en mayúscula sostenida, sin comas, tildes, puntos ni caracteres especiales. Igualmente en el nombre relacione el Tipo societario de cada uno de ellos, entre los cuales se encuentra Sociedades por Acciones Simplificadas (SAS), Sociedad de Responsabilidad Limitada (LTDA), Sociedad en Comandita simple (SCS), Sociedad en Comandita por Acciones (SCA), Sociedad Colectiva, a manera de ejemplo: SOCIEDAD 1 LTDA"]
[null,null,"% Participación","Registre el porcentaje de participación de cada integrante del consorcio o unión temporal, registre sólo números, sin caracteres especiales"]
[]
[]
[null,"2- INFORMACIÓN FINANCIERA"]
[null,12,"Valor Inicial ","Registre el valor inicial del contrato con cargo al segundo cuatrimestre de la vigencia 2021. Esta columna sólo debe contener información numérica"]
[null,null,null,"En el caso de adiciones a contratos de años anteriores, no diligencie esta columna, registrar el valor en la columna 15 \"Valor Total Adiciones\".\nEn caso de adiciones a contratos suscritos en el primer cuatrimestre del 2021, no diligencie esta columna, registrar el valor en la columna 15 \"Valor Total Adiciones\""]
[null,null,null,"Excluya las reservas de apropiación y cuentas por pagar"]
[null,13,"Valor total reducciones (En valor negativo)","Registre el valor de la reducción del contrato en caso de haberse realizado, en negativo, durante la vigencia 2021"]
[null,14,"Número de adiciones ","Diligencie esta columna solo en el caso de adiciones al valor inicial que aumenten el valor del contrato con cargo a la vigencia."]
[null,null,null,"Registre en esta celda el número de adiciones que se realizaron al contrato"]
[null,15,"Valor total de adiciones","Registre el valor total de las adiciones que se realizaron al contrato,  el formato de celda no permite guiones, comas o texto. Esta columna solo debe contener información numérica."]
[null,16,"Valor Final","Esta columna se encuentra formulada por favor no modifique ni quite la fórmula; la fórmula suma las columnas valor inicial, valor de reducciones y valor de adiciones"]
[null,null,null,"La sumatoria de la columna 16 (valor final) para los contratos de Inversión Directa, de funcionamiento y/o operación, cuando aplique, deberán coincidir con el valor del rubro registrado en el encabezado 4, Presupuesto comprometido de inversión según BOGDATA, con el encabezado 6, Presupuesto Comprometido Funcionamiento según BOGDATA y con el encabezado 8, Presupuesto Comprometido Operación mediante contratos, respectivamente. A la vez, estos valores deben coincidir con los informes de ejecución presupuestal del BOGDATA.  "]
[null,null,null,"Si los valores no coinciden debe especificarse al final del formato en qué está representada la diferencia Otros gastos(discriminando los conceptos por Programa y Proyecto de inversión, si es el caso), con sus respectivos valores."]
[null,null,null,"Las bases donde dichos valores no coincidan serán devueltas por la Veeduría Distrital a cada entidad para los respectivos ajustes."]
[null,17,"Giros","Registre el valor total de los giros que se realizaron al contrato,  el formato de celda no permite guiones, comas o texto. Esta columna solo debe contener información numérica."]
[]
[null,"3- PLAZOS"]
[null,18,"Fecha de suscripción","Relacionar la fecha en que se suscribió el contrato original. La celda solo admite el formato Día/Mes/Año, por ejemplo: 17/02/2021"]
[null,null,null,"Para las adiciones a contratos de años anteriores se debe registrar en esta columna la fecha de suscripción de la adición en la vigencia 2021"]
[null,19,"Fecha de inicio","Indicar la fecha de inicio del contrato. Para las adiciones a contratos de años anteriores se debe diligenciar la fecha de inicio de la adición en la vigencia 2021. La celda solo admite el formato Día/Mes/Año así  13/03/2021."]
[null,20,"Fecha de terminación","Indicar la fecha efectiva de terminación del contrato. La celda solo admite el formato Día/Mes/Año así  15/02/2021."]
[null,21,"Plazo en días","Esta columna contiene el plazo inicial del contrato con el número total de días a ejecutar (sólo número de días, no mes, no texto). "]
[null,22,"Número de prórrogas","Registre en esta celda el número de prórrogas que se realizaron al contrato en la vigencia 2021."]
[null,23,"Prórroga en días","En caso de presentarse este evento, indicar en días, el tiempo por el cual se prorrogó el contrato a partir de la fecha inicial de terminación (sólo número de días, no mes, no texto)."]
[]
[null,"4- CESIÓN"]
[null,24,"Número  de Identificación del cesionario\n(NIT con digito de verificación)","Indicar el número de identificación del cesionario persona natural o jurídica con quien se suscribió la cesión, con digito de verificación (DV), el formato de celda no permite guiones o comas, solo números. Si hay más de una cesión adicione una fila y registre número de contrato, año, número proceso contractual SECOP y demás información que corresponda."]
[null,25,"Nombre cesionario","Indicar el nombre del cesionario, persona natural o jurídica."]
[null,26,"Fecha cesión","Relacionar la fecha en que se suscribió la cesión del contrato. La celda solo admite el formato Día/Mes/Año así  17/02/2021."]
[null,27,"Valor cesión","Registre el valor correspondiente a la cesión con cargo a la vigencia 2021, el formato de celda no permite guiones, comas o texto. Esta columna solo debe contener información numérica."]
[]
[null,"5- ESTADO A 31 DE DICIEMBRE DE 2021"]
[null,28,"Estado","Marque con una X en la respectiva columna si el contrato se encuentra a 31 de diciembre de 2021 Celebrado o por Iniciar, En Ejecución, Terminado o Liquidado."]
[]
[null,"5- PORCENTAJE DE AVANCE Y/O CUMPLIMIENTO"]
[null,29,"% Avance y/o cumplimiento","Indica el porcentaje de avance o de cumplimiento en términos presupuestales a 31 de diciembre de 2021, es decir lo efectivamente pagado al contratista. Si no se ha iniciado la ejecución, el % de avance es 0%. La celda se encuentra formulada y protegida. Es la relación entre el valor de los giros y el valor final del contrato. Si el porcentaje de avance no coincide, se debe revisar los valores que se registraron en estas columnas.  Este porcentaje no debe ser superior al 100%"]

{"sheet":"Proposito_programa","index":5,"n_rows":59,"n_cols":5,"rows_kept":59,"cut":false,"hidden":false,"merged":[]}
[]
[null,"PDD","No. Programa","Programa","Propósito"]
["Acuerdo 761 2020","Un Nuevo Contrato Social y Ambiental para la Bogotá del Siglo XXI",1,"Subsidios y transferencias para la equidad","Propósito 1: Hacer un nuevo contrato social para incrementar la inclusión social, productiva y política"]
["Pag. 51","Un Nuevo Contrato Social y Ambiental para la Bogotá del Siglo XXI",{"$f":"+C3+1","v":2},"Igualdad de oportunidades y desarrollo de capacidades para las mujeres","Propósito 1: Hacer un nuevo contrato social para incrementar la inclusión social, productiva y política"]
[null,"Un Nuevo Contrato Social y Ambiental para la Bogotá del Siglo XXI",{"$f":"+C4+1","v":3},"Movilidad social integral","Propósito 1: Hacer un nuevo contrato social para incrementar la inclusión social, productiva y política"]
[null,"Un Nuevo Contrato Social y Ambiental para la Bogotá del Siglo XXI",4,"Prevención de la exclusión por razones étnicas, religiosas, sociales, políticas y de orientación sexual","Propósito 1: Hacer un nuevo contrato social para incrementar la inclusión social, productiva y política"]
[null,"Un Nuevo Contrato Social y Ambiental para la Bogotá del Siglo XXI",5,"Promoción de la igualdad, el desarrollo de capacidades y el reconocimiento de las mujeres","Propósito 1: Hacer un nuevo contrato social para incrementar la inclusión social, productiva y política"]
[null,"Un Nuevo Contrato Social y Ambiental para la Bogotá del Siglo XXI",6,"Sistema Distrital de Cuidado","Propósito 1: Hacer un nuevo contrato social para incrementar la inclusión social, productiva y política"]
[null,"Un Nuevo Contrato Social y Ambiental para la Bogotá del Siglo XXI",7,"Mejora de la gestión de instituciones de salud","Propósito 1: Hacer un nuevo contrato social para incrementar la inclusión social, productiva y política"]
[null,"Un Nuevo Contrato Social y Ambiental para la Bogotá del Siglo XXI",8,"Prevención y atención de maternidad temprana","Propósito 1: Hacer un nuevo contrato social para incrementar la inclusión social, productiva y política"]
[null,"Un Nuevo Contrato Social y Ambiental para la Bogotá del Siglo XXI",9,"Prevención y cambios para mejorar la salud de la población","Propósito 1: Hacer un nuevo contrato social para incrementar la inclusión social, productiva y política"]
[null,"Un Nuevo Contrato Social y Ambiental para la Bogotá del Siglo XXI",10,"Salud para la vida y el bienestar","Propósito 1: Hacer un nuevo contrato social para incrementar la inclusión social, productiva y política"]
[null,"Un Nuevo Contrato Social y Ambiental para la Bogotá del Siglo XXI",11,"Salud y bienestar para niñas y niños","Propósito 1: Hacer un nuevo contrato social para incrementar la inclusión social, productiva y política"]
[null,"Un Nuevo Contrato Social y Ambiental para la Bogotá del Siglo XXI",12,"Educación inicial: Bases sólidas para la vida.","Propósito 1: Hacer un nuevo contrato social para incrementar la inclusión social, productiva y política"]
[null,"Un Nuevo Contrato Social y Ambiental para la Bogotá del Siglo XXI",13,"Educación para todos y todas: acceso y permanencia con equidad y énfasis en educación rural","Propósito 1: Hacer un nuevo contrato social para incrementar la inclusión social, productiva y política"]
[null,"Un Nuevo Contrato Social y Ambiental para la Bogotá del Siglo XXI",14,"Formación integral: más y mejor tiempo en los colegios","Propósito 1: Hacer un nuevo contrato social para incrementar la inclusión social, productiva y política"]
[null,"Un Nuevo Contrato Social y Ambiental para la Bogotá del Siglo XXI",15,"Plan Distrital de Lectura, Escritura y Oralidad: \"Leer para la vida\"","Propósito 1: Hacer un nuevo contrato social para incrementar la inclusión social, productiva y política"]
[null,"Un Nuevo Contrato Social y Ambiental para la Bogotá del Siglo XXI",16,"Transformación pedagógica y mejoramiento de la gestión educativa. Es con los maestros y maestras.","Propósito 1: Hacer un nuevo contrato social para incrementar la inclusión social, productiva y política"]
[null,"Un Nuevo Contrato Social y Ambiental para la Bogotá del Siglo XXI",17,"Jóvenes con capacidades: Proyecto de vida para la ciudadanía, la innovación y el trabajo del siglo XXI","Propósito 1: Hacer un nuevo contrato social para incrementar la inclusión social, productiva y política"]
[null,"Un Nuevo Contrato Social y Ambiental para la Bogotá del Siglo XXI",18,"Cierre de brechas para la inclusión productiva urbano rural","Propósito 1: Hacer un nuevo contrato social para incrementar la inclusión social, productiva y política"]
[null,"Un Nuevo Contrato Social y Ambiental para la Bogotá del Siglo XXI",19,"Vivienda y entornos dignos en el territorio urbano y rural","Propósito 1: Hacer un nuevo contrato social para incrementar la inclusión social, productiva y política"]
[null,"Un Nuevo Contrato Social y Ambiental para la Bogotá del Siglo XXI",20,"Bogotá, referente en cultura, deporte, recreación y actividad física, con parques para el desarrollo y la salud","Propósito 1: Hacer un nuevo contrato social para incrementar la inclusión social, productiva y política"]
[null,"Un Nuevo Contrato Social y Ambiental para la Bogotá del Siglo XXI",21,"Creación y vida cotidiana: Apropiación ciudadana del arte, la cultura y el patrimonio, para la democracia cultural","Propósito 1: Hacer un nuevo contrato social para incrementar la inclusión social, productiva y política"]
[null,"Un Nuevo Contrato Social y Ambiental para la Bogotá del Siglo XXI",22,"Transformación cultural para la conciencia ambiental y el cuidado de la fauna doméstica","Propósito 1: Hacer un nuevo contrato social para incrementar la inclusión social, productiva y política"]
[null,"Un Nuevo Contrato Social y Ambiental para la Bogotá del Siglo XXI",23,"Bogotá rural","Propósito 1: Hacer un nuevo contrato social para incrementar la inclusión social, productiva y política"]
[null,"Un Nuevo Contrato Social y Ambiental para la Bogotá del Siglo XXI",24,"Bogotá región emprendedora e innovadora","Propósito 1: Hacer un nuevo contrato social para incrementar la inclusión social, productiva y política"]
[null,"Un Nuevo Contrato Social y Ambiental para la Bogotá del Siglo XXI",25,"Bogotá región productiva y competitiva","Propósito 1: Hacer un nuevo contrato social para incrementar la inclusión social, productiva y política"]
[null,"Un Nuevo Contrato Social y Ambiental para la Bogotá del Siglo XXI",26,"Bogotá - región, el mejor destino para visitar","Propósito 1: Hacer un nuevo contrato social para incrementar la inclusión social, productiva y política"]
[null,"Un Nuevo Contrato Social y Ambiental para la Bogotá del Siglo XXI",27,"Cambio cultural para la gestión de la crisis climática","Propósito 2 : Cambiar Nuestros Hábitos de Vida para Reverdecer a Bogotá y Adaptarnos y Mitigar la Crisis Climática"]
[null,"Un Nuevo Contrato Social y Ambiental para la Bogotá del Siglo XXI",{"$f":"+C29+1","v":28},"Bogotá protectora de sus recursos naturales","Propósito 2 : Cambiar Nuestros Hábitos de Vida para Reverdecer a Bogotá y Adaptarnos y Mitigar la Crisis Climática"]
[null,"Un Nuevo Contrato Social y Ambiental para la Bogotá del Siglo XXI",{"$f":"+C30+1","v":29},"Asentamientos y entornos protectores","Propósito 2 : Cambiar Nuestros Hábitos de Vida para Reverdecer a Bogotá y Adaptarnos y Mitigar la Crisis Climática"]
[null,"Un Nuevo Contrato Social y Ambiental para la Bogotá del Siglo XXI",30,"Eficiencia en la atención de emergencias","Propósito 2 : Cambiar Nuestros Hábitos de Vida para Reverdecer a Bogotá y Adaptarnos y Mitigar la Crisis Climática"]
[null,"Un Nuevo Contrato Social y Ambiental para la Bogotá del Siglo XXI",31," Protección y valoración del patrimonio tangible e intangible en Bogotá y la región","Propósito 2 : Cambiar Nuestros Hábitos de Vida para Reverdecer a Bogotá y Adaptarnos y Mitigar la Crisis Climática"]
[null,"Un Nuevo Contrato Social y Ambiental para la Bogotá del Siglo XXI",32,"Revitalización urbana para la competitividad","Propósito 2 : Cambiar Nuestros Hábitos de Vida para Reverdecer a Bogotá y Adaptarnos y Mitigar la Crisis Climática"]
[null,"Un Nuevo Contrato Social y Ambiental para la Bogotá del Siglo XXI",33,"Más árboles y más y mejor espacio público","Propósito 2 : Cambiar Nuestros Hábitos de Vida para Reverdecer a Bogotá y Adaptarnos y Mitigar la Crisis Climática"]
[null,"Un Nuevo Contrato Social y Ambiental para la Bogotá del Siglo XXI",34,"Bogotá protectora de los animales","Propósito 2 : Cambiar Nuestros Hábitos de Vida para Reverdecer a Bogotá y Adaptarnos y Mitigar la Crisis Climática"]
[null,"Un Nuevo Contrato Social y Ambiental para la Bogotá del Siglo XXI",35,"Manejo y prevención de contaminación","Propósito 2 : Cambiar Nuestros Hábitos de Vida para Reverdecer a Bogotá y Adaptarnos y Mitigar la Crisis Climática"]
[null,"Un Nuevo Contrato Social y Ambiental para la Bogotá del Siglo XXI",36,"Manejo y saneamiento de los cuerpos de agua","Propósito 2 : Cambiar Nuestros Hábitos de Vida para Reverdecer a Bogotá y Adaptarnos y Mitigar la Crisis Climática"]
[null,"Un Nuevo Contrato Social y Ambiental para la Bogotá del Siglo XXI",37,"Provisión y mejoramiento de servicios públicos","Propósito 2 : Cambiar Nuestros Hábitos de Vida para Reverdecer a Bogotá y Adaptarnos y Mitigar la Crisis Climática"]
[null,"Un Nuevo Contrato Social y Ambiental para la Bogotá del Siglo XXI",38,"Ecoeficiencia, reciclaje, manejo de residuos e inclusión de la población recicladora","Propósito 2 : Cambiar Nuestros Hábitos de Vida para Reverdecer a Bogotá y Adaptarnos y Mitigar la Crisis Climática"]
[null,"Un Nuevo Contrato Social y Ambiental para la Bogotá del Siglo XXI",39,"Bogotá territorio de paz y atención integral a las víctimas del conflicto armado","Propósito 3: Inspirar confianza y legitimidad para vivir sin miedo y ser epicentro de cultura ciudadana, paz y reconciliación"]
[null,"Un Nuevo Contrato Social y Ambiental para la Bogotá del Siglo XXI",{"$f":"+C41+1","v":40},"Más mujeres viven una vida libre de violencias, se sienten seguras y acceden con confianza al sistema de justicia","Propósito 3: Inspirar confianza y legitimidad para vivir sin miedo y ser epicentro de cultura ciudadana, paz y reconciliación"]
[null,"Un Nuevo Contrato Social y Ambiental para la Bogotá del Siglo XXI",{"$f":"+C42+1","v":41},"Sin machismo ni violencias contra las mujeres, las niñas y los niños","Propósito 3: Inspirar confianza y legitimidad para vivir sin miedo y ser epicentro de cultura ciudadana, paz y reconciliación"]
[null,"Un Nuevo Contrato Social y Ambiental para la Bogotá del Siglo XXI",42,"Conciencia y cultura ciudadana para la seguridad, la convivencia y la construcción de confianza","Propósito 3: Inspirar confianza y legitimidad para vivir sin miedo y ser epicentro de cultura ciudadana, paz y reconciliación"]
[null,"Un Nuevo Contrato Social y Ambiental para la Bogotá del Siglo XXI",43,"Cultura ciudadana para la confianza, la convivencia y la participación desde la vida cotidiana","Propósito 3: Inspirar confianza y legitimidad para vivir sin miedo y ser epicentro de cultura ciudadana, paz y reconciliación"]
[null,"Un Nuevo Contrato Social y Ambiental para la Bogotá del Siglo XXI",44,"Autoconciencia, respeto y cuidado en el espacio público","Propósito 3: Inspirar confianza y legitimidad para vivir sin miedo y ser epicentro de cultura ciudadana, paz y reconciliación"]
[null,"Un Nuevo Contrato Social y Ambiental para la Bogotá del Siglo XXI",45,"Espacio público más seguro y construido colectivamente","Propósito 3: Inspirar confianza y legitimidad para vivir sin miedo y ser epicentro de cultura ciudadana, paz y reconciliación"]
[null,"Un Nuevo Contrato Social y Ambiental para la Bogotá del Siglo XXI",46,"Atención a jóvenes y adultos infractores con impacto en su proyecto de vida","Propósito 3: Inspirar confianza y legitimidad para vivir sin miedo y ser epicentro de cultura ciudadana, paz y reconciliación"]
[null,"Un Nuevo Contrato Social y Ambiental para la Bogotá del Siglo XXI",47,"Calidad de Vida y Derechos de la Población privada de la libertad","Propósito 3: Inspirar confianza y legitimidad para vivir sin miedo y ser epicentro de cultura ciudadana, paz y reconciliación"]
[null,"Un Nuevo Contrato Social y Ambiental para la Bogotá del Siglo XXI",48,"Plataforma institucional para la seguridad y justicia","Propósito 3: Inspirar confianza y legitimidad para vivir sin miedo y ser epicentro de cultura ciudadana, paz y reconciliación"]
[null,"Un Nuevo Contrato Social y Ambiental para la Bogotá del Siglo XXI",49,"Movilidad segura, sostenible y accesible","Propósito 4: Hacer de Bogotá Región un modelo de movilidad multimodal, incluyente y sostenible"]
[null,"Un Nuevo Contrato Social y Ambiental para la Bogotá del Siglo XXI",{"$f":"+C51+1","v":50},"Red de metros","Propósito 4: Hacer de Bogotá Región un modelo de movilidad multimodal, incluyente y sostenible"]
[null,"Un Nuevo Contrato Social y Ambiental para la Bogotá del Siglo XXI",51,"Gobierno Abierto","Propósito 5: Construir Bogotá - Región con gobierno abierto, transparente y ciudadanía consciente"]
[null,"Un Nuevo Contrato Social y Ambiental para la Bogotá del Siglo XXI",{"$f":"+C53+1","v":52},"Integración regional, distrital y local","Propósito 5: Construir Bogotá - Región con gobierno abierto, transparente y ciudadanía consciente"]
[null,"Un Nuevo Contrato Social y Ambiental para la Bogotá del Siglo XXI",{"$f":"+C54+1","v":53},"Información para la toma de decisiones","Propósito 5: Construir Bogotá - Región con gobierno abierto, transparente y ciudadanía consciente"]
[null,"Un Nuevo Contrato Social y Ambiental para la Bogotá del Siglo XXI",54,"Transformación digital y gestión de TIC para un territorio inteligente","Propósito 5: Construir Bogotá - Región con gobierno abierto, transparente y ciudadanía consciente"]
[null,"Un Nuevo Contrato Social y Ambiental para la Bogotá del Siglo XXI",55,"Fortalecimiento de cultura ciudadana y su institucionalidad","Propósito 5: Construir Bogotá - Región con gobierno abierto, transparente y ciudadanía consciente"]
[null,"Un Nuevo Contrato Social y Ambiental para la Bogotá del Siglo XXI",56,"Gestión pública efectiva","Propósito 5: Construir Bogotá - Región con gobierno abierto, transparente y ciudadanía consciente"]
[null,"Un Nuevo Contrato Social y Ambiental para la Bogotá del Siglo XXI",57,"Gestión pública local","Propósito 5: Construir Bogotá - Región con gobierno abierto, transparente y ciudadanía consciente"]

{"sheet":"Tipo","index":6,"n_rows":40,"n_cols":5,"rows_kept":40,"cut":false,"hidden":true,"merged":[]}
[null,"Tipo","Modalidad de Selección","afectacion","Naturaleza Jurídica"]
[1,"Obra pública","Concurso de méritos","Funcionamiento","Persona Natural"]
[2,"Consultoría","Contratación directa","Inversión","Persona Jurídica"]
[3,"Interventoría","Contratación mínima cuantia","Operación","Unión Temporal"]
[4,"Contratos de prestación de servicios","Selección abreviada",null,"Consorcio"]
[5,"Contratos de prestación de servicios profesionales y de apoyo a la gestión","Licitación pública"]
[6,"Compraventa de bienes muebles","Régimen privado"]
[7,"Compraventa de bienes inmuebles","Régimen especial"]
[8,"Arrendamiento de bienes muebles"]
[9,"Arrendamiento de bienes inmuebles"]
[10,"Seguros","Selección abreviada"]
[11,"Suministro","Subasta inversa "]
[12,"Empréstitos","Bolsas de productos"]
[13,"Fiducia mercantil o encargo fiduciario","Acuerdo marco de precios "]
[14,"Concesión ","Selección abreviada por menor cuantía "]
[15,"Convenios de cooperacion"]
[16,"Contratos interadministrativos","contratacion directa"]
[17,"Convenios de apoyo y/o convenios de asociación ","Urgencia manifiesta"]
[18,"Asociaciones público privadas","Contratación de empréstitos"]
[19,"Otros","Contratos interadministrativos"]
[20,"Otros gastos","Contratación de bienes y servicios en el sector Defensa y en el Departamento Administrativo de Seguridad, DAS"]
[null,"SECTOR","Contratos para el desarrollo de actividades científicas y tecnológicas"]
[1,"Gestión Pública","Contratos de encargo fiduciario que celebren las entidades territoriales cuando inician el Acuerdo de Reestructuración de Pasivos"]
[{"$f":"+A23+1","v":2},"Gobierno","Cuando no exista pluralidad de oferentes en el mercado"]
[{"$f":"+A24+1","v":3},"Hacienda","Prestación de servicios profesionales y de apoyo a la gestión, o para la ejecución de trabajos artísticos que sólo puedan encomendarse a determinadas personas naturales;"]
[4,"Planeación","El arrendamiento o adquisición de inmuebles"]
[5,"Desarrollo Económico, Industria y Turismo","Contratación de bienes y servicios de la Dirección Nacional de Inteligencia (DNI)"]
[6,"Educación"]
[7,"Salud"]
[8,"Integración Social","Decreto 92 de 2017"]
[9,"Cultura, Recreación y Deporte","No aplica"]
[10,"Ambiente"]
[11,"Movilidad","SECOP I"]
[12,"Hábitat","SECOP II"]
[13,"Mujeres"]
[14,"Seguridad, Convivencia y Justicia","Bogotá Mejor para Todos"]
[15,"Gestión Juridíca","Un Nuevo Contrato Social y Ambiental para la Bogotá del Siglo XXI"]
[16,"descentralizado territorialmente"]
[]
[null,"16 - AL"]

{"sheet":"Eje_Pilar_Prop1","index":7,"n_rows":104,"n_cols":5,"rows_kept":104,"cut":false,"hidden":true,"merged":[]}
[]
[null,"PDD","No. Programa","Programa","Pilar /Eje / propósito"]
[null,"Bogotá Mejor para Todos",1,"Prevención y atención de la maternidad y la paternidad tempranas","Pilar 1 Igualdad de Calidad de Vida"]
[null,"Bogotá Mejor para Todos",2,"Desarrollo integral desde la gestación hasta la adolescencia","Pilar 1 Igualdad de Calidad de Vida"]
[null,"Bogotá Mejor para Todos",3,"Igualdad y autonomía para una Bogotá incluyente","Pilar 1 Igualdad de Calidad de Vida"]
[null,"Bogotá Mejor para Todos",4,"Familias protegidas y adaptadas al cambio climático","Pilar 1 Igualdad de Calidad de Vida"]
[null,"Bogotá Mejor para Todos",5,"Desarrollo integral para la felicidad y el ejercicio de la ciudadanía","Pilar 1 Igualdad de Calidad de Vida"]
[null,"Bogotá Mejor para Todos",6,"Calidad educativa para todos","Pilar 1 Igualdad de Calidad de Vida"]
[null,"Bogotá Mejor para Todos",7,"Inclusión educativa para la equidad","Pilar 1 Igualdad de Calidad de Vida"]
[null,"Bogotá Mejor para Todos",8,"Acceso con calidad a la educación superior","Pilar 1 Igualdad de Calidad de Vida"]
[null,"Bogotá Mejor para Todos",9,"Atención integral y eficiente en salud","Pilar 1 Igualdad de Calidad de Vida"]
[null,"Bogotá Mejor para Todos",10,"Modernización de la infraestructura física y tecnológica en salud","Pilar 1 Igualdad de Calidad de Vida"]
[null,"Bogotá Mejor para Todos",11,"Mejores oportunidades para el desarrollo a través de la cultura, la recreación y el deporte","Pilar 1 Igualdad de Calidad de Vida"]
[null,"Bogotá Mejor para Todos",12,"Mujeres protagonistas, activas y empoderadas en el cierre de brechas de género","Pilar 1 Igualdad de Calidad de Vida"]
[null,"Bogotá Mejor para Todos",13,"Infraestructura para el desarrollo del hábitat","Pilar 2 Democracía Urbana"]
[null,"Bogotá Mejor para Todos",14,"Intervenciones integrales del hábitat","Pilar 2 Democracía Urbana"]
[null,"Bogotá Mejor para Todos",15,"Recuperación, incorporación, vida urbana y control de la ilegalidad","Pilar 2 Democracía Urbana"]
[null,"Bogotá Mejor para Todos",16,"Integración social para una ciudad de oportunidades","Pilar 2 Democracía Urbana"]
[null,"Bogotá Mejor para Todos",17,"Espacio público, derecho de todos","Pilar 2 Democracía Urbana"]
[null,"Bogotá Mejor para Todos",18,"Mejor movilidad para todos","Pilar 2 Democracía Urbana"]
[null,"Bogotá Mejor para Todos",19,"Seguridad y convivencia para todos","Pilar 3 Construcción de Comunidad y Cultura Ciudadana"]
[null,"Bogotá Mejor para Todos",20,"Fortalecimiento del Sistema de Protección Integral a Mujeres Víctimas de Violencia - SOFIA","Pilar 3 Construcción de Comunidad y Cultura Ciudadana"]
[null,"Bogotá Mejor para Todos",21,"Justicia para todos: consolidación del Sistema Distrital de Justicia","Pilar 3 Construcción de Comunidad y Cultura Ciudadana"]
[null,"Bogotá Mejor para Todos",22,"Bogotá vive los derechos humanos","Pilar 3 Construcción de Comunidad y Cultura Ciudadana"]
[null,"Bogotá Mejor para Todos",23,"Bogotá mejor para las víctimas, la paz y la reconciliación","Pilar 3 Construcción de Comunidad y Cultura Ciudadana"]
[null,"Bogotá Mejor para Todos",24,"Equipo por la educación para el reencuentro, la reconciliación y la paz","Pilar 3 Construcción de Comunidad y Cultura Ciudadana"]
[null,"Bogotá Mejor para Todos",25,"Cambio cultural y construcción del tejido social para la vida","Pilar 3 Construcción de Comunidad y Cultura Ciudadana"]
[null,"Bogotá Mejor para Todos",26,"Información relevante e integral para la planeación territorial","Eje Transversal 1 Nuevo Ordenamiento Territorial"]
[null,"Bogotá Mejor para Todos",27,"Proyectos urbanos integrales con visión de ciudad","Eje Transversal 1 Nuevo Ordenamiento Territorial"]
[null,"Bogotá Mejor para Todos",28,"Suelo para reducir el déficit habitacional de suelo urbanizable, vivienda y soportes urbanos","Eje Transversal 1 Nuevo Ordenamiento Territorial"]
[null,"Bogotá Mejor para Todos",29,"Articulación regional y planeación integral del transporte","Eje Transversal 1 Nuevo Ordenamiento Territorial"]
[null,"Bogotá Mejor para Todos",30,"Financiación para el Desarrollo Territorial","Eje Transversal 1 Nuevo Ordenamiento Territorial"]
[null,"Bogotá Mejor para Todos",31,"Fundamentar el desarrollo económico en la generación y uso del conocimiento para mejorar la competitividad de la Ciudad Región","Eje Transversal 2 Desarrollo Económico basado en el conocimiento"]
[null,"Bogotá Mejor para Todos",32,"Generar alternativas de ingreso y empleo de mejor calidad","Eje Transversal 2 Desarrollo Económico basado en el conocimiento"]
[null,"Bogotá Mejor para Todos",33,"Elevar la eficiencia de los mercados de la ciudad","Eje Transversal 2 Desarrollo Económico basado en el conocimiento"]
[null,"Bogotá Mejor para Todos",34,"Mejorar y fortalecer el recaudo tributario de la ciudad e impulsar el uso de mecanismos de vinculación de capital privado","Eje Transversal 2 Desarrollo Económico basado en el conocimiento"]
[null,"Bogotá Mejor para Todos",35,"Bogotá, ciudad inteligente","Eje Transversal 2 Desarrollo Económico basado en el conocimiento"]
[null,"Bogotá Mejor para Todos",36,"Bogotá, una ciudad digital","Eje Transversal 2 Desarrollo Económico basado en el conocimiento"]
[null,"Bogotá Mejor para Todos",37,"Consolidar el turismo como factor de desarrollo, confianza y felicidad para Bogotá Región","Eje Transversal 2 Desarrollo Económico basado en el conocimiento"]
[null,"Bogotá Mejor para Todos",38,"Recuperación y manejo de la Estructura Ecológica Principal","Eje Transversal 3 Sostenibilidad Ambiental basada en la eficiencia energética"]
[null,"Bogotá Mejor para Todos",39,"Ambiente sano para la equidad y disfrute del ciudadano","Eje Transversal 3 Sostenibilidad Ambiental basada en la eficiencia energética"]
[null,"Bogotá Mejor para Todos",40,"Gestión de la huella ambiental urbana","Eje Transversal 3 Sostenibilidad Ambiental basada en la eficiencia energética"]
[null,"Bogotá Mejor para Todos",41,"Desarrollo rural sostenible","Eje Transversal 3 Sostenibilidad Ambiental basada en la eficiencia energética"]
[null,"Bogotá Mejor para Todos",42,"Transparencia, gestión pública y servicio a la ciudadanía","Eje Transversal 4 Gobierno Legitimo, Fortalecimiento Local y Eficiencia"]
[null,"Bogotá Mejor para Todos",43,"Modernización institucional","Eje Transversal 4 Gobierno Legitimo, Fortalecimiento Local y Eficiencia"]
[null,"Bogotá Mejor para Todos",44,"Gobierno y ciudadanía digital","Eje Transversal 4 Gobierno Legitimo, Fortalecimiento Local y Eficiencia"]
[null,"Bogotá Mejor para Todos",45,"Gobernanza e influencia local, regional e internacional","Eje Transversal 4 Gobierno Legitimo, Fortalecimiento Local y Eficiencia"]
["Acuerdo 761 2020","Un Nuevo Contrato Social y Ambiental para la Bogotá del Siglo XXI","1.","Subsidios y transferencias para la equidad","Propósito 1: Hacer un nuevo contrato social para incrementar la inclusión social, productiva y política"]
["Pag. 51","Un Nuevo Contrato Social y Ambiental para la Bogotá del Siglo XXI","2.","Igualdad de oportunidades y desarrollo de capacidades para las mujeres","Propósito 1: Hacer un nuevo contrato social para incrementar la inclusión social, productiva y política"]
[null,"Un Nuevo Contrato Social y Ambiental para la Bogotá del Siglo XXI","3.","Movilidad social integral","Propósito 1: Hacer un nuevo contrato social para incrementar la inclusión social, productiva y política"]
[null,"Un Nuevo Contrato Social y Ambiental para la Bogotá del Siglo XXI","4.","Prevención de la exclusión por razones étnicas, religiosas, sociales, políticas y de orientación sexual","Propósito 1: Hacer un nuevo contrato social para incrementar la inclusión social, productiva y política"]
[null,"Un Nuevo Contrato Social y Ambiental para la Bogotá del Siglo XXI","5.","Promoción de la igualdad, el desarrollo de capacidades y el reconocimiento de las mujeres","Propósito 1: Hacer un nuevo contrato social para incrementar la inclusión social, productiva y política"]
[null,"Un Nuevo Contrato Social y Ambiental para la Bogotá del Siglo XXI","6.","Sistema Distrital de Cuidado","Propósito 1: Hacer un nuevo contrato social para incrementar la inclusión social, productiva y política"]
[null,"Un Nuevo Contrato Social y Ambiental para la Bogotá del Siglo XXI","7.","Mejora de la gestión de instituciones de salud","Propósito 1: Hacer un nuevo contrato social para incrementar la inclusión social, productiva y política"]
[null,"Un Nuevo Contrato Social y Ambiental para la Bogotá del Siglo XXI","8.","Prevención y atención de maternidad temprana","Propósito 1: Hacer un nuevo contrato social para incrementar la inclusión social, productiva y política"]
[null,"Un Nuevo Contrato Social y Ambiental para la Bogotá del Siglo XXI","9.","Prevención y cambios para mejorar la salud de la población","Propósito 1: Hacer un nuevo contrato social para incrementar la inclusión social, productiva y política"]
[null,"Un Nuevo Contrato Social y Ambiental para la Bogotá del Siglo XXI","10.","Salud para la vida y el bienestar","Propósito 1: Hacer un nuevo contrato social para incrementar la inclusión social, productiva y política"]
[null,"Un Nuevo Contrato Social y Ambiental para la Bogotá del Siglo XXI","11.","Salud y bienestar para niñas y niños","Propósito 1: Hacer un nuevo contrato social para incrementar la inclusión social, productiva y política"]
[null,"Un Nuevo Contrato Social y Ambiental para la Bogotá del Siglo XXI","12.","Educación inicial: Bases sólidas para la vida.","Propósito 1: Hacer un nuevo contrato social para incrementar la inclusión social, productiva y política"]
[null,"Un Nuevo Contrato Social y Ambiental para la Bogotá del Siglo XXI","13.","Educación para todos y todas: acceso y permanencia con equidad y énfasis en educación rural","Propósito 1: Hacer un nuevo contrato social para incrementar la inclusión social, productiva y política"]
[null,"Un Nuevo Contrato Social y Ambiental para la Bogotá del Siglo XXI","14.","Formación integral: más y mejor tiempo en los colegios","Propósito 1: Hacer un nuevo contrato social para incrementar la inclusión social, productiva y política"]
[null,"Un Nuevo Contrato Social y Ambiental para la Bogotá del Siglo XXI","15.","Plan Distrital de Lectura, Escritura y Oralidad: \"Leer para la vida\"","Propósito 1: Hacer un nuevo contrato social para incrementar la inclusión social, productiva y política"]
[null,"Un Nuevo Contrato Social y Ambiental para la Bogotá del Siglo XXI","16.","Transformación pedagógica y mejoramiento de la gestión educativa. Es con los maestros y maestras.","Propósito 1: Hacer un nuevo contrato social para incrementar la inclusión social, productiva y política"]
[null,"Un Nuevo Contrato Social y Ambiental para la Bogotá del Siglo XXI","17.","Jóvenes con capacidades: Proyecto de vida para la ciudadanía, la innovación y el trabajo del siglo XXI","Propósito 1: Hacer un nuevo contrato social para incrementar la inclusión social, productiva y política"]
[null,"Un Nuevo Contrato Social y Ambiental para la Bogotá del Siglo XXI","18.","Cierre de brechas para la inclusión productiva urbano rural","Propósito 1: Hacer un nuevo contrato social para incrementar la inclusión social, productiva y política"]
[null,"Un Nuevo Contrato Social y Ambiental para la Bogotá del Siglo XXI","19.","Vivienda y entornos dignos en el territorio urbano y rural","Propósito 1: Hacer un nuevo contrato social para incrementar la inclusión social, productiva y política"]
[null,"Un Nuevo Contrato Social y Ambiental para la Bogotá del Siglo XXI","20.","Bogotá, referente en cultura, deporte, recreación y actividad física, con parques para el desarrollo y la salud","Propósito 1: Hacer un nuevo contrato social para incrementar la inclusión social, productiva y política"]
[null,"Un Nuevo Contrato Social y Ambiental para la Bogotá del Siglo XXI","21.","Creación y vida cotidiana: Apropiación ciudadana del arte, la cultura y el patrimonio, para la democracia cultural","Propósito 1: Hacer un nuevo contrato social para incrementar la inclusión social, productiva y política"]
[null,"Un Nuevo Contrato Social y Ambiental para la Bogotá del Siglo XXI","22.","Transformación cultural para la conciencia ambiental y el cuidado de la fauna doméstica","Propósito 1: Hacer un nuevo contrato social para incrementar la inclusión social, productiva y política"]
[null,"Un Nuevo Contrato Social y Ambiental para la Bogotá del Siglo XXI","23.","Bogotá rural","Propósito 1: Hacer un nuevo contrato social para incrementar la inclusión social, productiva y política"]
[null,"Un Nuevo Contrato Social y Ambiental para la Bogotá del Siglo XXI","24.","Bogotá región emprendedora e innovadora","Propósito 1: Hacer un nuevo contrato social para incrementar la inclusión social, productiva y política"]
[null,"Un Nuevo Contrato Social y Ambiental para la Bogotá del Siglo XXI","25.","Bogotá región productiva y competitiva","Propósito 1: Hacer un nuevo contrato social para incrementar la inclusión social, productiva y política"]
[null,"Un Nuevo Contrato Social y Ambiental para la Bogotá del Siglo XXI","26.","Bogotá - región, el mejor destino para visitar","Propósito 1: Hacer un nuevo contrato social para incrementar la inclusión social, productiva y política"]
[null,"Un Nuevo Contrato Social y Ambiental para la Bogotá del Siglo XXI","27.","Cambio cultural para la gestión de la crisis climática","Propósito 2 : Cambiar Nuestros Hábitos de Vida para Reverdecer a Bogotá y Adaptarnos y Mitigar la Crisis Climática"]
[null,"Un Nuevo Contrato Social y Ambiental para la Bogotá del Siglo XXI","28.","Bogotá protectora de sus recursos naturales","Propósito 2 : Cambiar Nuestros Hábitos de Vida para Reverdecer a Bogotá y Adaptarnos y Mitigar la Crisis Climática"]
[null,"Un Nuevo Contrato Social y Ambiental para la Bogotá del Siglo XXI","29.","Asentamientos y entornos protectores","Propósito 2 : Cambiar Nuestros Hábitos de Vida para Reverdecer a Bogotá y Adaptarnos y Mitigar la Crisis Climática"]
[null,"Un Nuevo Contrato Social y Ambiental para la Bogotá del Siglo XXI","30.","Eficiencia en la atención de emergencias","Propósito 2 : Cambiar Nuestros Hábitos de Vida para Reverdecer a Bogotá y Adaptarnos y Mitigar la Crisis Climática"]
[null,"Un Nuevo Contrato Social y Ambiental para la Bogotá del Siglo XXI","31."," Protección y valoración del patrimonio tangible e intangible en Bogotá y la región","Propósito 2 : Cambiar Nuestros Hábitos de Vida para Reverdecer a Bogotá y Adaptarnos y Mitigar la Crisis Climática"]
[null,"Un Nuevo Contrato Social y Ambiental para la Bogotá del Siglo XXI","32.","Revitalización urbana para la competitividad","Propósito 2 : Cambiar Nuestros Hábitos de Vida para Reverdecer a Bogotá y Adaptarnos y Mitigar la Crisis Climática"]
[null,"Un Nuevo Contrato Social y Ambiental para la Bogotá del Siglo XXI","33.","Más árboles y más y mejor espacio público","Propósito 2 : Cambiar Nuestros Hábitos de Vida para Reverdecer a Bogotá y Adaptarnos y Mitigar la Crisis Climática"]
[null,"Un Nuevo Contrato Social y Ambiental para la Bogotá del Siglo XXI","34.","Bogotá protectora de los animales","Propósito 2 : Cambiar Nuestros Hábitos de Vida para Reverdecer a Bogotá y Adaptarnos y Mitigar la Crisis Climática"]
[null,"Un Nuevo Contrato Social y Ambiental para la Bogotá del Siglo XXI","35.","Manejo y prevención de contaminación","Propósito 2 : Cambiar Nuestros Hábitos de Vida para Reverdecer a Bogotá y Adaptarnos y Mitigar la Crisis Climática"]
[null,"Un Nuevo Contrato Social y Ambiental para la Bogotá del Siglo XXI","36.","Manejo y saneamiento de los cuerpos de agua","Propósito 2 : Cambiar Nuestros Hábitos de Vida para Reverdecer a Bogotá y Adaptarnos y Mitigar la Crisis Climática"]
[null,"Un Nuevo Contrato Social y Ambiental para la Bogotá del Siglo XXI","37.","Provisión y mejoramiento de servicios públicos","Propósito 2 : Cambiar Nuestros Hábitos de Vida para Reverdecer a Bogotá y Adaptarnos y Mitigar la Crisis Climática"]
[null,"Un Nuevo Contrato Social y Ambiental para la Bogotá del Siglo XXI","38.","Ecoeficiencia, reciclaje, manejo de residuos e inclusión de la población recicladora","Propósito 2 : Cambiar Nuestros Hábitos de Vida para Reverdecer a Bogotá y Adaptarnos y Mitigar la Crisis Climática"]
[null,"Un Nuevo Contrato Social y Ambiental para la Bogotá del Siglo XXI","39.","Bogotá territorio de paz y atención integral a las víctimas del conflicto armado","Propósito 3: Inspirar confianza y legitimidad para vivir sin miedo y ser epicentro de cultura ciudadana, paz y reconciliación"]
[null,"Un Nuevo Contrato Social y Ambiental para la Bogotá del Siglo XXI","40.","Más mujeres viven una vida libre de violencias, se sienten seguras y acceden con confianza al sistema de justicia","Propósito 3: Inspirar confianza y legitimidad para vivir sin miedo y ser epicentro de cultura ciudadana, paz y reconciliación"]
[null,"Un Nuevo Contrato Social y Ambiental para la Bogotá del Siglo XXI","41.","Sin machismo ni violencias contra las mujeres, las niñas y los niños","Propósito 3: Inspirar confianza y legitimidad para vivir sin miedo y ser epicentro de cultura ciudadana, paz y reconciliación"]
[null,"Un Nuevo Contrato Social y Ambiental para la Bogotá del Siglo XXI","42.","Conciencia y cultura ciudadana para la seguridad, la convivencia y la construcción de confianza","Propósito 3: Inspirar confianza y legitimidad para vivir sin miedo y ser epicentro de cultura ciudadana, paz y reconciliación"]
[null,"Un Nuevo Contrato Social y Ambiental para la Bogotá del Siglo XXI","43.","Cultura ciudadana para la confianza, la convivencia y la participación desde la vida cotidiana","Propósito 3: Inspirar confianza y legitimidad para vivir sin miedo y ser epicentro de cultura ciudadana, paz y reconciliación"]
[null,"Un Nuevo Contrato Social y Ambiental para la Bogotá del Siglo XXI","44.","Autoconciencia, respeto y cuidado en el espacio público","Propósito 3: Inspirar confianza y legitimidad para vivir sin miedo y ser epicentro de cultura ciudadana, paz y reconciliación"]
[null,"Un Nuevo Contrato Social y Ambiental para la Bogotá del Siglo XXI","45.","Espacio público más seguro y construido colectivamente","Propósito 3: Inspirar confianza y legitimidad para vivir sin miedo y ser epicentro de cultura ciudadana, paz y reconciliación"]
[null,"Un Nuevo Contrato Social y Ambiental para la Bogotá del Siglo XXI","46.","Atención a jóvenes y adultos infractores con impacto en su proyecto de vida","Propósito 3: Inspirar confianza y legitimidad para vivir sin miedo y ser epicentro de cultura ciudadana, paz y reconciliación"]
[null,"Un Nuevo Contrato Social y Ambiental para la Bogotá del Siglo XXI","47.","Calidad de Vida y Derechos de la Población privada de la libertad","Propósito 3: Inspirar confianza y legitimidad para vivir sin miedo y ser epicentro de cultura ciudadana, paz y reconciliación"]
[null,"Un Nuevo Contrato Social y Ambiental para la Bogotá del Siglo XXI","48.","Plataforma institucional para la seguridad y justicia","Propósito 3: Inspirar confianza y legitimidad para vivir sin miedo y ser epicentro de cultura ciudadana, paz y reconciliación"]
[null,"Un Nuevo Contrato Social y Ambiental para la Bogotá del Siglo XXI","49.","Movilidad segura, sostenible y accesible","Propósito 4: Hacer de Bogotá Región un modelo de movilidad multimodal, incluyente y sostenible"]
[null,"Un Nuevo Contrato Social y Ambiental para la Bogotá del Siglo XXI","50.","Red de metros","Propósito 4: Hacer de Bogotá Región un modelo de movilidad multimodal, incluyente y sostenible"]
[null,"Un Nuevo Contrato Social y Ambiental para la Bogotá del Siglo XXI","51.","Gobierno Abierto","Propósito 5: Construir Bogotá - Región con gobierno abierto, transparente y ciudadanía consciente"]
[null,"Un Nuevo Contrato Social y Ambiental para la Bogotá del Siglo XXI","52.","Integración regional, distrital y local","Propósito 5: Construir Bogotá - Región con gobierno abierto, transparente y ciudadanía consciente"]
[null,"Un Nuevo Contrato Social y Ambiental para la Bogotá del Siglo XXI","53.","Información para la toma de decisiones","Propósito 5: Construir Bogotá - Región con gobierno abierto, transparente y ciudadanía consciente"]
[null,"Un Nuevo Contrato Social y Ambiental para la Bogotá del Siglo XXI","54.","Transformación digital y gestión de TIC para un territorio inteligente","Propósito 5: Construir Bogotá - Región con gobierno abierto, transparente y ciudadanía consciente"]
[null,"Un Nuevo Contrato Social y Ambiental para la Bogotá del Siglo XXI","55.","Fortalecimiento de cultura ciudadana y su institucionalidad","Propósito 5: Construir Bogotá - Región con gobierno abierto, transparente y ciudadanía consciente"]
[null,"Un Nuevo Contrato Social y Ambiental para la Bogotá del Siglo XXI","56.","Gestión pública efectiva","Propósito 5: Construir Bogotá - Región con gobierno abierto, transparente y ciudadanía consciente"]
[null,"Un Nuevo Contrato Social y Ambiental para la Bogotá del Siglo XXI","57.","Gestión pública local","Propósito 5: Construir Bogotá - Región con gobierno abierto, transparente y ciudadanía consciente"]